Workbook

Sheet Cover
B3: IPART Rate peg model
B5: MODELLER: | D5: Bee Thompson
B6: email | D6: Bee_Thompson@ipart.nsw.gov.au
B9: HOW WE CALCULATE THE RATE PEG
B11: This model calculates a rate peg for each council under the methodology IPART established in 2023. For more information see
B12: IPART, Review of the rate peg methodology, Final Report, August 2023.
B14: For more information on the rate peg for the 2025-26 financial year, see
B15: IPART, Rate pegs for NSW councils for 2025-26. Information Paper, 1 October 2024
B17: We calculate the rate peg as follows:
B21: BCC (Base Cost Change)
C22: The Base Cost Change (BCC) is a forward-looking price index that measures changes in councils' base costs. It has 3 components:
C24: ● | D24: Employee costs, which are measured by changes in the Local Government State (NSW) Award (the Award) when available, adjusted for changes in the superannuation guarantee. When the Award isn't available at the time we set the rate peg, we use the Reserve Bank of Australia’s(RBA) forecast change in the Wage Price Index (WPI) from the most recent Statement on Monetary Policy, averaging the changes over the year to June and December for the year the rate peg applies.
C25: ● | D25: Other operating costs, which are measured by the RBA’s forecast change in the Consumer Price Index (CPI), averaging the changes over the year to June and December for the year the rate peg applies.
C26: ● | D26: Asset costs, which we consider are best measured by the change in the Producer Price Index (PPI) for Road and bridge construction. In the absence of a publicly available forecast for the PPI, we apply an adjustment to the RBA's forecast change in the CPI to derive a forecast change in the PPI. The adjustment reflects the average difference between actual CPI (All groups, Sydney) and actual PPI (Road and bridge construction, NSW) over the past 5 years.
C28: The model calculates 3 separate BCCs, namely for metropolitan, regional and rural councils respectively.
C29: ● | D29: Each of the separate BCCs weights the 3 cost components differently to reflect the spending pattern of the average council in each group. | AL29: The population true-up reflects this and mitigates the impact of intercensal errors. We also decided that we would apply the true–up for any amount and to all councils for the rate peg for the 2024-25 financial year, due to the uncertainty with ABS population estimates due to the impact of COVID-19.
C30: ● | D30: We weight the 3 components using the latest 3 years of data obtained from the Financial Data Returns of councils in that group and update the weights annually.
B32: Productivity factor
C33: We set the productivity factor to 0% as a default.
B35: Population factor
C36: We calculate the population factor as follows:
D40: The change in population and the supplementary valuations percentage are based on data that is lagged by 3 years. For example, for the rate peg for the 2024-25 financial year:
D46: Where ERP = Estimated Residential Population as at 30 June, sourced from the Australian Bureau of Statistics (ABS).
C48: We include a population true-up in the rate peg for the 2024-25 financial year following the 2021 Census.
D49: In our 2021 Review of the rate peg to include population growth, we decided to true–up the population factor based on updates to the Census data. A true–up was decided because the ABS retrospectively recalculates its intercensal estimates of population once the Census data has been obtained. The population true-up reflects this and mitigates the impact of intercensal errors. We also decided that we would apply the true–up for any amount and to all councils for the rate peg for the 2024-25 financial year, due to the uncertainty with ABS population estimates due to the impact of COVID-19.
C51: Census true-up
D52: The Census true-up is based on the difference between the ABS’s original estimates and their post-Census estimates of the annual growth rates over the 2-year period from 30 June 2019 to 30 June 2021. Specifically, the true-up is the cumulative difference between the re-calculated population factors and the original population factors for the rate peg for the 2022-23 and 2023-24 financial years.
C53: For more information about the census true-up, see Review of the rate peg to include population growth, Final Report, September 2021 (Appendix B).
B55: Emergency Services Levy factor (ESL factor)
C56: The ESL factor reflects the annual change in the ESL contribution of individual councils, lagged by one year (after sharing arrangements between councils within some rural fire service
C57: districts). ESL factors are not the simple increase in a council’s ESL contribution. Instead they reflect the additional change to total permissible income that is needed for a council to meet
C58: its ESL obligations after this income has been adjusted by the BCC, the population factor and any specific (non-ESL related) adjustment factors.
C60: We calculate the ESL factor as follows:
D61: General formula The ESL factor for the 2024-25 rate peg, for example
C66: Where:
C67: TPI = Total Permissible income
C68: ESL = ESL Contribution
C69: Rx = Rate peg excluding the ESL factor
C70: I = Rate peg or special variation as applicable
C71: t = Current year
B73: Emergency Services Levy (ESL) catch-up adjustment for the discontinuation of the ESL subsidy
C74: For four years up until 2022-23, the NSW Government subsidised increases in council ESL contributions. These subsidy amounts were excluded when we calculated the rate peg
C75: (and hence not recovered from rates). For the ESL contributions for the 2023-24 financial year, the NSW Government discontinued this subsidy and this resulted in substantial increases in
C76: councils' ESL contribution costs over and above the increases in the amounts councils were invoiced between the 2022-23 and 2023-24 financial years.
C78: The ESL factor does not capture the impact on councils of the discontinuation of the subsidy in the 2023-24 financial year. Instead, we address this with a specific adjustment factor for each
C79: council.
B81: Other adjustments
C82: Our methodology makes provision for other adjustments for each council, to be decided when we set the rate peg each year.
C83: The 2025-26 rate peg includes:
C84: (i) | D84: A temporary election cost adjustment, to compensate councils for the increase in election costs since the 2016 or 2017 elections (after inflation). In 2019 the NSW Electoral Commission
D85: changed the way it charges councils, which resulted in higher costs for most councils. To make the adjustment temporary, we will make a downward adjustment in the 2026-27 rate peg.
C86: (ii) | D86: A one-off adjustment to the population factors for 13 councils with unusual population trends following COVID-19 and where this led to large population factors under our methodology.
B90: TAB COLOURS
B91: The tabs are coloured-coded as follows:
C92: 'Results' tab (rate peg by council) is dark blue
B93: Input worksheets:
C94: BCC inputs are light blue
C95: Population factor inputs are pink
C96: ESL inputs are green
B97: The calculation worksheets are grey (Excel's default colour)
B99: COLOUR CODE FOR WORKSHEETS
B100: This model uses standard IPART colour coding within worksheets:
C101: Blue cells indicate inputs
C102: Blue font indicates IPART hard-coded values used that should not be changed
C103: Key outputs
C104: Pink font indicates calculation checks
C105: Red indicates assumptions made in calculations
C106: Red double line means formula changes across row
B109: PROTECTION
B111: We have protected the worksheets without a password to avoid accidental changes to the calculations. The input cells are all unprotected.
B112: If you wish to use Excel's auditing function, you will need to unprotect the worksheets. Please don't change or over-write formulae.

Sheet Rate peg
B2: =Cover!$B$3 -> IPART Rate peg model
B4: ="Rate Peg for "&D9&"-"&RIGHT(D9,2)+1 -> Rate Peg for 2025-26
A7: 1 | B7: ="Table "&A7 -> Table 1 | C7: Selected year
B9: Rate peg for 1 July | D9: 2025 | E9: <-- select year
B10: IPART Determination year | D10: =D9-1&"-"&RIGHT(D9,2) -> 2024-25
B17: ='Rate peg calcs'!B23 -> Rounding rules: We round the Population factor after true-up to 3 decimal places and the final Rate Peg to 3 decimal places. All other components of the Rate Peg are unrounded.
B23: Org. Id | D23: Council | E23: ='Rate peg calcs'!E24 -> BCC | F23: ='Rate peg calcs'!F24 -> Super-annuation catch-up adjustment | G23: =LEFT('Rate peg calcs'!G24,10) -> ESL factor | H23: ='Rate peg calcs'!H24 -> ESL subsidy catch-up adjustment | I23: ='Rate peg calcs'!N24 -> Election cost adjustment | J23: ='Rate peg calcs'!O24 -> Productivity factor | K23: ='Rate peg calcs'!Q24 -> Rate peg excl population factor and population adjustment | L23: ='Rate peg calcs'!I24 -> Change in population | M23: ='Rate peg calcs'!J24 -> Supplementary valuations percentage | N23: ='Rate peg calcs'!K24 -> Population factor | O23: ='Rate peg calcs'!L24 -> Covid-related population adjustment | P23: ='Rate peg calcs'!M24 -> Population factor minus population adjustment | Q23: ='Rate peg calcs'!P24 -> Rate Peg | S23: ='Rate peg calcs'!U24 -> ESL factor + subsidy catch-up adjustment
E24: ='Rate peg calcs'!E25 -> unrounded | F24: ='Rate peg calcs'!F25 -> unrounded | G24: =LEFT('Rate peg calcs'!G25,10) -> unrounded | H24: ='Rate peg calcs'!H25 -> unrounded | I24: ='Rate peg calcs'!N25 -> unrounded | J24: ='Rate peg calcs'!O25 -> unrounded | L24: ='Rate peg calcs'!I25 -> unrounded | M24: ='Rate peg calcs'!J25 -> unrounded | N24: ='Rate peg calcs'!K25 -> unrounded | O24: ='Rate peg calcs'!L25 -> unrounded | P24: ='Rate peg calcs'!M25 -> rounded | Q24: ='Rate peg calcs'!P25 -> rounded
B25: ='Rate peg calcs'!B26 -> 2047 | C25: =INDEX('Rate peg calcs'!C$26:C$153,MATCH($B25,'Rate peg calcs'!$B$26:$B$153,0)) -> Regional | D25: =INDEX('Rate peg calcs'!D$26:D$153,MATCH($B25,'Rate peg calcs'!$B$26:$B$153,0)) -> Albury | E25: =INDEX('Rate peg calcs'!E$26:E$153,MATCH($B25,'Rate peg calcs'!$B$26:$B$153,0)) -> 0.03584587895 | F25: =INDEX('Rate peg calcs'!F$26:F$153,MATCH($B25,'Rate peg calcs'!$B$26:$B$153,0)) -> 0 | G25: =INDEX('Rate peg calcs'!G$26:G$153,MATCH($B25,'Rate peg calcs'!$B$26:$B$153,0)) -> -0.002072735241 | H25: =INDEX('Rate peg calcs'!H$26:H$153,MATCH($B25,'Rate peg calcs'!$B$26:$B$153,0)) -> 0.002323112632 | I25: =INDEX('Rate peg calcs'!N$26:N$153,MATCH($B25,'Rate peg calcs'!$B$26:$B$153,0)) -> 0.001939976392 | J25: =INDEX('Rate peg calcs'!O$26:O$153,MATCH($B25,'Rate peg calcs'!$B$26:$B$153,0)) -> 0 | K25: =Q25-P25 -> 0.038 | L25: =INDEX('Rate peg calcs'!I$26:I$153,MATCH($B25,'Rate peg calcs'!$B$26:$B$153,0)) -> 0.01503573635 | M25: =INDEX('Rate peg calcs'!J$26:J$153,MATCH($B25,'Rate peg calcs'!$B$26:$B$153,0)) -> 0.01198612352 | N25: =INDEX('Rate peg calcs'!K$26:K$153,MATCH($B25,'Rate peg calcs'!$B$26:$B$153,0)) -> 0.003049612828 | O25: =INDEX('Rate peg calcs'!L$26:L$153,MATCH($B25,'Rate peg calcs'!$B$26:$B$153,0)) -> 0 | P25: =INDEX('Rate peg calcs'!M$26:M$153,MATCH($B25,'Rate peg calcs'!$B$26:$B$153,0)) -> 0.003 | Q25: =INDEX('Rate peg calcs'!P$26:P$153,MATCH($B25,'Rate peg calcs'!$B$26:$B$153,0)) -> 0.041 | S25: =SUM(G25:H25) -> 0.0002503773911
B26: ='Rate peg calcs'!B27 -> 2079 | C26: =INDEX('Rate peg calcs'!C$26:C$153,MATCH($B26,'Rate peg calcs'!$B$26:$B$153,0)) -> Regional | D26: =INDEX('Rate peg calcs'!D$26:D$153,MATCH($B26,'Rate peg calcs'!$B$26:$B$153,0)) -> Armidale Regional | E26: =INDEX('Rate peg calcs'!E$26:E$153,MATCH($B26,'Rate peg calcs'!$B$26:$B$153,0)) -> 0.03584587895 | F26: =INDEX('Rate peg calcs'!F$26:F$153,MATCH($B26,'Rate peg calcs'!$B$26:$B$153,0)) -> 0 | G26: =INDEX('Rate peg calcs'!G$26:G$153,MATCH($B26,'Rate peg calcs'!$B$26:$B$153,0)) -> -0.002718836338 | H26: =INDEX('Rate peg calcs'!H$26:H$153,MATCH($B26,'Rate peg calcs'!$B$26:$B$153,0)) -> 0.004173407716 | I26: =INDEX('Rate peg calcs'!N$26:N$153,MATCH($B26,'Rate peg calcs'!$B$26:$B$153,0)) -> 0.002849341678 | J26: =INDEX('Rate peg calcs'!O$26:O$153,MATCH($B26,'Rate peg calcs'!$B$26:$B$153,0)) -> 0 | K26: =Q26-P26 -> 0.04 | L26: =INDEX('Rate peg calcs'!I$26:I$153,MATCH($B26,'Rate peg calcs'!$B$26:$B$153,0)) -> 0.007935697013 | M26: =INDEX('Rate peg calcs'!J$26:J$153,MATCH($B26,'Rate peg calcs'!$B$26:$B$153,0)) -> 0.009200039358 | N26: =INDEX('Rate peg calcs'!K$26:K$153,MATCH($B26,'Rate peg calcs'!$B$26:$B$153,0)) -> 0 | O26: =INDEX('Rate peg calcs'!L$26:L$153,MATCH($B26,'Rate peg calcs'!$B$26:$B$153,0)) -> 0 | P26: =INDEX('Rate peg calcs'!M$26:M$153,MATCH($B26,'Rate peg calcs'!$B$26:$B$153,0)) -> 0 | Q26: =INDEX('Rate peg calcs'!P$26:P$153,MATCH($B26,'Rate peg calcs'!$B$26:$B$153,0)) -> 0.04 | S26: =SUM(G26:H26) -> 0.001454571378
B27: ='Rate peg calcs'!B28 -> 54 | C27: =INDEX('Rate peg calcs'!C$26:C$153,MATCH($B27,'Rate peg calcs'!$B$26:$B$153,0)) -> Regional | D27: =INDEX('Rate peg calcs'!D$26:D$153,MATCH($B27,'Rate peg calcs'!$B$26:$B$153,0)) -> Ballina | E27: =INDEX('Rate peg calcs'!E$26:E$153,MATCH($B27,'Rate peg calcs'!$B$26:$B$153,0)) -> 0.03584587895 | F27: =INDEX('Rate peg calcs'!F$26:F$153,MATCH($B27,'Rate peg calcs'!$B$26:$B$153,0)) -> 0 | G27: =INDEX('Rate peg calcs'!G$26:G$153,MATCH($B27,'Rate peg calcs'!$B$26:$B$153,0)) -> -0.002341542238 | H27: =INDEX('Rate peg calcs'!H$26:H$153,MATCH($B27,'Rate peg calcs'!$B$26:$B$153,0)) -> 0.002446923244 | I27: =INDEX('Rate peg calcs'!N$26:N$153,MATCH($B27,'Rate peg calcs'!$B$26:$B$153,0)) -> 0.001896183085 | J27: =INDEX('Rate peg calcs'!O$26:O$153,MATCH($B27,'Rate peg calcs'!$B$26:$B$153,0)) -> 0 | K27: 0.038 | L27: =INDEX('Rate peg calcs'!I$26:I$153,MATCH($B27,'Rate peg calcs'!$B$26:$B$153,0)) -> 0.009178424299 | M27: =INDEX('Rate peg calcs'!J$26:J$153,MATCH($B27,'Rate peg calcs'!$B$26:$B$153,0)) -> 0.01197232087 | N27: =INDEX('Rate peg calcs'!K$26:K$153,MATCH($B27,'Rate peg calcs'!$B$26:$B$153,0)) -> 0 | O27: =INDEX('Rate peg calcs'!L$26:L$153,MATCH($B27,'Rate peg calcs'!$B$26:$B$153,0)) -> 0 | P27: =INDEX('Rate peg calcs'!M$26:M$153,MATCH($B27,'Rate peg calcs'!$B$26:$B$153,0)) -> 0 | Q27: =INDEX('Rate peg calcs'!P$26:P$153,MATCH($B27,'Rate peg calcs'!$B$26:$B$153,0)) -> 0.038 | S27: 0.0001053810054
B28: ='Rate peg calcs'!B29 -> 55 | C28: =INDEX('Rate peg calcs'!C$26:C$153,MATCH($B28,'Rate peg calcs'!$B$26:$B$153,0)) -> Rural | D28: =INDEX('Rate peg calcs'!D$26:D$153,MATCH($B28,'Rate peg calcs'!$B$26:$B$153,0)) -> Balranald | E28: =INDEX('Rate peg calcs'!E$26:E$153,MATCH($B28,'Rate peg calcs'!$B$26:$B$153,0)) -> 0.03594422934 | F28: =INDEX('Rate peg calcs'!F$26:F$153,MATCH($B28,'Rate peg calcs'!$B$26:$B$153,0)) -> 0 | G28: =INDEX('Rate peg calcs'!G$26:G$153,MATCH($B28,'Rate peg calcs'!$B$26:$B$153,0)) -> -0.005789407495 | H28: =INDEX('Rate peg calcs'!H$26:H$153,MATCH($B28,'Rate peg calcs'!$B$26:$B$153,0)) -> 0.01410473577 | I28: =INDEX('Rate peg calcs'!N$26:N$153,MATCH($B28,'Rate peg calcs'!$B$26:$B$153,0)) -> 0.0008875866554 | J28: =INDEX('Rate peg calcs'!O$26:O$153,MATCH($B28,'Rate peg calcs'!$B$26:$B$153,0)) -> 0 | K28: 0.045 | L28: =INDEX('Rate peg calcs'!I$26:I$153,MATCH($B28,'Rate peg calcs'!$B$26:$B$153,0)) -> 0 | M28: =INDEX('Rate peg calcs'!J$26:J$153,MATCH($B28,'Rate peg calcs'!$B$26:$B$153,0)) -> 0.001577287066 | N28: =INDEX('Rate peg calcs'!K$26:K$153,MATCH($B28,'Rate peg calcs'!$B$26:$B$153,0)) -> 0 | O28: =INDEX('Rate peg calcs'!L$26:L$153,MATCH($B28,'Rate peg calcs'!$B$26:$B$153,0)) -> 0 | P28: =INDEX('Rate peg calcs'!M$26:M$153,MATCH($B28,'Rate peg calcs'!$B$26:$B$153,0)) -> 0 | Q28: =INDEX('Rate peg calcs'!P$26:P$153,MATCH($B28,'Rate peg calcs'!$B$26:$B$153,0)) -> 0.045 | S28: 0.008315328274
B29: ='Rate peg calcs'!B30 -> 2043 | C29: =INDEX('Rate peg calcs'!C$26:C$153,MATCH($B29,'Rate peg calcs'!$B$26:$B$153,0)) -> Regional | D29: =INDEX('Rate peg calcs'!D$26:D$153,MATCH($B29,'Rate peg calcs'!$B$26:$B$153,0)) -> Bathurst Regional | E29: =INDEX('Rate peg calcs'!E$26:E$153,MATCH($B29,'Rate peg calcs'!$B$26:$B$153,0)) -> 0.03584587895 | F29: =INDEX('Rate peg calcs'!F$26:F$153,MATCH($B29,'Rate peg calcs'!$B$26:$B$153,0)) -> 0 | G29: =INDEX('Rate peg calcs'!G$26:G$153,MATCH($B29,'Rate peg calcs'!$B$26:$B$153,0)) -> -0.003911371123 | H29: =INDEX('Rate peg calcs'!H$26:H$153,MATCH($B29,'Rate peg calcs'!$B$26:$B$153,0)) -> 0.005065778336 | I29: =INDEX('Rate peg calcs'!N$26:N$153,MATCH($B29,'Rate peg calcs'!$B$26:$B$153,0)) -> 0.002647871319 | J29: =INDEX('Rate peg calcs'!O$26:O$153,MATCH($B29,'Rate peg calcs'!$B$26:$B$153,0)) -> 0 | K29: 0.04 | L29: =INDEX('Rate peg calcs'!I$26:I$153,MATCH($B29,'Rate peg calcs'!$B$26:$B$153,0)) -> 0.01246473336 | M29: =INDEX('Rate peg calcs'!J$26:J$153,MATCH($B29,'Rate peg calcs'!$B$26:$B$153,0)) -> 0.003599616922 | N29: =INDEX('Rate peg calcs'!K$26:K$153,MATCH($B29,'Rate peg calcs'!$B$26:$B$153,0)) -> 0.00886511644 | O29: =INDEX('Rate peg calcs'!L$26:L$153,MATCH($B29,'Rate peg calcs'!$B$26:$B$153,0)) -> 0 | P29: =INDEX('Rate peg calcs'!M$26:M$153,MATCH($B29,'Rate peg calcs'!$B$26:$B$153,0)) -> 0.009 | Q29: =INDEX('Rate peg calcs'!P$26:P$153,MATCH($B29,'Rate peg calcs'!$B$26:$B$153,0)) -> 0.049 | S29: 0.001154407213
B30: ='Rate peg calcs'!B31 -> 2099 | C30: =INDEX('Rate peg calcs'!C$26:C$153,MATCH($B30,'Rate peg calcs'!$B$26:$B$153,0)) -> Metropolitan | D30: =INDEX('Rate peg calcs'!D$26:D$153,MATCH($B30,'Rate peg calcs'!$B$26:$B$153,0)) -> Bayside | E30: =INDEX('Rate peg calcs'!E$26:E$153,MATCH($B30,'Rate peg calcs'!$B$26:$B$153,0)) -> 0.03564768825 | F30: =INDEX('Rate peg calcs'!F$26:F$153,MATCH($B30,'Rate peg calcs'!$B$26:$B$153,0)) -> 0 | G30: =INDEX('Rate peg calcs'!G$26:G$153,MATCH($B30,'Rate peg calcs'!$B$26:$B$153,0)) -> -0.004738598761 | H30: =INDEX('Rate peg calcs'!H$26:H$153,MATCH($B30,'Rate peg calcs'!$B$26:$B$153,0)) -> 0.004738598761 | I30: =INDEX('Rate peg calcs'!N$26:N$153,MATCH($B30,'Rate peg calcs'!$B$26:$B$153,0)) -> 0.001450656439 | J30: =INDEX('Rate peg calcs'!O$26:O$153,MATCH($B30,'Rate peg calcs'!$B$26:$B$153,0)) -> 0 | K30: 0.037 | L30: =INDEX('Rate peg calcs'!I$26:I$153,MATCH($B30,'Rate peg calcs'!$B$26:$B$153,0)) -> 0.02806305901 | M30: =INDEX('Rate peg calcs'!J$26:J$153,MATCH($B30,'Rate peg calcs'!$B$26:$B$153,0)) -> 0.003841370457 | N30: =INDEX('Rate peg calcs'!K$26:K$153,MATCH($B30,'Rate peg calcs'!$B$26:$B$153,0)) -> 0.02422168856 | O30: =INDEX('Rate peg calcs'!L$26:L$153,MATCH($B30,'Rate peg calcs'!$B$26:$B$153,0)) -> 0 | P30: =INDEX('Rate peg calcs'!M$26:M$153,MATCH($B30,'Rate peg calcs'!$B$26:$B$153,0)) -> 0.024 | Q30: =INDEX('Rate peg calcs'!P$26:P$153,MATCH($B30,'Rate peg calcs'!$B$26:$B$153,0)) -> 0.061 | S30: 0
B31: ='Rate peg calcs'!B32 -> 60 | C31: =INDEX('Rate peg calcs'!C$26:C$153,MATCH($B31,'Rate peg calcs'!$B$26:$B$153,0)) -> Regional | D31: =INDEX('Rate peg calcs'!D$26:D$153,MATCH($B31,'Rate peg calcs'!$B$26:$B$153,0)) -> Bega Valley | E31: =INDEX('Rate peg calcs'!E$26:E$153,MATCH($B31,'Rate peg calcs'!$B$26:$B$153,0)) -> 0.03584587895 | F31: =INDEX('Rate peg calcs'!F$26:F$153,MATCH($B31,'Rate peg calcs'!$B$26:$B$153,0)) -> 0 | G31: =INDEX('Rate peg calcs'!G$26:G$153,MATCH($B31,'Rate peg calcs'!$B$26:$B$153,0)) -> -0.003133173952 | H31: =INDEX('Rate peg calcs'!H$26:H$153,MATCH($B31,'Rate peg calcs'!$B$26:$B$153,0)) -> 0.004828377054 | I31: =INDEX('Rate peg calcs'!N$26:N$153,MATCH($B31,'Rate peg calcs'!$B$26:$B$153,0)) -> 0.003910173992 | J31: =INDEX('Rate peg calcs'!O$26:O$153,MATCH($B31,'Rate peg calcs'!$B$26:$B$153,0)) -> 0 | K31: 0.041 | L31: =INDEX('Rate peg calcs'!I$26:I$153,MATCH($B31,'Rate peg calcs'!$B$26:$B$153,0)) -> 0.008170070863 | M31: =INDEX('Rate peg calcs'!J$26:J$153,MATCH($B31,'Rate peg calcs'!$B$26:$B$153,0)) -> 0 | N31: =INDEX('Rate peg calcs'!K$26:K$153,MATCH($B31,'Rate peg calcs'!$B$26:$B$153,0)) -> 0.008170070863 | O31: =INDEX('Rate peg calcs'!L$26:L$153,MATCH($B31,'Rate peg calcs'!$B$26:$B$153,0)) -> 0 | P31: =INDEX('Rate peg calcs'!M$26:M$153,MATCH($B31,'Rate peg calcs'!$B$26:$B$153,0)) -> 0.008 | Q31: =INDEX('Rate peg calcs'!P$26:P$153,MATCH($B31,'Rate peg calcs'!$B$26:$B$153,0)) -> 0.049 | S31: 0.001695203102
B32: ='Rate peg calcs'!B33 -> 61 | C32: =INDEX('Rate peg calcs'!C$26:C$153,MATCH($B32,'Rate peg calcs'!$B$26:$B$153,0)) -> Rural | D32: =INDEX('Rate peg calcs'!D$26:D$153,MATCH($B32,'Rate peg calcs'!$B$26:$B$153,0)) -> Bellingen | E32: =INDEX('Rate peg calcs'!E$26:E$153,MATCH($B32,'Rate peg calcs'!$B$26:$B$153,0)) -> 0.03594422934 | F32: =INDEX('Rate peg calcs'!F$26:F$153,MATCH($B32,'Rate peg calcs'!$B$26:$B$153,0)) -> 0 | G32: =INDEX('Rate peg calcs'!G$26:G$153,MATCH($B32,'Rate peg calcs'!$B$26:$B$153,0)) -> -0.00455808424 | H32: =INDEX('Rate peg calcs'!H$26:H$153,MATCH($B32,'Rate peg calcs'!$B$26:$B$153,0)) -> 0.008838497434 | I32: =INDEX('Rate peg calcs'!N$26:N$153,MATCH($B32,'Rate peg calcs'!$B$26:$B$153,0)) -> 0.001977840774 | J32: =INDEX('Rate peg calcs'!O$26:O$153,MATCH($B32,'Rate peg calcs'!$B$26:$B$153,0)) -> 0 | K32: 0.042 | L32: =INDEX('Rate peg calcs'!I$26:I$153,MATCH($B32,'Rate peg calcs'!$B$26:$B$153,0)) -> 0 | M32: =INDEX('Rate peg calcs'!J$26:J$153,MATCH($B32,'Rate peg calcs'!$B$26:$B$153,0)) -> 0.004225352113 | N32: =INDEX('Rate peg calcs'!K$26:K$153,MATCH($B32,'Rate peg calcs'!$B$26:$B$153,0)) -> 0 | O32: =INDEX('Rate peg calcs'!L$26:L$153,MATCH($B32,'Rate peg calcs'!$B$26:$B$153,0)) -> 0 | P32: =INDEX('Rate peg calcs'!M$26:M$153,MATCH($B32,'Rate peg calcs'!$B$26:$B$153,0)) -> 0 | Q32: =INDEX('Rate peg calcs'!P$26:P$153,MATCH($B32,'Rate peg calcs'!$B$26:$B$153,0)) -> 0.042 | S32: 0.004280413194
B33: ='Rate peg calcs'!B34 -> 62 | C33: =INDEX('Rate peg calcs'!C$26:C$153,MATCH($B33,'Rate peg calcs'!$B$26:$B$153,0)) -> Rural | D33: =INDEX('Rate peg calcs'!D$26:D$153,MATCH($B33,'Rate peg calcs'!$B$26:$B$153,0)) -> Berrigan | E33: =INDEX('Rate peg calcs'!E$26:E$153,MATCH($B33,'Rate peg calcs'!$B$26:$B$153,0)) -> 0.03594422934 | F33: =INDEX('Rate peg calcs'!F$26:F$153,MATCH($B33,'Rate peg calcs'!$B$26:$B$153,0)) -> 0 | G33: =INDEX('Rate peg calcs'!G$26:G$153,MATCH($B33,'Rate peg calcs'!$B$26:$B$153,0)) -> -0.004350616641 | H33: =INDEX('Rate peg calcs'!H$26:H$153,MATCH($B33,'Rate peg calcs'!$B$26:$B$153,0)) -> 0.006483933273 | I33: =INDEX('Rate peg calcs'!N$26:N$153,MATCH($B33,'Rate peg calcs'!$B$26:$B$153,0)) -> 0.007706288123 | J33: =INDEX('Rate peg calcs'!O$26:O$153,MATCH($B33,'Rate peg calcs'!$B$26:$B$153,0)) -> 0 | K33: 0.046 | L33: =INDEX('Rate peg calcs'!I$26:I$153,MATCH($B33,'Rate peg calcs'!$B$26:$B$153,0)) -> 0 | M33: =INDEX('Rate peg calcs'!J$26:J$153,MATCH($B33,'Rate peg calcs'!$B$26:$B$153,0)) -> 0.002453557659 | N33: =INDEX('Rate peg calcs'!K$26:K$153,MATCH($B33,'Rate peg calcs'!$B$26:$B$153,0)) -> 0 | O33: =INDEX('Rate peg calcs'!L$26:L$153,MATCH($B33,'Rate peg calcs'!$B$26:$B$153,0)) -> 0 | P33: =INDEX('Rate peg calcs'!M$26:M$153,MATCH($B33,'Rate peg calcs'!$B$26:$B$153,0)) -> 0 | Q33: =INDEX('Rate peg calcs'!P$26:P$153,MATCH($B33,'Rate peg calcs'!$B$26:$B$153,0)) -> 0.046 | S33: 0.002133316632
B34: ='Rate peg calcs'!B35 -> 64 | C34: =INDEX('Rate peg calcs'!C$26:C$153,MATCH($B34,'Rate peg calcs'!$B$26:$B$153,0)) -> Metropolitan | D34: =INDEX('Rate peg calcs'!D$26:D$153,MATCH($B34,'Rate peg calcs'!$B$26:$B$153,0)) -> Blacktown | E34: =INDEX('Rate peg calcs'!E$26:E$153,MATCH($B34,'Rate peg calcs'!$B$26:$B$153,0)) -> 0.03564768825 | F34: =INDEX('Rate peg calcs'!F$26:F$153,MATCH($B34,'Rate peg calcs'!$B$26:$B$153,0)) -> 0 | G34: =INDEX('Rate peg calcs'!G$26:G$153,MATCH($B34,'Rate peg calcs'!$B$26:$B$153,0)) -> -0.001772410486 | H34: =INDEX('Rate peg calcs'!H$26:H$153,MATCH($B34,'Rate peg calcs'!$B$26:$B$153,0)) -> 0.003730523514 | I34: =INDEX('Rate peg calcs'!N$26:N$153,MATCH($B34,'Rate peg calcs'!$B$26:$B$153,0)) -> 0.001931220408 | J34: =INDEX('Rate peg calcs'!O$26:O$153,MATCH($B34,'Rate peg calcs'!$B$26:$B$153,0)) -> 0 | K34: 0.04 | L34: =INDEX('Rate peg calcs'!I$26:I$153,MATCH($B34,'Rate peg calcs'!$B$26:$B$153,0)) -> 0.03755370045 | M34: =INDEX('Rate peg calcs'!J$26:J$153,MATCH($B34,'Rate peg calcs'!$B$26:$B$153,0)) -> 0.01894982003 | N34: =INDEX('Rate peg calcs'!K$26:K$153,MATCH($B34,'Rate peg calcs'!$B$26:$B$153,0)) -> 0.01860388042 | O34: =INDEX('Rate peg calcs'!L$26:L$153,MATCH($B34,'Rate peg calcs'!$B$26:$B$153,0)) -> 0 | P34: =INDEX('Rate peg calcs'!M$26:M$153,MATCH($B34,'Rate peg calcs'!$B$26:$B$153,0)) -> 0.019 | Q34: =INDEX('Rate peg calcs'!P$26:P$153,MATCH($B34,'Rate peg calcs'!$B$26:$B$153,0)) -> 0.059 | S34: 0.001958113028
B35: ='Rate peg calcs'!B36 -> 65 | C35: =INDEX('Rate peg calcs'!C$26:C$153,MATCH($B35,'Rate peg calcs'!$B$26:$B$153,0)) -> Rural | D35: =INDEX('Rate peg calcs'!D$26:D$153,MATCH($B35,'Rate peg calcs'!$B$26:$B$153,0)) -> Bland | E35: =INDEX('Rate peg calcs'!E$26:E$153,MATCH($B35,'Rate peg calcs'!$B$26:$B$153,0)) -> 0.03594422934 | F35: =INDEX('Rate peg calcs'!F$26:F$153,MATCH($B35,'Rate peg calcs'!$B$26:$B$153,0)) -> 0 | G35: =INDEX('Rate peg calcs'!G$26:G$153,MATCH($B35,'Rate peg calcs'!$B$26:$B$153,0)) -> -0.005534763584 | H35: =INDEX('Rate peg calcs'!H$26:H$153,MATCH($B35,'Rate peg calcs'!$B$26:$B$153,0)) -> 0.00852583108 | I35: =INDEX('Rate peg calcs'!N$26:N$153,MATCH($B35,'Rate peg calcs'!$B$26:$B$153,0)) -> 0.00273173444 | J35: =INDEX('Rate peg calcs'!O$26:O$153,MATCH($B35,'Rate peg calcs'!$B$26:$B$153,0)) -> 0 | K35: 0.042 | L35: =INDEX('Rate peg calcs'!I$26:I$153,MATCH($B35,'Rate peg calcs'!$B$26:$B$153,0)) -> 0 | M35: =INDEX('Rate peg calcs'!J$26:J$153,MATCH($B35,'Rate peg calcs'!$B$26:$B$153,0)) -> 0.0009741163373 | N35: =INDEX('Rate peg calcs'!K$26:K$153,MATCH($B35,'Rate peg calcs'!$B$26:$B$153,0)) -> 0 | O35: =INDEX('Rate peg calcs'!L$26:L$153,MATCH($B35,'Rate peg calcs'!$B$26:$B$153,0)) -> 0 | P35: =INDEX('Rate peg calcs'!M$26:M$153,MATCH($B35,'Rate peg calcs'!$B$26:$B$153,0)) -> 0 | Q35: =INDEX('Rate peg calcs'!P$26:P$153,MATCH($B35,'Rate peg calcs'!$B$26:$B$153,0)) -> 0.042 | S35: 0.002991067497
B36: ='Rate peg calcs'!B37 -> 66 | C36: =INDEX('Rate peg calcs'!C$26:C$153,MATCH($B36,'Rate peg calcs'!$B$26:$B$153,0)) -> Rural | D36: =INDEX('Rate peg calcs'!D$26:D$153,MATCH($B36,'Rate peg calcs'!$B$26:$B$153,0)) -> Blayney | E36: =INDEX('Rate peg calcs'!E$26:E$153,MATCH($B36,'Rate peg calcs'!$B$26:$B$153,0)) -> 0.03594422934 | F36: =INDEX('Rate peg calcs'!F$26:F$153,MATCH($B36,'Rate peg calcs'!$B$26:$B$153,0)) -> 0 | G36: =INDEX('Rate peg calcs'!G$26:G$153,MATCH($B36,'Rate peg calcs'!$B$26:$B$153,0)) -> -0.002897417769 | H36: =INDEX('Rate peg calcs'!H$26:H$153,MATCH($B36,'Rate peg calcs'!$B$26:$B$153,0)) -> 0.003314939635 | I36: =INDEX('Rate peg calcs'!N$26:N$153,MATCH($B36,'Rate peg calcs'!$B$26:$B$153,0)) -> 0.001367640504 | J36: =INDEX('Rate peg calcs'!O$26:O$153,MATCH($B36,'Rate peg calcs'!$B$26:$B$153,0)) -> 0 | K36: 0.038 | L36: =INDEX('Rate peg calcs'!I$26:I$153,MATCH($B36,'Rate peg calcs'!$B$26:$B$153,0)) -> 0.007114624506 | M36: =INDEX('Rate peg calcs'!J$26:J$153,MATCH($B36,'Rate peg calcs'!$B$26:$B$153,0)) -> 0.008049341418 | N36: =INDEX('Rate peg calcs'!K$26:K$153,MATCH($B36,'Rate peg calcs'!$B$26:$B$153,0)) -> 0 | O36: =INDEX('Rate peg calcs'!L$26:L$153,MATCH($B36,'Rate peg calcs'!$B$26:$B$153,0)) -> 0 | P36: =INDEX('Rate peg calcs'!M$26:M$153,MATCH($B36,'Rate peg calcs'!$B$26:$B$153,0)) -> 0 | Q36: =INDEX('Rate peg calcs'!P$26:P$153,MATCH($B36,'Rate peg calcs'!$B$26:$B$153,0)) -> 0.038 | S36: 0.0004175218658
B37: ='Rate peg calcs'!B38 -> 67 | C37: =INDEX('Rate peg calcs'!C$26:C$153,MATCH($B37,'Rate peg calcs'!$B$26:$B$153,0)) -> Metropolitan | D37: =INDEX('Rate peg calcs'!D$26:D$153,MATCH($B37,'Rate peg calcs'!$B$26:$B$153,0)) -> Blue Mountains | E37: =INDEX('Rate peg calcs'!E$26:E$153,MATCH($B37,'Rate peg calcs'!$B$26:$B$153,0)) -> 0.03564768825 | F37: =INDEX('Rate peg calcs'!F$26:F$153,MATCH($B37,'Rate peg calcs'!$B$26:$B$153,0)) -> 0 | G37: =INDEX('Rate peg calcs'!G$26:G$153,MATCH($B37,'Rate peg calcs'!$B$26:$B$153,0)) -> -0.003392691047 | H37: =INDEX('Rate peg calcs'!H$26:H$153,MATCH($B37,'Rate peg calcs'!$B$26:$B$153,0)) -> 0.005011500876 | I37: =INDEX('Rate peg calcs'!N$26:N$153,MATCH($B37,'Rate peg calcs'!$B$26:$B$153,0)) -> 0.001142175716 | J37: =INDEX('Rate peg calcs'!O$26:O$153,MATCH($B37,'Rate peg calcs'!$B$26:$B$153,0)) -> 0 | K37: 0.038 | L37: =INDEX('Rate peg calcs'!I$26:I$153,MATCH($B37,'Rate peg calcs'!$B$26:$B$153,0)) -> 0.006840963639 | M37: =INDEX('Rate peg calcs'!J$26:J$153,MATCH($B37,'Rate peg calcs'!$B$26:$B$153,0)) -> 0 | N37: =INDEX('Rate peg calcs'!K$26:K$153,MATCH($B37,'Rate peg calcs'!$B$26:$B$153,0)) -> 0.006840963639 | O37: =INDEX('Rate peg calcs'!L$26:L$153,MATCH($B37,'Rate peg calcs'!$B$26:$B$153,0)) -> 0 | P37: =INDEX('Rate peg calcs'!M$26:M$153,MATCH($B37,'Rate peg calcs'!$B$26:$B$153,0)) -> 0.007 | Q37: =INDEX('Rate peg calcs'!P$26:P$153,MATCH($B37,'Rate peg calcs'!$B$26:$B$153,0)) -> 0.045 | S37: 0.001618809829
B38: ='Rate peg calcs'!B39 -> 68 | C38: =INDEX('Rate peg calcs'!C$26:C$153,MATCH($B38,'Rate peg calcs'!$B$26:$B$153,0)) -> Rural | D38: =INDEX('Rate peg calcs'!D$26:D$153,MATCH($B38,'Rate peg calcs'!$B$26:$B$153,0)) -> Bogan | E38: =INDEX('Rate peg calcs'!E$26:E$153,MATCH($B38,'Rate peg calcs'!$B$26:$B$153,0)) -> 0.03594422934 | F38: =INDEX('Rate peg calcs'!F$26:F$153,MATCH($B38,'Rate peg calcs'!$B$26:$B$153,0)) -> 0 | G38: =INDEX('Rate peg calcs'!G$26:G$153,MATCH($B38,'Rate peg calcs'!$B$26:$B$153,0)) -> -0.004162662769 | H38: =INDEX('Rate peg calcs'!H$26:H$153,MATCH($B38,'Rate peg calcs'!$B$26:$B$153,0)) -> 0.006682117327 | I38: =INDEX('Rate peg calcs'!N$26:N$153,MATCH($B38,'Rate peg calcs'!$B$26:$B$153,0)) -> 0.002921466969 | J38: =INDEX('Rate peg calcs'!O$26:O$153,MATCH($B38,'Rate peg calcs'!$B$26:$B$153,0)) -> 0 | K38: 0.041 | L38: =INDEX('Rate peg calcs'!I$26:I$153,MATCH($B38,'Rate peg calcs'!$B$26:$B$153,0)) -> 0 | M38: =INDEX('Rate peg calcs'!J$26:J$153,MATCH($B38,'Rate peg calcs'!$B$26:$B$153,0)) -> 0.01130490956 | N38: =INDEX('Rate peg calcs'!K$26:K$153,MATCH($B38,'Rate peg calcs'!$B$26:$B$153,0)) -> 0 | O38: =INDEX('Rate peg calcs'!L$26:L$153,MATCH($B38,'Rate peg calcs'!$B$26:$B$153,0)) -> 0 | P38: =INDEX('Rate peg calcs'!M$26:M$153,MATCH($B38,'Rate peg calcs'!$B$26:$B$153,0)) -> 0 | Q38: =INDEX('Rate peg calcs'!P$26:P$153,MATCH($B38,'Rate peg calcs'!$B$26:$B$153,0)) -> 0.041 | S38: 0.002519454558
B39: ='Rate peg calcs'!B40 -> 72 | C39: =INDEX('Rate peg calcs'!C$26:C$153,MATCH($B39,'Rate peg calcs'!$B$26:$B$153,0)) -> Rural | D39: =INDEX('Rate peg calcs'!D$26:D$153,MATCH($B39,'Rate peg calcs'!$B$26:$B$153,0)) -> Bourke | E39: =INDEX('Rate peg calcs'!E$26:E$153,MATCH($B39,'Rate peg calcs'!$B$26:$B$153,0)) -> 0.03594422934 | F39: =INDEX('Rate peg calcs'!F$26:F$153,MATCH($B39,'Rate peg calcs'!$B$26:$B$153,0)) -> 0 | G39: =INDEX('Rate peg calcs'!G$26:G$153,MATCH($B39,'Rate peg calcs'!$B$26:$B$153,0)) -> -0.007924256431 | H39: =INDEX('Rate peg calcs'!H$26:H$153,MATCH($B39,'Rate peg calcs'!$B$26:$B$153,0)) -> 0.01451337381 | I39: =INDEX('Rate peg calcs'!N$26:N$153,MATCH($B39,'Rate peg calcs'!$B$26:$B$153,0)) -> 0 | J39: =INDEX('Rate peg calcs'!O$26:O$153,MATCH($B39,'Rate peg calcs'!$B$26:$B$153,0)) -> 0 | K39: 0.043 | L39: =INDEX('Rate peg calcs'!I$26:I$153,MATCH($B39,'Rate peg calcs'!$B$26:$B$153,0)) -> 0.007240204429 | M39: =INDEX('Rate peg calcs'!J$26:J$153,MATCH($B39,'Rate peg calcs'!$B$26:$B$153,0)) -> 0 | N39: =INDEX('Rate peg calcs'!K$26:K$153,MATCH($B39,'Rate peg calcs'!$B$26:$B$153,0)) -> 0.007240204429 | O39: =INDEX('Rate peg calcs'!L$26:L$153,MATCH($B39,'Rate peg calcs'!$B$26:$B$153,0)) -> 0 | P39: =INDEX('Rate peg calcs'!M$26:M$153,MATCH($B39,'Rate peg calcs'!$B$26:$B$153,0)) -> 0.007 | Q39: =INDEX('Rate peg calcs'!P$26:P$153,MATCH($B39,'Rate peg calcs'!$B$26:$B$153,0)) -> 0.05 | S39: 0.006589117383
B40: ='Rate peg calcs'!B41 -> 73 | C40: =INDEX('Rate peg calcs'!C$26:C$153,MATCH($B40,'Rate peg calcs'!$B$26:$B$153,0)) -> Rural | D40: =INDEX('Rate peg calcs'!D$26:D$153,MATCH($B40,'Rate peg calcs'!$B$26:$B$153,0)) -> Brewarrina | E40: =INDEX('Rate peg calcs'!E$26:E$153,MATCH($B40,'Rate peg calcs'!$B$26:$B$153,0)) -> 0.03594422934 | F40: =INDEX('Rate peg calcs'!F$26:F$153,MATCH($B40,'Rate peg calcs'!$B$26:$B$153,0)) -> 0 | G40: =INDEX('Rate peg calcs'!G$26:G$153,MATCH($B40,'Rate peg calcs'!$B$26:$B$153,0)) -> -0.0117491488 | H40: =INDEX('Rate peg calcs'!H$26:H$153,MATCH($B40,'Rate peg calcs'!$B$26:$B$153,0)) -> 0.01905222666 | I40: =INDEX('Rate peg calcs'!N$26:N$153,MATCH($B40,'Rate peg calcs'!$B$26:$B$153,0)) -> 0.008133257959 | J40: =INDEX('Rate peg calcs'!O$26:O$153,MATCH($B40,'Rate peg calcs'!$B$26:$B$153,0)) -> 0 | K40: 0.051 | L40: =INDEX('Rate peg calcs'!I$26:I$153,MATCH($B40,'Rate peg calcs'!$B$26:$B$153,0)) -> 0 | M40: =INDEX('Rate peg calcs'!J$26:J$153,MATCH($B40,'Rate peg calcs'!$B$26:$B$153,0)) -> 0.001785714286 | N40: =INDEX('Rate peg calcs'!K$26:K$153,MATCH($B40,'Rate peg calcs'!$B$26:$B$153,0)) -> 0 | O40: =INDEX('Rate peg calcs'!L$26:L$153,MATCH($B40,'Rate peg calcs'!$B$26:$B$153,0)) -> 0 | P40: =INDEX('Rate peg calcs'!M$26:M$153,MATCH($B40,'Rate peg calcs'!$B$26:$B$153,0)) -> 0 | Q40: =INDEX('Rate peg calcs'!P$26:P$153,MATCH($B40,'Rate peg calcs'!$B$26:$B$153,0)) -> 0.051 | S40: 0.007303077854
B41: ='Rate peg calcs'!B42 -> 74 | C41: =INDEX('Rate peg calcs'!C$26:C$153,MATCH($B41,'Rate peg calcs'!$B$26:$B$153,0)) -> Regional | D41: =INDEX('Rate peg calcs'!D$26:D$153,MATCH($B41,'Rate peg calcs'!$B$26:$B$153,0)) -> Broken Hill | E41: =INDEX('Rate peg calcs'!E$26:E$153,MATCH($B41,'Rate peg calcs'!$B$26:$B$153,0)) -> 0.03584587895 | F41: =INDEX('Rate peg calcs'!F$26:F$153,MATCH($B41,'Rate peg calcs'!$B$26:$B$153,0)) -> 0 | G41: =INDEX('Rate peg calcs'!G$26:G$153,MATCH($B41,'Rate peg calcs'!$B$26:$B$153,0)) -> -0.002593105401 | H41: =INDEX('Rate peg calcs'!H$26:H$153,MATCH($B41,'Rate peg calcs'!$B$26:$B$153,0)) -> 0.003196538295 | I41: =INDEX('Rate peg calcs'!N$26:N$153,MATCH($B41,'Rate peg calcs'!$B$26:$B$153,0)) -> 0.001932812439 | J41: =INDEX('Rate peg calcs'!O$26:O$153,MATCH($B41,'Rate peg calcs'!$B$26:$B$153,0)) -> 0 | K41: 0.038 | L41: =INDEX('Rate peg calcs'!I$26:I$153,MATCH($B41,'Rate peg calcs'!$B$26:$B$153,0)) -> 0.00199623567 | M41: =INDEX('Rate peg calcs'!J$26:J$153,MATCH($B41,'Rate peg calcs'!$B$26:$B$153,0)) -> 0 | N41: =INDEX('Rate peg calcs'!K$26:K$153,MATCH($B41,'Rate peg calcs'!$B$26:$B$153,0)) -> 0.00199623567 | O41: =INDEX('Rate peg calcs'!L$26:L$153,MATCH($B41,'Rate peg calcs'!$B$26:$B$153,0)) -> 0 | P41: =INDEX('Rate peg calcs'!M$26:M$153,MATCH($B41,'Rate peg calcs'!$B$26:$B$153,0)) -> 0.002 | Q41: =INDEX('Rate peg calcs'!P$26:P$153,MATCH($B41,'Rate peg calcs'!$B$26:$B$153,0)) -> 0.04 | S41: 0.000603432894
B42: ='Rate peg calcs'!B43 -> 75 | C42: =INDEX('Rate peg calcs'!C$26:C$153,MATCH($B42,'Rate peg calcs'!$B$26:$B$153,0)) -> Metropolitan | D42: =INDEX('Rate peg calcs'!D$26:D$153,MATCH($B42,'Rate peg calcs'!$B$26:$B$153,0)) -> Burwood | E42: =INDEX('Rate peg calcs'!E$26:E$153,MATCH($B42,'Rate peg calcs'!$B$26:$B$153,0)) -> 0.03564768825 | F42: =INDEX('Rate peg calcs'!F$26:F$153,MATCH($B42,'Rate peg calcs'!$B$26:$B$153,0)) -> 0 | G42: =INDEX('Rate peg calcs'!G$26:G$153,MATCH($B42,'Rate peg calcs'!$B$26:$B$153,0)) -> -0.005009532266 | H42: =INDEX('Rate peg calcs'!H$26:H$153,MATCH($B42,'Rate peg calcs'!$B$26:$B$153,0)) -> 0.005009532266 | I42: =INDEX('Rate peg calcs'!N$26:N$153,MATCH($B42,'Rate peg calcs'!$B$26:$B$153,0)) -> 0.002067730794 | J42: =INDEX('Rate peg calcs'!O$26:O$153,MATCH($B42,'Rate peg calcs'!$B$26:$B$153,0)) -> 0 | K42: 0.038 | L42: =INDEX('Rate peg calcs'!I$26:I$153,MATCH($B42,'Rate peg calcs'!$B$26:$B$153,0)) -> 0.04034271726 | M42: =INDEX('Rate peg calcs'!J$26:J$153,MATCH($B42,'Rate peg calcs'!$B$26:$B$153,0)) -> 0.002078497939 | N42: =INDEX('Rate peg calcs'!K$26:K$153,MATCH($B42,'Rate peg calcs'!$B$26:$B$153,0)) -> 0.03826421932 | O42: =INDEX('Rate peg calcs'!L$26:L$153,MATCH($B42,'Rate peg calcs'!$B$26:$B$153,0)) -> 0 | P42: =INDEX('Rate peg calcs'!M$26:M$153,MATCH($B42,'Rate peg calcs'!$B$26:$B$153,0)) -> 0.038 | Q42: =INDEX('Rate peg calcs'!P$26:P$153,MATCH($B42,'Rate peg calcs'!$B$26:$B$153,0)) -> 0.076 | S42: 0
B43: ='Rate peg calcs'!B44 -> 76 | C43: =INDEX('Rate peg calcs'!C$26:C$153,MATCH($B43,'Rate peg calcs'!$B$26:$B$153,0)) -> Regional | D43: =INDEX('Rate peg calcs'!D$26:D$153,MATCH($B43,'Rate peg calcs'!$B$26:$B$153,0)) -> Byron | E43: =INDEX('Rate peg calcs'!E$26:E$153,MATCH($B43,'Rate peg calcs'!$B$26:$B$153,0)) -> 0.03584587895 | F43: =INDEX('Rate peg calcs'!F$26:F$153,MATCH($B43,'Rate peg calcs'!$B$26:$B$153,0)) -> 0 | G43: =INDEX('Rate peg calcs'!G$26:G$153,MATCH($B43,'Rate peg calcs'!$B$26:$B$153,0)) -> -0.002361355518 | H43: =INDEX('Rate peg calcs'!H$26:H$153,MATCH($B43,'Rate peg calcs'!$B$26:$B$153,0)) -> 0.002525407954 | I43: =INDEX('Rate peg calcs'!N$26:N$153,MATCH($B43,'Rate peg calcs'!$B$26:$B$153,0)) -> 0.001370667415 | J43: =INDEX('Rate peg calcs'!O$26:O$153,MATCH($B43,'Rate peg calcs'!$B$26:$B$153,0)) -> 0 | K43: 0.037 | L43: =INDEX('Rate peg calcs'!I$26:I$153,MATCH($B43,'Rate peg calcs'!$B$26:$B$153,0)) -> 0.01676069453 | M43: =INDEX('Rate peg calcs'!J$26:J$153,MATCH($B43,'Rate peg calcs'!$B$26:$B$153,0)) -> 0.003907915305 | N43: =INDEX('Rate peg calcs'!K$26:K$153,MATCH($B43,'Rate peg calcs'!$B$26:$B$153,0)) -> 0.01285277922 | O43: =INDEX('Rate peg calcs'!L$26:L$153,MATCH($B43,'Rate peg calcs'!$B$26:$B$153,0)) -> 0 | P43: =INDEX('Rate peg calcs'!M$26:M$153,MATCH($B43,'Rate peg calcs'!$B$26:$B$153,0)) -> 0.013 | Q43: =INDEX('Rate peg calcs'!P$26:P$153,MATCH($B43,'Rate peg calcs'!$B$26:$B$153,0)) -> 0.05 | S43: 0.0001640524362
B44: ='Rate peg calcs'!B45 -> 77 | C44: =INDEX('Rate peg calcs'!C$26:C$153,MATCH($B44,'Rate peg calcs'!$B$26:$B$153,0)) -> Rural | D44: =INDEX('Rate peg calcs'!D$26:D$153,MATCH($B44,'Rate peg calcs'!$B$26:$B$153,0)) -> Cabonne | E44: =INDEX('Rate peg calcs'!E$26:E$153,MATCH($B44,'Rate peg calcs'!$B$26:$B$153,0)) -> 0.03594422934 | F44: =INDEX('Rate peg calcs'!F$26:F$153,MATCH($B44,'Rate peg calcs'!$B$26:$B$153,0)) -> 0 | G44: =INDEX('Rate peg calcs'!G$26:G$153,MATCH($B44,'Rate peg calcs'!$B$26:$B$153,0)) -> -0.004623783261 | H44: =INDEX('Rate peg calcs'!H$26:H$153,MATCH($B44,'Rate peg calcs'!$B$26:$B$153,0)) -> 0.00660481002 | I44: =INDEX('Rate peg calcs'!N$26:N$153,MATCH($B44,'Rate peg calcs'!$B$26:$B$153,0)) -> 0.002887770163 | J44: =INDEX('Rate peg calcs'!O$26:O$153,MATCH($B44,'Rate peg calcs'!$B$26:$B$153,0)) -> 0 | K44: 0.041 | L44: =INDEX('Rate peg calcs'!I$26:I$153,MATCH($B44,'Rate peg calcs'!$B$26:$B$153,0)) -> 0.002672831034 | M44: =INDEX('Rate peg calcs'!J$26:J$153,MATCH($B44,'Rate peg calcs'!$B$26:$B$153,0)) -> 0 | N44: =INDEX('Rate peg calcs'!K$26:K$153,MATCH($B44,'Rate peg calcs'!$B$26:$B$153,0)) -> 0.002672831034 | O44: =INDEX('Rate peg calcs'!L$26:L$153,MATCH($B44,'Rate peg calcs'!$B$26:$B$153,0)) -> 0 | P44: =INDEX('Rate peg calcs'!M$26:M$153,MATCH($B44,'Rate peg calcs'!$B$26:$B$153,0)) -> 0.003 | Q44: =INDEX('Rate peg calcs'!P$26:P$153,MATCH($B44,'Rate peg calcs'!$B$26:$B$153,0)) -> 0.044 | S44: 0.00198102676
B45: ='Rate peg calcs'!B46 -> 78 | C45: =INDEX('Rate peg calcs'!C$26:C$153,MATCH($B45,'Rate peg calcs'!$B$26:$B$153,0)) -> Metropolitan | D45: =INDEX('Rate peg calcs'!D$26:D$153,MATCH($B45,'Rate peg calcs'!$B$26:$B$153,0)) -> Camden | E45: =INDEX('Rate peg calcs'!E$26:E$153,MATCH($B45,'Rate peg calcs'!$B$26:$B$153,0)) -> 0.03564768825 | F45: =INDEX('Rate peg calcs'!F$26:F$153,MATCH($B45,'Rate peg calcs'!$B$26:$B$153,0)) -> 0 | G45: =INDEX('Rate peg calcs'!G$26:G$153,MATCH($B45,'Rate peg calcs'!$B$26:$B$153,0)) -> 0.002817886289 | H45: =INDEX('Rate peg calcs'!H$26:H$153,MATCH($B45,'Rate peg calcs'!$B$26:$B$153,0)) -> 0.002170209755 | I45: =INDEX('Rate peg calcs'!N$26:N$153,MATCH($B45,'Rate peg calcs'!$B$26:$B$153,0)) -> 0.002465013326 | J45: =INDEX('Rate peg calcs'!O$26:O$153,MATCH($B45,'Rate peg calcs'!$B$26:$B$153,0)) -> 0 | K45: 0.043 | L45: =INDEX('Rate peg calcs'!I$26:I$153,MATCH($B45,'Rate peg calcs'!$B$26:$B$153,0)) -> 0.05479312719 | M45: =INDEX('Rate peg calcs'!J$26:J$153,MATCH($B45,'Rate peg calcs'!$B$26:$B$153,0)) -> 0.02247127811 | N45: =INDEX('Rate peg calcs'!K$26:K$153,MATCH($B45,'Rate peg calcs'!$B$26:$B$153,0)) -> 0.03232184908 | O45: =INDEX('Rate peg calcs'!L$26:L$153,MATCH($B45,'Rate peg calcs'!$B$26:$B$153,0)) -> 0 | P45: =INDEX('Rate peg calcs'!M$26:M$153,MATCH($B45,'Rate peg calcs'!$B$26:$B$153,0)) -> 0.032 | Q45: =INDEX('Rate peg calcs'!P$26:P$153,MATCH($B45,'Rate peg calcs'!$B$26:$B$153,0)) -> 0.075 | S45: =SUM(G45:H45) -> 0.004988096044
B46: ='Rate peg calcs'!B47 -> 79 | C46: =INDEX('Rate peg calcs'!C$26:C$153,MATCH($B46,'Rate peg calcs'!$B$26:$B$153,0)) -> Metropolitan | D46: =INDEX('Rate peg calcs'!D$26:D$153,MATCH($B46,'Rate peg calcs'!$B$26:$B$153,0)) -> Campbelltown | E46: =INDEX('Rate peg calcs'!E$26:E$153,MATCH($B46,'Rate peg calcs'!$B$26:$B$153,0)) -> 0.03564768825 | F46: =INDEX('Rate peg calcs'!F$26:F$153,MATCH($B46,'Rate peg calcs'!$B$26:$B$153,0)) -> 0 | G46: =INDEX('Rate peg calcs'!G$26:G$153,MATCH($B46,'Rate peg calcs'!$B$26:$B$153,0)) -> -0.002662621547 | H46: =INDEX('Rate peg calcs'!H$26:H$153,MATCH($B46,'Rate peg calcs'!$B$26:$B$153,0)) -> 0.002956752354 | I46: =INDEX('Rate peg calcs'!N$26:N$153,MATCH($B46,'Rate peg calcs'!$B$26:$B$153,0)) -> 0.001050757959 | J46: =INDEX('Rate peg calcs'!O$26:O$153,MATCH($B46,'Rate peg calcs'!$B$26:$B$153,0)) -> 0 | K46: 0.037 | L46: =INDEX('Rate peg calcs'!I$26:I$153,MATCH($B46,'Rate peg calcs'!$B$26:$B$153,0)) -> 0.02443216153 | M46: =INDEX('Rate peg calcs'!J$26:J$153,MATCH($B46,'Rate peg calcs'!$B$26:$B$153,0)) -> 0.006798577408 | N46: =INDEX('Rate peg calcs'!K$26:K$153,MATCH($B46,'Rate peg calcs'!$B$26:$B$153,0)) -> 0.01763358412 | O46: =INDEX('Rate peg calcs'!L$26:L$153,MATCH($B46,'Rate peg calcs'!$B$26:$B$153,0)) -> 0 | P46: =INDEX('Rate peg calcs'!M$26:M$153,MATCH($B46,'Rate peg calcs'!$B$26:$B$153,0)) -> 0.018 | Q46: =INDEX('Rate peg calcs'!P$26:P$153,MATCH($B46,'Rate peg calcs'!$B$26:$B$153,0)) -> 0.055 | S46: 0.0002941308077
B47: ='Rate peg calcs'!B48 -> 1989 | C47: =INDEX('Rate peg calcs'!C$26:C$153,MATCH($B47,'Rate peg calcs'!$B$26:$B$153,0)) -> Metropolitan | D47: =INDEX('Rate peg calcs'!D$26:D$153,MATCH($B47,'Rate peg calcs'!$B$26:$B$153,0)) -> Canada Bay | E47: =INDEX('Rate peg calcs'!E$26:E$153,MATCH($B47,'Rate peg calcs'!$B$26:$B$153,0)) -> 0.03564768825 | F47: =INDEX('Rate peg calcs'!F$26:F$153,MATCH($B47,'Rate peg calcs'!$B$26:$B$153,0)) -> 0 | G47: =INDEX('Rate peg calcs'!G$26:G$153,MATCH($B47,'Rate peg calcs'!$B$26:$B$153,0)) -> -0.004719765489 | H47: =INDEX('Rate peg calcs'!H$26:H$153,MATCH($B47,'Rate peg calcs'!$B$26:$B$153,0)) -> 0.004880846201 | I47: =INDEX('Rate peg calcs'!N$26:N$153,MATCH($B47,'Rate peg calcs'!$B$26:$B$153,0)) -> 0.002579004351 | J47: =INDEX('Rate peg calcs'!O$26:O$153,MATCH($B47,'Rate peg calcs'!$B$26:$B$153,0)) -> 0 | K47: 0.038 | L47: =INDEX('Rate peg calcs'!I$26:I$153,MATCH($B47,'Rate peg calcs'!$B$26:$B$153,0)) -> 0.02408220897 | M47: =INDEX('Rate peg calcs'!J$26:J$153,MATCH($B47,'Rate peg calcs'!$B$26:$B$153,0)) -> 0.001622586403 | N47: =INDEX('Rate peg calcs'!K$26:K$153,MATCH($B47,'Rate peg calcs'!$B$26:$B$153,0)) -> 0.02245962257 | O47: =INDEX('Rate peg calcs'!L$26:L$153,MATCH($B47,'Rate peg calcs'!$B$26:$B$153,0)) -> -0.02245962257 | P47: =INDEX('Rate peg calcs'!M$26:M$153,MATCH($B47,'Rate peg calcs'!$B$26:$B$153,0)) -> 0 | Q47: =INDEX('Rate peg calcs'!P$26:P$153,MATCH($B47,'Rate peg calcs'!$B$26:$B$153,0)) -> 0.038 | S47: 0.0001610807118
B48: ='Rate peg calcs'!B49 -> 2080 | C48: =INDEX('Rate peg calcs'!C$26:C$153,MATCH($B48,'Rate peg calcs'!$B$26:$B$153,0)) -> Metropolitan | D48: =INDEX('Rate peg calcs'!D$26:D$153,MATCH($B48,'Rate peg calcs'!$B$26:$B$153,0)) -> Canterbury-Bankstown | E48: =INDEX('Rate peg calcs'!E$26:E$153,MATCH($B48,'Rate peg calcs'!$B$26:$B$153,0)) -> 0.03564768825 | F48: =INDEX('Rate peg calcs'!F$26:F$153,MATCH($B48,'Rate peg calcs'!$B$26:$B$153,0)) -> 0 | G48: =INDEX('Rate peg calcs'!G$26:G$153,MATCH($B48,'Rate peg calcs'!$B$26:$B$153,0)) -> -0.004253656956 | H48: =INDEX('Rate peg calcs'!H$26:H$153,MATCH($B48,'Rate peg calcs'!$B$26:$B$153,0)) -> 0.004175685616 | I48: =INDEX('Rate peg calcs'!N$26:N$153,MATCH($B48,'Rate peg calcs'!$B$26:$B$153,0)) -> 0.001486009321 | J48: =INDEX('Rate peg calcs'!O$26:O$153,MATCH($B48,'Rate peg calcs'!$B$26:$B$153,0)) -> 0 | K48: 0.037 | L48: =INDEX('Rate peg calcs'!I$26:I$153,MATCH($B48,'Rate peg calcs'!$B$26:$B$153,0)) -> 0.02071917854 | M48: =INDEX('Rate peg calcs'!J$26:J$153,MATCH($B48,'Rate peg calcs'!$B$26:$B$153,0)) -> 0.00249279224 | N48: =INDEX('Rate peg calcs'!K$26:K$153,MATCH($B48,'Rate peg calcs'!$B$26:$B$153,0)) -> 0.0182263863 | O48: =INDEX('Rate peg calcs'!L$26:L$153,MATCH($B48,'Rate peg calcs'!$B$26:$B$153,0)) -> 0 | P48: =INDEX('Rate peg calcs'!M$26:M$153,MATCH($B48,'Rate peg calcs'!$B$26:$B$153,0)) -> 0.018 | Q48: =INDEX('Rate peg calcs'!P$26:P$153,MATCH($B48,'Rate peg calcs'!$B$26:$B$153,0)) -> 0.055 | S48: -7.797133947e-05
B49: ='Rate peg calcs'!B50 -> 81 | C49: =INDEX('Rate peg calcs'!C$26:C$153,MATCH($B49,'Rate peg calcs'!$B$26:$B$153,0)) -> Rural | D49: =INDEX('Rate peg calcs'!D$26:D$153,MATCH($B49,'Rate peg calcs'!$B$26:$B$153,0)) -> Carrathool | E49: =INDEX('Rate peg calcs'!E$26:E$153,MATCH($B49,'Rate peg calcs'!$B$26:$B$153,0)) -> 0.03594422934 | F49: =INDEX('Rate peg calcs'!F$26:F$153,MATCH($B49,'Rate peg calcs'!$B$26:$B$153,0)) -> 0 | G49: =INDEX('Rate peg calcs'!G$26:G$153,MATCH($B49,'Rate peg calcs'!$B$26:$B$153,0)) -> -0.005027279079 | H49: =INDEX('Rate peg calcs'!H$26:H$153,MATCH($B49,'Rate peg calcs'!$B$26:$B$153,0)) -> 0.007747293311 | I49: =INDEX('Rate peg calcs'!N$26:N$153,MATCH($B49,'Rate peg calcs'!$B$26:$B$153,0)) -> 0.001615668132 | J49: =INDEX('Rate peg calcs'!O$26:O$153,MATCH($B49,'Rate peg calcs'!$B$26:$B$153,0)) -> 0 | K49: 0.04 | L49: =INDEX('Rate peg calcs'!I$26:I$153,MATCH($B49,'Rate peg calcs'!$B$26:$B$153,0)) -> 0 | M49: =INDEX('Rate peg calcs'!J$26:J$153,MATCH($B49,'Rate peg calcs'!$B$26:$B$153,0)) -> 0.003313086692 | N49: =INDEX('Rate peg calcs'!K$26:K$153,MATCH($B49,'Rate peg calcs'!$B$26:$B$153,0)) -> 0 | O49: =INDEX('Rate peg calcs'!L$26:L$153,MATCH($B49,'Rate peg calcs'!$B$26:$B$153,0)) -> 0 | P49: =INDEX('Rate peg calcs'!M$26:M$153,MATCH($B49,'Rate peg calcs'!$B$26:$B$153,0)) -> 0 | Q49: =INDEX('Rate peg calcs'!P$26:P$153,MATCH($B49,'Rate peg calcs'!$B$26:$B$153,0)) -> 0.04 | S49: 0.002720014232
B50: ='Rate peg calcs'!B51 -> 2088 | C50: =INDEX('Rate peg calcs'!C$26:C$153,MATCH($B50,'Rate peg calcs'!$B$26:$B$153,0)) -> Metropolitan | D50: =INDEX('Rate peg calcs'!D$26:D$153,MATCH($B50,'Rate peg calcs'!$B$26:$B$153,0)) -> Central Coast | E50: =INDEX('Rate peg calcs'!E$26:E$153,MATCH($B50,'Rate peg calcs'!$B$26:$B$153,0)) -> 0.03564768825 | F50: =INDEX('Rate peg calcs'!F$26:F$153,MATCH($B50,'Rate peg calcs'!$B$26:$B$153,0)) -> 0 | G50: =INDEX('Rate peg calcs'!G$26:G$153,MATCH($B50,'Rate peg calcs'!$B$26:$B$153,0)) -> -0.003194716048 | H50: =INDEX('Rate peg calcs'!H$26:H$153,MATCH($B50,'Rate peg calcs'!$B$26:$B$153,0)) -> 0.00349315642 | I50: =INDEX('Rate peg calcs'!N$26:N$153,MATCH($B50,'Rate peg calcs'!$B$26:$B$153,0)) -> 0.002220881081 | J50: =INDEX('Rate peg calcs'!O$26:O$153,MATCH($B50,'Rate peg calcs'!$B$26:$B$153,0)) -> 0 | K50: 0.038 | L50: =INDEX('Rate peg calcs'!I$26:I$153,MATCH($B50,'Rate peg calcs'!$B$26:$B$153,0)) -> 0.007899387354 | M50: =INDEX('Rate peg calcs'!J$26:J$153,MATCH($B50,'Rate peg calcs'!$B$26:$B$153,0)) -> 0.002707254266 | N50: =INDEX('Rate peg calcs'!K$26:K$153,MATCH($B50,'Rate peg calcs'!$B$26:$B$153,0)) -> 0.005192133087 | O50: =INDEX('Rate peg calcs'!L$26:L$153,MATCH($B50,'Rate peg calcs'!$B$26:$B$153,0)) -> 0 | P50: =INDEX('Rate peg calcs'!M$26:M$153,MATCH($B50,'Rate peg calcs'!$B$26:$B$153,0)) -> 0.005 | Q50: =INDEX('Rate peg calcs'!P$26:P$153,MATCH($B50,'Rate peg calcs'!$B$26:$B$153,0)) -> 0.043 | S50: 0.0002984403716
B51: ='Rate peg calcs'!B52 -> 83 | C51: =INDEX('Rate peg calcs'!C$26:C$153,MATCH($B51,'Rate peg calcs'!$B$26:$B$153,0)) -> Rural | D51: =INDEX('Rate peg calcs'!D$26:D$153,MATCH($B51,'Rate peg calcs'!$B$26:$B$153,0)) -> Central Darling | E51: =INDEX('Rate peg calcs'!E$26:E$153,MATCH($B51,'Rate peg calcs'!$B$26:$B$153,0)) -> 0.03594422934 | F51: =INDEX('Rate peg calcs'!F$26:F$153,MATCH($B51,'Rate peg calcs'!$B$26:$B$153,0)) -> 0 | G51: =INDEX('Rate peg calcs'!G$26:G$153,MATCH($B51,'Rate peg calcs'!$B$26:$B$153,0)) -> -0.01719323877 | H51: =INDEX('Rate peg calcs'!H$26:H$153,MATCH($B51,'Rate peg calcs'!$B$26:$B$153,0)) -> 0.02902364339 | I51: =INDEX('Rate peg calcs'!N$26:N$153,MATCH($B51,'Rate peg calcs'!$B$26:$B$153,0)) -> 0 | J51: =INDEX('Rate peg calcs'!O$26:O$153,MATCH($B51,'Rate peg calcs'!$B$26:$B$153,0)) -> 0 | K51: 0.048 | L51: =INDEX('Rate peg calcs'!I$26:I$153,MATCH($B51,'Rate peg calcs'!$B$26:$B$153,0)) -> 0.00457404231 | M51: =INDEX('Rate peg calcs'!J$26:J$153,MATCH($B51,'Rate peg calcs'!$B$26:$B$153,0)) -> 0 | N51: =INDEX('Rate peg calcs'!K$26:K$153,MATCH($B51,'Rate peg calcs'!$B$26:$B$153,0)) -> 0.00457404231 | O51: =INDEX('Rate peg calcs'!L$26:L$153,MATCH($B51,'Rate peg calcs'!$B$26:$B$153,0)) -> 0 | P51: =INDEX('Rate peg calcs'!M$26:M$153,MATCH($B51,'Rate peg calcs'!$B$26:$B$153,0)) -> 0.005 | Q51: =INDEX('Rate peg calcs'!P$26:P$153,MATCH($B51,'Rate peg calcs'!$B$26:$B$153,0)) -> 0.053 | S51: 0.01183040461
B52: ='Rate peg calcs'!B53 -> 84 | C52: =INDEX('Rate peg calcs'!C$26:C$153,MATCH($B52,'Rate peg calcs'!$B$26:$B$153,0)) -> Regional | D52: =INDEX('Rate peg calcs'!D$26:D$153,MATCH($B52,'Rate peg calcs'!$B$26:$B$153,0)) -> Cessnock | E52: =INDEX('Rate peg calcs'!E$26:E$153,MATCH($B52,'Rate peg calcs'!$B$26:$B$153,0)) -> 0.03584587895 | F52: =INDEX('Rate peg calcs'!F$26:F$153,MATCH($B52,'Rate peg calcs'!$B$26:$B$153,0)) -> 0 | G52: =INDEX('Rate peg calcs'!G$26:G$153,MATCH($B52,'Rate peg calcs'!$B$26:$B$153,0)) -> -0.002816640745 | H52: =INDEX('Rate peg calcs'!H$26:H$153,MATCH($B52,'Rate peg calcs'!$B$26:$B$153,0)) -> 0.003812583646 | I52: =INDEX('Rate peg calcs'!N$26:N$153,MATCH($B52,'Rate peg calcs'!$B$26:$B$153,0)) -> 0.002481271974 | J52: =INDEX('Rate peg calcs'!O$26:O$153,MATCH($B52,'Rate peg calcs'!$B$26:$B$153,0)) -> 0 | K52: 0.039 | L52: =INDEX('Rate peg calcs'!I$26:I$153,MATCH($B52,'Rate peg calcs'!$B$26:$B$153,0)) -> 0.02317527558 | M52: =INDEX('Rate peg calcs'!J$26:J$153,MATCH($B52,'Rate peg calcs'!$B$26:$B$153,0)) -> 0.01508687046 | N52: =INDEX('Rate peg calcs'!K$26:K$153,MATCH($B52,'Rate peg calcs'!$B$26:$B$153,0)) -> 0.008088405119 | O52: =INDEX('Rate peg calcs'!L$26:L$153,MATCH($B52,'Rate peg calcs'!$B$26:$B$153,0)) -> 0 | P52: =INDEX('Rate peg calcs'!M$26:M$153,MATCH($B52,'Rate peg calcs'!$B$26:$B$153,0)) -> 0.008 | Q52: =INDEX('Rate peg calcs'!P$26:P$153,MATCH($B52,'Rate peg calcs'!$B$26:$B$153,0)) -> 0.047 | S52: 0.0009959429012
B53: ='Rate peg calcs'!B54 -> 2037 | C53: =INDEX('Rate peg calcs'!C$26:C$153,MATCH($B53,'Rate peg calcs'!$B$26:$B$153,0)) -> Regional | D53: =INDEX('Rate peg calcs'!D$26:D$153,MATCH($B53,'Rate peg calcs'!$B$26:$B$153,0)) -> Clarence Valley | E53: =INDEX('Rate peg calcs'!E$26:E$153,MATCH($B53,'Rate peg calcs'!$B$26:$B$153,0)) -> 0.03584587895 | F53: =INDEX('Rate peg calcs'!F$26:F$153,MATCH($B53,'Rate peg calcs'!$B$26:$B$153,0)) -> 0 | G53: =INDEX('Rate peg calcs'!G$26:G$153,MATCH($B53,'Rate peg calcs'!$B$26:$B$153,0)) -> -0.003322668206 | H53: =INDEX('Rate peg calcs'!H$26:H$153,MATCH($B53,'Rate peg calcs'!$B$26:$B$153,0)) -> 0.004895822341 | I53: =INDEX('Rate peg calcs'!N$26:N$153,MATCH($B53,'Rate peg calcs'!$B$26:$B$153,0)) -> 0.002165567333 | J53: =INDEX('Rate peg calcs'!O$26:O$153,MATCH($B53,'Rate peg calcs'!$B$26:$B$153,0)) -> 0 | K53: 0.04 | L53: =INDEX('Rate peg calcs'!I$26:I$153,MATCH($B53,'Rate peg calcs'!$B$26:$B$153,0)) -> 0.01099824476 | M53: =INDEX('Rate peg calcs'!J$26:J$153,MATCH($B53,'Rate peg calcs'!$B$26:$B$153,0)) -> 0.007997515335 | N53: =INDEX('Rate peg calcs'!K$26:K$153,MATCH($B53,'Rate peg calcs'!$B$26:$B$153,0)) -> 0.003000729427 | O53: =INDEX('Rate peg calcs'!L$26:L$153,MATCH($B53,'Rate peg calcs'!$B$26:$B$153,0)) -> 0 | P53: =INDEX('Rate peg calcs'!M$26:M$153,MATCH($B53,'Rate peg calcs'!$B$26:$B$153,0)) -> 0.003 | Q53: =INDEX('Rate peg calcs'!P$26:P$153,MATCH($B53,'Rate peg calcs'!$B$26:$B$153,0)) -> 0.043 | S53: 0.001573154135
B54: ='Rate peg calcs'!B55 -> 85 | C54: =INDEX('Rate peg calcs'!C$26:C$153,MATCH($B54,'Rate peg calcs'!$B$26:$B$153,0)) -> Rural | D54: =INDEX('Rate peg calcs'!D$26:D$153,MATCH($B54,'Rate peg calcs'!$B$26:$B$153,0)) -> Cobar | E54: =INDEX('Rate peg calcs'!E$26:E$153,MATCH($B54,'Rate peg calcs'!$B$26:$B$153,0)) -> 0.03594422934 | F54: =INDEX('Rate peg calcs'!F$26:F$153,MATCH($B54,'Rate peg calcs'!$B$26:$B$153,0)) -> 0 | G54: =INDEX('Rate peg calcs'!G$26:G$153,MATCH($B54,'Rate peg calcs'!$B$26:$B$153,0)) -> -0.005352741697 | H54: =INDEX('Rate peg calcs'!H$26:H$153,MATCH($B54,'Rate peg calcs'!$B$26:$B$153,0)) -> 0.008177367052 | I54: =INDEX('Rate peg calcs'!N$26:N$153,MATCH($B54,'Rate peg calcs'!$B$26:$B$153,0)) -> 0 | J54: =INDEX('Rate peg calcs'!O$26:O$153,MATCH($B54,'Rate peg calcs'!$B$26:$B$153,0)) -> 0 | K54: 0.039 | L54: =INDEX('Rate peg calcs'!I$26:I$153,MATCH($B54,'Rate peg calcs'!$B$26:$B$153,0)) -> 0.007909045971 | M54: =INDEX('Rate peg calcs'!J$26:J$153,MATCH($B54,'Rate peg calcs'!$B$26:$B$153,0)) -> 0.001866542231 | N54: =INDEX('Rate peg calcs'!K$26:K$153,MATCH($B54,'Rate peg calcs'!$B$26:$B$153,0)) -> 0.006042503741 | O54: =INDEX('Rate peg calcs'!L$26:L$153,MATCH($B54,'Rate peg calcs'!$B$26:$B$153,0)) -> 0 | P54: =INDEX('Rate peg calcs'!M$26:M$153,MATCH($B54,'Rate peg calcs'!$B$26:$B$153,0)) -> 0.006 | Q54: =INDEX('Rate peg calcs'!P$26:P$153,MATCH($B54,'Rate peg calcs'!$B$26:$B$153,0)) -> 0.045 | S54: 0.002824625354
B55: ='Rate peg calcs'!B56 -> 86 | C55: =INDEX('Rate peg calcs'!C$26:C$153,MATCH($B55,'Rate peg calcs'!$B$26:$B$153,0)) -> Regional | D55: =INDEX('Rate peg calcs'!D$26:D$153,MATCH($B55,'Rate peg calcs'!$B$26:$B$153,0)) -> Coffs Harbour | E55: =INDEX('Rate peg calcs'!E$26:E$153,MATCH($B55,'Rate peg calcs'!$B$26:$B$153,0)) -> 0.03584587895 | F55: =INDEX('Rate peg calcs'!F$26:F$153,MATCH($B55,'Rate peg calcs'!$B$26:$B$153,0)) -> 0 | G55: =INDEX('Rate peg calcs'!G$26:G$153,MATCH($B55,'Rate peg calcs'!$B$26:$B$153,0)) -> -0.003211572329 | H55: =INDEX('Rate peg calcs'!H$26:H$153,MATCH($B55,'Rate peg calcs'!$B$26:$B$153,0)) -> 0.004174900782 | I55: =INDEX('Rate peg calcs'!N$26:N$153,MATCH($B55,'Rate peg calcs'!$B$26:$B$153,0)) -> 0.002904257263 | J55: =INDEX('Rate peg calcs'!O$26:O$153,MATCH($B55,'Rate peg calcs'!$B$26:$B$153,0)) -> 0 | K55: 0.04 | L55: =INDEX('Rate peg calcs'!I$26:I$153,MATCH($B55,'Rate peg calcs'!$B$26:$B$153,0)) -> 0.009582941361 | M55: =INDEX('Rate peg calcs'!J$26:J$153,MATCH($B55,'Rate peg calcs'!$B$26:$B$153,0)) -> 0.00335125867 | N55: =INDEX('Rate peg calcs'!K$26:K$153,MATCH($B55,'Rate peg calcs'!$B$26:$B$153,0)) -> 0.006231682691 | O55: =INDEX('Rate peg calcs'!L$26:L$153,MATCH($B55,'Rate peg calcs'!$B$26:$B$153,0)) -> 0 | P55: =INDEX('Rate peg calcs'!M$26:M$153,MATCH($B55,'Rate peg calcs'!$B$26:$B$153,0)) -> 0.006 | Q55: =INDEX('Rate peg calcs'!P$26:P$153,MATCH($B55,'Rate peg calcs'!$B$26:$B$153,0)) -> 0.046 | S55: 0.0009633284532
B56: ='Rate peg calcs'!B57 -> 90 | C56: =INDEX('Rate peg calcs'!C$26:C$153,MATCH($B56,'Rate peg calcs'!$B$26:$B$153,0)) -> Rural | D56: =INDEX('Rate peg calcs'!D$26:D$153,MATCH($B56,'Rate peg calcs'!$B$26:$B$153,0)) -> Coolamon | E56: =INDEX('Rate peg calcs'!E$26:E$153,MATCH($B56,'Rate peg calcs'!$B$26:$B$153,0)) -> 0.03594422934 | F56: =INDEX('Rate peg calcs'!F$26:F$153,MATCH($B56,'Rate peg calcs'!$B$26:$B$153,0)) -> 0 | G56: =INDEX('Rate peg calcs'!G$26:G$153,MATCH($B56,'Rate peg calcs'!$B$26:$B$153,0)) -> -0.009918827635 | H56: =INDEX('Rate peg calcs'!H$26:H$153,MATCH($B56,'Rate peg calcs'!$B$26:$B$153,0)) -> 0.01224230128 | I56: =INDEX('Rate peg calcs'!N$26:N$153,MATCH($B56,'Rate peg calcs'!$B$26:$B$153,0)) -> 0.00632500187 | J56: =INDEX('Rate peg calcs'!O$26:O$153,MATCH($B56,'Rate peg calcs'!$B$26:$B$153,0)) -> 0 | K56: 0.045 | L56: =INDEX('Rate peg calcs'!I$26:I$153,MATCH($B56,'Rate peg calcs'!$B$26:$B$153,0)) -> 0.01881298992 | M56: =INDEX('Rate peg calcs'!J$26:J$153,MATCH($B56,'Rate peg calcs'!$B$26:$B$153,0)) -> 0.001138519924 | N56: =INDEX('Rate peg calcs'!K$26:K$153,MATCH($B56,'Rate peg calcs'!$B$26:$B$153,0)) -> 0.01767447 | O56: =INDEX('Rate peg calcs'!L$26:L$153,MATCH($B56,'Rate peg calcs'!$B$26:$B$153,0)) -> 0 | P56: =INDEX('Rate peg calcs'!M$26:M$153,MATCH($B56,'Rate peg calcs'!$B$26:$B$153,0)) -> 0.018 | Q56: =INDEX('Rate peg calcs'!P$26:P$153,MATCH($B56,'Rate peg calcs'!$B$26:$B$153,0)) -> 0.063 | S56: 0.00232347364
B57: ='Rate peg calcs'!B58 -> 93 | C57: =INDEX('Rate peg calcs'!C$26:C$153,MATCH($B57,'Rate peg calcs'!$B$26:$B$153,0)) -> Rural | D57: =INDEX('Rate peg calcs'!D$26:D$153,MATCH($B57,'Rate peg calcs'!$B$26:$B$153,0)) -> Coonamble | E57: =INDEX('Rate peg calcs'!E$26:E$153,MATCH($B57,'Rate peg calcs'!$B$26:$B$153,0)) -> 0.03594422934 | F57: =INDEX('Rate peg calcs'!F$26:F$153,MATCH($B57,'Rate peg calcs'!$B$26:$B$153,0)) -> 0 | G57: =INDEX('Rate peg calcs'!G$26:G$153,MATCH($B57,'Rate peg calcs'!$B$26:$B$153,0)) -> -0.00300581633 | H57: =INDEX('Rate peg calcs'!H$26:H$153,MATCH($B57,'Rate peg calcs'!$B$26:$B$153,0)) -> 0.003810132632 | I57: =INDEX('Rate peg calcs'!N$26:N$153,MATCH($B57,'Rate peg calcs'!$B$26:$B$153,0)) -> 0.001567745379 | J57: =INDEX('Rate peg calcs'!O$26:O$153,MATCH($B57,'Rate peg calcs'!$B$26:$B$153,0)) -> 0 | K57: =Q57-P57 -> 0.038 | L57: =INDEX('Rate peg calcs'!I$26:I$153,MATCH($B57,'Rate peg calcs'!$B$26:$B$153,0)) -> 0.009411764706 | M57: =INDEX('Rate peg calcs'!J$26:J$153,MATCH($B57,'Rate peg calcs'!$B$26:$B$153,0)) -> 0.0003897116134 | N57: =INDEX('Rate peg calcs'!K$26:K$153,MATCH($B57,'Rate peg calcs'!$B$26:$B$153,0)) -> 0.009022053092 | O57: =INDEX('Rate peg calcs'!L$26:L$153,MATCH($B57,'Rate peg calcs'!$B$26:$B$153,0)) -> 0 | P57: =INDEX('Rate peg calcs'!M$26:M$153,MATCH($B57,'Rate peg calcs'!$B$26:$B$153,0)) -> 0.009 | Q57: =INDEX('Rate peg calcs'!P$26:P$153,MATCH($B57,'Rate peg calcs'!$B$26:$B$153,0)) -> 0.047 | S57: =SUM(G57:H57) -> 0.0008043163017
B58: ='Rate peg calcs'!B59 -> 2094 | C58: =INDEX('Rate peg calcs'!C$26:C$153,MATCH($B58,'Rate peg calcs'!$B$26:$B$153,0)) -> Rural | D58: =INDEX('Rate peg calcs'!D$26:D$153,MATCH($B58,'Rate peg calcs'!$B$26:$B$153,0)) -> Cootamundra-Gundagai Regional | E58: =INDEX('Rate peg calcs'!E$26:E$153,MATCH($B58,'Rate peg calcs'!$B$26:$B$153,0)) -> 0.03594422934 | F58: =INDEX('Rate peg calcs'!F$26:F$153,MATCH($B58,'Rate peg calcs'!$B$26:$B$153,0)) -> 0 | G58: =INDEX('Rate peg calcs'!G$26:G$153,MATCH($B58,'Rate peg calcs'!$B$26:$B$153,0)) -> -0.004321117868 | H58: =INDEX('Rate peg calcs'!H$26:H$153,MATCH($B58,'Rate peg calcs'!$B$26:$B$153,0)) -> 0.008462280957 | I58: =INDEX('Rate peg calcs'!N$26:N$153,MATCH($B58,'Rate peg calcs'!$B$26:$B$153,0)) -> 0.005075398348 | J58: =INDEX('Rate peg calcs'!O$26:O$153,MATCH($B58,'Rate peg calcs'!$B$26:$B$153,0)) -> 0 | K58: 0.045 | L58: =INDEX('Rate peg calcs'!I$26:I$153,MATCH($B58,'Rate peg calcs'!$B$26:$B$153,0)) -> 0.001841620626 | M58: =INDEX('Rate peg calcs'!J$26:J$153,MATCH($B58,'Rate peg calcs'!$B$26:$B$153,0)) -> 0.0008413573899 | N58: =INDEX('Rate peg calcs'!K$26:K$153,MATCH($B58,'Rate peg calcs'!$B$26:$B$153,0)) -> 0.001000263236 | O58: =INDEX('Rate peg calcs'!L$26:L$153,MATCH($B58,'Rate peg calcs'!$B$26:$B$153,0)) -> 0 | P58: =INDEX('Rate peg calcs'!M$26:M$153,MATCH($B58,'Rate peg calcs'!$B$26:$B$153,0)) -> 0.001 | Q58: =INDEX('Rate peg calcs'!P$26:P$153,MATCH($B58,'Rate peg calcs'!$B$26:$B$153,0)) -> 0.046 | S58: 0.004141163089
B59: ='Rate peg calcs'!B60 -> 97 | C59: =INDEX('Rate peg calcs'!C$26:C$153,MATCH($B59,'Rate peg calcs'!$B$26:$B$153,0)) -> Rural | D59: =INDEX('Rate peg calcs'!D$26:D$153,MATCH($B59,'Rate peg calcs'!$B$26:$B$153,0)) -> Cowra | E59: =INDEX('Rate peg calcs'!E$26:E$153,MATCH($B59,'Rate peg calcs'!$B$26:$B$153,0)) -> 0.03594422934 | F59: =INDEX('Rate peg calcs'!F$26:F$153,MATCH($B59,'Rate peg calcs'!$B$26:$B$153,0)) -> 0 | G59: =INDEX('Rate peg calcs'!G$26:G$153,MATCH($B59,'Rate peg calcs'!$B$26:$B$153,0)) -> -0.005035903534 | H59: =INDEX('Rate peg calcs'!H$26:H$153,MATCH($B59,'Rate peg calcs'!$B$26:$B$153,0)) -> 0.007755296928 | I59: =INDEX('Rate peg calcs'!N$26:N$153,MATCH($B59,'Rate peg calcs'!$B$26:$B$153,0)) -> 0.003544857224 | J59: =INDEX('Rate peg calcs'!O$26:O$153,MATCH($B59,'Rate peg calcs'!$B$26:$B$153,0)) -> 0 | K59: 0.042 | L59: =INDEX('Rate peg calcs'!I$26:I$153,MATCH($B59,'Rate peg calcs'!$B$26:$B$153,0)) -> 0 | M59: =INDEX('Rate peg calcs'!J$26:J$153,MATCH($B59,'Rate peg calcs'!$B$26:$B$153,0)) -> 0.004127829561 | N59: =INDEX('Rate peg calcs'!K$26:K$153,MATCH($B59,'Rate peg calcs'!$B$26:$B$153,0)) -> 0 | O59: =INDEX('Rate peg calcs'!L$26:L$153,MATCH($B59,'Rate peg calcs'!$B$26:$B$153,0)) -> 0 | P59: =INDEX('Rate peg calcs'!M$26:M$153,MATCH($B59,'Rate peg calcs'!$B$26:$B$153,0)) -> 0 | Q59: =INDEX('Rate peg calcs'!P$26:P$153,MATCH($B59,'Rate peg calcs'!$B$26:$B$153,0)) -> 0.042 | S59: 0.002719393394
B60: ='Rate peg calcs'!B61 -> 2090 | C60: =INDEX('Rate peg calcs'!C$26:C$153,MATCH($B60,'Rate peg calcs'!$B$26:$B$153,0)) -> Metropolitan | D60: =INDEX('Rate peg calcs'!D$26:D$153,MATCH($B60,'Rate peg calcs'!$B$26:$B$153,0)) -> Cumberland | E60: =INDEX('Rate peg calcs'!E$26:E$153,MATCH($B60,'Rate peg calcs'!$B$26:$B$153,0)) -> 0.03564768825 | F60: =INDEX('Rate peg calcs'!F$26:F$153,MATCH($B60,'Rate peg calcs'!$B$26:$B$153,0)) -> 0 | G60: =INDEX('Rate peg calcs'!G$26:G$153,MATCH($B60,'Rate peg calcs'!$B$26:$B$153,0)) -> -0.004686360557 | H60: =INDEX('Rate peg calcs'!H$26:H$153,MATCH($B60,'Rate peg calcs'!$B$26:$B$153,0)) -> 0.004521734414 | I60: =INDEX('Rate peg calcs'!N$26:N$153,MATCH($B60,'Rate peg calcs'!$B$26:$B$153,0)) -> 0.002025393668 | J60: =INDEX('Rate peg calcs'!O$26:O$153,MATCH($B60,'Rate peg calcs'!$B$26:$B$153,0)) -> 0 | K60: 0.038 | L60: =INDEX('Rate peg calcs'!I$26:I$153,MATCH($B60,'Rate peg calcs'!$B$26:$B$153,0)) -> 0.03296143268 | M60: =INDEX('Rate peg calcs'!J$26:J$153,MATCH($B60,'Rate peg calcs'!$B$26:$B$153,0)) -> 0 | N60: =INDEX('Rate peg calcs'!K$26:K$153,MATCH($B60,'Rate peg calcs'!$B$26:$B$153,0)) -> 0.03296143268 | O60: =INDEX('Rate peg calcs'!L$26:L$153,MATCH($B60,'Rate peg calcs'!$B$26:$B$153,0)) -> 0 | P60: =INDEX('Rate peg calcs'!M$26:M$153,MATCH($B60,'Rate peg calcs'!$B$26:$B$153,0)) -> 0.033 | Q60: =INDEX('Rate peg calcs'!P$26:P$153,MATCH($B60,'Rate peg calcs'!$B$26:$B$153,0)) -> 0.071 | S60: -0.0001646261435
B61: ='Rate peg calcs'!B62 -> 2098 | C61: =INDEX('Rate peg calcs'!C$26:C$153,MATCH($B61,'Rate peg calcs'!$B$26:$B$153,0)) -> Regional | D61: =INDEX('Rate peg calcs'!D$26:D$153,MATCH($B61,'Rate peg calcs'!$B$26:$B$153,0)) -> Dubbo Regional | E61: =INDEX('Rate peg calcs'!E$26:E$153,MATCH($B61,'Rate peg calcs'!$B$26:$B$153,0)) -> 0.03584587895 | F61: =INDEX('Rate peg calcs'!F$26:F$153,MATCH($B61,'Rate peg calcs'!$B$26:$B$153,0)) -> 0 | G61: =INDEX('Rate peg calcs'!G$26:G$153,MATCH($B61,'Rate peg calcs'!$B$26:$B$153,0)) -> -0.003102286186 | H61: =INDEX('Rate peg calcs'!H$26:H$153,MATCH($B61,'Rate peg calcs'!$B$26:$B$153,0)) -> 0.004906435013 | I61: =INDEX('Rate peg calcs'!N$26:N$153,MATCH($B61,'Rate peg calcs'!$B$26:$B$153,0)) -> 0.004674340867 | J61: =INDEX('Rate peg calcs'!O$26:O$153,MATCH($B61,'Rate peg calcs'!$B$26:$B$153,0)) -> 0 | K61: 0.042 | L61: =INDEX('Rate peg calcs'!I$26:I$153,MATCH($B61,'Rate peg calcs'!$B$26:$B$153,0)) -> 0.009574910122 | M61: =INDEX('Rate peg calcs'!J$26:J$153,MATCH($B61,'Rate peg calcs'!$B$26:$B$153,0)) -> 0.01538461538 | N61: =INDEX('Rate peg calcs'!K$26:K$153,MATCH($B61,'Rate peg calcs'!$B$26:$B$153,0)) -> 0 | O61: =INDEX('Rate peg calcs'!L$26:L$153,MATCH($B61,'Rate peg calcs'!$B$26:$B$153,0)) -> 0 | P61: =INDEX('Rate peg calcs'!M$26:M$153,MATCH($B61,'Rate peg calcs'!$B$26:$B$153,0)) -> 0 | Q61: =INDEX('Rate peg calcs'!P$26:P$153,MATCH($B61,'Rate peg calcs'!$B$26:$B$153,0)) -> 0.042 | S61: 0.001804148827
B62: ='Rate peg calcs'!B63 -> 104 | C62: =INDEX('Rate peg calcs'!C$26:C$153,MATCH($B62,'Rate peg calcs'!$B$26:$B$153,0)) -> Rural | D62: =INDEX('Rate peg calcs'!D$26:D$153,MATCH($B62,'Rate peg calcs'!$B$26:$B$153,0)) -> Dungog | E62: =INDEX('Rate peg calcs'!E$26:E$153,MATCH($B62,'Rate peg calcs'!$B$26:$B$153,0)) -> 0.03594422934 | F62: =INDEX('Rate peg calcs'!F$26:F$153,MATCH($B62,'Rate peg calcs'!$B$26:$B$153,0)) -> 0 | G62: =INDEX('Rate peg calcs'!G$26:G$153,MATCH($B62,'Rate peg calcs'!$B$26:$B$153,0)) -> -0.004344821962 | H62: =INDEX('Rate peg calcs'!H$26:H$153,MATCH($B62,'Rate peg calcs'!$B$26:$B$153,0)) -> 0.006636887437 | I62: =INDEX('Rate peg calcs'!N$26:N$153,MATCH($B62,'Rate peg calcs'!$B$26:$B$153,0)) -> 0.002706806531 | J62: =INDEX('Rate peg calcs'!O$26:O$153,MATCH($B62,'Rate peg calcs'!$B$26:$B$153,0)) -> 0 | K62: 0.041 | L62: =INDEX('Rate peg calcs'!I$26:I$153,MATCH($B62,'Rate peg calcs'!$B$26:$B$153,0)) -> 0.004732023454 | M62: =INDEX('Rate peg calcs'!J$26:J$153,MATCH($B62,'Rate peg calcs'!$B$26:$B$153,0)) -> 0.007655811947 | N62: =INDEX('Rate peg calcs'!K$26:K$153,MATCH($B62,'Rate peg calcs'!$B$26:$B$153,0)) -> 0 | O62: =INDEX('Rate peg calcs'!L$26:L$153,MATCH($B62,'Rate peg calcs'!$B$26:$B$153,0)) -> 0 | P62: =INDEX('Rate peg calcs'!M$26:M$153,MATCH($B62,'Rate peg calcs'!$B$26:$B$153,0)) -> 0 | Q62: =INDEX('Rate peg calcs'!P$26:P$153,MATCH($B62,'Rate peg calcs'!$B$26:$B$153,0)) -> 0.041 | S62: 0.002292065474
B63: ='Rate peg calcs'!B64 -> 2091 | C63: =INDEX('Rate peg calcs'!C$26:C$153,MATCH($B63,'Rate peg calcs'!$B$26:$B$153,0)) -> Rural | D63: =INDEX('Rate peg calcs'!D$26:D$153,MATCH($B63,'Rate peg calcs'!$B$26:$B$153,0)) -> Edward River | E63: =INDEX('Rate peg calcs'!E$26:E$153,MATCH($B63,'Rate peg calcs'!$B$26:$B$153,0)) -> 0.03594422934 | F63: =INDEX('Rate peg calcs'!F$26:F$153,MATCH($B63,'Rate peg calcs'!$B$26:$B$153,0)) -> 0 | G63: =INDEX('Rate peg calcs'!G$26:G$153,MATCH($B63,'Rate peg calcs'!$B$26:$B$153,0)) -> -0.004794309286 | H63: =INDEX('Rate peg calcs'!H$26:H$153,MATCH($B63,'Rate peg calcs'!$B$26:$B$153,0)) -> 0.007168992201 | I63: =INDEX('Rate peg calcs'!N$26:N$153,MATCH($B63,'Rate peg calcs'!$B$26:$B$153,0)) -> 0.007638226347 | J63: =INDEX('Rate peg calcs'!O$26:O$153,MATCH($B63,'Rate peg calcs'!$B$26:$B$153,0)) -> 0 | K63: 0.046 | L63: =INDEX('Rate peg calcs'!I$26:I$153,MATCH($B63,'Rate peg calcs'!$B$26:$B$153,0)) -> 0 | M63: =INDEX('Rate peg calcs'!J$26:J$153,MATCH($B63,'Rate peg calcs'!$B$26:$B$153,0)) -> 0.003781671499 | N63: =INDEX('Rate peg calcs'!K$26:K$153,MATCH($B63,'Rate peg calcs'!$B$26:$B$153,0)) -> 0 | O63: =INDEX('Rate peg calcs'!L$26:L$153,MATCH($B63,'Rate peg calcs'!$B$26:$B$153,0)) -> 0 | P63: =INDEX('Rate peg calcs'!M$26:M$153,MATCH($B63,'Rate peg calcs'!$B$26:$B$153,0)) -> 0 | Q63: =INDEX('Rate peg calcs'!P$26:P$153,MATCH($B63,'Rate peg calcs'!$B$26:$B$153,0)) -> 0.046 | S63: 0.002374682916
B64: ='Rate peg calcs'!B65 -> 105 | C64: =INDEX('Rate peg calcs'!C$26:C$153,MATCH($B64,'Rate peg calcs'!$B$26:$B$153,0)) -> Regional | D64: =INDEX('Rate peg calcs'!D$26:D$153,MATCH($B64,'Rate peg calcs'!$B$26:$B$153,0)) -> Eurobodalla | E64: =INDEX('Rate peg calcs'!E$26:E$153,MATCH($B64,'Rate peg calcs'!$B$26:$B$153,0)) -> 0.03584587895 | F64: =INDEX('Rate peg calcs'!F$26:F$153,MATCH($B64,'Rate peg calcs'!$B$26:$B$153,0)) -> 0 | G64: =INDEX('Rate peg calcs'!G$26:G$153,MATCH($B64,'Rate peg calcs'!$B$26:$B$153,0)) -> -0.003769577897 | H64: =INDEX('Rate peg calcs'!H$26:H$153,MATCH($B64,'Rate peg calcs'!$B$26:$B$153,0)) -> 0.005263745931 | I64: =INDEX('Rate peg calcs'!N$26:N$153,MATCH($B64,'Rate peg calcs'!$B$26:$B$153,0)) -> 0.00273071018 | J64: =INDEX('Rate peg calcs'!O$26:O$153,MATCH($B64,'Rate peg calcs'!$B$26:$B$153,0)) -> 0 | K64: 0.04 | L64: =INDEX('Rate peg calcs'!I$26:I$153,MATCH($B64,'Rate peg calcs'!$B$26:$B$153,0)) -> 0.003926187672 | M64: =INDEX('Rate peg calcs'!J$26:J$153,MATCH($B64,'Rate peg calcs'!$B$26:$B$153,0)) -> 0.002740798747 | N64: =INDEX('Rate peg calcs'!K$26:K$153,MATCH($B64,'Rate peg calcs'!$B$26:$B$153,0)) -> 0.001185388925 | O64: =INDEX('Rate peg calcs'!L$26:L$153,MATCH($B64,'Rate peg calcs'!$B$26:$B$153,0)) -> 0 | P64: =INDEX('Rate peg calcs'!M$26:M$153,MATCH($B64,'Rate peg calcs'!$B$26:$B$153,0)) -> 0.001 | Q64: =INDEX('Rate peg calcs'!P$26:P$153,MATCH($B64,'Rate peg calcs'!$B$26:$B$153,0)) -> 0.041 | S64: 0.001494168034
B65: ='Rate peg calcs'!B66 -> 107 | C65: =INDEX('Rate peg calcs'!C$26:C$153,MATCH($B65,'Rate peg calcs'!$B$26:$B$153,0)) -> Metropolitan | D65: =INDEX('Rate peg calcs'!D$26:D$153,MATCH($B65,'Rate peg calcs'!$B$26:$B$153,0)) -> Fairfield | E65: =INDEX('Rate peg calcs'!E$26:E$153,MATCH($B65,'Rate peg calcs'!$B$26:$B$153,0)) -> 0.03564768825 | F65: =INDEX('Rate peg calcs'!F$26:F$153,MATCH($B65,'Rate peg calcs'!$B$26:$B$153,0)) -> 0 | G65: =INDEX('Rate peg calcs'!G$26:G$153,MATCH($B65,'Rate peg calcs'!$B$26:$B$153,0)) -> -0.003871094417 | H65: =INDEX('Rate peg calcs'!H$26:H$153,MATCH($B65,'Rate peg calcs'!$B$26:$B$153,0)) -> 0.003871094417 | I65: =INDEX('Rate peg calcs'!N$26:N$153,MATCH($B65,'Rate peg calcs'!$B$26:$B$153,0)) -> 0.003025403688 | J65: =INDEX('Rate peg calcs'!O$26:O$153,MATCH($B65,'Rate peg calcs'!$B$26:$B$153,0)) -> 0 | K65: 0.039 | L65: =INDEX('Rate peg calcs'!I$26:I$153,MATCH($B65,'Rate peg calcs'!$B$26:$B$153,0)) -> 0.01407919547 | M65: =INDEX('Rate peg calcs'!J$26:J$153,MATCH($B65,'Rate peg calcs'!$B$26:$B$153,0)) -> 0.0006847726444 | N65: =INDEX('Rate peg calcs'!K$26:K$153,MATCH($B65,'Rate peg calcs'!$B$26:$B$153,0)) -> 0.01339442283 | O65: =INDEX('Rate peg calcs'!L$26:L$153,MATCH($B65,'Rate peg calcs'!$B$26:$B$153,0)) -> -0.01339442283 | P65: =INDEX('Rate peg calcs'!M$26:M$153,MATCH($B65,'Rate peg calcs'!$B$26:$B$153,0)) -> 0 | Q65: =INDEX('Rate peg calcs'!P$26:P$153,MATCH($B65,'Rate peg calcs'!$B$26:$B$153,0)) -> 0.039 | S65: 0
B66: ='Rate peg calcs'!B67 -> 2092 | C66: =INDEX('Rate peg calcs'!C$26:C$153,MATCH($B66,'Rate peg calcs'!$B$26:$B$153,0)) -> Rural | D66: =INDEX('Rate peg calcs'!D$26:D$153,MATCH($B66,'Rate peg calcs'!$B$26:$B$153,0)) -> Federation | E66: =INDEX('Rate peg calcs'!E$26:E$153,MATCH($B66,'Rate peg calcs'!$B$26:$B$153,0)) -> 0.03594422934 | F66: =INDEX('Rate peg calcs'!F$26:F$153,MATCH($B66,'Rate peg calcs'!$B$26:$B$153,0)) -> 0 | G66: =INDEX('Rate peg calcs'!G$26:G$153,MATCH($B66,'Rate peg calcs'!$B$26:$B$153,0)) -> -0.003665169768 | H66: =INDEX('Rate peg calcs'!H$26:H$153,MATCH($B66,'Rate peg calcs'!$B$26:$B$153,0)) -> 0.006330180316 | I66: =INDEX('Rate peg calcs'!N$26:N$153,MATCH($B66,'Rate peg calcs'!$B$26:$B$153,0)) -> 0.007091249369 | J66: =INDEX('Rate peg calcs'!O$26:O$153,MATCH($B66,'Rate peg calcs'!$B$26:$B$153,0)) -> 0 | K66: 0.046 | L66: =INDEX('Rate peg calcs'!I$26:I$153,MATCH($B66,'Rate peg calcs'!$B$26:$B$153,0)) -> 0.006769374416 | M66: =INDEX('Rate peg calcs'!J$26:J$153,MATCH($B66,'Rate peg calcs'!$B$26:$B$153,0)) -> 0.004540049724 | N66: =INDEX('Rate peg calcs'!K$26:K$153,MATCH($B66,'Rate peg calcs'!$B$26:$B$153,0)) -> 0.002229324692 | O66: =INDEX('Rate peg calcs'!L$26:L$153,MATCH($B66,'Rate peg calcs'!$B$26:$B$153,0)) -> 0 | P66: =INDEX('Rate peg calcs'!M$26:M$153,MATCH($B66,'Rate peg calcs'!$B$26:$B$153,0)) -> 0.002 | Q66: =INDEX('Rate peg calcs'!P$26:P$153,MATCH($B66,'Rate peg calcs'!$B$26:$B$153,0)) -> 0.048 | S66: 0.002665010548
B67: ='Rate peg calcs'!B68 -> 108 | C67: =INDEX('Rate peg calcs'!C$26:C$153,MATCH($B67,'Rate peg calcs'!$B$26:$B$153,0)) -> Rural | D67: =INDEX('Rate peg calcs'!D$26:D$153,MATCH($B67,'Rate peg calcs'!$B$26:$B$153,0)) -> Forbes | E67: =INDEX('Rate peg calcs'!E$26:E$153,MATCH($B67,'Rate peg calcs'!$B$26:$B$153,0)) -> 0.03594422934 | F67: =INDEX('Rate peg calcs'!F$26:F$153,MATCH($B67,'Rate peg calcs'!$B$26:$B$153,0)) -> 0 | G67: =INDEX('Rate peg calcs'!G$26:G$153,MATCH($B67,'Rate peg calcs'!$B$26:$B$153,0)) -> -0.004773420743 | H67: =INDEX('Rate peg calcs'!H$26:H$153,MATCH($B67,'Rate peg calcs'!$B$26:$B$153,0)) -> 0.006764000175 | I67: =INDEX('Rate peg calcs'!N$26:N$153,MATCH($B67,'Rate peg calcs'!$B$26:$B$153,0)) -> 0.005840378197 | J67: =INDEX('Rate peg calcs'!O$26:O$153,MATCH($B67,'Rate peg calcs'!$B$26:$B$153,0)) -> 0 | K67: 0.044 | L67: =INDEX('Rate peg calcs'!I$26:I$153,MATCH($B67,'Rate peg calcs'!$B$26:$B$153,0)) -> 0 | M67: =INDEX('Rate peg calcs'!J$26:J$153,MATCH($B67,'Rate peg calcs'!$B$26:$B$153,0)) -> 0.009516837482 | N67: =INDEX('Rate peg calcs'!K$26:K$153,MATCH($B67,'Rate peg calcs'!$B$26:$B$153,0)) -> 0 | O67: =INDEX('Rate peg calcs'!L$26:L$153,MATCH($B67,'Rate peg calcs'!$B$26:$B$153,0)) -> 0 | P67: =INDEX('Rate peg calcs'!M$26:M$153,MATCH($B67,'Rate peg calcs'!$B$26:$B$153,0)) -> 0 | Q67: =INDEX('Rate peg calcs'!P$26:P$153,MATCH($B67,'Rate peg calcs'!$B$26:$B$153,0)) -> 0.044 | S67: 0.001990579433
B68: ='Rate peg calcs'!B69 -> 2093 | C68: =INDEX('Rate peg calcs'!C$26:C$153,MATCH($B68,'Rate peg calcs'!$B$26:$B$153,0)) -> Metropolitan | D68: =INDEX('Rate peg calcs'!D$26:D$153,MATCH($B68,'Rate peg calcs'!$B$26:$B$153,0)) -> Georges River | E68: =INDEX('Rate peg calcs'!E$26:E$153,MATCH($B68,'Rate peg calcs'!$B$26:$B$153,0)) -> 0.03564768825 | F68: =INDEX('Rate peg calcs'!F$26:F$153,MATCH($B68,'Rate peg calcs'!$B$26:$B$153,0)) -> 0 | G68: =INDEX('Rate peg calcs'!G$26:G$153,MATCH($B68,'Rate peg calcs'!$B$26:$B$153,0)) -> -0.005144308477 | H68: =INDEX('Rate peg calcs'!H$26:H$153,MATCH($B68,'Rate peg calcs'!$B$26:$B$153,0)) -> 0.004126205239 | I68: =INDEX('Rate peg calcs'!N$26:N$153,MATCH($B68,'Rate peg calcs'!$B$26:$B$153,0)) -> 0.001683953753 | J68: =INDEX('Rate peg calcs'!O$26:O$153,MATCH($B68,'Rate peg calcs'!$B$26:$B$153,0)) -> 0 | K68: 0.036 | L68: =INDEX('Rate peg calcs'!I$26:I$153,MATCH($B68,'Rate peg calcs'!$B$26:$B$153,0)) -> 0.03121350323 | M68: =INDEX('Rate peg calcs'!J$26:J$153,MATCH($B68,'Rate peg calcs'!$B$26:$B$153,0)) -> 0.003962879358 | N68: =INDEX('Rate peg calcs'!K$26:K$153,MATCH($B68,'Rate peg calcs'!$B$26:$B$153,0)) -> 0.02725062388 | O68: =INDEX('Rate peg calcs'!L$26:L$153,MATCH($B68,'Rate peg calcs'!$B$26:$B$153,0)) -> -0.01969357696 | P68: =INDEX('Rate peg calcs'!M$26:M$153,MATCH($B68,'Rate peg calcs'!$B$26:$B$153,0)) -> 0.008 | Q68: =INDEX('Rate peg calcs'!P$26:P$153,MATCH($B68,'Rate peg calcs'!$B$26:$B$153,0)) -> 0.044 | S68: -0.001018103238
B69: ='Rate peg calcs'!B70 -> 109 | C69: =INDEX('Rate peg calcs'!C$26:C$153,MATCH($B69,'Rate peg calcs'!$B$26:$B$153,0)) -> Rural | D69: =INDEX('Rate peg calcs'!D$26:D$153,MATCH($B69,'Rate peg calcs'!$B$26:$B$153,0)) -> Gilgandra | E69: =INDEX('Rate peg calcs'!E$26:E$153,MATCH($B69,'Rate peg calcs'!$B$26:$B$153,0)) -> 0.03594422934 | F69: =INDEX('Rate peg calcs'!F$26:F$153,MATCH($B69,'Rate peg calcs'!$B$26:$B$153,0)) -> 0 | G69: =INDEX('Rate peg calcs'!G$26:G$153,MATCH($B69,'Rate peg calcs'!$B$26:$B$153,0)) -> -0.004256313423 | H69: =INDEX('Rate peg calcs'!H$26:H$153,MATCH($B69,'Rate peg calcs'!$B$26:$B$153,0)) -> 0.0067384891 | I69: =INDEX('Rate peg calcs'!N$26:N$153,MATCH($B69,'Rate peg calcs'!$B$26:$B$153,0)) -> 0.00161393569 | J69: =INDEX('Rate peg calcs'!O$26:O$153,MATCH($B69,'Rate peg calcs'!$B$26:$B$153,0)) -> 0 | K69: 0.04 | L69: =INDEX('Rate peg calcs'!I$26:I$153,MATCH($B69,'Rate peg calcs'!$B$26:$B$153,0)) -> 0.002559329921 | M69: =INDEX('Rate peg calcs'!J$26:J$153,MATCH($B69,'Rate peg calcs'!$B$26:$B$153,0)) -> 0.0007326007326 | N69: =INDEX('Rate peg calcs'!K$26:K$153,MATCH($B69,'Rate peg calcs'!$B$26:$B$153,0)) -> 0.001826729188 | O69: =INDEX('Rate peg calcs'!L$26:L$153,MATCH($B69,'Rate peg calcs'!$B$26:$B$153,0)) -> 0 | P69: =INDEX('Rate peg calcs'!M$26:M$153,MATCH($B69,'Rate peg calcs'!$B$26:$B$153,0)) -> 0.002 | Q69: =INDEX('Rate peg calcs'!P$26:P$153,MATCH($B69,'Rate peg calcs'!$B$26:$B$153,0)) -> 0.042 | S69: 0.002482175676
B70: ='Rate peg calcs'!B71 -> 2053 | C70: =INDEX('Rate peg calcs'!C$26:C$153,MATCH($B70,'Rate peg calcs'!$B$26:$B$153,0)) -> Rural | D70: =INDEX('Rate peg calcs'!D$26:D$153,MATCH($B70,'Rate peg calcs'!$B$26:$B$153,0)) -> Glen Innes Severn | E70: =INDEX('Rate peg calcs'!E$26:E$153,MATCH($B70,'Rate peg calcs'!$B$26:$B$153,0)) -> 0.03594422934 | F70: =INDEX('Rate peg calcs'!F$26:F$153,MATCH($B70,'Rate peg calcs'!$B$26:$B$153,0)) -> 0 | G70: =INDEX('Rate peg calcs'!G$26:G$153,MATCH($B70,'Rate peg calcs'!$B$26:$B$153,0)) -> -0.004871789637 | H70: =INDEX('Rate peg calcs'!H$26:H$153,MATCH($B70,'Rate peg calcs'!$B$26:$B$153,0)) -> 0.005852744614 | I70: =INDEX('Rate peg calcs'!N$26:N$153,MATCH($B70,'Rate peg calcs'!$B$26:$B$153,0)) -> 0.002740731183 | J70: =INDEX('Rate peg calcs'!O$26:O$153,MATCH($B70,'Rate peg calcs'!$B$26:$B$153,0)) -> 0 | K70: 0.04 | L70: =INDEX('Rate peg calcs'!I$26:I$153,MATCH($B70,'Rate peg calcs'!$B$26:$B$153,0)) -> 0.003953908721 | M70: =INDEX('Rate peg calcs'!J$26:J$153,MATCH($B70,'Rate peg calcs'!$B$26:$B$153,0)) -> 0.0004000533404 | N70: =INDEX('Rate peg calcs'!K$26:K$153,MATCH($B70,'Rate peg calcs'!$B$26:$B$153,0)) -> 0.003553855381 | O70: =INDEX('Rate peg calcs'!L$26:L$153,MATCH($B70,'Rate peg calcs'!$B$26:$B$153,0)) -> 0 | P70: =INDEX('Rate peg calcs'!M$26:M$153,MATCH($B70,'Rate peg calcs'!$B$26:$B$153,0)) -> 0.004 | Q70: =INDEX('Rate peg calcs'!P$26:P$153,MATCH($B70,'Rate peg calcs'!$B$26:$B$153,0)) -> 0.044 | S70: 0.0009809549774
B71: ='Rate peg calcs'!B72 -> 2032 | C71: =INDEX('Rate peg calcs'!C$26:C$153,MATCH($B71,'Rate peg calcs'!$B$26:$B$153,0)) -> Regional | D71: =INDEX('Rate peg calcs'!D$26:D$153,MATCH($B71,'Rate peg calcs'!$B$26:$B$153,0)) -> Goulburn Mulwaree | E71: =INDEX('Rate peg calcs'!E$26:E$153,MATCH($B71,'Rate peg calcs'!$B$26:$B$153,0)) -> 0.03584587895 | F71: =INDEX('Rate peg calcs'!F$26:F$153,MATCH($B71,'Rate peg calcs'!$B$26:$B$153,0)) -> 0 | G71: =INDEX('Rate peg calcs'!G$26:G$153,MATCH($B71,'Rate peg calcs'!$B$26:$B$153,0)) -> -0.002530048399 | H71: =INDEX('Rate peg calcs'!H$26:H$153,MATCH($B71,'Rate peg calcs'!$B$26:$B$153,0)) -> 0.003689360877 | I71: =INDEX('Rate peg calcs'!N$26:N$153,MATCH($B71,'Rate peg calcs'!$B$26:$B$153,0)) -> 0.001210631591 | J71: =INDEX('Rate peg calcs'!O$26:O$153,MATCH($B71,'Rate peg calcs'!$B$26:$B$153,0)) -> 0 | K71: 0.038 | L71: =INDEX('Rate peg calcs'!I$26:I$153,MATCH($B71,'Rate peg calcs'!$B$26:$B$153,0)) -> 0.008100584868 | M71: =INDEX('Rate peg calcs'!J$26:J$153,MATCH($B71,'Rate peg calcs'!$B$26:$B$153,0)) -> 0.004534751897 | N71: =INDEX('Rate peg calcs'!K$26:K$153,MATCH($B71,'Rate peg calcs'!$B$26:$B$153,0)) -> 0.003565832972 | O71: =INDEX('Rate peg calcs'!L$26:L$153,MATCH($B71,'Rate peg calcs'!$B$26:$B$153,0)) -> 0 | P71: =INDEX('Rate peg calcs'!M$26:M$153,MATCH($B71,'Rate peg calcs'!$B$26:$B$153,0)) -> 0.004 | Q71: =INDEX('Rate peg calcs'!P$26:P$153,MATCH($B71,'Rate peg calcs'!$B$26:$B$153,0)) -> 0.042 | S71: 0.001159312478
B72: ='Rate peg calcs'!B73 -> 2049 | C72: =INDEX('Rate peg calcs'!C$26:C$153,MATCH($B72,'Rate peg calcs'!$B$26:$B$153,0)) -> Rural | D72: =INDEX('Rate peg calcs'!D$26:D$153,MATCH($B72,'Rate peg calcs'!$B$26:$B$153,0)) -> Greater Hume | E72: =INDEX('Rate peg calcs'!E$26:E$153,MATCH($B72,'Rate peg calcs'!$B$26:$B$153,0)) -> 0.03594422934 | F72: =INDEX('Rate peg calcs'!F$26:F$153,MATCH($B72,'Rate peg calcs'!$B$26:$B$153,0)) -> 0 | G72: =INDEX('Rate peg calcs'!G$26:G$153,MATCH($B72,'Rate peg calcs'!$B$26:$B$153,0)) -> -0.005509046598 | H72: =INDEX('Rate peg calcs'!H$26:H$153,MATCH($B72,'Rate peg calcs'!$B$26:$B$153,0)) -> 0.007433125987 | I72: =INDEX('Rate peg calcs'!N$26:N$153,MATCH($B72,'Rate peg calcs'!$B$26:$B$153,0)) -> 0.003112467886 | J72: =INDEX('Rate peg calcs'!O$26:O$153,MATCH($B72,'Rate peg calcs'!$B$26:$B$153,0)) -> 0 | K72: 0.041 | L72: =INDEX('Rate peg calcs'!I$26:I$153,MATCH($B72,'Rate peg calcs'!$B$26:$B$153,0)) -> 0.01588851411 | M72: =INDEX('Rate peg calcs'!J$26:J$153,MATCH($B72,'Rate peg calcs'!$B$26:$B$153,0)) -> 0.003768055265 | N72: =INDEX('Rate peg calcs'!K$26:K$153,MATCH($B72,'Rate peg calcs'!$B$26:$B$153,0)) -> 0.01212045885 | O72: =INDEX('Rate peg calcs'!L$26:L$153,MATCH($B72,'Rate peg calcs'!$B$26:$B$153,0)) -> 0 | P72: =INDEX('Rate peg calcs'!M$26:M$153,MATCH($B72,'Rate peg calcs'!$B$26:$B$153,0)) -> 0.012 | Q72: =INDEX('Rate peg calcs'!P$26:P$153,MATCH($B72,'Rate peg calcs'!$B$26:$B$153,0)) -> 0.053 | S72: 0.001924079389
B73: ='Rate peg calcs'!B74 -> 118 | C73: =INDEX('Rate peg calcs'!C$26:C$153,MATCH($B73,'Rate peg calcs'!$B$26:$B$153,0)) -> Regional | D73: =INDEX('Rate peg calcs'!D$26:D$153,MATCH($B73,'Rate peg calcs'!$B$26:$B$153,0)) -> Griffith | E73: =INDEX('Rate peg calcs'!E$26:E$153,MATCH($B73,'Rate peg calcs'!$B$26:$B$153,0)) -> 0.03584587895 | F73: =INDEX('Rate peg calcs'!F$26:F$153,MATCH($B73,'Rate peg calcs'!$B$26:$B$153,0)) -> 0 | G73: =INDEX('Rate peg calcs'!G$26:G$153,MATCH($B73,'Rate peg calcs'!$B$26:$B$153,0)) -> -0.002935235019 | H73: =INDEX('Rate peg calcs'!H$26:H$153,MATCH($B73,'Rate peg calcs'!$B$26:$B$153,0)) -> 0.00360575774 | I73: =INDEX('Rate peg calcs'!N$26:N$153,MATCH($B73,'Rate peg calcs'!$B$26:$B$153,0)) -> 0.003553123792 | J73: =INDEX('Rate peg calcs'!O$26:O$153,MATCH($B73,'Rate peg calcs'!$B$26:$B$153,0)) -> 0 | K73: 0.04 | L73: =INDEX('Rate peg calcs'!I$26:I$153,MATCH($B73,'Rate peg calcs'!$B$26:$B$153,0)) -> 0.004330927263 | M73: =INDEX('Rate peg calcs'!J$26:J$153,MATCH($B73,'Rate peg calcs'!$B$26:$B$153,0)) -> 0.005293806247 | N73: =INDEX('Rate peg calcs'!K$26:K$153,MATCH($B73,'Rate peg calcs'!$B$26:$B$153,0)) -> 0 | O73: =INDEX('Rate peg calcs'!L$26:L$153,MATCH($B73,'Rate peg calcs'!$B$26:$B$153,0)) -> 0 | P73: =INDEX('Rate peg calcs'!M$26:M$153,MATCH($B73,'Rate peg calcs'!$B$26:$B$153,0)) -> 0 | Q73: =INDEX('Rate peg calcs'!P$26:P$153,MATCH($B73,'Rate peg calcs'!$B$26:$B$153,0)) -> 0.04 | S73: 0.0006705227218
B74: ='Rate peg calcs'!B75 -> 120 | C74: =INDEX('Rate peg calcs'!C$26:C$153,MATCH($B74,'Rate peg calcs'!$B$26:$B$153,0)) -> Rural | D74: =INDEX('Rate peg calcs'!D$26:D$153,MATCH($B74,'Rate peg calcs'!$B$26:$B$153,0)) -> Gunnedah | E74: =INDEX('Rate peg calcs'!E$26:E$153,MATCH($B74,'Rate peg calcs'!$B$26:$B$153,0)) -> 0.03594422934 | F74: =INDEX('Rate peg calcs'!F$26:F$153,MATCH($B74,'Rate peg calcs'!$B$26:$B$153,0)) -> 0 | G74: =INDEX('Rate peg calcs'!G$26:G$153,MATCH($B74,'Rate peg calcs'!$B$26:$B$153,0)) -> -0.002139665398 | H74: =INDEX('Rate peg calcs'!H$26:H$153,MATCH($B74,'Rate peg calcs'!$B$26:$B$153,0)) -> 0.002139665398 | I74: =INDEX('Rate peg calcs'!N$26:N$153,MATCH($B74,'Rate peg calcs'!$B$26:$B$153,0)) -> 0.005248232915 | J74: =INDEX('Rate peg calcs'!O$26:O$153,MATCH($B74,'Rate peg calcs'!$B$26:$B$153,0)) -> 0 | K74: 0.041 | L74: =INDEX('Rate peg calcs'!I$26:I$153,MATCH($B74,'Rate peg calcs'!$B$26:$B$153,0)) -> 0.01042379974 | M74: =INDEX('Rate peg calcs'!J$26:J$153,MATCH($B74,'Rate peg calcs'!$B$26:$B$153,0)) -> 0.004736733713 | N74: =INDEX('Rate peg calcs'!K$26:K$153,MATCH($B74,'Rate peg calcs'!$B$26:$B$153,0)) -> 0.005687066028 | O74: =INDEX('Rate peg calcs'!L$26:L$153,MATCH($B74,'Rate peg calcs'!$B$26:$B$153,0)) -> 0 | P74: =INDEX('Rate peg calcs'!M$26:M$153,MATCH($B74,'Rate peg calcs'!$B$26:$B$153,0)) -> 0.006 | Q74: =INDEX('Rate peg calcs'!P$26:P$153,MATCH($B74,'Rate peg calcs'!$B$26:$B$153,0)) -> 0.047 | S74: 0
B75: ='Rate peg calcs'!B76 -> 2039 | C75: =INDEX('Rate peg calcs'!C$26:C$153,MATCH($B75,'Rate peg calcs'!$B$26:$B$153,0)) -> Rural | D75: =INDEX('Rate peg calcs'!D$26:D$153,MATCH($B75,'Rate peg calcs'!$B$26:$B$153,0)) -> Gwydir | E75: =INDEX('Rate peg calcs'!E$26:E$153,MATCH($B75,'Rate peg calcs'!$B$26:$B$153,0)) -> 0.03594422934 | F75: =INDEX('Rate peg calcs'!F$26:F$153,MATCH($B75,'Rate peg calcs'!$B$26:$B$153,0)) -> 0 | G75: =INDEX('Rate peg calcs'!G$26:G$153,MATCH($B75,'Rate peg calcs'!$B$26:$B$153,0)) -> -0.004049831228 | H75: =INDEX('Rate peg calcs'!H$26:H$153,MATCH($B75,'Rate peg calcs'!$B$26:$B$153,0)) -> 0.005811329798 | I75: =INDEX('Rate peg calcs'!N$26:N$153,MATCH($B75,'Rate peg calcs'!$B$26:$B$153,0)) -> 0.002030543724 | J75: =INDEX('Rate peg calcs'!O$26:O$153,MATCH($B75,'Rate peg calcs'!$B$26:$B$153,0)) -> 0 | K75: 0.04 | L75: =INDEX('Rate peg calcs'!I$26:I$153,MATCH($B75,'Rate peg calcs'!$B$26:$B$153,0)) -> 0.003453178956 | M75: =INDEX('Rate peg calcs'!J$26:J$153,MATCH($B75,'Rate peg calcs'!$B$26:$B$153,0)) -> 0.001652502361 | N75: =INDEX('Rate peg calcs'!K$26:K$153,MATCH($B75,'Rate peg calcs'!$B$26:$B$153,0)) -> 0.001800676595 | O75: =INDEX('Rate peg calcs'!L$26:L$153,MATCH($B75,'Rate peg calcs'!$B$26:$B$153,0)) -> 0 | P75: =INDEX('Rate peg calcs'!M$26:M$153,MATCH($B75,'Rate peg calcs'!$B$26:$B$153,0)) -> 0.002 | Q75: =INDEX('Rate peg calcs'!P$26:P$153,MATCH($B75,'Rate peg calcs'!$B$26:$B$153,0)) -> 0.042 | S75: 0.00176149857
B76: ='Rate peg calcs'!B77 -> 125 | C76: =INDEX('Rate peg calcs'!C$26:C$153,MATCH($B76,'Rate peg calcs'!$B$26:$B$153,0)) -> Metropolitan | D76: =INDEX('Rate peg calcs'!D$26:D$153,MATCH($B76,'Rate peg calcs'!$B$26:$B$153,0)) -> Hawkesbury | E76: =INDEX('Rate peg calcs'!E$26:E$153,MATCH($B76,'Rate peg calcs'!$B$26:$B$153,0)) -> 0.03564768825 | F76: =INDEX('Rate peg calcs'!F$26:F$153,MATCH($B76,'Rate peg calcs'!$B$26:$B$153,0)) -> 0 | G76: =INDEX('Rate peg calcs'!G$26:G$153,MATCH($B76,'Rate peg calcs'!$B$26:$B$153,0)) -> -0.003115016915 | H76: =INDEX('Rate peg calcs'!H$26:H$153,MATCH($B76,'Rate peg calcs'!$B$26:$B$153,0)) -> 0.004520287267 | I76: =INDEX('Rate peg calcs'!N$26:N$153,MATCH($B76,'Rate peg calcs'!$B$26:$B$153,0)) -> 0.001771679245 | J76: =INDEX('Rate peg calcs'!O$26:O$153,MATCH($B76,'Rate peg calcs'!$B$26:$B$153,0)) -> 0 | K76: 0.039 | L76: =INDEX('Rate peg calcs'!I$26:I$153,MATCH($B76,'Rate peg calcs'!$B$26:$B$153,0)) -> 0.004332321476 | M76: =INDEX('Rate peg calcs'!J$26:J$153,MATCH($B76,'Rate peg calcs'!$B$26:$B$153,0)) -> 0.004443147903 | N76: =INDEX('Rate peg calcs'!K$26:K$153,MATCH($B76,'Rate peg calcs'!$B$26:$B$153,0)) -> 0 | O76: =INDEX('Rate peg calcs'!L$26:L$153,MATCH($B76,'Rate peg calcs'!$B$26:$B$153,0)) -> 0 | P76: =INDEX('Rate peg calcs'!M$26:M$153,MATCH($B76,'Rate peg calcs'!$B$26:$B$153,0)) -> 0 | Q76: =INDEX('Rate peg calcs'!P$26:P$153,MATCH($B76,'Rate peg calcs'!$B$26:$B$153,0)) -> 0.039 | S76: 0.001405270352
B77: ='Rate peg calcs'!B78 -> 126 | C77: =INDEX('Rate peg calcs'!C$26:C$153,MATCH($B77,'Rate peg calcs'!$B$26:$B$153,0)) -> Rural | D77: =INDEX('Rate peg calcs'!D$26:D$153,MATCH($B77,'Rate peg calcs'!$B$26:$B$153,0)) -> Hay | E77: =INDEX('Rate peg calcs'!E$26:E$153,MATCH($B77,'Rate peg calcs'!$B$26:$B$153,0)) -> 0.03594422934 | F77: =INDEX('Rate peg calcs'!F$26:F$153,MATCH($B77,'Rate peg calcs'!$B$26:$B$153,0)) -> 0 | G77: =INDEX('Rate peg calcs'!G$26:G$153,MATCH($B77,'Rate peg calcs'!$B$26:$B$153,0)) -> -0.006346598667 | H77: =INDEX('Rate peg calcs'!H$26:H$153,MATCH($B77,'Rate peg calcs'!$B$26:$B$153,0)) -> 0.01142074793 | I77: =INDEX('Rate peg calcs'!N$26:N$153,MATCH($B77,'Rate peg calcs'!$B$26:$B$153,0)) -> 0.00227009796 | J77: =INDEX('Rate peg calcs'!O$26:O$153,MATCH($B77,'Rate peg calcs'!$B$26:$B$153,0)) -> 0 | K77: 0.043 | L77: =INDEX('Rate peg calcs'!I$26:I$153,MATCH($B77,'Rate peg calcs'!$B$26:$B$153,0)) -> 0 | M77: =INDEX('Rate peg calcs'!J$26:J$153,MATCH($B77,'Rate peg calcs'!$B$26:$B$153,0)) -> 0.003420752566 | N77: =INDEX('Rate peg calcs'!K$26:K$153,MATCH($B77,'Rate peg calcs'!$B$26:$B$153,0)) -> 0 | O77: =INDEX('Rate peg calcs'!L$26:L$153,MATCH($B77,'Rate peg calcs'!$B$26:$B$153,0)) -> 0 | P77: =INDEX('Rate peg calcs'!M$26:M$153,MATCH($B77,'Rate peg calcs'!$B$26:$B$153,0)) -> 0 | Q77: =INDEX('Rate peg calcs'!P$26:P$153,MATCH($B77,'Rate peg calcs'!$B$26:$B$153,0)) -> 0.043 | S77: 0.005074149264
B78: ='Rate peg calcs'!B79 -> 2081 | C78: =INDEX('Rate peg calcs'!C$26:C$153,MATCH($B78,'Rate peg calcs'!$B$26:$B$153,0)) -> Rural | D78: =INDEX('Rate peg calcs'!D$26:D$153,MATCH($B78,'Rate peg calcs'!$B$26:$B$153,0)) -> Hilltops | E78: =INDEX('Rate peg calcs'!E$26:E$153,MATCH($B78,'Rate peg calcs'!$B$26:$B$153,0)) -> 0.03594422934 | F78: =INDEX('Rate peg calcs'!F$26:F$153,MATCH($B78,'Rate peg calcs'!$B$26:$B$153,0)) -> 0 | G78: =INDEX('Rate peg calcs'!G$26:G$153,MATCH($B78,'Rate peg calcs'!$B$26:$B$153,0)) -> -0.004905075819 | H78: =INDEX('Rate peg calcs'!H$26:H$153,MATCH($B78,'Rate peg calcs'!$B$26:$B$153,0)) -> 0.00765983323 | I78: =INDEX('Rate peg calcs'!N$26:N$153,MATCH($B78,'Rate peg calcs'!$B$26:$B$153,0)) -> 0.005700998789 | J78: =INDEX('Rate peg calcs'!O$26:O$153,MATCH($B78,'Rate peg calcs'!$B$26:$B$153,0)) -> 0 | K78: 0.044 | L78: =INDEX('Rate peg calcs'!I$26:I$153,MATCH($B78,'Rate peg calcs'!$B$26:$B$153,0)) -> 0.0008836677409 | M78: =INDEX('Rate peg calcs'!J$26:J$153,MATCH($B78,'Rate peg calcs'!$B$26:$B$153,0)) -> 0.001994909541 | N78: =INDEX('Rate peg calcs'!K$26:K$153,MATCH($B78,'Rate peg calcs'!$B$26:$B$153,0)) -> 0 | O78: =INDEX('Rate peg calcs'!L$26:L$153,MATCH($B78,'Rate peg calcs'!$B$26:$B$153,0)) -> 0 | P78: =INDEX('Rate peg calcs'!M$26:M$153,MATCH($B78,'Rate peg calcs'!$B$26:$B$153,0)) -> 0 | Q78: =INDEX('Rate peg calcs'!P$26:P$153,MATCH($B78,'Rate peg calcs'!$B$26:$B$153,0)) -> 0.044 | S78: 0.002754757411
B79: ='Rate peg calcs'!B80 -> 129 | C79: =INDEX('Rate peg calcs'!C$26:C$153,MATCH($B79,'Rate peg calcs'!$B$26:$B$153,0)) -> Metropolitan | D79: =INDEX('Rate peg calcs'!D$26:D$153,MATCH($B79,'Rate peg calcs'!$B$26:$B$153,0)) -> Hornsby | E79: =INDEX('Rate peg calcs'!E$26:E$153,MATCH($B79,'Rate peg calcs'!$B$26:$B$153,0)) -> 0.03564768825 | F79: =INDEX('Rate peg calcs'!F$26:F$153,MATCH($B79,'Rate peg calcs'!$B$26:$B$153,0)) -> 0 | G79: =INDEX('Rate peg calcs'!G$26:G$153,MATCH($B79,'Rate peg calcs'!$B$26:$B$153,0)) -> -0.004368042864 | H79: =INDEX('Rate peg calcs'!H$26:H$153,MATCH($B79,'Rate peg calcs'!$B$26:$B$153,0)) -> 0.004368042864 | I79: =INDEX('Rate peg calcs'!N$26:N$153,MATCH($B79,'Rate peg calcs'!$B$26:$B$153,0)) -> 0.001857117769 | J79: =INDEX('Rate peg calcs'!O$26:O$153,MATCH($B79,'Rate peg calcs'!$B$26:$B$153,0)) -> 0 | K79: 0.038 | L79: =INDEX('Rate peg calcs'!I$26:I$153,MATCH($B79,'Rate peg calcs'!$B$26:$B$153,0)) -> 0.01516099914 | M79: =INDEX('Rate peg calcs'!J$26:J$153,MATCH($B79,'Rate peg calcs'!$B$26:$B$153,0)) -> 0.001199119767 | N79: =INDEX('Rate peg calcs'!K$26:K$153,MATCH($B79,'Rate peg calcs'!$B$26:$B$153,0)) -> 0.01396187937 | O79: =INDEX('Rate peg calcs'!L$26:L$153,MATCH($B79,'Rate peg calcs'!$B$26:$B$153,0)) -> 0 | P79: =INDEX('Rate peg calcs'!M$26:M$153,MATCH($B79,'Rate peg calcs'!$B$26:$B$153,0)) -> 0.014 | Q79: =INDEX('Rate peg calcs'!P$26:P$153,MATCH($B79,'Rate peg calcs'!$B$26:$B$153,0)) -> 0.052 | S79: 0
B80: ='Rate peg calcs'!B81 -> 131 | C80: =INDEX('Rate peg calcs'!C$26:C$153,MATCH($B80,'Rate peg calcs'!$B$26:$B$153,0)) -> Metropolitan | D80: =INDEX('Rate peg calcs'!D$26:D$153,MATCH($B80,'Rate peg calcs'!$B$26:$B$153,0)) -> Hunters Hill | E80: =INDEX('Rate peg calcs'!E$26:E$153,MATCH($B80,'Rate peg calcs'!$B$26:$B$153,0)) -> 0.03564768825 | F80: =INDEX('Rate peg calcs'!F$26:F$153,MATCH($B80,'Rate peg calcs'!$B$26:$B$153,0)) -> 0 | G80: =INDEX('Rate peg calcs'!G$26:G$153,MATCH($B80,'Rate peg calcs'!$B$26:$B$153,0)) -> -0.005476523751 | H80: =INDEX('Rate peg calcs'!H$26:H$153,MATCH($B80,'Rate peg calcs'!$B$26:$B$153,0)) -> 0.005476523751 | I80: =INDEX('Rate peg calcs'!N$26:N$153,MATCH($B80,'Rate peg calcs'!$B$26:$B$153,0)) -> 0.008070321049 | J80: =INDEX('Rate peg calcs'!O$26:O$153,MATCH($B80,'Rate peg calcs'!$B$26:$B$153,0)) -> 0 | K80: 0.044 | L80: =INDEX('Rate peg calcs'!I$26:I$153,MATCH($B80,'Rate peg calcs'!$B$26:$B$153,0)) -> 0.008043665613 | M80: =INDEX('Rate peg calcs'!J$26:J$153,MATCH($B80,'Rate peg calcs'!$B$26:$B$153,0)) -> 0 | N80: =INDEX('Rate peg calcs'!K$26:K$153,MATCH($B80,'Rate peg calcs'!$B$26:$B$153,0)) -> 0.008043665613 | O80: =INDEX('Rate peg calcs'!L$26:L$153,MATCH($B80,'Rate peg calcs'!$B$26:$B$153,0)) -> -0.008043665613 | P80: =INDEX('Rate peg calcs'!M$26:M$153,MATCH($B80,'Rate peg calcs'!$B$26:$B$153,0)) -> 0 | Q80: =INDEX('Rate peg calcs'!P$26:P$153,MATCH($B80,'Rate peg calcs'!$B$26:$B$153,0)) -> 0.044 | S80: 0
B81: ='Rate peg calcs'!B82 -> 2083 | C81: =INDEX('Rate peg calcs'!C$26:C$153,MATCH($B81,'Rate peg calcs'!$B$26:$B$153,0)) -> Metropolitan | D81: =INDEX('Rate peg calcs'!D$26:D$153,MATCH($B81,'Rate peg calcs'!$B$26:$B$153,0)) -> Inner West | E81: =INDEX('Rate peg calcs'!E$26:E$153,MATCH($B81,'Rate peg calcs'!$B$26:$B$153,0)) -> 0.03564768825 | F81: =INDEX('Rate peg calcs'!F$26:F$153,MATCH($B81,'Rate peg calcs'!$B$26:$B$153,0)) -> 0 | G81: =INDEX('Rate peg calcs'!G$26:G$153,MATCH($B81,'Rate peg calcs'!$B$26:$B$153,0)) -> -0.004609330422 | H81: =INDEX('Rate peg calcs'!H$26:H$153,MATCH($B81,'Rate peg calcs'!$B$26:$B$153,0)) -> 0.004609330422 | I81: =INDEX('Rate peg calcs'!N$26:N$153,MATCH($B81,'Rate peg calcs'!$B$26:$B$153,0)) -> 0.001340293527 | J81: =INDEX('Rate peg calcs'!O$26:O$153,MATCH($B81,'Rate peg calcs'!$B$26:$B$153,0)) -> 0 | K81: 0.037 | L81: =INDEX('Rate peg calcs'!I$26:I$153,MATCH($B81,'Rate peg calcs'!$B$26:$B$153,0)) -> 0.02823868569 | M81: =INDEX('Rate peg calcs'!J$26:J$153,MATCH($B81,'Rate peg calcs'!$B$26:$B$153,0)) -> 0.002574781105 | N81: =INDEX('Rate peg calcs'!K$26:K$153,MATCH($B81,'Rate peg calcs'!$B$26:$B$153,0)) -> 0.02566390458 | O81: =INDEX('Rate peg calcs'!L$26:L$153,MATCH($B81,'Rate peg calcs'!$B$26:$B$153,0)) -> -0.02566390458 | P81: =INDEX('Rate peg calcs'!M$26:M$153,MATCH($B81,'Rate peg calcs'!$B$26:$B$153,0)) -> 0 | Q81: =INDEX('Rate peg calcs'!P$26:P$153,MATCH($B81,'Rate peg calcs'!$B$26:$B$153,0)) -> 0.037 | S81: 0
B82: ='Rate peg calcs'!B83 -> 133 | C82: =INDEX('Rate peg calcs'!C$26:C$153,MATCH($B82,'Rate peg calcs'!$B$26:$B$153,0)) -> Rural | D82: =INDEX('Rate peg calcs'!D$26:D$153,MATCH($B82,'Rate peg calcs'!$B$26:$B$153,0)) -> Inverell | E82: =INDEX('Rate peg calcs'!E$26:E$153,MATCH($B82,'Rate peg calcs'!$B$26:$B$153,0)) -> 0.03594422934 | F82: =INDEX('Rate peg calcs'!F$26:F$153,MATCH($B82,'Rate peg calcs'!$B$26:$B$153,0)) -> 0 | G82: =INDEX('Rate peg calcs'!G$26:G$153,MATCH($B82,'Rate peg calcs'!$B$26:$B$153,0)) -> -0.002856266374 | H82: =INDEX('Rate peg calcs'!H$26:H$153,MATCH($B82,'Rate peg calcs'!$B$26:$B$153,0)) -> 0.003303641428 | I82: =INDEX('Rate peg calcs'!N$26:N$153,MATCH($B82,'Rate peg calcs'!$B$26:$B$153,0)) -> 0.001620589143 | J82: =INDEX('Rate peg calcs'!O$26:O$153,MATCH($B82,'Rate peg calcs'!$B$26:$B$153,0)) -> 0 | K82: 0.038 | L82: =INDEX('Rate peg calcs'!I$26:I$153,MATCH($B82,'Rate peg calcs'!$B$26:$B$153,0)) -> 0.005232396326 | M82: =INDEX('Rate peg calcs'!J$26:J$153,MATCH($B82,'Rate peg calcs'!$B$26:$B$153,0)) -> 0.002931183799 | N82: =INDEX('Rate peg calcs'!K$26:K$153,MATCH($B82,'Rate peg calcs'!$B$26:$B$153,0)) -> 0.002301212528 | O82: =INDEX('Rate peg calcs'!L$26:L$153,MATCH($B82,'Rate peg calcs'!$B$26:$B$153,0)) -> 0 | P82: =INDEX('Rate peg calcs'!M$26:M$153,MATCH($B82,'Rate peg calcs'!$B$26:$B$153,0)) -> 0.002 | Q82: =INDEX('Rate peg calcs'!P$26:P$153,MATCH($B82,'Rate peg calcs'!$B$26:$B$153,0)) -> 0.04 | S82: 0.0004473750538
B83: ='Rate peg calcs'!B84 -> 135 | C83: =INDEX('Rate peg calcs'!C$26:C$153,MATCH($B83,'Rate peg calcs'!$B$26:$B$153,0)) -> Rural | D83: =INDEX('Rate peg calcs'!D$26:D$153,MATCH($B83,'Rate peg calcs'!$B$26:$B$153,0)) -> Junee | E83: =INDEX('Rate peg calcs'!E$26:E$153,MATCH($B83,'Rate peg calcs'!$B$26:$B$153,0)) -> 0.03594422934 | F83: =INDEX('Rate peg calcs'!F$26:F$153,MATCH($B83,'Rate peg calcs'!$B$26:$B$153,0)) -> 0 | G83: =INDEX('Rate peg calcs'!G$26:G$153,MATCH($B83,'Rate peg calcs'!$B$26:$B$153,0)) -> -0.005682228905 | H83: =INDEX('Rate peg calcs'!H$26:H$153,MATCH($B83,'Rate peg calcs'!$B$26:$B$153,0)) -> 0.008248661336 | I83: =INDEX('Rate peg calcs'!N$26:N$153,MATCH($B83,'Rate peg calcs'!$B$26:$B$153,0)) -> 0.006175032969 | J83: =INDEX('Rate peg calcs'!O$26:O$153,MATCH($B83,'Rate peg calcs'!$B$26:$B$153,0)) -> 0 | K83: 0.045 | L83: =INDEX('Rate peg calcs'!I$26:I$153,MATCH($B83,'Rate peg calcs'!$B$26:$B$153,0)) -> 0.02063348416 | M83: =INDEX('Rate peg calcs'!J$26:J$153,MATCH($B83,'Rate peg calcs'!$B$26:$B$153,0)) -> 0.003830554304 | N83: =INDEX('Rate peg calcs'!K$26:K$153,MATCH($B83,'Rate peg calcs'!$B$26:$B$153,0)) -> 0.01680292986 | O83: =INDEX('Rate peg calcs'!L$26:L$153,MATCH($B83,'Rate peg calcs'!$B$26:$B$153,0)) -> 0 | P83: =INDEX('Rate peg calcs'!M$26:M$153,MATCH($B83,'Rate peg calcs'!$B$26:$B$153,0)) -> 0.017 | Q83: =INDEX('Rate peg calcs'!P$26:P$153,MATCH($B83,'Rate peg calcs'!$B$26:$B$153,0)) -> 0.062 | S83: 0.002566432431
B84: ='Rate peg calcs'!B85 -> 136 | C84: =INDEX('Rate peg calcs'!C$26:C$153,MATCH($B84,'Rate peg calcs'!$B$26:$B$153,0)) -> Regional | D84: =INDEX('Rate peg calcs'!D$26:D$153,MATCH($B84,'Rate peg calcs'!$B$26:$B$153,0)) -> Kempsey | E84: =INDEX('Rate peg calcs'!E$26:E$153,MATCH($B84,'Rate peg calcs'!$B$26:$B$153,0)) -> 0.03584587895 | F84: =INDEX('Rate peg calcs'!F$26:F$153,MATCH($B84,'Rate peg calcs'!$B$26:$B$153,0)) -> 0 | G84: =INDEX('Rate peg calcs'!G$26:G$153,MATCH($B84,'Rate peg calcs'!$B$26:$B$153,0)) -> -0.002579885234 | H84: =INDEX('Rate peg calcs'!H$26:H$153,MATCH($B84,'Rate peg calcs'!$B$26:$B$153,0)) -> 0.004009387547 | I84: =INDEX('Rate peg calcs'!N$26:N$153,MATCH($B84,'Rate peg calcs'!$B$26:$B$153,0)) -> 0.001941196643 | J84: =INDEX('Rate peg calcs'!O$26:O$153,MATCH($B84,'Rate peg calcs'!$B$26:$B$153,0)) -> 0 | K84: 0.039 | L84: =INDEX('Rate peg calcs'!I$26:I$153,MATCH($B84,'Rate peg calcs'!$B$26:$B$153,0)) -> 0.008290291805 | M84: =INDEX('Rate peg calcs'!J$26:J$153,MATCH($B84,'Rate peg calcs'!$B$26:$B$153,0)) -> 0.008941155743 | N84: =INDEX('Rate peg calcs'!K$26:K$153,MATCH($B84,'Rate peg calcs'!$B$26:$B$153,0)) -> 0 | O84: =INDEX('Rate peg calcs'!L$26:L$153,MATCH($B84,'Rate peg calcs'!$B$26:$B$153,0)) -> 0 | P84: =INDEX('Rate peg calcs'!M$26:M$153,MATCH($B84,'Rate peg calcs'!$B$26:$B$153,0)) -> 0 | Q84: =INDEX('Rate peg calcs'!P$26:P$153,MATCH($B84,'Rate peg calcs'!$B$26:$B$153,0)) -> 0.039 | S84: 0.001429502313
B85: ='Rate peg calcs'!B86 -> 137 | C85: =INDEX('Rate peg calcs'!C$26:C$153,MATCH($B85,'Rate peg calcs'!$B$26:$B$153,0)) -> Regional | D85: =INDEX('Rate peg calcs'!D$26:D$153,MATCH($B85,'Rate peg calcs'!$B$26:$B$153,0)) -> Kiama | E85: =INDEX('Rate peg calcs'!E$26:E$153,MATCH($B85,'Rate peg calcs'!$B$26:$B$153,0)) -> 0.03584587895 | F85: =INDEX('Rate peg calcs'!F$26:F$153,MATCH($B85,'Rate peg calcs'!$B$26:$B$153,0)) -> 0 | G85: =INDEX('Rate peg calcs'!G$26:G$153,MATCH($B85,'Rate peg calcs'!$B$26:$B$153,0)) -> -0.002386843364 | H85: =INDEX('Rate peg calcs'!H$26:H$153,MATCH($B85,'Rate peg calcs'!$B$26:$B$153,0)) -> 0.002700927249 | I85: =INDEX('Rate peg calcs'!N$26:N$153,MATCH($B85,'Rate peg calcs'!$B$26:$B$153,0)) -> 0.0007441212757 | J85: =INDEX('Rate peg calcs'!O$26:O$153,MATCH($B85,'Rate peg calcs'!$B$26:$B$153,0)) -> 0 | K85: 0.037 | L85: =INDEX('Rate peg calcs'!I$26:I$153,MATCH($B85,'Rate peg calcs'!$B$26:$B$153,0)) -> 0.001654763978 | M85: =INDEX('Rate peg calcs'!J$26:J$153,MATCH($B85,'Rate peg calcs'!$B$26:$B$153,0)) -> 0.001860137751 | N85: =INDEX('Rate peg calcs'!K$26:K$153,MATCH($B85,'Rate peg calcs'!$B$26:$B$153,0)) -> 0 | O85: =INDEX('Rate peg calcs'!L$26:L$153,MATCH($B85,'Rate peg calcs'!$B$26:$B$153,0)) -> 0 | P85: =INDEX('Rate peg calcs'!M$26:M$153,MATCH($B85,'Rate peg calcs'!$B$26:$B$153,0)) -> 0 | Q85: =INDEX('Rate peg calcs'!P$26:P$153,MATCH($B85,'Rate peg calcs'!$B$26:$B$153,0)) -> 0.037 | S85: 0.0003140838853
B86: ='Rate peg calcs'!B87 -> 139 | C86: =INDEX('Rate peg calcs'!C$26:C$153,MATCH($B86,'Rate peg calcs'!$B$26:$B$153,0)) -> Metropolitan | D86: =INDEX('Rate peg calcs'!D$26:D$153,MATCH($B86,'Rate peg calcs'!$B$26:$B$153,0)) -> Ku-ring-gai | E86: =INDEX('Rate peg calcs'!E$26:E$153,MATCH($B86,'Rate peg calcs'!$B$26:$B$153,0)) -> 0.03564768825 | F86: =INDEX('Rate peg calcs'!F$26:F$153,MATCH($B86,'Rate peg calcs'!$B$26:$B$153,0)) -> 0 | G86: =INDEX('Rate peg calcs'!G$26:G$153,MATCH($B86,'Rate peg calcs'!$B$26:$B$153,0)) -> -0.004305393869 | H86: =INDEX('Rate peg calcs'!H$26:H$153,MATCH($B86,'Rate peg calcs'!$B$26:$B$153,0)) -> 0.005504944099 | I86: =INDEX('Rate peg calcs'!N$26:N$153,MATCH($B86,'Rate peg calcs'!$B$26:$B$153,0)) -> 0.002506517471 | J86: =INDEX('Rate peg calcs'!O$26:O$153,MATCH($B86,'Rate peg calcs'!$B$26:$B$153,0)) -> 0 | K86: 0.039 | L86: =INDEX('Rate peg calcs'!I$26:I$153,MATCH($B86,'Rate peg calcs'!$B$26:$B$153,0)) -> 0.02236624935 | M86: =INDEX('Rate peg calcs'!J$26:J$153,MATCH($B86,'Rate peg calcs'!$B$26:$B$153,0)) -> 0.0002487665326 | N86: =INDEX('Rate peg calcs'!K$26:K$153,MATCH($B86,'Rate peg calcs'!$B$26:$B$153,0)) -> 0.02211748281 | O86: =INDEX('Rate peg calcs'!L$26:L$153,MATCH($B86,'Rate peg calcs'!$B$26:$B$153,0)) -> 0 | P86: =INDEX('Rate peg calcs'!M$26:M$153,MATCH($B86,'Rate peg calcs'!$B$26:$B$153,0)) -> 0.022 | Q86: =INDEX('Rate peg calcs'!P$26:P$153,MATCH($B86,'Rate peg calcs'!$B$26:$B$153,0)) -> 0.061 | S86: 0.001199550229
B87: ='Rate peg calcs'!B88 -> 140 | C87: =INDEX('Rate peg calcs'!C$26:C$153,MATCH($B87,'Rate peg calcs'!$B$26:$B$153,0)) -> Rural | D87: =INDEX('Rate peg calcs'!D$26:D$153,MATCH($B87,'Rate peg calcs'!$B$26:$B$153,0)) -> Kyogle | E87: =INDEX('Rate peg calcs'!E$26:E$153,MATCH($B87,'Rate peg calcs'!$B$26:$B$153,0)) -> 0.03594422934 | F87: =INDEX('Rate peg calcs'!F$26:F$153,MATCH($B87,'Rate peg calcs'!$B$26:$B$153,0)) -> 0 | G87: =INDEX('Rate peg calcs'!G$26:G$153,MATCH($B87,'Rate peg calcs'!$B$26:$B$153,0)) -> -0.003872262968 | H87: =INDEX('Rate peg calcs'!H$26:H$153,MATCH($B87,'Rate peg calcs'!$B$26:$B$153,0)) -> 0.006010251608 | I87: =INDEX('Rate peg calcs'!N$26:N$153,MATCH($B87,'Rate peg calcs'!$B$26:$B$153,0)) -> 0.003188104615 | J87: =INDEX('Rate peg calcs'!O$26:O$153,MATCH($B87,'Rate peg calcs'!$B$26:$B$153,0)) -> 0 | K87: 0.041 | L87: =INDEX('Rate peg calcs'!I$26:I$153,MATCH($B87,'Rate peg calcs'!$B$26:$B$153,0)) -> 0.001692763436 | M87: =INDEX('Rate peg calcs'!J$26:J$153,MATCH($B87,'Rate peg calcs'!$B$26:$B$153,0)) -> 0.005541561713 | N87: =INDEX('Rate peg calcs'!K$26:K$153,MATCH($B87,'Rate peg calcs'!$B$26:$B$153,0)) -> 0 | O87: =INDEX('Rate peg calcs'!L$26:L$153,MATCH($B87,'Rate peg calcs'!$B$26:$B$153,0)) -> 0 | P87: =INDEX('Rate peg calcs'!M$26:M$153,MATCH($B87,'Rate peg calcs'!$B$26:$B$153,0)) -> 0 | Q87: =INDEX('Rate peg calcs'!P$26:P$153,MATCH($B87,'Rate peg calcs'!$B$26:$B$153,0)) -> 0.041 | S87: 0.00213798864
B88: ='Rate peg calcs'!B89 -> 141 | C88: =INDEX('Rate peg calcs'!C$26:C$153,MATCH($B88,'Rate peg calcs'!$B$26:$B$153,0)) -> Rural | D88: =INDEX('Rate peg calcs'!D$26:D$153,MATCH($B88,'Rate peg calcs'!$B$26:$B$153,0)) -> Lachlan | E88: =INDEX('Rate peg calcs'!E$26:E$153,MATCH($B88,'Rate peg calcs'!$B$26:$B$153,0)) -> 0.03594422934 | F88: =INDEX('Rate peg calcs'!F$26:F$153,MATCH($B88,'Rate peg calcs'!$B$26:$B$153,0)) -> 0 | G88: =INDEX('Rate peg calcs'!G$26:G$153,MATCH($B88,'Rate peg calcs'!$B$26:$B$153,0)) -> -0.004597315921 | H88: =INDEX('Rate peg calcs'!H$26:H$153,MATCH($B88,'Rate peg calcs'!$B$26:$B$153,0)) -> 0.00725447324 | I88: =INDEX('Rate peg calcs'!N$26:N$153,MATCH($B88,'Rate peg calcs'!$B$26:$B$153,0)) -> 0.003449987172 | J88: =INDEX('Rate peg calcs'!O$26:O$153,MATCH($B88,'Rate peg calcs'!$B$26:$B$153,0)) -> 0 | K88: 0.042 | L88: =INDEX('Rate peg calcs'!I$26:I$153,MATCH($B88,'Rate peg calcs'!$B$26:$B$153,0)) -> 0.00146627566 | M88: =INDEX('Rate peg calcs'!J$26:J$153,MATCH($B88,'Rate peg calcs'!$B$26:$B$153,0)) -> 0.0005684240443 | N88: =INDEX('Rate peg calcs'!K$26:K$153,MATCH($B88,'Rate peg calcs'!$B$26:$B$153,0)) -> 0.0008978516155 | O88: =INDEX('Rate peg calcs'!L$26:L$153,MATCH($B88,'Rate peg calcs'!$B$26:$B$153,0)) -> 0 | P88: =INDEX('Rate peg calcs'!M$26:M$153,MATCH($B88,'Rate peg calcs'!$B$26:$B$153,0)) -> 0.001 | Q88: =INDEX('Rate peg calcs'!P$26:P$153,MATCH($B88,'Rate peg calcs'!$B$26:$B$153,0)) -> 0.043 | S88: 0.002657157319
B89: ='Rate peg calcs'!B90 -> 142 | C89: =INDEX('Rate peg calcs'!C$26:C$153,MATCH($B89,'Rate peg calcs'!$B$26:$B$153,0)) -> Regional | D89: =INDEX('Rate peg calcs'!D$26:D$153,MATCH($B89,'Rate peg calcs'!$B$26:$B$153,0)) -> Lake Macquarie | E89: =INDEX('Rate peg calcs'!E$26:E$153,MATCH($B89,'Rate peg calcs'!$B$26:$B$153,0)) -> 0.03584587895 | F89: =INDEX('Rate peg calcs'!F$26:F$153,MATCH($B89,'Rate peg calcs'!$B$26:$B$153,0)) -> 0 | G89: =INDEX('Rate peg calcs'!G$26:G$153,MATCH($B89,'Rate peg calcs'!$B$26:$B$153,0)) -> -0.002892057531 | H89: =INDEX('Rate peg calcs'!H$26:H$153,MATCH($B89,'Rate peg calcs'!$B$26:$B$153,0)) -> 0.003415996858 | I89: =INDEX('Rate peg calcs'!N$26:N$153,MATCH($B89,'Rate peg calcs'!$B$26:$B$153,0)) -> 0.0006485264637 | J89: =INDEX('Rate peg calcs'!O$26:O$153,MATCH($B89,'Rate peg calcs'!$B$26:$B$153,0)) -> 0 | K89: =Q89-P89 -> 0.037 | L89: =INDEX('Rate peg calcs'!I$26:I$153,MATCH($B89,'Rate peg calcs'!$B$26:$B$153,0)) -> 0.01225795728 | M89: =INDEX('Rate peg calcs'!J$26:J$153,MATCH($B89,'Rate peg calcs'!$B$26:$B$153,0)) -> 0.003818218732 | N89: =INDEX('Rate peg calcs'!K$26:K$153,MATCH($B89,'Rate peg calcs'!$B$26:$B$153,0)) -> 0.008439738552 | O89: =INDEX('Rate peg calcs'!L$26:L$153,MATCH($B89,'Rate peg calcs'!$B$26:$B$153,0)) -> 0 | P89: =INDEX('Rate peg calcs'!M$26:M$153,MATCH($B89,'Rate peg calcs'!$B$26:$B$153,0)) -> 0.008 | Q89: =INDEX('Rate peg calcs'!P$26:P$153,MATCH($B89,'Rate peg calcs'!$B$26:$B$153,0)) -> 0.045 | S89: =SUM(G89:H89) -> 0.0005239393272
B90: ='Rate peg calcs'!B91 -> 143 | C90: =INDEX('Rate peg calcs'!C$26:C$153,MATCH($B90,'Rate peg calcs'!$B$26:$B$153,0)) -> Metropolitan | D90: =INDEX('Rate peg calcs'!D$26:D$153,MATCH($B90,'Rate peg calcs'!$B$26:$B$153,0)) -> Lane Cove | E90: =INDEX('Rate peg calcs'!E$26:E$153,MATCH($B90,'Rate peg calcs'!$B$26:$B$153,0)) -> 0.03564768825 | F90: =INDEX('Rate peg calcs'!F$26:F$153,MATCH($B90,'Rate peg calcs'!$B$26:$B$153,0)) -> 0 | G90: =INDEX('Rate peg calcs'!G$26:G$153,MATCH($B90,'Rate peg calcs'!$B$26:$B$153,0)) -> -0.003204947288 | H90: =INDEX('Rate peg calcs'!H$26:H$153,MATCH($B90,'Rate peg calcs'!$B$26:$B$153,0)) -> 0.003420894256 | I90: =INDEX('Rate peg calcs'!N$26:N$153,MATCH($B90,'Rate peg calcs'!$B$26:$B$153,0)) -> 0.002028873561 | J90: =INDEX('Rate peg calcs'!O$26:O$153,MATCH($B90,'Rate peg calcs'!$B$26:$B$153,0)) -> 0 | K90: 0.038 | L90: =INDEX('Rate peg calcs'!I$26:I$153,MATCH($B90,'Rate peg calcs'!$B$26:$B$153,0)) -> 0.03644482139 | M90: =INDEX('Rate peg calcs'!J$26:J$153,MATCH($B90,'Rate peg calcs'!$B$26:$B$153,0)) -> 0.03591579861 | N90: =INDEX('Rate peg calcs'!K$26:K$153,MATCH($B90,'Rate peg calcs'!$B$26:$B$153,0)) -> 0.0005290227818 | O90: =INDEX('Rate peg calcs'!L$26:L$153,MATCH($B90,'Rate peg calcs'!$B$26:$B$153,0)) -> 0 | P90: =INDEX('Rate peg calcs'!M$26:M$153,MATCH($B90,'Rate peg calcs'!$B$26:$B$153,0)) -> 0.001 | Q90: =INDEX('Rate peg calcs'!P$26:P$153,MATCH($B90,'Rate peg calcs'!$B$26:$B$153,0)) -> 0.039 | S90: 0.0002159469679
B91: ='Rate peg calcs'!B92 -> 144 | C91: =INDEX('Rate peg calcs'!C$26:C$153,MATCH($B91,'Rate peg calcs'!$B$26:$B$153,0)) -> Rural | D91: =INDEX('Rate peg calcs'!D$26:D$153,MATCH($B91,'Rate peg calcs'!$B$26:$B$153,0)) -> Leeton | E91: =INDEX('Rate peg calcs'!E$26:E$153,MATCH($B91,'Rate peg calcs'!$B$26:$B$153,0)) -> 0.03594422934 | F91: =INDEX('Rate peg calcs'!F$26:F$153,MATCH($B91,'Rate peg calcs'!$B$26:$B$153,0)) -> 0 | G91: =INDEX('Rate peg calcs'!G$26:G$153,MATCH($B91,'Rate peg calcs'!$B$26:$B$153,0)) -> -0.003083556894 | H91: =INDEX('Rate peg calcs'!H$26:H$153,MATCH($B91,'Rate peg calcs'!$B$26:$B$153,0)) -> 0.004425064082 | I91: =INDEX('Rate peg calcs'!N$26:N$153,MATCH($B91,'Rate peg calcs'!$B$26:$B$153,0)) -> 0.006748743551 | J91: =INDEX('Rate peg calcs'!O$26:O$153,MATCH($B91,'Rate peg calcs'!$B$26:$B$153,0)) -> 0 | K91: 0.044 | L91: =INDEX('Rate peg calcs'!I$26:I$153,MATCH($B91,'Rate peg calcs'!$B$26:$B$153,0)) -> 0 | M91: =INDEX('Rate peg calcs'!J$26:J$153,MATCH($B91,'Rate peg calcs'!$B$26:$B$153,0)) -> 0.004158266129 | N91: =INDEX('Rate peg calcs'!K$26:K$153,MATCH($B91,'Rate peg calcs'!$B$26:$B$153,0)) -> 0 | O91: =INDEX('Rate peg calcs'!L$26:L$153,MATCH($B91,'Rate peg calcs'!$B$26:$B$153,0)) -> 0 | P91: =INDEX('Rate peg calcs'!M$26:M$153,MATCH($B91,'Rate peg calcs'!$B$26:$B$153,0)) -> 0 | Q91: =INDEX('Rate peg calcs'!P$26:P$153,MATCH($B91,'Rate peg calcs'!$B$26:$B$153,0)) -> 0.044 | S91: 0.001341507188
B92: ='Rate peg calcs'!B93 -> 146 | C92: =INDEX('Rate peg calcs'!C$26:C$153,MATCH($B92,'Rate peg calcs'!$B$26:$B$153,0)) -> Regional | D92: =INDEX('Rate peg calcs'!D$26:D$153,MATCH($B92,'Rate peg calcs'!$B$26:$B$153,0)) -> Lismore | E92: =INDEX('Rate peg calcs'!E$26:E$153,MATCH($B92,'Rate peg calcs'!$B$26:$B$153,0)) -> 0.03584587895 | F92: =INDEX('Rate peg calcs'!F$26:F$153,MATCH($B92,'Rate peg calcs'!$B$26:$B$153,0)) -> 0 | G92: =INDEX('Rate peg calcs'!G$26:G$153,MATCH($B92,'Rate peg calcs'!$B$26:$B$153,0)) -> -0.002898878268 | H92: =INDEX('Rate peg calcs'!H$26:H$153,MATCH($B92,'Rate peg calcs'!$B$26:$B$153,0)) -> 0.003971284238 | I92: =INDEX('Rate peg calcs'!N$26:N$153,MATCH($B92,'Rate peg calcs'!$B$26:$B$153,0)) -> 0.002443502434 | J92: =INDEX('Rate peg calcs'!O$26:O$153,MATCH($B92,'Rate peg calcs'!$B$26:$B$153,0)) -> 0 | K92: 0.039 | L92: =INDEX('Rate peg calcs'!I$26:I$153,MATCH($B92,'Rate peg calcs'!$B$26:$B$153,0)) -> 0 | M92: =INDEX('Rate peg calcs'!J$26:J$153,MATCH($B92,'Rate peg calcs'!$B$26:$B$153,0)) -> 0.004750740375 | N92: =INDEX('Rate peg calcs'!K$26:K$153,MATCH($B92,'Rate peg calcs'!$B$26:$B$153,0)) -> 0 | O92: =INDEX('Rate peg calcs'!L$26:L$153,MATCH($B92,'Rate peg calcs'!$B$26:$B$153,0)) -> 0 | P92: =INDEX('Rate peg calcs'!M$26:M$153,MATCH($B92,'Rate peg calcs'!$B$26:$B$153,0)) -> 0 | Q92: =INDEX('Rate peg calcs'!P$26:P$153,MATCH($B92,'Rate peg calcs'!$B$26:$B$153,0)) -> 0.039 | S92: 0.001072405969
B93: ='Rate peg calcs'!B94 -> 2044 | C93: =INDEX('Rate peg calcs'!C$26:C$153,MATCH($B93,'Rate peg calcs'!$B$26:$B$153,0)) -> Regional | D93: =INDEX('Rate peg calcs'!D$26:D$153,MATCH($B93,'Rate peg calcs'!$B$26:$B$153,0)) -> Lithgow | E93: =INDEX('Rate peg calcs'!E$26:E$153,MATCH($B93,'Rate peg calcs'!$B$26:$B$153,0)) -> 0.03584587895 | F93: =INDEX('Rate peg calcs'!F$26:F$153,MATCH($B93,'Rate peg calcs'!$B$26:$B$153,0)) -> 0 | G93: =INDEX('Rate peg calcs'!G$26:G$153,MATCH($B93,'Rate peg calcs'!$B$26:$B$153,0)) -> -0.003112041273 | H93: =INDEX('Rate peg calcs'!H$26:H$153,MATCH($B93,'Rate peg calcs'!$B$26:$B$153,0)) -> 0.004774258436 | I93: =INDEX('Rate peg calcs'!N$26:N$153,MATCH($B93,'Rate peg calcs'!$B$26:$B$153,0)) -> 0.003386915063 | J93: =INDEX('Rate peg calcs'!O$26:O$153,MATCH($B93,'Rate peg calcs'!$B$26:$B$153,0)) -> 0 | K93: 0.041 | L93: =INDEX('Rate peg calcs'!I$26:I$153,MATCH($B93,'Rate peg calcs'!$B$26:$B$153,0)) -> 0 | M93: =INDEX('Rate peg calcs'!J$26:J$153,MATCH($B93,'Rate peg calcs'!$B$26:$B$153,0)) -> 0.009118948639 | N93: =INDEX('Rate peg calcs'!K$26:K$153,MATCH($B93,'Rate peg calcs'!$B$26:$B$153,0)) -> 0 | O93: =INDEX('Rate peg calcs'!L$26:L$153,MATCH($B93,'Rate peg calcs'!$B$26:$B$153,0)) -> 0 | P93: =INDEX('Rate peg calcs'!M$26:M$153,MATCH($B93,'Rate peg calcs'!$B$26:$B$153,0)) -> 0 | Q93: =INDEX('Rate peg calcs'!P$26:P$153,MATCH($B93,'Rate peg calcs'!$B$26:$B$153,0)) -> 0.041 | S93: 0.001662217162
B94: ='Rate peg calcs'!B95 -> 147 | C94: =INDEX('Rate peg calcs'!C$26:C$153,MATCH($B94,'Rate peg calcs'!$B$26:$B$153,0)) -> Metropolitan | D94: =INDEX('Rate peg calcs'!D$26:D$153,MATCH($B94,'Rate peg calcs'!$B$26:$B$153,0)) -> Liverpool | E94: =INDEX('Rate peg calcs'!E$26:E$153,MATCH($B94,'Rate peg calcs'!$B$26:$B$153,0)) -> 0.03564768825 | F94: =INDEX('Rate peg calcs'!F$26:F$153,MATCH($B94,'Rate peg calcs'!$B$26:$B$153,0)) -> 0 | G94: =INDEX('Rate peg calcs'!G$26:G$153,MATCH($B94,'Rate peg calcs'!$B$26:$B$153,0)) -> -0.003524287165 | H94: =INDEX('Rate peg calcs'!H$26:H$153,MATCH($B94,'Rate peg calcs'!$B$26:$B$153,0)) -> 0.003524287165 | I94: =INDEX('Rate peg calcs'!N$26:N$153,MATCH($B94,'Rate peg calcs'!$B$26:$B$153,0)) -> 0.00240443846 | J94: =INDEX('Rate peg calcs'!O$26:O$153,MATCH($B94,'Rate peg calcs'!$B$26:$B$153,0)) -> 0 | K94: 0.038 | L94: =INDEX('Rate peg calcs'!I$26:I$153,MATCH($B94,'Rate peg calcs'!$B$26:$B$153,0)) -> 0.03293935122 | M94: =INDEX('Rate peg calcs'!J$26:J$153,MATCH($B94,'Rate peg calcs'!$B$26:$B$153,0)) -> 0.01049818997 | N94: =INDEX('Rate peg calcs'!K$26:K$153,MATCH($B94,'Rate peg calcs'!$B$26:$B$153,0)) -> 0.02244116126 | O94: =INDEX('Rate peg calcs'!L$26:L$153,MATCH($B94,'Rate peg calcs'!$B$26:$B$153,0)) -> 0 | P94: =INDEX('Rate peg calcs'!M$26:M$153,MATCH($B94,'Rate peg calcs'!$B$26:$B$153,0)) -> 0.022 | Q94: =INDEX('Rate peg calcs'!P$26:P$153,MATCH($B94,'Rate peg calcs'!$B$26:$B$153,0)) -> 0.06 | S94: 0
B95: ='Rate peg calcs'!B96 -> 2040 | C95: =INDEX('Rate peg calcs'!C$26:C$153,MATCH($B95,'Rate peg calcs'!$B$26:$B$153,0)) -> Rural | D95: =INDEX('Rate peg calcs'!D$26:D$153,MATCH($B95,'Rate peg calcs'!$B$26:$B$153,0)) -> Liverpool Plains | E95: =INDEX('Rate peg calcs'!E$26:E$153,MATCH($B95,'Rate peg calcs'!$B$26:$B$153,0)) -> 0.03594422934 | F95: =INDEX('Rate peg calcs'!F$26:F$153,MATCH($B95,'Rate peg calcs'!$B$26:$B$153,0)) -> 0 | G95: =INDEX('Rate peg calcs'!G$26:G$153,MATCH($B95,'Rate peg calcs'!$B$26:$B$153,0)) -> -0.004153288593 | H95: =INDEX('Rate peg calcs'!H$26:H$153,MATCH($B95,'Rate peg calcs'!$B$26:$B$153,0)) -> 0.006081337232 | I95: =INDEX('Rate peg calcs'!N$26:N$153,MATCH($B95,'Rate peg calcs'!$B$26:$B$153,0)) -> 0.001988314979 | J95: =INDEX('Rate peg calcs'!O$26:O$153,MATCH($B95,'Rate peg calcs'!$B$26:$B$153,0)) -> 0 | K95: 0.04 | L95: =INDEX('Rate peg calcs'!I$26:I$153,MATCH($B95,'Rate peg calcs'!$B$26:$B$153,0)) -> 0.001044522784 | M95: =INDEX('Rate peg calcs'!J$26:J$153,MATCH($B95,'Rate peg calcs'!$B$26:$B$153,0)) -> 0.00675900277 | N95: =INDEX('Rate peg calcs'!K$26:K$153,MATCH($B95,'Rate peg calcs'!$B$26:$B$153,0)) -> 0 | O95: =INDEX('Rate peg calcs'!L$26:L$153,MATCH($B95,'Rate peg calcs'!$B$26:$B$153,0)) -> 0 | P95: =INDEX('Rate peg calcs'!M$26:M$153,MATCH($B95,'Rate peg calcs'!$B$26:$B$153,0)) -> 0 | Q95: =INDEX('Rate peg calcs'!P$26:P$153,MATCH($B95,'Rate peg calcs'!$B$26:$B$153,0)) -> 0.04 | S95: 0.00192804864
B96: ='Rate peg calcs'!B97 -> 148 | C96: =INDEX('Rate peg calcs'!C$26:C$153,MATCH($B96,'Rate peg calcs'!$B$26:$B$153,0)) -> Rural | D96: =INDEX('Rate peg calcs'!D$26:D$153,MATCH($B96,'Rate peg calcs'!$B$26:$B$153,0)) -> Lockhart | E96: =INDEX('Rate peg calcs'!E$26:E$153,MATCH($B96,'Rate peg calcs'!$B$26:$B$153,0)) -> 0.03594422934 | F96: =INDEX('Rate peg calcs'!F$26:F$153,MATCH($B96,'Rate peg calcs'!$B$26:$B$153,0)) -> 0 | G96: =INDEX('Rate peg calcs'!G$26:G$153,MATCH($B96,'Rate peg calcs'!$B$26:$B$153,0)) -> -0.007490773867 | H96: =INDEX('Rate peg calcs'!H$26:H$153,MATCH($B96,'Rate peg calcs'!$B$26:$B$153,0)) -> 0.009228784656 | I96: =INDEX('Rate peg calcs'!N$26:N$153,MATCH($B96,'Rate peg calcs'!$B$26:$B$153,0)) -> 0.004484830347 | J96: =INDEX('Rate peg calcs'!O$26:O$153,MATCH($B96,'Rate peg calcs'!$B$26:$B$153,0)) -> 0 | K96: 0.042 | L96: =INDEX('Rate peg calcs'!I$26:I$153,MATCH($B96,'Rate peg calcs'!$B$26:$B$153,0)) -> 0.007715133531 | M96: =INDEX('Rate peg calcs'!J$26:J$153,MATCH($B96,'Rate peg calcs'!$B$26:$B$153,0)) -> 0.0007555723461 | N96: =INDEX('Rate peg calcs'!K$26:K$153,MATCH($B96,'Rate peg calcs'!$B$26:$B$153,0)) -> 0.006959561185 | O96: =INDEX('Rate peg calcs'!L$26:L$153,MATCH($B96,'Rate peg calcs'!$B$26:$B$153,0)) -> 0 | P96: =INDEX('Rate peg calcs'!M$26:M$153,MATCH($B96,'Rate peg calcs'!$B$26:$B$153,0)) -> 0.007 | Q96: =INDEX('Rate peg calcs'!P$26:P$153,MATCH($B96,'Rate peg calcs'!$B$26:$B$153,0)) -> 0.049 | S96: 0.001738010789
B97: ='Rate peg calcs'!B98 -> 150 | C97: =INDEX('Rate peg calcs'!C$26:C$153,MATCH($B97,'Rate peg calcs'!$B$26:$B$153,0)) -> Regional | D97: =INDEX('Rate peg calcs'!D$26:D$153,MATCH($B97,'Rate peg calcs'!$B$26:$B$153,0)) -> Maitland | E97: =INDEX('Rate peg calcs'!E$26:E$153,MATCH($B97,'Rate peg calcs'!$B$26:$B$153,0)) -> 0.03584587895 | F97: =INDEX('Rate peg calcs'!F$26:F$153,MATCH($B97,'Rate peg calcs'!$B$26:$B$153,0)) -> 0 | G97: =INDEX('Rate peg calcs'!G$26:G$153,MATCH($B97,'Rate peg calcs'!$B$26:$B$153,0)) -> -0.002128803893 | H97: =INDEX('Rate peg calcs'!H$26:H$153,MATCH($B97,'Rate peg calcs'!$B$26:$B$153,0)) -> 0.002128803893 | I97: =INDEX('Rate peg calcs'!N$26:N$153,MATCH($B97,'Rate peg calcs'!$B$26:$B$153,0)) -> 0.0005509069214 | J97: =INDEX('Rate peg calcs'!O$26:O$153,MATCH($B97,'Rate peg calcs'!$B$26:$B$153,0)) -> 0 | K97: 0.036 | L97: =INDEX('Rate peg calcs'!I$26:I$153,MATCH($B97,'Rate peg calcs'!$B$26:$B$153,0)) -> 0.02502830773 | M97: =INDEX('Rate peg calcs'!J$26:J$153,MATCH($B97,'Rate peg calcs'!$B$26:$B$153,0)) -> 0.00266476505 | N97: =INDEX('Rate peg calcs'!K$26:K$153,MATCH($B97,'Rate peg calcs'!$B$26:$B$153,0)) -> 0.02236354268 | O97: =INDEX('Rate peg calcs'!L$26:L$153,MATCH($B97,'Rate peg calcs'!$B$26:$B$153,0)) -> 0 | P97: =INDEX('Rate peg calcs'!M$26:M$153,MATCH($B97,'Rate peg calcs'!$B$26:$B$153,0)) -> 0.022 | Q97: =INDEX('Rate peg calcs'!P$26:P$153,MATCH($B97,'Rate peg calcs'!$B$26:$B$153,0)) -> 0.058 | S97: 0
B98: ='Rate peg calcs'!B99 -> 2084 | C98: =INDEX('Rate peg calcs'!C$26:C$153,MATCH($B98,'Rate peg calcs'!$B$26:$B$153,0)) -> Regional | D98: =INDEX('Rate peg calcs'!D$26:D$153,MATCH($B98,'Rate peg calcs'!$B$26:$B$153,0)) -> Mid-Coast | E98: =INDEX('Rate peg calcs'!E$26:E$153,MATCH($B98,'Rate peg calcs'!$B$26:$B$153,0)) -> 0.03584587895 | F98: =INDEX('Rate peg calcs'!F$26:F$153,MATCH($B98,'Rate peg calcs'!$B$26:$B$153,0)) -> 0 | G98: =INDEX('Rate peg calcs'!G$26:G$153,MATCH($B98,'Rate peg calcs'!$B$26:$B$153,0)) -> -0.002348637143 | H98: =INDEX('Rate peg calcs'!H$26:H$153,MATCH($B98,'Rate peg calcs'!$B$26:$B$153,0)) -> 0.002997406623 | I98: =INDEX('Rate peg calcs'!N$26:N$153,MATCH($B98,'Rate peg calcs'!$B$26:$B$153,0)) -> 0.001430123495 | J98: =INDEX('Rate peg calcs'!O$26:O$153,MATCH($B98,'Rate peg calcs'!$B$26:$B$153,0)) -> 0 | K98: 0.038 | L98: =INDEX('Rate peg calcs'!I$26:I$153,MATCH($B98,'Rate peg calcs'!$B$26:$B$153,0)) -> 0.00701451243 | M98: =INDEX('Rate peg calcs'!J$26:J$153,MATCH($B98,'Rate peg calcs'!$B$26:$B$153,0)) -> 0.007234454937 | N98: =INDEX('Rate peg calcs'!K$26:K$153,MATCH($B98,'Rate peg calcs'!$B$26:$B$153,0)) -> 0 | O98: =INDEX('Rate peg calcs'!L$26:L$153,MATCH($B98,'Rate peg calcs'!$B$26:$B$153,0)) -> 0 | P98: =INDEX('Rate peg calcs'!M$26:M$153,MATCH($B98,'Rate peg calcs'!$B$26:$B$153,0)) -> 0 | Q98: =INDEX('Rate peg calcs'!P$26:P$153,MATCH($B98,'Rate peg calcs'!$B$26:$B$153,0)) -> 0.038 | S98: 0.0006487694801
B99: ='Rate peg calcs'!B100 -> 2042 | C99: =INDEX('Rate peg calcs'!C$26:C$153,MATCH($B99,'Rate peg calcs'!$B$26:$B$153,0)) -> Regional | D99: =INDEX('Rate peg calcs'!D$26:D$153,MATCH($B99,'Rate peg calcs'!$B$26:$B$153,0)) -> Mid-Western Regional | E99: =INDEX('Rate peg calcs'!E$26:E$153,MATCH($B99,'Rate peg calcs'!$B$26:$B$153,0)) -> 0.03584587895 | F99: =INDEX('Rate peg calcs'!F$26:F$153,MATCH($B99,'Rate peg calcs'!$B$26:$B$153,0)) -> 0 | G99: =INDEX('Rate peg calcs'!G$26:G$153,MATCH($B99,'Rate peg calcs'!$B$26:$B$153,0)) -> -0.002609378981 | H99: =INDEX('Rate peg calcs'!H$26:H$153,MATCH($B99,'Rate peg calcs'!$B$26:$B$153,0)) -> 0.003456089501 | I99: =INDEX('Rate peg calcs'!N$26:N$153,MATCH($B99,'Rate peg calcs'!$B$26:$B$153,0)) -> 0.001320597474 | J99: =INDEX('Rate peg calcs'!O$26:O$153,MATCH($B99,'Rate peg calcs'!$B$26:$B$153,0)) -> 0 | K99: 0.038 | L99: =INDEX('Rate peg calcs'!I$26:I$153,MATCH($B99,'Rate peg calcs'!$B$26:$B$153,0)) -> 0.004884667571 | M99: =INDEX('Rate peg calcs'!J$26:J$153,MATCH($B99,'Rate peg calcs'!$B$26:$B$153,0)) -> 0.005312531522 | N99: =INDEX('Rate peg calcs'!K$26:K$153,MATCH($B99,'Rate peg calcs'!$B$26:$B$153,0)) -> 0 | O99: =INDEX('Rate peg calcs'!L$26:L$153,MATCH($B99,'Rate peg calcs'!$B$26:$B$153,0)) -> 0 | P99: =INDEX('Rate peg calcs'!M$26:M$153,MATCH($B99,'Rate peg calcs'!$B$26:$B$153,0)) -> 0 | Q99: =INDEX('Rate peg calcs'!P$26:P$153,MATCH($B99,'Rate peg calcs'!$B$26:$B$153,0)) -> 0.038 | S99: 0.0008467105199
B100: ='Rate peg calcs'!B101 -> 155 | C100: =INDEX('Rate peg calcs'!C$26:C$153,MATCH($B100,'Rate peg calcs'!$B$26:$B$153,0)) -> Rural | D100: =INDEX('Rate peg calcs'!D$26:D$153,MATCH($B100,'Rate peg calcs'!$B$26:$B$153,0)) -> Moree Plains | E100: =INDEX('Rate peg calcs'!E$26:E$153,MATCH($B100,'Rate peg calcs'!$B$26:$B$153,0)) -> 0.03594422934 | F100: =INDEX('Rate peg calcs'!F$26:F$153,MATCH($B100,'Rate peg calcs'!$B$26:$B$153,0)) -> 0 | G100: =INDEX('Rate peg calcs'!G$26:G$153,MATCH($B100,'Rate peg calcs'!$B$26:$B$153,0)) -> -0.001788775576 | H100: =INDEX('Rate peg calcs'!H$26:H$153,MATCH($B100,'Rate peg calcs'!$B$26:$B$153,0)) -> 0.002244176517 | I100: =INDEX('Rate peg calcs'!N$26:N$153,MATCH($B100,'Rate peg calcs'!$B$26:$B$153,0)) -> 0.001116096523 | J100: =INDEX('Rate peg calcs'!O$26:O$153,MATCH($B100,'Rate peg calcs'!$B$26:$B$153,0)) -> 0 | K100: 0.038 | L100: =INDEX('Rate peg calcs'!I$26:I$153,MATCH($B100,'Rate peg calcs'!$B$26:$B$153,0)) -> 0.0003885607709 | M100: =INDEX('Rate peg calcs'!J$26:J$153,MATCH($B100,'Rate peg calcs'!$B$26:$B$153,0)) -> 0 | N100: =INDEX('Rate peg calcs'!K$26:K$153,MATCH($B100,'Rate peg calcs'!$B$26:$B$153,0)) -> 0.0003885607709 | O100: =INDEX('Rate peg calcs'!L$26:L$153,MATCH($B100,'Rate peg calcs'!$B$26:$B$153,0)) -> 0 | P100: =INDEX('Rate peg calcs'!M$26:M$153,MATCH($B100,'Rate peg calcs'!$B$26:$B$153,0)) -> 0 | Q100: =INDEX('Rate peg calcs'!P$26:P$153,MATCH($B100,'Rate peg calcs'!$B$26:$B$153,0)) -> 0.038 | S100: 0.0004554009406
B101: ='Rate peg calcs'!B102 -> 156 | C101: =INDEX('Rate peg calcs'!C$26:C$153,MATCH($B101,'Rate peg calcs'!$B$26:$B$153,0)) -> Metropolitan | D101: =INDEX('Rate peg calcs'!D$26:D$153,MATCH($B101,'Rate peg calcs'!$B$26:$B$153,0)) -> Mosman | E101: =INDEX('Rate peg calcs'!E$26:E$153,MATCH($B101,'Rate peg calcs'!$B$26:$B$153,0)) -> 0.03564768825 | F101: =INDEX('Rate peg calcs'!F$26:F$153,MATCH($B101,'Rate peg calcs'!$B$26:$B$153,0)) -> 0 | G101: =INDEX('Rate peg calcs'!G$26:G$153,MATCH($B101,'Rate peg calcs'!$B$26:$B$153,0)) -> -0.00324301909 | H101: =INDEX('Rate peg calcs'!H$26:H$153,MATCH($B101,'Rate peg calcs'!$B$26:$B$153,0)) -> 0.005548492985 | I101: =INDEX('Rate peg calcs'!N$26:N$153,MATCH($B101,'Rate peg calcs'!$B$26:$B$153,0)) -> 0.001377567285 | J101: =INDEX('Rate peg calcs'!O$26:O$153,MATCH($B101,'Rate peg calcs'!$B$26:$B$153,0)) -> 0 | K101: 0.039 | L101: =INDEX('Rate peg calcs'!I$26:I$153,MATCH($B101,'Rate peg calcs'!$B$26:$B$153,0)) -> 0.03337835916 | M101: =INDEX('Rate peg calcs'!J$26:J$153,MATCH($B101,'Rate peg calcs'!$B$26:$B$153,0)) -> 0.0007716399619 | N101: =INDEX('Rate peg calcs'!K$26:K$153,MATCH($B101,'Rate peg calcs'!$B$26:$B$153,0)) -> 0.0326067192 | O101: =INDEX('Rate peg calcs'!L$26:L$153,MATCH($B101,'Rate peg calcs'!$B$26:$B$153,0)) -> -0.0326067192 | P101: =INDEX('Rate peg calcs'!M$26:M$153,MATCH($B101,'Rate peg calcs'!$B$26:$B$153,0)) -> 0 | Q101: =INDEX('Rate peg calcs'!P$26:P$153,MATCH($B101,'Rate peg calcs'!$B$26:$B$153,0)) -> 0.039 | S101: 0.002305473895
B102: ='Rate peg calcs'!B103 -> 2085 | C102: =INDEX('Rate peg calcs'!C$26:C$153,MATCH($B102,'Rate peg calcs'!$B$26:$B$153,0)) -> Rural | D102: =INDEX('Rate peg calcs'!D$26:D$153,MATCH($B102,'Rate peg calcs'!$B$26:$B$153,0)) -> Murray River | E102: =INDEX('Rate peg calcs'!E$26:E$153,MATCH($B102,'Rate peg calcs'!$B$26:$B$153,0)) -> 0.03594422934 | F102: =INDEX('Rate peg calcs'!F$26:F$153,MATCH($B102,'Rate peg calcs'!$B$26:$B$153,0)) -> 0 | G102: =INDEX('Rate peg calcs'!G$26:G$153,MATCH($B102,'Rate peg calcs'!$B$26:$B$153,0)) -> -0.004575591304 | H102: =INDEX('Rate peg calcs'!H$26:H$153,MATCH($B102,'Rate peg calcs'!$B$26:$B$153,0)) -> 0.005945069379 | I102: =INDEX('Rate peg calcs'!N$26:N$153,MATCH($B102,'Rate peg calcs'!$B$26:$B$153,0)) -> 0.004585417567 | J102: =INDEX('Rate peg calcs'!O$26:O$153,MATCH($B102,'Rate peg calcs'!$B$26:$B$153,0)) -> 0 | K102: 0.042 | L102: =INDEX('Rate peg calcs'!I$26:I$153,MATCH($B102,'Rate peg calcs'!$B$26:$B$153,0)) -> 0.02397418165 | M102: =INDEX('Rate peg calcs'!J$26:J$153,MATCH($B102,'Rate peg calcs'!$B$26:$B$153,0)) -> 0.01293103448 | N102: =INDEX('Rate peg calcs'!K$26:K$153,MATCH($B102,'Rate peg calcs'!$B$26:$B$153,0)) -> 0.01104314717 | O102: =INDEX('Rate peg calcs'!L$26:L$153,MATCH($B102,'Rate peg calcs'!$B$26:$B$153,0)) -> 0 | P102: =INDEX('Rate peg calcs'!M$26:M$153,MATCH($B102,'Rate peg calcs'!$B$26:$B$153,0)) -> 0.011 | Q102: =INDEX('Rate peg calcs'!P$26:P$153,MATCH($B102,'Rate peg calcs'!$B$26:$B$153,0)) -> 0.053 | S102: 0.001369478074
B103: ='Rate peg calcs'!B104 -> 2086 | C103: =INDEX('Rate peg calcs'!C$26:C$153,MATCH($B103,'Rate peg calcs'!$B$26:$B$153,0)) -> Rural | D103: =INDEX('Rate peg calcs'!D$26:D$153,MATCH($B103,'Rate peg calcs'!$B$26:$B$153,0)) -> Murrumbidgee | E103: =INDEX('Rate peg calcs'!E$26:E$153,MATCH($B103,'Rate peg calcs'!$B$26:$B$153,0)) -> 0.03594422934 | F103: =INDEX('Rate peg calcs'!F$26:F$153,MATCH($B103,'Rate peg calcs'!$B$26:$B$153,0)) -> 0 | G103: =INDEX('Rate peg calcs'!G$26:G$153,MATCH($B103,'Rate peg calcs'!$B$26:$B$153,0)) -> -0.00754891811 | H103: =INDEX('Rate peg calcs'!H$26:H$153,MATCH($B103,'Rate peg calcs'!$B$26:$B$153,0)) -> 0.01016807965 | I103: =INDEX('Rate peg calcs'!N$26:N$153,MATCH($B103,'Rate peg calcs'!$B$26:$B$153,0)) -> 0.004180256391 | J103: =INDEX('Rate peg calcs'!O$26:O$153,MATCH($B103,'Rate peg calcs'!$B$26:$B$153,0)) -> 0 | K103: 0.043 | L103: =INDEX('Rate peg calcs'!I$26:I$153,MATCH($B103,'Rate peg calcs'!$B$26:$B$153,0)) -> 0.01149747616 | M103: =INDEX('Rate peg calcs'!J$26:J$153,MATCH($B103,'Rate peg calcs'!$B$26:$B$153,0)) -> 0 | N103: =INDEX('Rate peg calcs'!K$26:K$153,MATCH($B103,'Rate peg calcs'!$B$26:$B$153,0)) -> 0.01149747616 | O103: =INDEX('Rate peg calcs'!L$26:L$153,MATCH($B103,'Rate peg calcs'!$B$26:$B$153,0)) -> 0 | P103: =INDEX('Rate peg calcs'!M$26:M$153,MATCH($B103,'Rate peg calcs'!$B$26:$B$153,0)) -> 0.011 | Q103: =INDEX('Rate peg calcs'!P$26:P$153,MATCH($B103,'Rate peg calcs'!$B$26:$B$153,0)) -> 0.054 | S103: 0.002619161542
B104: ='Rate peg calcs'!B105 -> 162 | C104: =INDEX('Rate peg calcs'!C$26:C$153,MATCH($B104,'Rate peg calcs'!$B$26:$B$153,0)) -> Rural | D104: =INDEX('Rate peg calcs'!D$26:D$153,MATCH($B104,'Rate peg calcs'!$B$26:$B$153,0)) -> Muswellbrook | E104: =INDEX('Rate peg calcs'!E$26:E$153,MATCH($B104,'Rate peg calcs'!$B$26:$B$153,0)) -> 0.03594422934 | F104: =INDEX('Rate peg calcs'!F$26:F$153,MATCH($B104,'Rate peg calcs'!$B$26:$B$153,0)) -> 0 | G104: =INDEX('Rate peg calcs'!G$26:G$153,MATCH($B104,'Rate peg calcs'!$B$26:$B$153,0)) -> -0.0022463022 | H104: =INDEX('Rate peg calcs'!H$26:H$153,MATCH($B104,'Rate peg calcs'!$B$26:$B$153,0)) -> 0.002779508821 | I104: =INDEX('Rate peg calcs'!N$26:N$153,MATCH($B104,'Rate peg calcs'!$B$26:$B$153,0)) -> 0.002358943906 | J104: =INDEX('Rate peg calcs'!O$26:O$153,MATCH($B104,'Rate peg calcs'!$B$26:$B$153,0)) -> 0 | K104: 0.039 | L104: =INDEX('Rate peg calcs'!I$26:I$153,MATCH($B104,'Rate peg calcs'!$B$26:$B$153,0)) -> 0.01319728722 | M104: =INDEX('Rate peg calcs'!J$26:J$153,MATCH($B104,'Rate peg calcs'!$B$26:$B$153,0)) -> 0.03373025516 | N104: =INDEX('Rate peg calcs'!K$26:K$153,MATCH($B104,'Rate peg calcs'!$B$26:$B$153,0)) -> 0 | O104: =INDEX('Rate peg calcs'!L$26:L$153,MATCH($B104,'Rate peg calcs'!$B$26:$B$153,0)) -> 0 | P104: =INDEX('Rate peg calcs'!M$26:M$153,MATCH($B104,'Rate peg calcs'!$B$26:$B$153,0)) -> 0 | Q104: =INDEX('Rate peg calcs'!P$26:P$153,MATCH($B104,'Rate peg calcs'!$B$26:$B$153,0)) -> 0.039 | S104: 0.0005332066202
B105: ='Rate peg calcs'!B106 -> 163 | C105: =INDEX('Rate peg calcs'!C$26:C$153,MATCH($B105,'Rate peg calcs'!$B$26:$B$153,0)) -> Rural | D105: =INDEX('Rate peg calcs'!D$26:D$153,MATCH($B105,'Rate peg calcs'!$B$26:$B$153,0)) -> Nambucca | E105: =INDEX('Rate peg calcs'!E$26:E$153,MATCH($B105,'Rate peg calcs'!$B$26:$B$153,0)) -> 0.03594422934 | F105: =INDEX('Rate peg calcs'!F$26:F$153,MATCH($B105,'Rate peg calcs'!$B$26:$B$153,0)) -> 0 | G105: =INDEX('Rate peg calcs'!G$26:G$153,MATCH($B105,'Rate peg calcs'!$B$26:$B$153,0)) -> -0.004086011802 | H105: =INDEX('Rate peg calcs'!H$26:H$153,MATCH($B105,'Rate peg calcs'!$B$26:$B$153,0)) -> 0.006525374151 | I105: =INDEX('Rate peg calcs'!N$26:N$153,MATCH($B105,'Rate peg calcs'!$B$26:$B$153,0)) -> 0.002306166838 | J105: =INDEX('Rate peg calcs'!O$26:O$153,MATCH($B105,'Rate peg calcs'!$B$26:$B$153,0)) -> 0 | K105: 0.041 | L105: =INDEX('Rate peg calcs'!I$26:I$153,MATCH($B105,'Rate peg calcs'!$B$26:$B$153,0)) -> 0.008104042316 | M105: =INDEX('Rate peg calcs'!J$26:J$153,MATCH($B105,'Rate peg calcs'!$B$26:$B$153,0)) -> 0.003382559195 | N105: =INDEX('Rate peg calcs'!K$26:K$153,MATCH($B105,'Rate peg calcs'!$B$26:$B$153,0)) -> 0.004721483121 | O105: =INDEX('Rate peg calcs'!L$26:L$153,MATCH($B105,'Rate peg calcs'!$B$26:$B$153,0)) -> 0 | P105: =INDEX('Rate peg calcs'!M$26:M$153,MATCH($B105,'Rate peg calcs'!$B$26:$B$153,0)) -> 0.005 | Q105: =INDEX('Rate peg calcs'!P$26:P$153,MATCH($B105,'Rate peg calcs'!$B$26:$B$153,0)) -> 0.046 | S105: 0.002439362349
B106: ='Rate peg calcs'!B107 -> 164 | C106: =INDEX('Rate peg calcs'!C$26:C$153,MATCH($B106,'Rate peg calcs'!$B$26:$B$153,0)) -> Rural | D106: =INDEX('Rate peg calcs'!D$26:D$153,MATCH($B106,'Rate peg calcs'!$B$26:$B$153,0)) -> Narrabri | E106: =INDEX('Rate peg calcs'!E$26:E$153,MATCH($B106,'Rate peg calcs'!$B$26:$B$153,0)) -> 0.03594422934 | F106: =INDEX('Rate peg calcs'!F$26:F$153,MATCH($B106,'Rate peg calcs'!$B$26:$B$153,0)) -> 0 | G106: =INDEX('Rate peg calcs'!G$26:G$153,MATCH($B106,'Rate peg calcs'!$B$26:$B$153,0)) -> -0.003138657549 | H106: =INDEX('Rate peg calcs'!H$26:H$153,MATCH($B106,'Rate peg calcs'!$B$26:$B$153,0)) -> 0.004505143652 | I106: =INDEX('Rate peg calcs'!N$26:N$153,MATCH($B106,'Rate peg calcs'!$B$26:$B$153,0)) -> 0.003599632971 | J106: =INDEX('Rate peg calcs'!O$26:O$153,MATCH($B106,'Rate peg calcs'!$B$26:$B$153,0)) -> 0 | K106: 0.041 | L106: =INDEX('Rate peg calcs'!I$26:I$153,MATCH($B106,'Rate peg calcs'!$B$26:$B$153,0)) -> 0.002672955975 | M106: =INDEX('Rate peg calcs'!J$26:J$153,MATCH($B106,'Rate peg calcs'!$B$26:$B$153,0)) -> 0.0003372226344 | N106: =INDEX('Rate peg calcs'!K$26:K$153,MATCH($B106,'Rate peg calcs'!$B$26:$B$153,0)) -> 0.00233573334 | O106: =INDEX('Rate peg calcs'!L$26:L$153,MATCH($B106,'Rate peg calcs'!$B$26:$B$153,0)) -> 0 | P106: =INDEX('Rate peg calcs'!M$26:M$153,MATCH($B106,'Rate peg calcs'!$B$26:$B$153,0)) -> 0.002 | Q106: =INDEX('Rate peg calcs'!P$26:P$153,MATCH($B106,'Rate peg calcs'!$B$26:$B$153,0)) -> 0.043 | S106: 0.001366486103
B107: ='Rate peg calcs'!B108 -> 165 | C107: =INDEX('Rate peg calcs'!C$26:C$153,MATCH($B107,'Rate peg calcs'!$B$26:$B$153,0)) -> Rural | D107: =INDEX('Rate peg calcs'!D$26:D$153,MATCH($B107,'Rate peg calcs'!$B$26:$B$153,0)) -> Narrandera | E107: =INDEX('Rate peg calcs'!E$26:E$153,MATCH($B107,'Rate peg calcs'!$B$26:$B$153,0)) -> 0.03594422934 | F107: =INDEX('Rate peg calcs'!F$26:F$153,MATCH($B107,'Rate peg calcs'!$B$26:$B$153,0)) -> 0 | G107: =INDEX('Rate peg calcs'!G$26:G$153,MATCH($B107,'Rate peg calcs'!$B$26:$B$153,0)) -> -0.003551295309 | H107: =INDEX('Rate peg calcs'!H$26:H$153,MATCH($B107,'Rate peg calcs'!$B$26:$B$153,0)) -> 0.00604127725 | I107: =INDEX('Rate peg calcs'!N$26:N$153,MATCH($B107,'Rate peg calcs'!$B$26:$B$153,0)) -> 0.001824667331 | J107: =INDEX('Rate peg calcs'!O$26:O$153,MATCH($B107,'Rate peg calcs'!$B$26:$B$153,0)) -> 0 | K107: 0.04 | L107: =INDEX('Rate peg calcs'!I$26:I$153,MATCH($B107,'Rate peg calcs'!$B$26:$B$153,0)) -> 0 | M107: =INDEX('Rate peg calcs'!J$26:J$153,MATCH($B107,'Rate peg calcs'!$B$26:$B$153,0)) -> 0.001883948757 | N107: =INDEX('Rate peg calcs'!K$26:K$153,MATCH($B107,'Rate peg calcs'!$B$26:$B$153,0)) -> 0 | O107: =INDEX('Rate peg calcs'!L$26:L$153,MATCH($B107,'Rate peg calcs'!$B$26:$B$153,0)) -> 0 | P107: =INDEX('Rate peg calcs'!M$26:M$153,MATCH($B107,'Rate peg calcs'!$B$26:$B$153,0)) -> 0 | Q107: =INDEX('Rate peg calcs'!P$26:P$153,MATCH($B107,'Rate peg calcs'!$B$26:$B$153,0)) -> 0.04 | S107: 0.002489981941
B108: ='Rate peg calcs'!B109 -> 166 | C108: =INDEX('Rate peg calcs'!C$26:C$153,MATCH($B108,'Rate peg calcs'!$B$26:$B$153,0)) -> Rural | D108: =INDEX('Rate peg calcs'!D$26:D$153,MATCH($B108,'Rate peg calcs'!$B$26:$B$153,0)) -> Narromine | E108: =INDEX('Rate peg calcs'!E$26:E$153,MATCH($B108,'Rate peg calcs'!$B$26:$B$153,0)) -> 0.03594422934 | F108: =INDEX('Rate peg calcs'!F$26:F$153,MATCH($B108,'Rate peg calcs'!$B$26:$B$153,0)) -> 0 | G108: =INDEX('Rate peg calcs'!G$26:G$153,MATCH($B108,'Rate peg calcs'!$B$26:$B$153,0)) -> -0.004595752754 | H108: =INDEX('Rate peg calcs'!H$26:H$153,MATCH($B108,'Rate peg calcs'!$B$26:$B$153,0)) -> 0.007492380596 | I108: =INDEX('Rate peg calcs'!N$26:N$153,MATCH($B108,'Rate peg calcs'!$B$26:$B$153,0)) -> 0.002398031105 | J108: =INDEX('Rate peg calcs'!O$26:O$153,MATCH($B108,'Rate peg calcs'!$B$26:$B$153,0)) -> 0 | K108: 0.041 | L108: =INDEX('Rate peg calcs'!I$26:I$153,MATCH($B108,'Rate peg calcs'!$B$26:$B$153,0)) -> 0.002177632602 | M108: =INDEX('Rate peg calcs'!J$26:J$153,MATCH($B108,'Rate peg calcs'!$B$26:$B$153,0)) -> 0.001603334937 | N108: =INDEX('Rate peg calcs'!K$26:K$153,MATCH($B108,'Rate peg calcs'!$B$26:$B$153,0)) -> 0.0005742976656 | O108: =INDEX('Rate peg calcs'!L$26:L$153,MATCH($B108,'Rate peg calcs'!$B$26:$B$153,0)) -> 0 | P108: =INDEX('Rate peg calcs'!M$26:M$153,MATCH($B108,'Rate peg calcs'!$B$26:$B$153,0)) -> 0.001 | Q108: =INDEX('Rate peg calcs'!P$26:P$153,MATCH($B108,'Rate peg calcs'!$B$26:$B$153,0)) -> 0.042 | S108: 0.002896627842
B109: ='Rate peg calcs'!B110 -> 167 | C109: =INDEX('Rate peg calcs'!C$26:C$153,MATCH($B109,'Rate peg calcs'!$B$26:$B$153,0)) -> Regional | D109: =INDEX('Rate peg calcs'!D$26:D$153,MATCH($B109,'Rate peg calcs'!$B$26:$B$153,0)) -> Newcastle | E109: =INDEX('Rate peg calcs'!E$26:E$153,MATCH($B109,'Rate peg calcs'!$B$26:$B$153,0)) -> 0.03584587895 | F109: =INDEX('Rate peg calcs'!F$26:F$153,MATCH($B109,'Rate peg calcs'!$B$26:$B$153,0)) -> 0 | G109: =INDEX('Rate peg calcs'!G$26:G$153,MATCH($B109,'Rate peg calcs'!$B$26:$B$153,0)) -> -0.00222878255 | H109: =INDEX('Rate peg calcs'!H$26:H$153,MATCH($B109,'Rate peg calcs'!$B$26:$B$153,0)) -> 0.00222878255 | I109: =INDEX('Rate peg calcs'!N$26:N$153,MATCH($B109,'Rate peg calcs'!$B$26:$B$153,0)) -> 0.001326653559 | J109: =INDEX('Rate peg calcs'!O$26:O$153,MATCH($B109,'Rate peg calcs'!$B$26:$B$153,0)) -> 0 | K109: 0.037 | L109: =INDEX('Rate peg calcs'!I$26:I$153,MATCH($B109,'Rate peg calcs'!$B$26:$B$153,0)) -> 0.01607289644 | M109: =INDEX('Rate peg calcs'!J$26:J$153,MATCH($B109,'Rate peg calcs'!$B$26:$B$153,0)) -> 0.001602178963 | N109: =INDEX('Rate peg calcs'!K$26:K$153,MATCH($B109,'Rate peg calcs'!$B$26:$B$153,0)) -> 0.01447071748 | O109: =INDEX('Rate peg calcs'!L$26:L$153,MATCH($B109,'Rate peg calcs'!$B$26:$B$153,0)) -> 0 | P109: =INDEX('Rate peg calcs'!M$26:M$153,MATCH($B109,'Rate peg calcs'!$B$26:$B$153,0)) -> 0.014 | Q109: =INDEX('Rate peg calcs'!P$26:P$153,MATCH($B109,'Rate peg calcs'!$B$26:$B$153,0)) -> 0.051 | S109: 0
B110: ='Rate peg calcs'!B111 -> 168 | C110: =INDEX('Rate peg calcs'!C$26:C$153,MATCH($B110,'Rate peg calcs'!$B$26:$B$153,0)) -> Metropolitan | D110: =INDEX('Rate peg calcs'!D$26:D$153,MATCH($B110,'Rate peg calcs'!$B$26:$B$153,0)) -> North Sydney | E110: =INDEX('Rate peg calcs'!E$26:E$153,MATCH($B110,'Rate peg calcs'!$B$26:$B$153,0)) -> 0.03564768825 | F110: =INDEX('Rate peg calcs'!F$26:F$153,MATCH($B110,'Rate peg calcs'!$B$26:$B$153,0)) -> 0 | G110: =INDEX('Rate peg calcs'!G$26:G$153,MATCH($B110,'Rate peg calcs'!$B$26:$B$153,0)) -> -0.002360872105 | H110: =INDEX('Rate peg calcs'!H$26:H$153,MATCH($B110,'Rate peg calcs'!$B$26:$B$153,0)) -> 0.003552271875 | I110: =INDEX('Rate peg calcs'!N$26:N$153,MATCH($B110,'Rate peg calcs'!$B$26:$B$153,0)) -> 0.003275079688 | J110: =INDEX('Rate peg calcs'!O$26:O$153,MATCH($B110,'Rate peg calcs'!$B$26:$B$153,0)) -> 0 | K110: 0.04 | L110: =INDEX('Rate peg calcs'!I$26:I$153,MATCH($B110,'Rate peg calcs'!$B$26:$B$153,0)) -> 0.03806956597 | M110: =INDEX('Rate peg calcs'!J$26:J$153,MATCH($B110,'Rate peg calcs'!$B$26:$B$153,0)) -> 0 | N110: =INDEX('Rate peg calcs'!K$26:K$153,MATCH($B110,'Rate peg calcs'!$B$26:$B$153,0)) -> 0.03806956597 | O110: =INDEX('Rate peg calcs'!L$26:L$153,MATCH($B110,'Rate peg calcs'!$B$26:$B$153,0)) -> -0.03806956597 | P110: =INDEX('Rate peg calcs'!M$26:M$153,MATCH($B110,'Rate peg calcs'!$B$26:$B$153,0)) -> 0 | Q110: =INDEX('Rate peg calcs'!P$26:P$153,MATCH($B110,'Rate peg calcs'!$B$26:$B$153,0)) -> 0.04 | S110: 0.001191399771
B111: ='Rate peg calcs'!B112 -> 2087 | C111: =INDEX('Rate peg calcs'!C$26:C$153,MATCH($B111,'Rate peg calcs'!$B$26:$B$153,0)) -> Metropolitan | D111: =INDEX('Rate peg calcs'!D$26:D$153,MATCH($B111,'Rate peg calcs'!$B$26:$B$153,0)) -> Northern Beaches | E111: =INDEX('Rate peg calcs'!E$26:E$153,MATCH($B111,'Rate peg calcs'!$B$26:$B$153,0)) -> 0.03564768825 | F111: =INDEX('Rate peg calcs'!F$26:F$153,MATCH($B111,'Rate peg calcs'!$B$26:$B$153,0)) -> 0 | G111: =INDEX('Rate peg calcs'!G$26:G$153,MATCH($B111,'Rate peg calcs'!$B$26:$B$153,0)) -> -0.003800034486 | H111: =INDEX('Rate peg calcs'!H$26:H$153,MATCH($B111,'Rate peg calcs'!$B$26:$B$153,0)) -> 0.004231142571 | I111: =INDEX('Rate peg calcs'!N$26:N$153,MATCH($B111,'Rate peg calcs'!$B$26:$B$153,0)) -> 0.001564513863 | J111: =INDEX('Rate peg calcs'!O$26:O$153,MATCH($B111,'Rate peg calcs'!$B$26:$B$153,0)) -> 0 | K111: 0.038 | L111: =INDEX('Rate peg calcs'!I$26:I$153,MATCH($B111,'Rate peg calcs'!$B$26:$B$153,0)) -> 0.01739576213 | M111: =INDEX('Rate peg calcs'!J$26:J$153,MATCH($B111,'Rate peg calcs'!$B$26:$B$153,0)) -> 6.060372327e-05 | N111: =INDEX('Rate peg calcs'!K$26:K$153,MATCH($B111,'Rate peg calcs'!$B$26:$B$153,0)) -> 0.01733515841 | O111: =INDEX('Rate peg calcs'!L$26:L$153,MATCH($B111,'Rate peg calcs'!$B$26:$B$153,0)) -> -0.01733515841 | P111: =INDEX('Rate peg calcs'!M$26:M$153,MATCH($B111,'Rate peg calcs'!$B$26:$B$153,0)) -> 0 | Q111: =INDEX('Rate peg calcs'!P$26:P$153,MATCH($B111,'Rate peg calcs'!$B$26:$B$153,0)) -> 0.038 | S111: 0.0004311080855
B112: ='Rate peg calcs'!B113 -> 2045 | C112: =INDEX('Rate peg calcs'!C$26:C$153,MATCH($B112,'Rate peg calcs'!$B$26:$B$153,0)) -> Rural | D112: =INDEX('Rate peg calcs'!D$26:D$153,MATCH($B112,'Rate peg calcs'!$B$26:$B$153,0)) -> Oberon | E112: =INDEX('Rate peg calcs'!E$26:E$153,MATCH($B112,'Rate peg calcs'!$B$26:$B$153,0)) -> 0.03594422934 | F112: =INDEX('Rate peg calcs'!F$26:F$153,MATCH($B112,'Rate peg calcs'!$B$26:$B$153,0)) -> 0 | G112: =INDEX('Rate peg calcs'!G$26:G$153,MATCH($B112,'Rate peg calcs'!$B$26:$B$153,0)) -> -0.006644801904 | H112: =INDEX('Rate peg calcs'!H$26:H$153,MATCH($B112,'Rate peg calcs'!$B$26:$B$153,0)) -> 0.008751768879 | I112: =INDEX('Rate peg calcs'!N$26:N$153,MATCH($B112,'Rate peg calcs'!$B$26:$B$153,0)) -> 0.008120440167 | J112: =INDEX('Rate peg calcs'!O$26:O$153,MATCH($B112,'Rate peg calcs'!$B$26:$B$153,0)) -> 0 | K112: 0.046 | L112: =INDEX('Rate peg calcs'!I$26:I$153,MATCH($B112,'Rate peg calcs'!$B$26:$B$153,0)) -> 0.01725703906 | M112: =INDEX('Rate peg calcs'!J$26:J$153,MATCH($B112,'Rate peg calcs'!$B$26:$B$153,0)) -> 0.00922953451 | N112: =INDEX('Rate peg calcs'!K$26:K$153,MATCH($B112,'Rate peg calcs'!$B$26:$B$153,0)) -> 0.008027504545 | O112: =INDEX('Rate peg calcs'!L$26:L$153,MATCH($B112,'Rate peg calcs'!$B$26:$B$153,0)) -> 0 | P112: =INDEX('Rate peg calcs'!M$26:M$153,MATCH($B112,'Rate peg calcs'!$B$26:$B$153,0)) -> 0.008 | Q112: =INDEX('Rate peg calcs'!P$26:P$153,MATCH($B112,'Rate peg calcs'!$B$26:$B$153,0)) -> 0.054 | S112: 0.002106966975
B113: ='Rate peg calcs'!B114 -> 172 | C113: =INDEX('Rate peg calcs'!C$26:C$153,MATCH($B113,'Rate peg calcs'!$B$26:$B$153,0)) -> Regional | D113: =INDEX('Rate peg calcs'!D$26:D$153,MATCH($B113,'Rate peg calcs'!$B$26:$B$153,0)) -> Orange | E113: =INDEX('Rate peg calcs'!E$26:E$153,MATCH($B113,'Rate peg calcs'!$B$26:$B$153,0)) -> 0.03584587895 | F113: =INDEX('Rate peg calcs'!F$26:F$153,MATCH($B113,'Rate peg calcs'!$B$26:$B$153,0)) -> 0 | G113: =INDEX('Rate peg calcs'!G$26:G$153,MATCH($B113,'Rate peg calcs'!$B$26:$B$153,0)) -> -0.002140119731 | H113: =INDEX('Rate peg calcs'!H$26:H$153,MATCH($B113,'Rate peg calcs'!$B$26:$B$153,0)) -> 0.003073101813 | I113: =INDEX('Rate peg calcs'!N$26:N$153,MATCH($B113,'Rate peg calcs'!$B$26:$B$153,0)) -> 0.002197269824 | J113: =INDEX('Rate peg calcs'!O$26:O$153,MATCH($B113,'Rate peg calcs'!$B$26:$B$153,0)) -> 0 | K113: 0.039 | L113: =INDEX('Rate peg calcs'!I$26:I$153,MATCH($B113,'Rate peg calcs'!$B$26:$B$153,0)) -> 0.006368847239 | M113: =INDEX('Rate peg calcs'!J$26:J$153,MATCH($B113,'Rate peg calcs'!$B$26:$B$153,0)) -> 0.005396825397 | N113: =INDEX('Rate peg calcs'!K$26:K$153,MATCH($B113,'Rate peg calcs'!$B$26:$B$153,0)) -> 0.0009720218418 | O113: =INDEX('Rate peg calcs'!L$26:L$153,MATCH($B113,'Rate peg calcs'!$B$26:$B$153,0)) -> 0 | P113: =INDEX('Rate peg calcs'!M$26:M$153,MATCH($B113,'Rate peg calcs'!$B$26:$B$153,0)) -> 0.001 | Q113: =INDEX('Rate peg calcs'!P$26:P$153,MATCH($B113,'Rate peg calcs'!$B$26:$B$153,0)) -> 0.04 | S113: 0.0009329820815
B114: ='Rate peg calcs'!B115 -> 173 | C114: =INDEX('Rate peg calcs'!C$26:C$153,MATCH($B114,'Rate peg calcs'!$B$26:$B$153,0)) -> Rural | D114: =INDEX('Rate peg calcs'!D$26:D$153,MATCH($B114,'Rate peg calcs'!$B$26:$B$153,0)) -> Parkes | E114: =INDEX('Rate peg calcs'!E$26:E$153,MATCH($B114,'Rate peg calcs'!$B$26:$B$153,0)) -> 0.03594422934 | F114: =INDEX('Rate peg calcs'!F$26:F$153,MATCH($B114,'Rate peg calcs'!$B$26:$B$153,0)) -> 0 | G114: =INDEX('Rate peg calcs'!G$26:G$153,MATCH($B114,'Rate peg calcs'!$B$26:$B$153,0)) -> -0.003058088125 | H114: =INDEX('Rate peg calcs'!H$26:H$153,MATCH($B114,'Rate peg calcs'!$B$26:$B$153,0)) -> 0.00411082539 | I114: =INDEX('Rate peg calcs'!N$26:N$153,MATCH($B114,'Rate peg calcs'!$B$26:$B$153,0)) -> 0.002764291131 | J114: =INDEX('Rate peg calcs'!O$26:O$153,MATCH($B114,'Rate peg calcs'!$B$26:$B$153,0)) -> 0 | K114: 0.04 | L114: =INDEX('Rate peg calcs'!I$26:I$153,MATCH($B114,'Rate peg calcs'!$B$26:$B$153,0)) -> 0 | M114: =INDEX('Rate peg calcs'!J$26:J$153,MATCH($B114,'Rate peg calcs'!$B$26:$B$153,0)) -> 0.003628925838 | N114: =INDEX('Rate peg calcs'!K$26:K$153,MATCH($B114,'Rate peg calcs'!$B$26:$B$153,0)) -> 0 | O114: =INDEX('Rate peg calcs'!L$26:L$153,MATCH($B114,'Rate peg calcs'!$B$26:$B$153,0)) -> 0 | P114: =INDEX('Rate peg calcs'!M$26:M$153,MATCH($B114,'Rate peg calcs'!$B$26:$B$153,0)) -> 0 | Q114: =INDEX('Rate peg calcs'!P$26:P$153,MATCH($B114,'Rate peg calcs'!$B$26:$B$153,0)) -> 0.04 | S114: 0.001052737265
B115: ='Rate peg calcs'!B116 -> 2089 | C115: =INDEX('Rate peg calcs'!C$26:C$153,MATCH($B115,'Rate peg calcs'!$B$26:$B$153,0)) -> Metropolitan | D115: =INDEX('Rate peg calcs'!D$26:D$153,MATCH($B115,'Rate peg calcs'!$B$26:$B$153,0)) -> Parramatta | E115: =INDEX('Rate peg calcs'!E$26:E$153,MATCH($B115,'Rate peg calcs'!$B$26:$B$153,0)) -> 0.03564768825 | F115: =INDEX('Rate peg calcs'!F$26:F$153,MATCH($B115,'Rate peg calcs'!$B$26:$B$153,0)) -> 0 | G115: =INDEX('Rate peg calcs'!G$26:G$153,MATCH($B115,'Rate peg calcs'!$B$26:$B$153,0)) -> -0.003049094465 | H115: =INDEX('Rate peg calcs'!H$26:H$153,MATCH($B115,'Rate peg calcs'!$B$26:$B$153,0)) -> 0.003049094465 | I115: =INDEX('Rate peg calcs'!N$26:N$153,MATCH($B115,'Rate peg calcs'!$B$26:$B$153,0)) -> 0.001245910333 | J115: =INDEX('Rate peg calcs'!O$26:O$153,MATCH($B115,'Rate peg calcs'!$B$26:$B$153,0)) -> 0 | K115: 0.037 | L115: =INDEX('Rate peg calcs'!I$26:I$153,MATCH($B115,'Rate peg calcs'!$B$26:$B$153,0)) -> 0.0344274061 | M115: =INDEX('Rate peg calcs'!J$26:J$153,MATCH($B115,'Rate peg calcs'!$B$26:$B$153,0)) -> 0.009330190532 | N115: =INDEX('Rate peg calcs'!K$26:K$153,MATCH($B115,'Rate peg calcs'!$B$26:$B$153,0)) -> 0.02509721557 | O115: =INDEX('Rate peg calcs'!L$26:L$153,MATCH($B115,'Rate peg calcs'!$B$26:$B$153,0)) -> 0 | P115: =INDEX('Rate peg calcs'!M$26:M$153,MATCH($B115,'Rate peg calcs'!$B$26:$B$153,0)) -> 0.025 | Q115: =INDEX('Rate peg calcs'!P$26:P$153,MATCH($B115,'Rate peg calcs'!$B$26:$B$153,0)) -> 0.062 | S115: 0
B116: ='Rate peg calcs'!B117 -> 176 | C116: =INDEX('Rate peg calcs'!C$26:C$153,MATCH($B116,'Rate peg calcs'!$B$26:$B$153,0)) -> Metropolitan | D116: =INDEX('Rate peg calcs'!D$26:D$153,MATCH($B116,'Rate peg calcs'!$B$26:$B$153,0)) -> Penrith | E116: =INDEX('Rate peg calcs'!E$26:E$153,MATCH($B116,'Rate peg calcs'!$B$26:$B$153,0)) -> 0.03564768825 | F116: =INDEX('Rate peg calcs'!F$26:F$153,MATCH($B116,'Rate peg calcs'!$B$26:$B$153,0)) -> 0 | G116: =INDEX('Rate peg calcs'!G$26:G$153,MATCH($B116,'Rate peg calcs'!$B$26:$B$153,0)) -> -0.001673694974 | H116: =INDEX('Rate peg calcs'!H$26:H$153,MATCH($B116,'Rate peg calcs'!$B$26:$B$153,0)) -> 0.002833011441 | I116: =INDEX('Rate peg calcs'!N$26:N$153,MATCH($B116,'Rate peg calcs'!$B$26:$B$153,0)) -> 0.002302417595 | J116: =INDEX('Rate peg calcs'!O$26:O$153,MATCH($B116,'Rate peg calcs'!$B$26:$B$153,0)) -> 0 | K116: 0.039 | L116: =INDEX('Rate peg calcs'!I$26:I$153,MATCH($B116,'Rate peg calcs'!$B$26:$B$153,0)) -> 0.01558100073 | M116: =INDEX('Rate peg calcs'!J$26:J$153,MATCH($B116,'Rate peg calcs'!$B$26:$B$153,0)) -> 0.01544635004 | N116: =INDEX('Rate peg calcs'!K$26:K$153,MATCH($B116,'Rate peg calcs'!$B$26:$B$153,0)) -> 0.0001346506884 | O116: =INDEX('Rate peg calcs'!L$26:L$153,MATCH($B116,'Rate peg calcs'!$B$26:$B$153,0)) -> 0 | P116: =INDEX('Rate peg calcs'!M$26:M$153,MATCH($B116,'Rate peg calcs'!$B$26:$B$153,0)) -> 0 | Q116: =INDEX('Rate peg calcs'!P$26:P$153,MATCH($B116,'Rate peg calcs'!$B$26:$B$153,0)) -> 0.039 | S116: 0.001159316467
B117: ='Rate peg calcs'!B118 -> 124 | C117: =INDEX('Rate peg calcs'!C$26:C$153,MATCH($B117,'Rate peg calcs'!$B$26:$B$153,0)) -> Regional | D117: =INDEX('Rate peg calcs'!D$26:D$153,MATCH($B117,'Rate peg calcs'!$B$26:$B$153,0)) -> Port Macquarie-Hastings | E117: =INDEX('Rate peg calcs'!E$26:E$153,MATCH($B117,'Rate peg calcs'!$B$26:$B$153,0)) -> 0.03584587895 | F117: =INDEX('Rate peg calcs'!F$26:F$153,MATCH($B117,'Rate peg calcs'!$B$26:$B$153,0)) -> 0 | G117: =INDEX('Rate peg calcs'!G$26:G$153,MATCH($B117,'Rate peg calcs'!$B$26:$B$153,0)) -> -0.002769663672 | H117: =INDEX('Rate peg calcs'!H$26:H$153,MATCH($B117,'Rate peg calcs'!$B$26:$B$153,0)) -> 0.003331845287 | I117: =INDEX('Rate peg calcs'!N$26:N$153,MATCH($B117,'Rate peg calcs'!$B$26:$B$153,0)) -> 0.002947880682 | J117: =INDEX('Rate peg calcs'!O$26:O$153,MATCH($B117,'Rate peg calcs'!$B$26:$B$153,0)) -> 0 | K117: 0.039 | L117: =INDEX('Rate peg calcs'!I$26:I$153,MATCH($B117,'Rate peg calcs'!$B$26:$B$153,0)) -> 0.01458581054 | M117: =INDEX('Rate peg calcs'!J$26:J$153,MATCH($B117,'Rate peg calcs'!$B$26:$B$153,0)) -> 0.01227375264 | N117: =INDEX('Rate peg calcs'!K$26:K$153,MATCH($B117,'Rate peg calcs'!$B$26:$B$153,0)) -> 0.002312057901 | O117: =INDEX('Rate peg calcs'!L$26:L$153,MATCH($B117,'Rate peg calcs'!$B$26:$B$153,0)) -> 0 | P117: =INDEX('Rate peg calcs'!M$26:M$153,MATCH($B117,'Rate peg calcs'!$B$26:$B$153,0)) -> 0.002 | Q117: =INDEX('Rate peg calcs'!P$26:P$153,MATCH($B117,'Rate peg calcs'!$B$26:$B$153,0)) -> 0.041 | S117: 0.0005621816146
B118: ='Rate peg calcs'!B119 -> 178 | C118: =INDEX('Rate peg calcs'!C$26:C$153,MATCH($B118,'Rate peg calcs'!$B$26:$B$153,0)) -> Regional | D118: =INDEX('Rate peg calcs'!D$26:D$153,MATCH($B118,'Rate peg calcs'!$B$26:$B$153,0)) -> Port Stephens | E118: =INDEX('Rate peg calcs'!E$26:E$153,MATCH($B118,'Rate peg calcs'!$B$26:$B$153,0)) -> 0.03584587895 | F118: =INDEX('Rate peg calcs'!F$26:F$153,MATCH($B118,'Rate peg calcs'!$B$26:$B$153,0)) -> 0 | G118: =INDEX('Rate peg calcs'!G$26:G$153,MATCH($B118,'Rate peg calcs'!$B$26:$B$153,0)) -> -0.002449935383 | H118: =INDEX('Rate peg calcs'!H$26:H$153,MATCH($B118,'Rate peg calcs'!$B$26:$B$153,0)) -> 0.002824868938 | I118: =INDEX('Rate peg calcs'!N$26:N$153,MATCH($B118,'Rate peg calcs'!$B$26:$B$153,0)) -> 0.002653991566 | J118: =INDEX('Rate peg calcs'!O$26:O$153,MATCH($B118,'Rate peg calcs'!$B$26:$B$153,0)) -> 0 | K118: 0.039 | L118: =INDEX('Rate peg calcs'!I$26:I$153,MATCH($B118,'Rate peg calcs'!$B$26:$B$153,0)) -> 0.01407348472 | M118: =INDEX('Rate peg calcs'!J$26:J$153,MATCH($B118,'Rate peg calcs'!$B$26:$B$153,0)) -> 0.008411078413 | N118: =INDEX('Rate peg calcs'!K$26:K$153,MATCH($B118,'Rate peg calcs'!$B$26:$B$153,0)) -> 0.005662406307 | O118: =INDEX('Rate peg calcs'!L$26:L$153,MATCH($B118,'Rate peg calcs'!$B$26:$B$153,0)) -> 0 | P118: =INDEX('Rate peg calcs'!M$26:M$153,MATCH($B118,'Rate peg calcs'!$B$26:$B$153,0)) -> 0.006 | Q118: =INDEX('Rate peg calcs'!P$26:P$153,MATCH($B118,'Rate peg calcs'!$B$26:$B$153,0)) -> 0.045 | S118: 0.0003749335551
B119: ='Rate peg calcs'!B120 -> 2095 | C119: =INDEX('Rate peg calcs'!C$26:C$153,MATCH($B119,'Rate peg calcs'!$B$26:$B$153,0)) -> Regional | D119: =INDEX('Rate peg calcs'!D$26:D$153,MATCH($B119,'Rate peg calcs'!$B$26:$B$153,0)) -> Queanbeyan-Palerang Regional | E119: =INDEX('Rate peg calcs'!E$26:E$153,MATCH($B119,'Rate peg calcs'!$B$26:$B$153,0)) -> 0.03584587895 | F119: =INDEX('Rate peg calcs'!F$26:F$153,MATCH($B119,'Rate peg calcs'!$B$26:$B$153,0)) -> 0 | G119: =INDEX('Rate peg calcs'!G$26:G$153,MATCH($B119,'Rate peg calcs'!$B$26:$B$153,0)) -> -0.002464316732 | H119: =INDEX('Rate peg calcs'!H$26:H$153,MATCH($B119,'Rate peg calcs'!$B$26:$B$153,0)) -> 0.003652440357 | I119: =INDEX('Rate peg calcs'!N$26:N$153,MATCH($B119,'Rate peg calcs'!$B$26:$B$153,0)) -> 0.002190511559 | J119: =INDEX('Rate peg calcs'!O$26:O$153,MATCH($B119,'Rate peg calcs'!$B$26:$B$153,0)) -> 0 | K119: 0.039 | L119: =INDEX('Rate peg calcs'!I$26:I$153,MATCH($B119,'Rate peg calcs'!$B$26:$B$153,0)) -> 0.01768561331 | M119: =INDEX('Rate peg calcs'!J$26:J$153,MATCH($B119,'Rate peg calcs'!$B$26:$B$153,0)) -> 0.02714719236 | N119: =INDEX('Rate peg calcs'!K$26:K$153,MATCH($B119,'Rate peg calcs'!$B$26:$B$153,0)) -> 0 | O119: =INDEX('Rate peg calcs'!L$26:L$153,MATCH($B119,'Rate peg calcs'!$B$26:$B$153,0)) -> 0 | P119: =INDEX('Rate peg calcs'!M$26:M$153,MATCH($B119,'Rate peg calcs'!$B$26:$B$153,0)) -> 0 | Q119: =INDEX('Rate peg calcs'!P$26:P$153,MATCH($B119,'Rate peg calcs'!$B$26:$B$153,0)) -> 0.039 | S119: 0.001188123624
B120: ='Rate peg calcs'!B121 -> 181 | C120: =INDEX('Rate peg calcs'!C$26:C$153,MATCH($B120,'Rate peg calcs'!$B$26:$B$153,0)) -> Metropolitan | D120: =INDEX('Rate peg calcs'!D$26:D$153,MATCH($B120,'Rate peg calcs'!$B$26:$B$153,0)) -> Randwick | E120: =INDEX('Rate peg calcs'!E$26:E$153,MATCH($B120,'Rate peg calcs'!$B$26:$B$153,0)) -> 0.03564768825 | F120: =INDEX('Rate peg calcs'!F$26:F$153,MATCH($B120,'Rate peg calcs'!$B$26:$B$153,0)) -> 0 | G120: =INDEX('Rate peg calcs'!G$26:G$153,MATCH($B120,'Rate peg calcs'!$B$26:$B$153,0)) -> -0.003659834406 | H120: =INDEX('Rate peg calcs'!H$26:H$153,MATCH($B120,'Rate peg calcs'!$B$26:$B$153,0)) -> 0.003659834406 | I120: =INDEX('Rate peg calcs'!N$26:N$153,MATCH($B120,'Rate peg calcs'!$B$26:$B$153,0)) -> 0.001403546836 | J120: =INDEX('Rate peg calcs'!O$26:O$153,MATCH($B120,'Rate peg calcs'!$B$26:$B$153,0)) -> 0 | K120: 0.037 | L120: =INDEX('Rate peg calcs'!I$26:I$153,MATCH($B120,'Rate peg calcs'!$B$26:$B$153,0)) -> 0.04531493434 | M120: =INDEX('Rate peg calcs'!J$26:J$153,MATCH($B120,'Rate peg calcs'!$B$26:$B$153,0)) -> 0.001080947528 | N120: =INDEX('Rate peg calcs'!K$26:K$153,MATCH($B120,'Rate peg calcs'!$B$26:$B$153,0)) -> 0.04423398681 | O120: =INDEX('Rate peg calcs'!L$26:L$153,MATCH($B120,'Rate peg calcs'!$B$26:$B$153,0)) -> -0.04423398681 | P120: =INDEX('Rate peg calcs'!M$26:M$153,MATCH($B120,'Rate peg calcs'!$B$26:$B$153,0)) -> 0 | Q120: =INDEX('Rate peg calcs'!P$26:P$153,MATCH($B120,'Rate peg calcs'!$B$26:$B$153,0)) -> 0.037 | S120: 0
B121: ='Rate peg calcs'!B122 -> 1981 | C121: =INDEX('Rate peg calcs'!C$26:C$153,MATCH($B121,'Rate peg calcs'!$B$26:$B$153,0)) -> Regional | D121: =INDEX('Rate peg calcs'!D$26:D$153,MATCH($B121,'Rate peg calcs'!$B$26:$B$153,0)) -> Richmond Valley | E121: =INDEX('Rate peg calcs'!E$26:E$153,MATCH($B121,'Rate peg calcs'!$B$26:$B$153,0)) -> 0.03584587895 | F121: =INDEX('Rate peg calcs'!F$26:F$153,MATCH($B121,'Rate peg calcs'!$B$26:$B$153,0)) -> 0 | G121: =INDEX('Rate peg calcs'!G$26:G$153,MATCH($B121,'Rate peg calcs'!$B$26:$B$153,0)) -> -0.003511175345 | H121: =INDEX('Rate peg calcs'!H$26:H$153,MATCH($B121,'Rate peg calcs'!$B$26:$B$153,0)) -> 0.00497013181 | I121: =INDEX('Rate peg calcs'!N$26:N$153,MATCH($B121,'Rate peg calcs'!$B$26:$B$153,0)) -> 0.001959556381 | J121: =INDEX('Rate peg calcs'!O$26:O$153,MATCH($B121,'Rate peg calcs'!$B$26:$B$153,0)) -> 0 | K121: =Q121-P121 -> 0.039 | L121: =INDEX('Rate peg calcs'!I$26:I$153,MATCH($B121,'Rate peg calcs'!$B$26:$B$153,0)) -> 0.0002109704641 | M121: =INDEX('Rate peg calcs'!J$26:J$153,MATCH($B121,'Rate peg calcs'!$B$26:$B$153,0)) -> 6.400409626e-05 | N121: =INDEX('Rate peg calcs'!K$26:K$153,MATCH($B121,'Rate peg calcs'!$B$26:$B$153,0)) -> 0.0001469663679 | O121: =INDEX('Rate peg calcs'!L$26:L$153,MATCH($B121,'Rate peg calcs'!$B$26:$B$153,0)) -> 0 | P121: =INDEX('Rate peg calcs'!M$26:M$153,MATCH($B121,'Rate peg calcs'!$B$26:$B$153,0)) -> 0 | Q121: =INDEX('Rate peg calcs'!P$26:P$153,MATCH($B121,'Rate peg calcs'!$B$26:$B$153,0)) -> 0.039 | S121: =SUM(G121:H121) -> 0.001458956465
B122: ='Rate peg calcs'!B123 -> 184 | C122: =INDEX('Rate peg calcs'!C$26:C$153,MATCH($B122,'Rate peg calcs'!$B$26:$B$153,0)) -> Metropolitan | D122: =INDEX('Rate peg calcs'!D$26:D$153,MATCH($B122,'Rate peg calcs'!$B$26:$B$153,0)) -> Ryde | E122: =INDEX('Rate peg calcs'!E$26:E$153,MATCH($B122,'Rate peg calcs'!$B$26:$B$153,0)) -> 0.03564768825 | F122: =INDEX('Rate peg calcs'!F$26:F$153,MATCH($B122,'Rate peg calcs'!$B$26:$B$153,0)) -> 0 | G122: =INDEX('Rate peg calcs'!G$26:G$153,MATCH($B122,'Rate peg calcs'!$B$26:$B$153,0)) -> -0.003856725855 | H122: =INDEX('Rate peg calcs'!H$26:H$153,MATCH($B122,'Rate peg calcs'!$B$26:$B$153,0)) -> 0.003856725855 | I122: =INDEX('Rate peg calcs'!N$26:N$153,MATCH($B122,'Rate peg calcs'!$B$26:$B$153,0)) -> 0.002217711141 | J122: =INDEX('Rate peg calcs'!O$26:O$153,MATCH($B122,'Rate peg calcs'!$B$26:$B$153,0)) -> 0 | K122: 0.038 | L122: =INDEX('Rate peg calcs'!I$26:I$153,MATCH($B122,'Rate peg calcs'!$B$26:$B$153,0)) -> 0.034673091 | M122: =INDEX('Rate peg calcs'!J$26:J$153,MATCH($B122,'Rate peg calcs'!$B$26:$B$153,0)) -> 0.006050487679 | N122: =INDEX('Rate peg calcs'!K$26:K$153,MATCH($B122,'Rate peg calcs'!$B$26:$B$153,0)) -> 0.02862260332 | O122: =INDEX('Rate peg calcs'!L$26:L$153,MATCH($B122,'Rate peg calcs'!$B$26:$B$153,0)) -> 0 | P122: =INDEX('Rate peg calcs'!M$26:M$153,MATCH($B122,'Rate peg calcs'!$B$26:$B$153,0)) -> 0.029 | Q122: =INDEX('Rate peg calcs'!P$26:P$153,MATCH($B122,'Rate peg calcs'!$B$26:$B$153,0)) -> 0.067 | S122: 0
B123: ='Rate peg calcs'!B124 -> 188 | C123: =INDEX('Rate peg calcs'!C$26:C$153,MATCH($B123,'Rate peg calcs'!$B$26:$B$153,0)) -> Regional | D123: =INDEX('Rate peg calcs'!D$26:D$153,MATCH($B123,'Rate peg calcs'!$B$26:$B$153,0)) -> Shellharbour | E123: =INDEX('Rate peg calcs'!E$26:E$153,MATCH($B123,'Rate peg calcs'!$B$26:$B$153,0)) -> 0.03584587895 | F123: =INDEX('Rate peg calcs'!F$26:F$153,MATCH($B123,'Rate peg calcs'!$B$26:$B$153,0)) -> 0 | G123: =INDEX('Rate peg calcs'!G$26:G$153,MATCH($B123,'Rate peg calcs'!$B$26:$B$153,0)) -> -0.002389422077 | H123: =INDEX('Rate peg calcs'!H$26:H$153,MATCH($B123,'Rate peg calcs'!$B$26:$B$153,0)) -> 0.002824491133 | I123: =INDEX('Rate peg calcs'!N$26:N$153,MATCH($B123,'Rate peg calcs'!$B$26:$B$153,0)) -> 0.001467265584 | J123: =INDEX('Rate peg calcs'!O$26:O$153,MATCH($B123,'Rate peg calcs'!$B$26:$B$153,0)) -> 0 | K123: 0.038 | L123: =INDEX('Rate peg calcs'!I$26:I$153,MATCH($B123,'Rate peg calcs'!$B$26:$B$153,0)) -> 0.01797523299 | M123: =INDEX('Rate peg calcs'!J$26:J$153,MATCH($B123,'Rate peg calcs'!$B$26:$B$153,0)) -> 0.01579796003 | N123: =INDEX('Rate peg calcs'!K$26:K$153,MATCH($B123,'Rate peg calcs'!$B$26:$B$153,0)) -> 0.002177272955 | O123: =INDEX('Rate peg calcs'!L$26:L$153,MATCH($B123,'Rate peg calcs'!$B$26:$B$153,0)) -> 0 | P123: =INDEX('Rate peg calcs'!M$26:M$153,MATCH($B123,'Rate peg calcs'!$B$26:$B$153,0)) -> 0.002 | Q123: =INDEX('Rate peg calcs'!P$26:P$153,MATCH($B123,'Rate peg calcs'!$B$26:$B$153,0)) -> 0.04 | S123: 0.0004350690555
B124: ='Rate peg calcs'!B125 -> 189 | C124: =INDEX('Rate peg calcs'!C$26:C$153,MATCH($B124,'Rate peg calcs'!$B$26:$B$153,0)) -> Regional | D124: =INDEX('Rate peg calcs'!D$26:D$153,MATCH($B124,'Rate peg calcs'!$B$26:$B$153,0)) -> Shoalhaven | E124: =INDEX('Rate peg calcs'!E$26:E$153,MATCH($B124,'Rate peg calcs'!$B$26:$B$153,0)) -> 0.03584587895 | F124: =INDEX('Rate peg calcs'!F$26:F$153,MATCH($B124,'Rate peg calcs'!$B$26:$B$153,0)) -> 0 | G124: =INDEX('Rate peg calcs'!G$26:G$153,MATCH($B124,'Rate peg calcs'!$B$26:$B$153,0)) -> -0.002907607543 | H124: =INDEX('Rate peg calcs'!H$26:H$153,MATCH($B124,'Rate peg calcs'!$B$26:$B$153,0)) -> 0.003831979443 | I124: =INDEX('Rate peg calcs'!N$26:N$153,MATCH($B124,'Rate peg calcs'!$B$26:$B$153,0)) -> 0.001155037816 | J124: =INDEX('Rate peg calcs'!O$26:O$153,MATCH($B124,'Rate peg calcs'!$B$26:$B$153,0)) -> 0 | K124: 0.038 | L124: =INDEX('Rate peg calcs'!I$26:I$153,MATCH($B124,'Rate peg calcs'!$B$26:$B$153,0)) -> 0.003915441176 | M124: =INDEX('Rate peg calcs'!J$26:J$153,MATCH($B124,'Rate peg calcs'!$B$26:$B$153,0)) -> 0.005267258119 | N124: =INDEX('Rate peg calcs'!K$26:K$153,MATCH($B124,'Rate peg calcs'!$B$26:$B$153,0)) -> 0 | O124: =INDEX('Rate peg calcs'!L$26:L$153,MATCH($B124,'Rate peg calcs'!$B$26:$B$153,0)) -> 0 | P124: =INDEX('Rate peg calcs'!M$26:M$153,MATCH($B124,'Rate peg calcs'!$B$26:$B$153,0)) -> 0 | Q124: =INDEX('Rate peg calcs'!P$26:P$153,MATCH($B124,'Rate peg calcs'!$B$26:$B$153,0)) -> 0.038 | S124: 0.0009243718999
B125: ='Rate peg calcs'!B126 -> 190 | C125: =INDEX('Rate peg calcs'!C$26:C$153,MATCH($B125,'Rate peg calcs'!$B$26:$B$153,0)) -> Regional | D125: =INDEX('Rate peg calcs'!D$26:D$153,MATCH($B125,'Rate peg calcs'!$B$26:$B$153,0)) -> Singleton | E125: =INDEX('Rate peg calcs'!E$26:E$153,MATCH($B125,'Rate peg calcs'!$B$26:$B$153,0)) -> 0.03584587895 | F125: =INDEX('Rate peg calcs'!F$26:F$153,MATCH($B125,'Rate peg calcs'!$B$26:$B$153,0)) -> 0 | G125: =INDEX('Rate peg calcs'!G$26:G$153,MATCH($B125,'Rate peg calcs'!$B$26:$B$153,0)) -> -0.002783287086 | H125: =INDEX('Rate peg calcs'!H$26:H$153,MATCH($B125,'Rate peg calcs'!$B$26:$B$153,0)) -> 0.003498070567 | I125: =INDEX('Rate peg calcs'!N$26:N$153,MATCH($B125,'Rate peg calcs'!$B$26:$B$153,0)) -> 0.001140961239 | J125: =INDEX('Rate peg calcs'!O$26:O$153,MATCH($B125,'Rate peg calcs'!$B$26:$B$153,0)) -> 0 | K125: 0.038 | L125: =INDEX('Rate peg calcs'!I$26:I$153,MATCH($B125,'Rate peg calcs'!$B$26:$B$153,0)) -> 0.009524568605 | M125: =INDEX('Rate peg calcs'!J$26:J$153,MATCH($B125,'Rate peg calcs'!$B$26:$B$153,0)) -> 0.004176833051 | N125: =INDEX('Rate peg calcs'!K$26:K$153,MATCH($B125,'Rate peg calcs'!$B$26:$B$153,0)) -> 0.005347735554 | O125: =INDEX('Rate peg calcs'!L$26:L$153,MATCH($B125,'Rate peg calcs'!$B$26:$B$153,0)) -> 0 | P125: =INDEX('Rate peg calcs'!M$26:M$153,MATCH($B125,'Rate peg calcs'!$B$26:$B$153,0)) -> 0.005 | Q125: =INDEX('Rate peg calcs'!P$26:P$153,MATCH($B125,'Rate peg calcs'!$B$26:$B$153,0)) -> 0.043 | S125: 0.0007147834803
B126: ='Rate peg calcs'!B127 -> 2096 | C126: =INDEX('Rate peg calcs'!C$26:C$153,MATCH($B126,'Rate peg calcs'!$B$26:$B$153,0)) -> Regional | D126: =INDEX('Rate peg calcs'!D$26:D$153,MATCH($B126,'Rate peg calcs'!$B$26:$B$153,0)) -> Snowy Monaro Regional | E126: =INDEX('Rate peg calcs'!E$26:E$153,MATCH($B126,'Rate peg calcs'!$B$26:$B$153,0)) -> 0.03584587895 | F126: =INDEX('Rate peg calcs'!F$26:F$153,MATCH($B126,'Rate peg calcs'!$B$26:$B$153,0)) -> 0 | G126: =INDEX('Rate peg calcs'!G$26:G$153,MATCH($B126,'Rate peg calcs'!$B$26:$B$153,0)) -> -0.005105505437 | H126: =INDEX('Rate peg calcs'!H$26:H$153,MATCH($B126,'Rate peg calcs'!$B$26:$B$153,0)) -> 0.009735257142 | I126: =INDEX('Rate peg calcs'!N$26:N$153,MATCH($B126,'Rate peg calcs'!$B$26:$B$153,0)) -> 0.001298865963 | J126: =INDEX('Rate peg calcs'!O$26:O$153,MATCH($B126,'Rate peg calcs'!$B$26:$B$153,0)) -> 0 | K126: 0.042 | L126: =INDEX('Rate peg calcs'!I$26:I$153,MATCH($B126,'Rate peg calcs'!$B$26:$B$153,0)) -> 0.01406177962 | M126: =INDEX('Rate peg calcs'!J$26:J$153,MATCH($B126,'Rate peg calcs'!$B$26:$B$153,0)) -> 0.003910614525 | N126: =INDEX('Rate peg calcs'!K$26:K$153,MATCH($B126,'Rate peg calcs'!$B$26:$B$153,0)) -> 0.0101511651 | O126: =INDEX('Rate peg calcs'!L$26:L$153,MATCH($B126,'Rate peg calcs'!$B$26:$B$153,0)) -> 0 | P126: =INDEX('Rate peg calcs'!M$26:M$153,MATCH($B126,'Rate peg calcs'!$B$26:$B$153,0)) -> 0.01 | Q126: =INDEX('Rate peg calcs'!P$26:P$153,MATCH($B126,'Rate peg calcs'!$B$26:$B$153,0)) -> 0.052 | S126: 0.004629751705
B127: ='Rate peg calcs'!B128 -> 2097 | C127: =INDEX('Rate peg calcs'!C$26:C$153,MATCH($B127,'Rate peg calcs'!$B$26:$B$153,0)) -> Rural | D127: =INDEX('Rate peg calcs'!D$26:D$153,MATCH($B127,'Rate peg calcs'!$B$26:$B$153,0)) -> Snowy Valleys | E127: =INDEX('Rate peg calcs'!E$26:E$153,MATCH($B127,'Rate peg calcs'!$B$26:$B$153,0)) -> 0.03594422934 | F127: =INDEX('Rate peg calcs'!F$26:F$153,MATCH($B127,'Rate peg calcs'!$B$26:$B$153,0)) -> 0 | G127: =INDEX('Rate peg calcs'!G$26:G$153,MATCH($B127,'Rate peg calcs'!$B$26:$B$153,0)) -> -0.004187746111 | H127: =INDEX('Rate peg calcs'!H$26:H$153,MATCH($B127,'Rate peg calcs'!$B$26:$B$153,0)) -> 0.006538689928 | I127: =INDEX('Rate peg calcs'!N$26:N$153,MATCH($B127,'Rate peg calcs'!$B$26:$B$153,0)) -> 0.005150891903 | J127: =INDEX('Rate peg calcs'!O$26:O$153,MATCH($B127,'Rate peg calcs'!$B$26:$B$153,0)) -> 0 | K127: 0.043 | L127: =INDEX('Rate peg calcs'!I$26:I$153,MATCH($B127,'Rate peg calcs'!$B$26:$B$153,0)) -> 0 | M127: =INDEX('Rate peg calcs'!J$26:J$153,MATCH($B127,'Rate peg calcs'!$B$26:$B$153,0)) -> 0.001120134416 | N127: =INDEX('Rate peg calcs'!K$26:K$153,MATCH($B127,'Rate peg calcs'!$B$26:$B$153,0)) -> 0 | O127: =INDEX('Rate peg calcs'!L$26:L$153,MATCH($B127,'Rate peg calcs'!$B$26:$B$153,0)) -> 0 | P127: =INDEX('Rate peg calcs'!M$26:M$153,MATCH($B127,'Rate peg calcs'!$B$26:$B$153,0)) -> 0 | Q127: =INDEX('Rate peg calcs'!P$26:P$153,MATCH($B127,'Rate peg calcs'!$B$26:$B$153,0)) -> 0.043 | S127: 0.002350943816
B128: ='Rate peg calcs'!B129 -> 193 | C128: =INDEX('Rate peg calcs'!C$26:C$153,MATCH($B128,'Rate peg calcs'!$B$26:$B$153,0)) -> Metropolitan | D128: =INDEX('Rate peg calcs'!D$26:D$153,MATCH($B128,'Rate peg calcs'!$B$26:$B$153,0)) -> Strathfield | E128: =INDEX('Rate peg calcs'!E$26:E$153,MATCH($B128,'Rate peg calcs'!$B$26:$B$153,0)) -> 0.03564768825 | F128: =INDEX('Rate peg calcs'!F$26:F$153,MATCH($B128,'Rate peg calcs'!$B$26:$B$153,0)) -> 0 | G128: =INDEX('Rate peg calcs'!G$26:G$153,MATCH($B128,'Rate peg calcs'!$B$26:$B$153,0)) -> -0.005287671065 | H128: =INDEX('Rate peg calcs'!H$26:H$153,MATCH($B128,'Rate peg calcs'!$B$26:$B$153,0)) -> 0.005287671065 | I128: =INDEX('Rate peg calcs'!N$26:N$153,MATCH($B128,'Rate peg calcs'!$B$26:$B$153,0)) -> 0.002394140175 | J128: =INDEX('Rate peg calcs'!O$26:O$153,MATCH($B128,'Rate peg calcs'!$B$26:$B$153,0)) -> 0 | K128: 0.038 | L128: =INDEX('Rate peg calcs'!I$26:I$153,MATCH($B128,'Rate peg calcs'!$B$26:$B$153,0)) -> 0.03403243243 | M128: =INDEX('Rate peg calcs'!J$26:J$153,MATCH($B128,'Rate peg calcs'!$B$26:$B$153,0)) -> 0.003115108275 | N128: =INDEX('Rate peg calcs'!K$26:K$153,MATCH($B128,'Rate peg calcs'!$B$26:$B$153,0)) -> 0.03091732416 | O128: =INDEX('Rate peg calcs'!L$26:L$153,MATCH($B128,'Rate peg calcs'!$B$26:$B$153,0)) -> 0 | P128: =INDEX('Rate peg calcs'!M$26:M$153,MATCH($B128,'Rate peg calcs'!$B$26:$B$153,0)) -> 0.031 | Q128: =INDEX('Rate peg calcs'!P$26:P$153,MATCH($B128,'Rate peg calcs'!$B$26:$B$153,0)) -> 0.069 | S128: 0
B129: ='Rate peg calcs'!B130 -> 194 | C129: =INDEX('Rate peg calcs'!C$26:C$153,MATCH($B129,'Rate peg calcs'!$B$26:$B$153,0)) -> Metropolitan | D129: =INDEX('Rate peg calcs'!D$26:D$153,MATCH($B129,'Rate peg calcs'!$B$26:$B$153,0)) -> Sutherland | E129: =INDEX('Rate peg calcs'!E$26:E$153,MATCH($B129,'Rate peg calcs'!$B$26:$B$153,0)) -> 0.03564768825 | F129: =INDEX('Rate peg calcs'!F$26:F$153,MATCH($B129,'Rate peg calcs'!$B$26:$B$153,0)) -> 0 | G129: =INDEX('Rate peg calcs'!G$26:G$153,MATCH($B129,'Rate peg calcs'!$B$26:$B$153,0)) -> -0.003925817907 | H129: =INDEX('Rate peg calcs'!H$26:H$153,MATCH($B129,'Rate peg calcs'!$B$26:$B$153,0)) -> 0.003925817907 | I129: =INDEX('Rate peg calcs'!N$26:N$153,MATCH($B129,'Rate peg calcs'!$B$26:$B$153,0)) -> 0.001346543469 | J129: =INDEX('Rate peg calcs'!O$26:O$153,MATCH($B129,'Rate peg calcs'!$B$26:$B$153,0)) -> 0 | K129: 0.037 | L129: =INDEX('Rate peg calcs'!I$26:I$153,MATCH($B129,'Rate peg calcs'!$B$26:$B$153,0)) -> 0.0137333132 | M129: =INDEX('Rate peg calcs'!J$26:J$153,MATCH($B129,'Rate peg calcs'!$B$26:$B$153,0)) -> 0.001071520515 | N129: =INDEX('Rate peg calcs'!K$26:K$153,MATCH($B129,'Rate peg calcs'!$B$26:$B$153,0)) -> 0.01266179269 | O129: =INDEX('Rate peg calcs'!L$26:L$153,MATCH($B129,'Rate peg calcs'!$B$26:$B$153,0)) -> 0 | P129: =INDEX('Rate peg calcs'!M$26:M$153,MATCH($B129,'Rate peg calcs'!$B$26:$B$153,0)) -> 0.013 | Q129: =INDEX('Rate peg calcs'!P$26:P$153,MATCH($B129,'Rate peg calcs'!$B$26:$B$153,0)) -> 0.05 | S129: 0
B130: ='Rate peg calcs'!B131 -> 2029 | C130: =INDEX('Rate peg calcs'!C$26:C$153,MATCH($B130,'Rate peg calcs'!$B$26:$B$153,0)) -> Metropolitan | D130: =INDEX('Rate peg calcs'!D$26:D$153,MATCH($B130,'Rate peg calcs'!$B$26:$B$153,0)) -> Sydney | E130: =INDEX('Rate peg calcs'!E$26:E$153,MATCH($B130,'Rate peg calcs'!$B$26:$B$153,0)) -> 0.03564768825 | F130: =INDEX('Rate peg calcs'!F$26:F$153,MATCH($B130,'Rate peg calcs'!$B$26:$B$153,0)) -> 0 | G130: =INDEX('Rate peg calcs'!G$26:G$153,MATCH($B130,'Rate peg calcs'!$B$26:$B$153,0)) -> -0.002466929656 | H130: =INDEX('Rate peg calcs'!H$26:H$153,MATCH($B130,'Rate peg calcs'!$B$26:$B$153,0)) -> 0.002466929656 | I130: =INDEX('Rate peg calcs'!N$26:N$153,MATCH($B130,'Rate peg calcs'!$B$26:$B$153,0)) -> 0.001164351162 | J130: =INDEX('Rate peg calcs'!O$26:O$153,MATCH($B130,'Rate peg calcs'!$B$26:$B$153,0)) -> 0 | K130: 0.037 | L130: =INDEX('Rate peg calcs'!I$26:I$153,MATCH($B130,'Rate peg calcs'!$B$26:$B$153,0)) -> 0.05874240578 | M130: =INDEX('Rate peg calcs'!J$26:J$153,MATCH($B130,'Rate peg calcs'!$B$26:$B$153,0)) -> 0.003727674538 | N130: =INDEX('Rate peg calcs'!K$26:K$153,MATCH($B130,'Rate peg calcs'!$B$26:$B$153,0)) -> 0.05501473124 | O130: =INDEX('Rate peg calcs'!L$26:L$153,MATCH($B130,'Rate peg calcs'!$B$26:$B$153,0)) -> -0.05125642292 | P130: =INDEX('Rate peg calcs'!M$26:M$153,MATCH($B130,'Rate peg calcs'!$B$26:$B$153,0)) -> 0.004 | Q130: =INDEX('Rate peg calcs'!P$26:P$153,MATCH($B130,'Rate peg calcs'!$B$26:$B$153,0)) -> 0.041 | S130: 0
B131: ='Rate peg calcs'!B132 -> 2038 | C131: =INDEX('Rate peg calcs'!C$26:C$153,MATCH($B131,'Rate peg calcs'!$B$26:$B$153,0)) -> Regional | D131: =INDEX('Rate peg calcs'!D$26:D$153,MATCH($B131,'Rate peg calcs'!$B$26:$B$153,0)) -> Tamworth Regional | E131: =INDEX('Rate peg calcs'!E$26:E$153,MATCH($B131,'Rate peg calcs'!$B$26:$B$153,0)) -> 0.03584587895 | F131: =INDEX('Rate peg calcs'!F$26:F$153,MATCH($B131,'Rate peg calcs'!$B$26:$B$153,0)) -> 0 | G131: =INDEX('Rate peg calcs'!G$26:G$153,MATCH($B131,'Rate peg calcs'!$B$26:$B$153,0)) -> -0.002809761769 | H131: =INDEX('Rate peg calcs'!H$26:H$153,MATCH($B131,'Rate peg calcs'!$B$26:$B$153,0)) -> 0.004221919568 | I131: =INDEX('Rate peg calcs'!N$26:N$153,MATCH($B131,'Rate peg calcs'!$B$26:$B$153,0)) -> 0.0002491942144 | J131: =INDEX('Rate peg calcs'!O$26:O$153,MATCH($B131,'Rate peg calcs'!$B$26:$B$153,0)) -> 0 | K131: 0.038 | L131: =INDEX('Rate peg calcs'!I$26:I$153,MATCH($B131,'Rate peg calcs'!$B$26:$B$153,0)) -> 0.01119848619 | M131: =INDEX('Rate peg calcs'!J$26:J$153,MATCH($B131,'Rate peg calcs'!$B$26:$B$153,0)) -> 0.01256657585 | N131: =INDEX('Rate peg calcs'!K$26:K$153,MATCH($B131,'Rate peg calcs'!$B$26:$B$153,0)) -> 0 | O131: =INDEX('Rate peg calcs'!L$26:L$153,MATCH($B131,'Rate peg calcs'!$B$26:$B$153,0)) -> 0 | P131: =INDEX('Rate peg calcs'!M$26:M$153,MATCH($B131,'Rate peg calcs'!$B$26:$B$153,0)) -> 0 | Q131: =INDEX('Rate peg calcs'!P$26:P$153,MATCH($B131,'Rate peg calcs'!$B$26:$B$153,0)) -> 0.038 | S131: 0.001412157799
B132: ='Rate peg calcs'!B133 -> 198 | C132: =INDEX('Rate peg calcs'!C$26:C$153,MATCH($B132,'Rate peg calcs'!$B$26:$B$153,0)) -> Rural | D132: =INDEX('Rate peg calcs'!D$26:D$153,MATCH($B132,'Rate peg calcs'!$B$26:$B$153,0)) -> Temora | E132: =INDEX('Rate peg calcs'!E$26:E$153,MATCH($B132,'Rate peg calcs'!$B$26:$B$153,0)) -> 0.03594422934 | F132: =INDEX('Rate peg calcs'!F$26:F$153,MATCH($B132,'Rate peg calcs'!$B$26:$B$153,0)) -> 0 | G132: =INDEX('Rate peg calcs'!G$26:G$153,MATCH($B132,'Rate peg calcs'!$B$26:$B$153,0)) -> -0.007815506645 | H132: =INDEX('Rate peg calcs'!H$26:H$153,MATCH($B132,'Rate peg calcs'!$B$26:$B$153,0)) -> 0.01269090969 | I132: =INDEX('Rate peg calcs'!N$26:N$153,MATCH($B132,'Rate peg calcs'!$B$26:$B$153,0)) -> 0.008372632973 | J132: =INDEX('Rate peg calcs'!O$26:O$153,MATCH($B132,'Rate peg calcs'!$B$26:$B$153,0)) -> 0 | K132: 0.049 | L132: =INDEX('Rate peg calcs'!I$26:I$153,MATCH($B132,'Rate peg calcs'!$B$26:$B$153,0)) -> 0.005671392827 | M132: =INDEX('Rate peg calcs'!J$26:J$153,MATCH($B132,'Rate peg calcs'!$B$26:$B$153,0)) -> 0.004845408399 | N132: =INDEX('Rate peg calcs'!K$26:K$153,MATCH($B132,'Rate peg calcs'!$B$26:$B$153,0)) -> 0.0008259844286 | O132: =INDEX('Rate peg calcs'!L$26:L$153,MATCH($B132,'Rate peg calcs'!$B$26:$B$153,0)) -> 0 | P132: =INDEX('Rate peg calcs'!M$26:M$153,MATCH($B132,'Rate peg calcs'!$B$26:$B$153,0)) -> 0.001 | Q132: =INDEX('Rate peg calcs'!P$26:P$153,MATCH($B132,'Rate peg calcs'!$B$26:$B$153,0)) -> 0.05 | S132: 0.004875403043
B133: ='Rate peg calcs'!B134 -> 199 | C133: =INDEX('Rate peg calcs'!C$26:C$153,MATCH($B133,'Rate peg calcs'!$B$26:$B$153,0)) -> Rural | D133: =INDEX('Rate peg calcs'!D$26:D$153,MATCH($B133,'Rate peg calcs'!$B$26:$B$153,0)) -> Tenterfield | E133: =INDEX('Rate peg calcs'!E$26:E$153,MATCH($B133,'Rate peg calcs'!$B$26:$B$153,0)) -> 0.03594422934 | F133: =INDEX('Rate peg calcs'!F$26:F$153,MATCH($B133,'Rate peg calcs'!$B$26:$B$153,0)) -> 0 | G133: =INDEX('Rate peg calcs'!G$26:G$153,MATCH($B133,'Rate peg calcs'!$B$26:$B$153,0)) -> -0.005299170754 | H133: =INDEX('Rate peg calcs'!H$26:H$153,MATCH($B133,'Rate peg calcs'!$B$26:$B$153,0)) -> 0.006682827676 | I133: =INDEX('Rate peg calcs'!N$26:N$153,MATCH($B133,'Rate peg calcs'!$B$26:$B$153,0)) -> 0.0007084822248 | J133: =INDEX('Rate peg calcs'!O$26:O$153,MATCH($B133,'Rate peg calcs'!$B$26:$B$153,0)) -> 0 | K133: 0.038 | L133: =INDEX('Rate peg calcs'!I$26:I$153,MATCH($B133,'Rate peg calcs'!$B$26:$B$153,0)) -> 0.0138121547 | M133: =INDEX('Rate peg calcs'!J$26:J$153,MATCH($B133,'Rate peg calcs'!$B$26:$B$153,0)) -> 0 | N133: =INDEX('Rate peg calcs'!K$26:K$153,MATCH($B133,'Rate peg calcs'!$B$26:$B$153,0)) -> 0.0138121547 | O133: =INDEX('Rate peg calcs'!L$26:L$153,MATCH($B133,'Rate peg calcs'!$B$26:$B$153,0)) -> 0 | P133: =INDEX('Rate peg calcs'!M$26:M$153,MATCH($B133,'Rate peg calcs'!$B$26:$B$153,0)) -> 0.014 | Q133: =INDEX('Rate peg calcs'!P$26:P$153,MATCH($B133,'Rate peg calcs'!$B$26:$B$153,0)) -> 0.052 | S133: 0.001383656922
B134: ='Rate peg calcs'!B135 -> 59 | C134: =INDEX('Rate peg calcs'!C$26:C$153,MATCH($B134,'Rate peg calcs'!$B$26:$B$153,0)) -> Metropolitan | D134: =INDEX('Rate peg calcs'!D$26:D$153,MATCH($B134,'Rate peg calcs'!$B$26:$B$153,0)) -> The Hills | E134: =INDEX('Rate peg calcs'!E$26:E$153,MATCH($B134,'Rate peg calcs'!$B$26:$B$153,0)) -> 0.03564768825 | F134: =INDEX('Rate peg calcs'!F$26:F$153,MATCH($B134,'Rate peg calcs'!$B$26:$B$153,0)) -> 0 | G134: =INDEX('Rate peg calcs'!G$26:G$153,MATCH($B134,'Rate peg calcs'!$B$26:$B$153,0)) -> -0.005093150149 | H134: =INDEX('Rate peg calcs'!H$26:H$153,MATCH($B134,'Rate peg calcs'!$B$26:$B$153,0)) -> 0.005093150149 | I134: =INDEX('Rate peg calcs'!N$26:N$153,MATCH($B134,'Rate peg calcs'!$B$26:$B$153,0)) -> 0.001727850136 | J134: =INDEX('Rate peg calcs'!O$26:O$153,MATCH($B134,'Rate peg calcs'!$B$26:$B$153,0)) -> 0 | K134: 0.037 | L134: =INDEX('Rate peg calcs'!I$26:I$153,MATCH($B134,'Rate peg calcs'!$B$26:$B$153,0)) -> 0.04360939233 | M134: =INDEX('Rate peg calcs'!J$26:J$153,MATCH($B134,'Rate peg calcs'!$B$26:$B$153,0)) -> 0.01824436174 | N134: =INDEX('Rate peg calcs'!K$26:K$153,MATCH($B134,'Rate peg calcs'!$B$26:$B$153,0)) -> 0.02536503059 | O134: =INDEX('Rate peg calcs'!L$26:L$153,MATCH($B134,'Rate peg calcs'!$B$26:$B$153,0)) -> 0 | P134: =INDEX('Rate peg calcs'!M$26:M$153,MATCH($B134,'Rate peg calcs'!$B$26:$B$153,0)) -> 0.025 | Q134: =INDEX('Rate peg calcs'!P$26:P$153,MATCH($B134,'Rate peg calcs'!$B$26:$B$153,0)) -> 0.062 | S134: 0
B135: ='Rate peg calcs'!B136 -> 202 | C135: =INDEX('Rate peg calcs'!C$26:C$153,MATCH($B135,'Rate peg calcs'!$B$26:$B$153,0)) -> Regional | D135: =INDEX('Rate peg calcs'!D$26:D$153,MATCH($B135,'Rate peg calcs'!$B$26:$B$153,0)) -> Tweed | E135: =INDEX('Rate peg calcs'!E$26:E$153,MATCH($B135,'Rate peg calcs'!$B$26:$B$153,0)) -> 0.03584587895 | F135: =INDEX('Rate peg calcs'!F$26:F$153,MATCH($B135,'Rate peg calcs'!$B$26:$B$153,0)) -> 0 | G135: =INDEX('Rate peg calcs'!G$26:G$153,MATCH($B135,'Rate peg calcs'!$B$26:$B$153,0)) -> -0.002316633045 | H135: =INDEX('Rate peg calcs'!H$26:H$153,MATCH($B135,'Rate peg calcs'!$B$26:$B$153,0)) -> 0.002316633045 | I135: =INDEX('Rate peg calcs'!N$26:N$153,MATCH($B135,'Rate peg calcs'!$B$26:$B$153,0)) -> 0.001760883006 | J135: =INDEX('Rate peg calcs'!O$26:O$153,MATCH($B135,'Rate peg calcs'!$B$26:$B$153,0)) -> 0 | K135: 0.038 | L135: =INDEX('Rate peg calcs'!I$26:I$153,MATCH($B135,'Rate peg calcs'!$B$26:$B$153,0)) -> 0.01021783068 | M135: =INDEX('Rate peg calcs'!J$26:J$153,MATCH($B135,'Rate peg calcs'!$B$26:$B$153,0)) -> 0.004004233046 | N135: =INDEX('Rate peg calcs'!K$26:K$153,MATCH($B135,'Rate peg calcs'!$B$26:$B$153,0)) -> 0.00621359763 | O135: =INDEX('Rate peg calcs'!L$26:L$153,MATCH($B135,'Rate peg calcs'!$B$26:$B$153,0)) -> 0 | P135: =INDEX('Rate peg calcs'!M$26:M$153,MATCH($B135,'Rate peg calcs'!$B$26:$B$153,0)) -> 0.006 | Q135: =INDEX('Rate peg calcs'!P$26:P$153,MATCH($B135,'Rate peg calcs'!$B$26:$B$153,0)) -> 0.044 | S135: 0
B136: ='Rate peg calcs'!B137 -> 2046 | C136: =INDEX('Rate peg calcs'!C$26:C$153,MATCH($B136,'Rate peg calcs'!$B$26:$B$153,0)) -> Rural | D136: =INDEX('Rate peg calcs'!D$26:D$153,MATCH($B136,'Rate peg calcs'!$B$26:$B$153,0)) -> Upper Hunter | E136: =INDEX('Rate peg calcs'!E$26:E$153,MATCH($B136,'Rate peg calcs'!$B$26:$B$153,0)) -> 0.03594422934 | F136: =INDEX('Rate peg calcs'!F$26:F$153,MATCH($B136,'Rate peg calcs'!$B$26:$B$153,0)) -> 0 | G136: =INDEX('Rate peg calcs'!G$26:G$153,MATCH($B136,'Rate peg calcs'!$B$26:$B$153,0)) -> -0.004878460396 | H136: =INDEX('Rate peg calcs'!H$26:H$153,MATCH($B136,'Rate peg calcs'!$B$26:$B$153,0)) -> 0.008234934242 | I136: =INDEX('Rate peg calcs'!N$26:N$153,MATCH($B136,'Rate peg calcs'!$B$26:$B$153,0)) -> 0.002626593042 | J136: =INDEX('Rate peg calcs'!O$26:O$153,MATCH($B136,'Rate peg calcs'!$B$26:$B$153,0)) -> 0 | K136: 0.042 | L136: =INDEX('Rate peg calcs'!I$26:I$153,MATCH($B136,'Rate peg calcs'!$B$26:$B$153,0)) -> 0.00328878315 | M136: =INDEX('Rate peg calcs'!J$26:J$153,MATCH($B136,'Rate peg calcs'!$B$26:$B$153,0)) -> 0.002689301622 | N136: =INDEX('Rate peg calcs'!K$26:K$153,MATCH($B136,'Rate peg calcs'!$B$26:$B$153,0)) -> 0.0005994815282 | O136: =INDEX('Rate peg calcs'!L$26:L$153,MATCH($B136,'Rate peg calcs'!$B$26:$B$153,0)) -> 0 | P136: =INDEX('Rate peg calcs'!M$26:M$153,MATCH($B136,'Rate peg calcs'!$B$26:$B$153,0)) -> 0.001 | Q136: =INDEX('Rate peg calcs'!P$26:P$153,MATCH($B136,'Rate peg calcs'!$B$26:$B$153,0)) -> 0.043 | S136: 0.003356473845
B137: ='Rate peg calcs'!B138 -> 2035 | C137: =INDEX('Rate peg calcs'!C$26:C$153,MATCH($B137,'Rate peg calcs'!$B$26:$B$153,0)) -> Rural | D137: =INDEX('Rate peg calcs'!D$26:D$153,MATCH($B137,'Rate peg calcs'!$B$26:$B$153,0)) -> Upper Lachlan | E137: =INDEX('Rate peg calcs'!E$26:E$153,MATCH($B137,'Rate peg calcs'!$B$26:$B$153,0)) -> 0.03594422934 | F137: =INDEX('Rate peg calcs'!F$26:F$153,MATCH($B137,'Rate peg calcs'!$B$26:$B$153,0)) -> 0 | G137: =INDEX('Rate peg calcs'!G$26:G$153,MATCH($B137,'Rate peg calcs'!$B$26:$B$153,0)) -> -0.006258113072 | H137: =INDEX('Rate peg calcs'!H$26:H$153,MATCH($B137,'Rate peg calcs'!$B$26:$B$153,0)) -> 0.009273933767 | I137: =INDEX('Rate peg calcs'!N$26:N$153,MATCH($B137,'Rate peg calcs'!$B$26:$B$153,0)) -> 0.00203281882 | J137: =INDEX('Rate peg calcs'!O$26:O$153,MATCH($B137,'Rate peg calcs'!$B$26:$B$153,0)) -> 0 | K137: 0.041 | L137: =INDEX('Rate peg calcs'!I$26:I$153,MATCH($B137,'Rate peg calcs'!$B$26:$B$153,0)) -> 0.01824561404 | M137: =INDEX('Rate peg calcs'!J$26:J$153,MATCH($B137,'Rate peg calcs'!$B$26:$B$153,0)) -> 0.009271523179 | N137: =INDEX('Rate peg calcs'!K$26:K$153,MATCH($B137,'Rate peg calcs'!$B$26:$B$153,0)) -> 0.008974090856 | O137: =INDEX('Rate peg calcs'!L$26:L$153,MATCH($B137,'Rate peg calcs'!$B$26:$B$153,0)) -> 0 | P137: =INDEX('Rate peg calcs'!M$26:M$153,MATCH($B137,'Rate peg calcs'!$B$26:$B$153,0)) -> 0.009 | Q137: =INDEX('Rate peg calcs'!P$26:P$153,MATCH($B137,'Rate peg calcs'!$B$26:$B$153,0)) -> 0.05 | S137: 0.003015820695
B138: ='Rate peg calcs'!B139 -> 204 | C138: =INDEX('Rate peg calcs'!C$26:C$153,MATCH($B138,'Rate peg calcs'!$B$26:$B$153,0)) -> Rural | D138: =INDEX('Rate peg calcs'!D$26:D$153,MATCH($B138,'Rate peg calcs'!$B$26:$B$153,0)) -> Uralla | E138: =INDEX('Rate peg calcs'!E$26:E$153,MATCH($B138,'Rate peg calcs'!$B$26:$B$153,0)) -> 0.03594422934 | F138: =INDEX('Rate peg calcs'!F$26:F$153,MATCH($B138,'Rate peg calcs'!$B$26:$B$153,0)) -> 0 | G138: =INDEX('Rate peg calcs'!G$26:G$153,MATCH($B138,'Rate peg calcs'!$B$26:$B$153,0)) -> -0.004345492495 | H138: =INDEX('Rate peg calcs'!H$26:H$153,MATCH($B138,'Rate peg calcs'!$B$26:$B$153,0)) -> 0.006052183716 | I138: =INDEX('Rate peg calcs'!N$26:N$153,MATCH($B138,'Rate peg calcs'!$B$26:$B$153,0)) -> 0.004814680797 | J138: =INDEX('Rate peg calcs'!O$26:O$153,MATCH($B138,'Rate peg calcs'!$B$26:$B$153,0)) -> 0 | K138: 0.042 | L138: =INDEX('Rate peg calcs'!I$26:I$153,MATCH($B138,'Rate peg calcs'!$B$26:$B$153,0)) -> 0.01052807487 | M138: =INDEX('Rate peg calcs'!J$26:J$153,MATCH($B138,'Rate peg calcs'!$B$26:$B$153,0)) -> 0.00354945575 | N138: =INDEX('Rate peg calcs'!K$26:K$153,MATCH($B138,'Rate peg calcs'!$B$26:$B$153,0)) -> 0.006978619116 | O138: =INDEX('Rate peg calcs'!L$26:L$153,MATCH($B138,'Rate peg calcs'!$B$26:$B$153,0)) -> 0 | P138: =INDEX('Rate peg calcs'!M$26:M$153,MATCH($B138,'Rate peg calcs'!$B$26:$B$153,0)) -> 0.007 | Q138: =INDEX('Rate peg calcs'!P$26:P$153,MATCH($B138,'Rate peg calcs'!$B$26:$B$153,0)) -> 0.049 | S138: 0.001706691221
B139: ='Rate peg calcs'!B140 -> 206 | C139: =INDEX('Rate peg calcs'!C$26:C$153,MATCH($B139,'Rate peg calcs'!$B$26:$B$153,0)) -> Regional | D139: =INDEX('Rate peg calcs'!D$26:D$153,MATCH($B139,'Rate peg calcs'!$B$26:$B$153,0)) -> Wagga Wagga | E139: =INDEX('Rate peg calcs'!E$26:E$153,MATCH($B139,'Rate peg calcs'!$B$26:$B$153,0)) -> 0.03584587895 | F139: =INDEX('Rate peg calcs'!F$26:F$153,MATCH($B139,'Rate peg calcs'!$B$26:$B$153,0)) -> 0 | G139: =INDEX('Rate peg calcs'!G$26:G$153,MATCH($B139,'Rate peg calcs'!$B$26:$B$153,0)) -> -0.00258626686 | H139: =INDEX('Rate peg calcs'!H$26:H$153,MATCH($B139,'Rate peg calcs'!$B$26:$B$153,0)) -> 0.003563848213 | I139: =INDEX('Rate peg calcs'!N$26:N$153,MATCH($B139,'Rate peg calcs'!$B$26:$B$153,0)) -> 0.00124729832 | J139: =INDEX('Rate peg calcs'!O$26:O$153,MATCH($B139,'Rate peg calcs'!$B$26:$B$153,0)) -> 0 | K139: 0.038 | L139: =INDEX('Rate peg calcs'!I$26:I$153,MATCH($B139,'Rate peg calcs'!$B$26:$B$153,0)) -> 0.005575473769 | M139: =INDEX('Rate peg calcs'!J$26:J$153,MATCH($B139,'Rate peg calcs'!$B$26:$B$153,0)) -> 0.007081648474 | N139: =INDEX('Rate peg calcs'!K$26:K$153,MATCH($B139,'Rate peg calcs'!$B$26:$B$153,0)) -> 0 | O139: =INDEX('Rate peg calcs'!L$26:L$153,MATCH($B139,'Rate peg calcs'!$B$26:$B$153,0)) -> 0 | P139: =INDEX('Rate peg calcs'!M$26:M$153,MATCH($B139,'Rate peg calcs'!$B$26:$B$153,0)) -> 0 | Q139: =INDEX('Rate peg calcs'!P$26:P$153,MATCH($B139,'Rate peg calcs'!$B$26:$B$153,0)) -> 0.038 | S139: 0.0009775813528
B140: ='Rate peg calcs'!B141 -> 208 | C140: =INDEX('Rate peg calcs'!C$26:C$153,MATCH($B140,'Rate peg calcs'!$B$26:$B$153,0)) -> Rural | D140: =INDEX('Rate peg calcs'!D$26:D$153,MATCH($B140,'Rate peg calcs'!$B$26:$B$153,0)) -> Walcha | E140: =INDEX('Rate peg calcs'!E$26:E$153,MATCH($B140,'Rate peg calcs'!$B$26:$B$153,0)) -> 0.03594422934 | F140: =INDEX('Rate peg calcs'!F$26:F$153,MATCH($B140,'Rate peg calcs'!$B$26:$B$153,0)) -> 0 | G140: =INDEX('Rate peg calcs'!G$26:G$153,MATCH($B140,'Rate peg calcs'!$B$26:$B$153,0)) -> -0.00241875418 | H140: =INDEX('Rate peg calcs'!H$26:H$153,MATCH($B140,'Rate peg calcs'!$B$26:$B$153,0)) -> 0.00464373544 | I140: =INDEX('Rate peg calcs'!N$26:N$153,MATCH($B140,'Rate peg calcs'!$B$26:$B$153,0)) -> 0.0008312901968 | J140: =INDEX('Rate peg calcs'!O$26:O$153,MATCH($B140,'Rate peg calcs'!$B$26:$B$153,0)) -> 0 | K140: 0.039 | L140: =INDEX('Rate peg calcs'!I$26:I$153,MATCH($B140,'Rate peg calcs'!$B$26:$B$153,0)) -> 0 | M140: =INDEX('Rate peg calcs'!J$26:J$153,MATCH($B140,'Rate peg calcs'!$B$26:$B$153,0)) -> 0.01703764771 | N140: =INDEX('Rate peg calcs'!K$26:K$153,MATCH($B140,'Rate peg calcs'!$B$26:$B$153,0)) -> 0 | O140: =INDEX('Rate peg calcs'!L$26:L$153,MATCH($B140,'Rate peg calcs'!$B$26:$B$153,0)) -> 0 | P140: =INDEX('Rate peg calcs'!M$26:M$153,MATCH($B140,'Rate peg calcs'!$B$26:$B$153,0)) -> 0 | Q140: =INDEX('Rate peg calcs'!P$26:P$153,MATCH($B140,'Rate peg calcs'!$B$26:$B$153,0)) -> 0.039 | S140: 0.00222498126
B141: ='Rate peg calcs'!B142 -> 209 | C141: =INDEX('Rate peg calcs'!C$26:C$153,MATCH($B141,'Rate peg calcs'!$B$26:$B$153,0)) -> Rural | D141: =INDEX('Rate peg calcs'!D$26:D$153,MATCH($B141,'Rate peg calcs'!$B$26:$B$153,0)) -> Walgett | E141: =INDEX('Rate peg calcs'!E$26:E$153,MATCH($B141,'Rate peg calcs'!$B$26:$B$153,0)) -> 0.03594422934 | F141: =INDEX('Rate peg calcs'!F$26:F$153,MATCH($B141,'Rate peg calcs'!$B$26:$B$153,0)) -> 0 | G141: =INDEX('Rate peg calcs'!G$26:G$153,MATCH($B141,'Rate peg calcs'!$B$26:$B$153,0)) -> -0.004628171837 | H141: =INDEX('Rate peg calcs'!H$26:H$153,MATCH($B141,'Rate peg calcs'!$B$26:$B$153,0)) -> 0.007437879072 | I141: =INDEX('Rate peg calcs'!N$26:N$153,MATCH($B141,'Rate peg calcs'!$B$26:$B$153,0)) -> 0.003716186819 | J141: =INDEX('Rate peg calcs'!O$26:O$153,MATCH($B141,'Rate peg calcs'!$B$26:$B$153,0)) -> 0 | K141: 0.042 | L141: =INDEX('Rate peg calcs'!I$26:I$153,MATCH($B141,'Rate peg calcs'!$B$26:$B$153,0)) -> 0.000725294651 | M141: =INDEX('Rate peg calcs'!J$26:J$153,MATCH($B141,'Rate peg calcs'!$B$26:$B$153,0)) -> 0.003814894676 | N141: =INDEX('Rate peg calcs'!K$26:K$153,MATCH($B141,'Rate peg calcs'!$B$26:$B$153,0)) -> 0 | O141: =INDEX('Rate peg calcs'!L$26:L$153,MATCH($B141,'Rate peg calcs'!$B$26:$B$153,0)) -> 0 | P141: =INDEX('Rate peg calcs'!M$26:M$153,MATCH($B141,'Rate peg calcs'!$B$26:$B$153,0)) -> 0 | Q141: =INDEX('Rate peg calcs'!P$26:P$153,MATCH($B141,'Rate peg calcs'!$B$26:$B$153,0)) -> 0.042 | S141: 0.002809707236
B142: ='Rate peg calcs'!B143 -> 210 | C142: =INDEX('Rate peg calcs'!C$26:C$153,MATCH($B142,'Rate peg calcs'!$B$26:$B$153,0)) -> Rural | D142: =INDEX('Rate peg calcs'!D$26:D$153,MATCH($B142,'Rate peg calcs'!$B$26:$B$153,0)) -> Warren | E142: =INDEX('Rate peg calcs'!E$26:E$153,MATCH($B142,'Rate peg calcs'!$B$26:$B$153,0)) -> 0.03594422934 | F142: =INDEX('Rate peg calcs'!F$26:F$153,MATCH($B142,'Rate peg calcs'!$B$26:$B$153,0)) -> 0 | G142: =INDEX('Rate peg calcs'!G$26:G$153,MATCH($B142,'Rate peg calcs'!$B$26:$B$153,0)) -> -0.002612715987 | H142: =INDEX('Rate peg calcs'!H$26:H$153,MATCH($B142,'Rate peg calcs'!$B$26:$B$153,0)) -> 0.003292661358 | I142: =INDEX('Rate peg calcs'!N$26:N$153,MATCH($B142,'Rate peg calcs'!$B$26:$B$153,0)) -> 0.002186057731 | J142: =INDEX('Rate peg calcs'!O$26:O$153,MATCH($B142,'Rate peg calcs'!$B$26:$B$153,0)) -> 0 | K142: 0.039 | L142: =INDEX('Rate peg calcs'!I$26:I$153,MATCH($B142,'Rate peg calcs'!$B$26:$B$153,0)) -> 0.001939487975 | M142: =INDEX('Rate peg calcs'!J$26:J$153,MATCH($B142,'Rate peg calcs'!$B$26:$B$153,0)) -> 0 | N142: =INDEX('Rate peg calcs'!K$26:K$153,MATCH($B142,'Rate peg calcs'!$B$26:$B$153,0)) -> 0.001939487975 | O142: =INDEX('Rate peg calcs'!L$26:L$153,MATCH($B142,'Rate peg calcs'!$B$26:$B$153,0)) -> 0 | P142: =INDEX('Rate peg calcs'!M$26:M$153,MATCH($B142,'Rate peg calcs'!$B$26:$B$153,0)) -> 0.002 | Q142: =INDEX('Rate peg calcs'!P$26:P$153,MATCH($B142,'Rate peg calcs'!$B$26:$B$153,0)) -> 0.041 | S142: 0.0006799453705
B143: ='Rate peg calcs'!B144 -> 2050 | C143: =INDEX('Rate peg calcs'!C$26:C$153,MATCH($B143,'Rate peg calcs'!$B$26:$B$153,0)) -> Rural | D143: =INDEX('Rate peg calcs'!D$26:D$153,MATCH($B143,'Rate peg calcs'!$B$26:$B$153,0)) -> Warrumbungle | E143: =INDEX('Rate peg calcs'!E$26:E$153,MATCH($B143,'Rate peg calcs'!$B$26:$B$153,0)) -> 0.03594422934 | F143: =INDEX('Rate peg calcs'!F$26:F$153,MATCH($B143,'Rate peg calcs'!$B$26:$B$153,0)) -> 0 | G143: =INDEX('Rate peg calcs'!G$26:G$153,MATCH($B143,'Rate peg calcs'!$B$26:$B$153,0)) -> -0.005104601039 | H143: =INDEX('Rate peg calcs'!H$26:H$153,MATCH($B143,'Rate peg calcs'!$B$26:$B$153,0)) -> 0.009208869437 | I143: =INDEX('Rate peg calcs'!N$26:N$153,MATCH($B143,'Rate peg calcs'!$B$26:$B$153,0)) -> 0 | J143: =INDEX('Rate peg calcs'!O$26:O$153,MATCH($B143,'Rate peg calcs'!$B$26:$B$153,0)) -> 0 | K143: 0.04 | L143: =INDEX('Rate peg calcs'!I$26:I$153,MATCH($B143,'Rate peg calcs'!$B$26:$B$153,0)) -> 0 | M143: =INDEX('Rate peg calcs'!J$26:J$153,MATCH($B143,'Rate peg calcs'!$B$26:$B$153,0)) -> 0.0003433279927 | N143: =INDEX('Rate peg calcs'!K$26:K$153,MATCH($B143,'Rate peg calcs'!$B$26:$B$153,0)) -> 0 | O143: =INDEX('Rate peg calcs'!L$26:L$153,MATCH($B143,'Rate peg calcs'!$B$26:$B$153,0)) -> 0 | P143: =INDEX('Rate peg calcs'!M$26:M$153,MATCH($B143,'Rate peg calcs'!$B$26:$B$153,0)) -> 0 | Q143: =INDEX('Rate peg calcs'!P$26:P$153,MATCH($B143,'Rate peg calcs'!$B$26:$B$153,0)) -> 0.04 | S143: 0.004104268399
B144: ='Rate peg calcs'!B145 -> 212 | C144: =INDEX('Rate peg calcs'!C$26:C$153,MATCH($B144,'Rate peg calcs'!$B$26:$B$153,0)) -> Metropolitan | D144: =INDEX('Rate peg calcs'!D$26:D$153,MATCH($B144,'Rate peg calcs'!$B$26:$B$153,0)) -> Waverley | E144: =INDEX('Rate peg calcs'!E$26:E$153,MATCH($B144,'Rate peg calcs'!$B$26:$B$153,0)) -> 0.03564768825 | F144: =INDEX('Rate peg calcs'!F$26:F$153,MATCH($B144,'Rate peg calcs'!$B$26:$B$153,0)) -> 0 | G144: =INDEX('Rate peg calcs'!G$26:G$153,MATCH($B144,'Rate peg calcs'!$B$26:$B$153,0)) -> -0.002895898569 | H144: =INDEX('Rate peg calcs'!H$26:H$153,MATCH($B144,'Rate peg calcs'!$B$26:$B$153,0)) -> 0.002895898569 | I144: =INDEX('Rate peg calcs'!N$26:N$153,MATCH($B144,'Rate peg calcs'!$B$26:$B$153,0)) -> 0.0019044617 | J144: =INDEX('Rate peg calcs'!O$26:O$153,MATCH($B144,'Rate peg calcs'!$B$26:$B$153,0)) -> 0 | K144: 0.038 | L144: =INDEX('Rate peg calcs'!I$26:I$153,MATCH($B144,'Rate peg calcs'!$B$26:$B$153,0)) -> 0.02965814554 | M144: =INDEX('Rate peg calcs'!J$26:J$153,MATCH($B144,'Rate peg calcs'!$B$26:$B$153,0)) -> 0 | N144: =INDEX('Rate peg calcs'!K$26:K$153,MATCH($B144,'Rate peg calcs'!$B$26:$B$153,0)) -> 0.02965814554 | O144: =INDEX('Rate peg calcs'!L$26:L$153,MATCH($B144,'Rate peg calcs'!$B$26:$B$153,0)) -> -0.02965814554 | P144: =INDEX('Rate peg calcs'!M$26:M$153,MATCH($B144,'Rate peg calcs'!$B$26:$B$153,0)) -> 0 | Q144: =INDEX('Rate peg calcs'!P$26:P$153,MATCH($B144,'Rate peg calcs'!$B$26:$B$153,0)) -> 0.038 | S144: 0
B145: ='Rate peg calcs'!B146 -> 213 | C145: =INDEX('Rate peg calcs'!C$26:C$153,MATCH($B145,'Rate peg calcs'!$B$26:$B$153,0)) -> Rural | D145: =INDEX('Rate peg calcs'!D$26:D$153,MATCH($B145,'Rate peg calcs'!$B$26:$B$153,0)) -> Weddin | E145: =INDEX('Rate peg calcs'!E$26:E$153,MATCH($B145,'Rate peg calcs'!$B$26:$B$153,0)) -> 0.03594422934 | F145: =INDEX('Rate peg calcs'!F$26:F$153,MATCH($B145,'Rate peg calcs'!$B$26:$B$153,0)) -> 0 | G145: =INDEX('Rate peg calcs'!G$26:G$153,MATCH($B145,'Rate peg calcs'!$B$26:$B$153,0)) -> -0.00717805126 | H145: =INDEX('Rate peg calcs'!H$26:H$153,MATCH($B145,'Rate peg calcs'!$B$26:$B$153,0)) -> 0.01246912114 | I145: =INDEX('Rate peg calcs'!N$26:N$153,MATCH($B145,'Rate peg calcs'!$B$26:$B$153,0)) -> 0.003527116362 | J145: =INDEX('Rate peg calcs'!O$26:O$153,MATCH($B145,'Rate peg calcs'!$B$26:$B$153,0)) -> 0 | K145: 0.045 | L145: =INDEX('Rate peg calcs'!I$26:I$153,MATCH($B145,'Rate peg calcs'!$B$26:$B$153,0)) -> 0.0005534034311 | M145: =INDEX('Rate peg calcs'!J$26:J$153,MATCH($B145,'Rate peg calcs'!$B$26:$B$153,0)) -> 0 | N145: =INDEX('Rate peg calcs'!K$26:K$153,MATCH($B145,'Rate peg calcs'!$B$26:$B$153,0)) -> 0.0005534034311 | O145: =INDEX('Rate peg calcs'!L$26:L$153,MATCH($B145,'Rate peg calcs'!$B$26:$B$153,0)) -> 0 | P145: =INDEX('Rate peg calcs'!M$26:M$153,MATCH($B145,'Rate peg calcs'!$B$26:$B$153,0)) -> 0.001 | Q145: =INDEX('Rate peg calcs'!P$26:P$153,MATCH($B145,'Rate peg calcs'!$B$26:$B$153,0)) -> 0.046 | S145: 0.005291069883
B146: ='Rate peg calcs'!B147 -> 215 | C146: =INDEX('Rate peg calcs'!C$26:C$153,MATCH($B146,'Rate peg calcs'!$B$26:$B$153,0)) -> Rural | D146: =INDEX('Rate peg calcs'!D$26:D$153,MATCH($B146,'Rate peg calcs'!$B$26:$B$153,0)) -> Wentworth | E146: =INDEX('Rate peg calcs'!E$26:E$153,MATCH($B146,'Rate peg calcs'!$B$26:$B$153,0)) -> 0.03594422934 | F146: =INDEX('Rate peg calcs'!F$26:F$153,MATCH($B146,'Rate peg calcs'!$B$26:$B$153,0)) -> 0 | G146: =INDEX('Rate peg calcs'!G$26:G$153,MATCH($B146,'Rate peg calcs'!$B$26:$B$153,0)) -> -0.004927562005 | H146: =INDEX('Rate peg calcs'!H$26:H$153,MATCH($B146,'Rate peg calcs'!$B$26:$B$153,0)) -> 0.007691637866 | I146: =INDEX('Rate peg calcs'!N$26:N$153,MATCH($B146,'Rate peg calcs'!$B$26:$B$153,0)) -> 0.006224756698 | J146: =INDEX('Rate peg calcs'!O$26:O$153,MATCH($B146,'Rate peg calcs'!$B$26:$B$153,0)) -> 0 | K146: 0.045 | L146: =INDEX('Rate peg calcs'!I$26:I$153,MATCH($B146,'Rate peg calcs'!$B$26:$B$153,0)) -> 0.0121116377 | M146: =INDEX('Rate peg calcs'!J$26:J$153,MATCH($B146,'Rate peg calcs'!$B$26:$B$153,0)) -> 0.01205661366 | N146: =INDEX('Rate peg calcs'!K$26:K$153,MATCH($B146,'Rate peg calcs'!$B$26:$B$153,0)) -> 5.502403989e-05 | O146: =INDEX('Rate peg calcs'!L$26:L$153,MATCH($B146,'Rate peg calcs'!$B$26:$B$153,0)) -> 0 | P146: =INDEX('Rate peg calcs'!M$26:M$153,MATCH($B146,'Rate peg calcs'!$B$26:$B$153,0)) -> 0 | Q146: =INDEX('Rate peg calcs'!P$26:P$153,MATCH($B146,'Rate peg calcs'!$B$26:$B$153,0)) -> 0.045 | S146: 0.002764075861
B147: ='Rate peg calcs'!B148 -> 216 | C147: =INDEX('Rate peg calcs'!C$26:C$153,MATCH($B147,'Rate peg calcs'!$B$26:$B$153,0)) -> Metropolitan | D147: =INDEX('Rate peg calcs'!D$26:D$153,MATCH($B147,'Rate peg calcs'!$B$26:$B$153,0)) -> Willoughby | E147: =INDEX('Rate peg calcs'!E$26:E$153,MATCH($B147,'Rate peg calcs'!$B$26:$B$153,0)) -> 0.03564768825 | F147: =INDEX('Rate peg calcs'!F$26:F$153,MATCH($B147,'Rate peg calcs'!$B$26:$B$153,0)) -> 0 | G147: =INDEX('Rate peg calcs'!G$26:G$153,MATCH($B147,'Rate peg calcs'!$B$26:$B$153,0)) -> -0.003458481052 | H147: =INDEX('Rate peg calcs'!H$26:H$153,MATCH($B147,'Rate peg calcs'!$B$26:$B$153,0)) -> 0.003458481052 | I147: =INDEX('Rate peg calcs'!N$26:N$153,MATCH($B147,'Rate peg calcs'!$B$26:$B$153,0)) -> 0.002846485097 | J147: =INDEX('Rate peg calcs'!O$26:O$153,MATCH($B147,'Rate peg calcs'!$B$26:$B$153,0)) -> 0 | K147: 0.038 | L147: =INDEX('Rate peg calcs'!I$26:I$153,MATCH($B147,'Rate peg calcs'!$B$26:$B$153,0)) -> 0.03133442814 | M147: =INDEX('Rate peg calcs'!J$26:J$153,MATCH($B147,'Rate peg calcs'!$B$26:$B$153,0)) -> 0.0002099116463 | N147: =INDEX('Rate peg calcs'!K$26:K$153,MATCH($B147,'Rate peg calcs'!$B$26:$B$153,0)) -> 0.03112451649 | O147: =INDEX('Rate peg calcs'!L$26:L$153,MATCH($B147,'Rate peg calcs'!$B$26:$B$153,0)) -> -0.03112451649 | P147: =INDEX('Rate peg calcs'!M$26:M$153,MATCH($B147,'Rate peg calcs'!$B$26:$B$153,0)) -> 0 | Q147: =INDEX('Rate peg calcs'!P$26:P$153,MATCH($B147,'Rate peg calcs'!$B$26:$B$153,0)) -> 0.038 | S147: 0
B148: ='Rate peg calcs'!B149 -> 218 | C148: =INDEX('Rate peg calcs'!C$26:C$153,MATCH($B148,'Rate peg calcs'!$B$26:$B$153,0)) -> Regional | D148: =INDEX('Rate peg calcs'!D$26:D$153,MATCH($B148,'Rate peg calcs'!$B$26:$B$153,0)) -> Wingecarribee | E148: =INDEX('Rate peg calcs'!E$26:E$153,MATCH($B148,'Rate peg calcs'!$B$26:$B$153,0)) -> 0.03584587895 | F148: =INDEX('Rate peg calcs'!F$26:F$153,MATCH($B148,'Rate peg calcs'!$B$26:$B$153,0)) -> 0 | G148: =INDEX('Rate peg calcs'!G$26:G$153,MATCH($B148,'Rate peg calcs'!$B$26:$B$153,0)) -> -0.001975470798 | H148: =INDEX('Rate peg calcs'!H$26:H$153,MATCH($B148,'Rate peg calcs'!$B$26:$B$153,0)) -> 0.001975470798 | I148: =INDEX('Rate peg calcs'!N$26:N$153,MATCH($B148,'Rate peg calcs'!$B$26:$B$153,0)) -> 0.001610326192 | J148: =INDEX('Rate peg calcs'!O$26:O$153,MATCH($B148,'Rate peg calcs'!$B$26:$B$153,0)) -> 0 | K148: 0.037 | L148: =INDEX('Rate peg calcs'!I$26:I$153,MATCH($B148,'Rate peg calcs'!$B$26:$B$153,0)) -> 0.00594753291 | M148: =INDEX('Rate peg calcs'!J$26:J$153,MATCH($B148,'Rate peg calcs'!$B$26:$B$153,0)) -> 0.004000143503 | N148: =INDEX('Rate peg calcs'!K$26:K$153,MATCH($B148,'Rate peg calcs'!$B$26:$B$153,0)) -> 0.001947389407 | O148: =INDEX('Rate peg calcs'!L$26:L$153,MATCH($B148,'Rate peg calcs'!$B$26:$B$153,0)) -> 0 | P148: =INDEX('Rate peg calcs'!M$26:M$153,MATCH($B148,'Rate peg calcs'!$B$26:$B$153,0)) -> 0.002 | Q148: =INDEX('Rate peg calcs'!P$26:P$153,MATCH($B148,'Rate peg calcs'!$B$26:$B$153,0)) -> 0.039 | S148: 0
B149: ='Rate peg calcs'!B150 -> 219 | C149: =INDEX('Rate peg calcs'!C$26:C$153,MATCH($B149,'Rate peg calcs'!$B$26:$B$153,0)) -> Metropolitan | D149: =INDEX('Rate peg calcs'!D$26:D$153,MATCH($B149,'Rate peg calcs'!$B$26:$B$153,0)) -> Wollondilly | E149: =INDEX('Rate peg calcs'!E$26:E$153,MATCH($B149,'Rate peg calcs'!$B$26:$B$153,0)) -> 0.03564768825 | F149: =INDEX('Rate peg calcs'!F$26:F$153,MATCH($B149,'Rate peg calcs'!$B$26:$B$153,0)) -> 0 | G149: =INDEX('Rate peg calcs'!G$26:G$153,MATCH($B149,'Rate peg calcs'!$B$26:$B$153,0)) -> -0.002357141889 | H149: =INDEX('Rate peg calcs'!H$26:H$153,MATCH($B149,'Rate peg calcs'!$B$26:$B$153,0)) -> 0.002983117906 | I149: =INDEX('Rate peg calcs'!N$26:N$153,MATCH($B149,'Rate peg calcs'!$B$26:$B$153,0)) -> 0.001531455893 | J149: =INDEX('Rate peg calcs'!O$26:O$153,MATCH($B149,'Rate peg calcs'!$B$26:$B$153,0)) -> 0 | K149: 0.038 | L149: =INDEX('Rate peg calcs'!I$26:I$153,MATCH($B149,'Rate peg calcs'!$B$26:$B$153,0)) -> 0.03252629881 | M149: =INDEX('Rate peg calcs'!J$26:J$153,MATCH($B149,'Rate peg calcs'!$B$26:$B$153,0)) -> 0.03311940788 | N149: =INDEX('Rate peg calcs'!K$26:K$153,MATCH($B149,'Rate peg calcs'!$B$26:$B$153,0)) -> 0 | O149: =INDEX('Rate peg calcs'!L$26:L$153,MATCH($B149,'Rate peg calcs'!$B$26:$B$153,0)) -> 0 | P149: =INDEX('Rate peg calcs'!M$26:M$153,MATCH($B149,'Rate peg calcs'!$B$26:$B$153,0)) -> 0 | Q149: =INDEX('Rate peg calcs'!P$26:P$153,MATCH($B149,'Rate peg calcs'!$B$26:$B$153,0)) -> 0.038 | S149: 0.0006259760175
B150: ='Rate peg calcs'!B151 -> 220 | C150: =INDEX('Rate peg calcs'!C$26:C$153,MATCH($B150,'Rate peg calcs'!$B$26:$B$153,0)) -> Regional | D150: =INDEX('Rate peg calcs'!D$26:D$153,MATCH($B150,'Rate peg calcs'!$B$26:$B$153,0)) -> Wollongong | E150: =INDEX('Rate peg calcs'!E$26:E$153,MATCH($B150,'Rate peg calcs'!$B$26:$B$153,0)) -> 0.03584587895 | F150: =INDEX('Rate peg calcs'!F$26:F$153,MATCH($B150,'Rate peg calcs'!$B$26:$B$153,0)) -> 0 | G150: =INDEX('Rate peg calcs'!G$26:G$153,MATCH($B150,'Rate peg calcs'!$B$26:$B$153,0)) -> -0.002716578392 | H150: =INDEX('Rate peg calcs'!H$26:H$153,MATCH($B150,'Rate peg calcs'!$B$26:$B$153,0)) -> 0.002742065649 | I150: =INDEX('Rate peg calcs'!N$26:N$153,MATCH($B150,'Rate peg calcs'!$B$26:$B$153,0)) -> 0.001373324295 | J150: =INDEX('Rate peg calcs'!O$26:O$153,MATCH($B150,'Rate peg calcs'!$B$26:$B$153,0)) -> 0 | K150: 0.037 | L150: =INDEX('Rate peg calcs'!I$26:I$153,MATCH($B150,'Rate peg calcs'!$B$26:$B$153,0)) -> 0.01244663747 | M150: =INDEX('Rate peg calcs'!J$26:J$153,MATCH($B150,'Rate peg calcs'!$B$26:$B$153,0)) -> 0.00292050992 | N150: =INDEX('Rate peg calcs'!K$26:K$153,MATCH($B150,'Rate peg calcs'!$B$26:$B$153,0)) -> 0.009526127547 | O150: =INDEX('Rate peg calcs'!L$26:L$153,MATCH($B150,'Rate peg calcs'!$B$26:$B$153,0)) -> 0 | P150: =INDEX('Rate peg calcs'!M$26:M$153,MATCH($B150,'Rate peg calcs'!$B$26:$B$153,0)) -> 0.01 | Q150: =INDEX('Rate peg calcs'!P$26:P$153,MATCH($B150,'Rate peg calcs'!$B$26:$B$153,0)) -> 0.047 | S150: 2.548725655e-05
B151: ='Rate peg calcs'!B152 -> 221 | C151: =INDEX('Rate peg calcs'!C$26:C$153,MATCH($B151,'Rate peg calcs'!$B$26:$B$153,0)) -> Metropolitan | D151: =INDEX('Rate peg calcs'!D$26:D$153,MATCH($B151,'Rate peg calcs'!$B$26:$B$153,0)) -> Woollahra | E151: =INDEX('Rate peg calcs'!E$26:E$153,MATCH($B151,'Rate peg calcs'!$B$26:$B$153,0)) -> 0.03564768825 | F151: =INDEX('Rate peg calcs'!F$26:F$153,MATCH($B151,'Rate peg calcs'!$B$26:$B$153,0)) -> 0 | G151: =INDEX('Rate peg calcs'!G$26:G$153,MATCH($B151,'Rate peg calcs'!$B$26:$B$153,0)) -> -0.001693335797 | H151: =INDEX('Rate peg calcs'!H$26:H$153,MATCH($B151,'Rate peg calcs'!$B$26:$B$153,0)) -> 0.004291559027 | I151: =INDEX('Rate peg calcs'!N$26:N$153,MATCH($B151,'Rate peg calcs'!$B$26:$B$153,0)) -> 0.002885153289 | J151: =INDEX('Rate peg calcs'!O$26:O$153,MATCH($B151,'Rate peg calcs'!$B$26:$B$153,0)) -> 0 | K151: 0.041 | L151: =INDEX('Rate peg calcs'!I$26:I$153,MATCH($B151,'Rate peg calcs'!$B$26:$B$153,0)) -> 0.02120504437 | M151: =INDEX('Rate peg calcs'!J$26:J$153,MATCH($B151,'Rate peg calcs'!$B$26:$B$153,0)) -> 0.001133524567 | N151: =INDEX('Rate peg calcs'!K$26:K$153,MATCH($B151,'Rate peg calcs'!$B$26:$B$153,0)) -> 0.0200715198 | O151: =INDEX('Rate peg calcs'!L$26:L$153,MATCH($B151,'Rate peg calcs'!$B$26:$B$153,0)) -> -0.0200715198 | P151: =INDEX('Rate peg calcs'!M$26:M$153,MATCH($B151,'Rate peg calcs'!$B$26:$B$153,0)) -> 0 | Q151: =INDEX('Rate peg calcs'!P$26:P$153,MATCH($B151,'Rate peg calcs'!$B$26:$B$153,0)) -> 0.041 | S151: 0.00259822323
B152: ='Rate peg calcs'!B153 -> 2036 | C152: =INDEX('Rate peg calcs'!C$26:C$153,MATCH($B152,'Rate peg calcs'!$B$26:$B$153,0)) -> Rural | D152: =INDEX('Rate peg calcs'!D$26:D$153,MATCH($B152,'Rate peg calcs'!$B$26:$B$153,0)) -> Yass Valley | E152: =INDEX('Rate peg calcs'!E$26:E$153,MATCH($B152,'Rate peg calcs'!$B$26:$B$153,0)) -> 0.03594422934 | F152: =INDEX('Rate peg calcs'!F$26:F$153,MATCH($B152,'Rate peg calcs'!$B$26:$B$153,0)) -> 0 | G152: =INDEX('Rate peg calcs'!G$26:G$153,MATCH($B152,'Rate peg calcs'!$B$26:$B$153,0)) -> -0.004830194113 | H152: =INDEX('Rate peg calcs'!H$26:H$153,MATCH($B152,'Rate peg calcs'!$B$26:$B$153,0)) -> 0.007852901665 | I152: =INDEX('Rate peg calcs'!N$26:N$153,MATCH($B152,'Rate peg calcs'!$B$26:$B$153,0)) -> 0.00246388756 | J152: =INDEX('Rate peg calcs'!O$26:O$153,MATCH($B152,'Rate peg calcs'!$B$26:$B$153,0)) -> 0 | K152: 0.041 | L152: =INDEX('Rate peg calcs'!I$26:I$153,MATCH($B152,'Rate peg calcs'!$B$26:$B$153,0)) -> 0.005638989585 | M152: =INDEX('Rate peg calcs'!J$26:J$153,MATCH($B152,'Rate peg calcs'!$B$26:$B$153,0)) -> 0.01233341611 | N152: =INDEX('Rate peg calcs'!K$26:K$153,MATCH($B152,'Rate peg calcs'!$B$26:$B$153,0)) -> 0 | O152: =INDEX('Rate peg calcs'!L$26:L$153,MATCH($B152,'Rate peg calcs'!$B$26:$B$153,0)) -> 0 | P152: =INDEX('Rate peg calcs'!M$26:M$153,MATCH($B152,'Rate peg calcs'!$B$26:$B$153,0)) -> 0 | Q152: =INDEX('Rate peg calcs'!P$26:P$153,MATCH($B152,'Rate peg calcs'!$B$26:$B$153,0)) -> 0.041 | S152: 0.003022707553
B154: Note: Totals may not sum due to rounding. We round the Population factor after true-up and the final Rate Peg to 3 decimal places. All other components of the Rate Peg are unrounded.
D193: ='ABS Pop T1'!S122/'ABS Pop T1'!N122-1 -> 0.007389130349 | E193: ='ABS Pop T1'!S122/'ABS Pop T1'!G122-1 -> -0.06040448561

Sheet Rate peg calcs
B2: =Cover!$B$3 -> IPART Rate peg model
B4: ="Calculation of the rate Peg for "&'Rate peg'!$D$9&"-"&RIGHT('Rate peg'!$D$9,2)+1 -> Calculation of the rate Peg for 2025-26
B5: Rate peg from 1 July | D5: ='Rate peg'!D9 -> 2025
B7: BCC and superannuation catch-up | H7: Summary of outcomes (ranges) | K7: ="Averages shown in rows "&ROW(C160)&" to "&ROW(C163)&" below." -> Averages shown in rows 160 to 163 below.
D8: Metropolitan | E8: Regional | F8: Rural | I8: =E24 -> BCC | J8: =K24 -> Population factor | K8: =L24 -> Covid-related population adjustment | L8: =M24 -> Population factor minus population adjustment | M8: =G24 -> ESL factor (excl subsidy catch-up) | N8: =H24 -> ESL subsidy catch-up adjustment | O8: =F24 -> Super-annuation catch-up adjustment | P8: =N24 -> Election cost adjustment | Q8: Rate Peg | R8: =Q24 -> Rate peg excl population factor and population adjustment | T8: ESL factor + subsidy catch-up adjustment | U8: =U24 -> ESL factor + subsidy catch-up adjustment | W8: Councils with catch-up adjustment
B9: BCC | D9: =INDEX('BCC calcs'!$J$34:$J$41,MATCH($D$5,'BCC calcs'!$B$34:$B$41,0)) -> 0.03564768825 | E9: =INDEX('BCC calcs'!$J$46:$J$53,MATCH($D$5,'BCC calcs'!$B$46:$B$53,0)) -> 0.03584587895 | F9: =INDEX('BCC calcs'!$J$58:$J$65,MATCH($D$5,'BCC calcs'!$B$58:$B$65,0)) -> 0.03594422934 | X9: =X25 -> 2024-25 | Y9: =Y25 -> 2025-26 | Z9: =Z25 -> 2026-27 | AA9: =AA25 -> 2027-28 | AB9: =AB25 -> 2028-29
B10: One-off superannuation catch-up | D10: =IF('Rate peg'!$D$9=2024,SUM('BCC Inputs'!$M$38:$M$39),0) -> 0 | E10: =D10 -> 0 | F10: =E10 -> 0 | H10: Maximum | T10: =H10 -> Maximum | W10: Number
B11: Employee cost weight | D11: =TRANSPOSE('BCC Inputs'!$F$124:$F$126) -> 0.399 | E11: 0.354 | F11: 0.335 | H11: Metropolitan | I11: =TRANSPOSE($D$9:$F$9) -> 0.03564768825 | J11: =_xlfn.MAXIFS(K$26:K$153,$C$26:$C$153,$H11) -> 0.05501473124 | K11: 0 | L11: 0.038 | M11: =_xlfn.MAXIFS(G$26:G$153,$C$26:$C$153,$H11) -> 0.002817886289 | N11: 0.005548492985 | O11: =TRANSPOSE($D$12:$F$12) -> 0 | P11: =_xlfn.MAXIFS(N$26:N$153,$C$26:$C$153,$H11) -> 0.008070321049 | Q11: =_xlfn.MAXIFS(P$26:P$153,$C$26:$C$153,$H11) -> 0.076 | R11: 0.044 | T11: Metropolitan | U11: =_xlfn.MAXIFS(U$26:U$153,$C$26:$C$153,$H11) -> 0.004988096044 | W11: =H11 -> Metropolitan | X11: =COUNTIFS($C$26:$C$153,$W11,X$26:X$153,">0") -> 1 | Y11: 34 | Z11: 0 | AA11: 0 | AB11: 0
B12: Superannuation catch-up in rate peg | D12: =D11*D10 -> 0 | E12: =E11*E10 -> 0 | F12: =F11*F10 -> 0 | H12: Regional | I12: 0.03584587895 | J12: 0.02236354268 | K12: 0 | L12: 0.022 | M12: -0.001975470798 | N12: 0.009735257142 | O12: 0 | P12: =_xlfn.MAXIFS(N$26:N$153,$C$26:$C$153,$H12) -> 0.004674340867 | Q12: 0.058 | R12: 0.042 | T12: Regional | U12: =_xlfn.MAXIFS(U$26:U$153,$C$26:$C$153,$H12) -> 0.004629751705 | W12: =H12 -> Regional | X12: 10 | Y12: 37 | Z12: 0 | AA12: 0 | AB12: 0
H13: Rural | I13: 0.03594422934 | J13: 0.01767447 | K13: 0 | L13: 0.018 | M13: -0.001788775576 | N13: 0.02902364339 | O13: 0 | P13: =_xlfn.MAXIFS(N$26:N$153,$C$26:$C$153,$H13) -> 0.008372632973 | Q13: 0.063 | R13: 0.051 | T13: Rural | U13: =_xlfn.MAXIFS(U$26:U$153,$C$26:$C$153,$H13) -> 0.01183040461 | W13: =H13 -> Rural | X13: 48 | Y13: 57 | Z13: 0 | AA13: 0 | AB13: 0
B14: Rounding factor | D14: 3 | H14: Minimum | T14: Minimum | W14: Total | X14: =SUM(X11:X13) -> 59 | Y14: =SUM(Y11:Y13) -> 128 | Z14: =SUM(Z11:Z13) -> 0 | AA14: =SUM(AA11:AA13) -> 0 | AB14: =SUM(AB11:AB13) -> 0
H15: =H11 -> Metropolitan | I15: 0.03564768825 | J15: =_xlfn.MINIFS(K$26:K$153,$C$26:$C$153,$H15) -> 0 | K15: -0.05125642292 | L15: 0 | M15: =_xlfn.MINIFS(G$26:G$153,$C$26:$C$153,$H15) -> -0.005476523751 | N15: 0.002170209755 | O15: =O11 -> 0 | P15: =_xlfn.MINIFS(N$26:N$153,$C$26:$C$153,$H15) -> 0.001050757959 | Q15: =_xlfn.MINIFS(P$26:P$153,$C$26:$C$153,$H15) -> 0.037 | R15: 0.036 | T15: Metropolitan | U15: =_xlfn.MINIFS(U$26:U$153,$C$26:$C$153,$H15) -> -0.001018103238 | W15: Percentage
H16: Regional | I16: 0.03584587895 | J16: 0 | K16: 0 | L16: 0 | M16: -0.005105505437 | N16: 0.001975470798 | O16: =O12 -> 0 | P16: =_xlfn.MINIFS(N$26:N$153,$C$26:$C$153,$H16) -> 0.0002491942144 | Q16: 0.037 | R16: 0.036 | T16: Regional | U16: =_xlfn.MINIFS(U$26:U$153,$C$26:$C$153,$H16) -> 0 | W16: =W11 -> Metropolitan | X16: =X11/COUNTIFS($C$26:$C$153,$W11) -> 0.02941176471 | Y16: 1 | Z16: 0 | AA16: 0 | AB16: 0
H17: Rural | I17: 0.03594422934 | J17: 0 | K17: 0 | L17: 0 | M17: -0.01719323877 | N17: 0.002139665398 | O17: =O13 -> 0 | P17: =_xlfn.MINIFS(N$26:N$153,$C$26:$C$153,$H17) -> 0 | Q17: 0.038 | R17: 0.038 | T17: Rural | U17: =_xlfn.MINIFS(U$26:U$153,$C$26:$C$153,$H17) -> 0 | W17: =W12 -> Regional | X17: 0.2702702703 | Y17: 1 | Z17: 0 | AA17: 0 | AB17: 0
W18: =W13 -> Rural | X18: 0.8421052632 | Y18: 1 | Z18: 0 | AA18: 0 | AB18: 0
J19: Decisions for 2025 population adjustment | W19: =W14 -> Total | X19: =X14/COUNT($P$26:$P$153) -> 0.4609375 | Y19: =Y14/COUNT($P$26:$P$153) -> 1 | Z19: =Z14/COUNT($P$26:$P$153) -> 0 | AA19: =AA14/COUNT($P$26:$P$153) -> 0 | AB19: =AB14/COUNT($P$26:$P$153) -> 0
L20: Measure population dip to 2121 from | M20: 2019 | N20: to 2021
L21: Materiality threshold for dip to 2021 | M21: -0.015
L22: Exclude if population less than | M22: 10000
B23: Rounding rules: We round the Population factor after true-up to 3 decimal places and the final Rate Peg to 3 decimal places. All other components of the Rate Peg are unrounded.
B24: ='Supp val'!B15 -> Org. Id | D24: Council | E24: BCC | F24: Super-annuation catch-up adjustment | G24: ESL factor (excl subsidy catch-up) | H24: ESL subsidy catch-up adjustment | I24: Change in population | J24: Supplementary valuations percentage | K24: ="Population factor "&IF($D$5=2025,"","before true-up") -> Population factor | L24: =IF($D$5=2025,"Covid-related population adjustment","Census true-up") -> Covid-related population adjustment | M24: =IF($D$5=2025,"Population factor minus population adjustment","Population factor after true-up") -> Population factor minus population adjustment | N24: =IF($D$5=2025,"Election cost adjustment","Other adjustments") -> Election cost adjustment | O24: Productivity factor | P24: Rate Peg | Q24: ="Rate peg excl population factor "&IF($D$5=2025,"and population adjustment","(after true-up)") -> Rate peg excl population factor and population adjustment | T24: Total % of subsidy returned | U24: ESL factor + subsidy catch-up adjustment | W24: ="SV in 2023-24 and defer catch-up in "&'Rate peg'!$D$10&"?" -> SV in 2023-24 and defer catch-up in 2024-25? | X24: % of total ESL subsidy included in rate peg | AF24: Adjustment in 2024-25 rate peg
E25: unrounded | F25: unrounded | G25: unrounded | H25: unrounded | I25: unrounded | J25: unrounded | K25: unrounded | L25: unrounded | M25: rounded | N25: unrounded | O25: unrounded | P25: rounded | X25: ='ESL data'!I13 -> 2024-25 | Y25: ='ESL data'!J13 -> 2025-26 | Z25: ='ESL data'!K13 -> 2026-27 | AA25: ='ESL data'!L13 -> 2027-28 | AB25: ='ESL data'!M13 -> 2028-29 | AF25: =X25 -> 2024-25
B26: =Names!I9 -> 2047 | C26: =INDEX(Names!$K$9:$K$136,MATCH(B26,Names!$I$9:$I$136,0)) -> Regional | D26: =Names!F9 -> Albury | E26: =INDEX($D$9:$F$9,MATCH(C26,$D$8:$F$8,0)) -> 0.03584587895 | F26: =INDEX($D$12:$F$12,MATCH(C26,$D$8:$F$8,0)) -> 0 | G26: =INDEX('ESL calcs'!$Z$12:$AD$139,MATCH($B26,'ESL calcs'!$C$12:$C$139,0),MATCH($D$5,'ESL calcs'!$Z$10:$AD$10,0)) -> -0.002072735241 | H26: =INDEX('ESL calcs'!$BC$12:$BG$139,MATCH($B26,'ESL calcs'!$C$12:$C$139,0),MATCH($D$5,'ESL calcs'!$BC$10:$BG$10,0)) -> 0.002323112632 | I26: =INDEX('Pop calcs'!$D14:$I14,MATCH($D$5,'Pop calcs'!$D$12:$I$12,0)) -> 0.01503573635 | J26: =INDEX('Pop calcs'!$K14:$P14,MATCH($D$5,'Pop calcs'!$K$12:$P$12,0)) -> 0.01198612352 | K26: =IFERROR(MAX(0,I26-J26),0) -> 0.003049612828 | L26: =IF($D$5=2025,INDEX('Pop calcs'!$AF$14:$AF$141,MATCH($B26,'Pop calcs'!$B$14:$B$141,0)),IFERROR(INDEX('Pop calcs'!$Y14:$Z14,MATCH($D$5,'Pop calcs'!$Y$12:$Z$12,0)),0)) -> 0 | M26: =IFERROR(MAX(0,ROUND(K26+L26,$D$14)),".") -> 0.003 | N26: =INDEX('2024 Election costs'!$AA$24:$AA$151,MATCH(B26,'2024 Election costs'!$B$24:$B$151,0)) -> 0.001939976392 | O26: 0 | P26: =M26+ROUND(E26+F26+G26+H26+N26-O26,$D$14) -> 0.041 | Q26: =P26-M26 -> 0.038 | T26: =INDEX('ESL calcs'!$AN$12:$AN$139,MATCH(B26,'ESL calcs'!$C$12:$C$139,0)) -> 0.5 | U26: =SUM(G26:H26) -> 0.0002503773911 | W26: =INDEX('Rate peg & SV'!$AM$16:$AM$143,MATCH(B26,'Rate peg & SV'!$B$16:$B$143,0)) -> 1 | X26: =IF($D$5='BCC Inputs'!$B$21,AF26,AF26*W26) -> 0 | Y26: 0.5 | AF26: 0
B27: =Names!I10 -> 2079 | C27: =INDEX(Names!$K$9:$K$136,MATCH(B27,Names!$I$9:$I$136,0)) -> Regional | D27: =Names!F10 -> Armidale Regional | E27: 0.03584587895 | F27: 0 | G27: =INDEX('ESL calcs'!$Z$12:$AD$139,MATCH($B27,'ESL calcs'!$C$12:$C$139,0),MATCH($D$5,'ESL calcs'!$Z$10:$AD$10,0)) -> -0.002718836338 | H27: =INDEX('ESL calcs'!$BC$12:$BG$139,MATCH($B27,'ESL calcs'!$C$12:$C$139,0),MATCH($D$5,'ESL calcs'!$BC$10:$BG$10,0)) -> 0.004173407716 | I27: =INDEX('Pop calcs'!$D15:$I15,MATCH($D$5,'Pop calcs'!$D$12:$I$12,0)) -> 0.007935697013 | J27: =INDEX('Pop calcs'!$K15:$P15,MATCH($D$5,'Pop calcs'!$K$12:$P$12,0)) -> 0.009200039358 | K27: =IFERROR(MAX(0,I27-J27),0) -> 0 | L27: =IF($D$5=2025,INDEX('Pop calcs'!$AF$14:$AF$141,MATCH($B27,'Pop calcs'!$B$14:$B$141,0)),IFERROR(INDEX('Pop calcs'!$Y15:$Z15,MATCH($D$5,'Pop calcs'!$Y$12:$Z$12,0)),0)) -> 0 | M27: 0 | N27: =INDEX('2024 Election costs'!$AA$24:$AA$151,MATCH(B27,'2024 Election costs'!$B$24:$B$151,0)) -> 0.002849341678 | O27: 0 | P27: 0.04 | Q27: =P27-M27 -> 0.04 | T27: =INDEX('ESL calcs'!$AN$12:$AN$139,MATCH(B27,'ESL calcs'!$C$12:$C$139,0)) -> 0.5 | U27: 0.001454571378 | W27: =INDEX('Rate peg & SV'!$AM$16:$AM$143,MATCH(B27,'Rate peg & SV'!$B$16:$B$143,0)) -> 0 | X27: =IF($D$5='BCC Inputs'!$B$21,AF27,AF27*W27) -> 0 | Y27: 0.5 | AF27: 0
B28: =Names!I11 -> 54 | C28: =INDEX(Names!$K$9:$K$136,MATCH(B28,Names!$I$9:$I$136,0)) -> Regional | D28: =Names!F11 -> Ballina | E28: 0.03584587895 | F28: 0 | G28: =INDEX('ESL calcs'!$Z$12:$AD$139,MATCH($B28,'ESL calcs'!$C$12:$C$139,0),MATCH($D$5,'ESL calcs'!$Z$10:$AD$10,0)) -> -0.002341542238 | H28: =INDEX('ESL calcs'!$BC$12:$BG$139,MATCH($B28,'ESL calcs'!$C$12:$C$139,0),MATCH($D$5,'ESL calcs'!$BC$10:$BG$10,0)) -> 0.002446923244 | I28: =INDEX('Pop calcs'!$D16:$I16,MATCH($D$5,'Pop calcs'!$D$12:$I$12,0)) -> 0.009178424299 | J28: =INDEX('Pop calcs'!$K16:$P16,MATCH($D$5,'Pop calcs'!$K$12:$P$12,0)) -> 0.01197232087 | K28: 0 | L28: =IF($D$5=2025,INDEX('Pop calcs'!$AF$14:$AF$141,MATCH($B28,'Pop calcs'!$B$14:$B$141,0)),IFERROR(INDEX('Pop calcs'!$Y16:$Z16,MATCH($D$5,'Pop calcs'!$Y$12:$Z$12,0)),0)) -> 0 | M28: 0 | N28: =INDEX('2024 Election costs'!$AA$24:$AA$151,MATCH(B28,'2024 Election costs'!$B$24:$B$151,0)) -> 0.001896183085 | O28: 0 | P28: 0.038 | Q28: 0.038 | T28: =INDEX('ESL calcs'!$AN$12:$AN$139,MATCH(B28,'ESL calcs'!$C$12:$C$139,0)) -> 0.5 | U28: 0.0001053810054 | W28: =INDEX('Rate peg & SV'!$AM$16:$AM$143,MATCH(B28,'Rate peg & SV'!$B$16:$B$143,0)) -> 1 | X28: =IF($D$5='BCC Inputs'!$B$21,AF28,AF28*W28) -> 0 | Y28: 0.5 | AF28: 0
B29: =Names!I12 -> 55 | C29: =INDEX(Names!$K$9:$K$136,MATCH(B29,Names!$I$9:$I$136,0)) -> Rural | D29: =Names!F12 -> Balranald | E29: 0.03594422934 | F29: 0 | G29: =INDEX('ESL calcs'!$Z$12:$AD$139,MATCH($B29,'ESL calcs'!$C$12:$C$139,0),MATCH($D$5,'ESL calcs'!$Z$10:$AD$10,0)) -> -0.005789407495 | H29: =INDEX('ESL calcs'!$BC$12:$BG$139,MATCH($B29,'ESL calcs'!$C$12:$C$139,0),MATCH($D$5,'ESL calcs'!$BC$10:$BG$10,0)) -> 0.01410473577 | I29: =INDEX('Pop calcs'!$D17:$I17,MATCH($D$5,'Pop calcs'!$D$12:$I$12,0)) -> 0 | J29: =INDEX('Pop calcs'!$K17:$P17,MATCH($D$5,'Pop calcs'!$K$12:$P$12,0)) -> 0.001577287066 | K29: 0 | L29: =IF($D$5=2025,INDEX('Pop calcs'!$AF$14:$AF$141,MATCH($B29,'Pop calcs'!$B$14:$B$141,0)),IFERROR(INDEX('Pop calcs'!$Y17:$Z17,MATCH($D$5,'Pop calcs'!$Y$12:$Z$12,0)),0)) -> 0 | M29: 0 | N29: =INDEX('2024 Election costs'!$AA$24:$AA$151,MATCH(B29,'2024 Election costs'!$B$24:$B$151,0)) -> 0.0008875866554 | O29: 0 | P29: 0.045 | Q29: 0.045 | T29: =INDEX('ESL calcs'!$AN$12:$AN$139,MATCH(B29,'ESL calcs'!$C$12:$C$139,0)) -> 0.5 | U29: 0.008315328274 | W29: =INDEX('Rate peg & SV'!$AM$16:$AM$143,MATCH(B29,'Rate peg & SV'!$B$16:$B$143,0)) -> 0 | X29: =IF($D$5='BCC Inputs'!$B$21,AF29,AF29*W29) -> 0 | Y29: 0.5 | AF29: 0.146
B30: =Names!I13 -> 2043 | C30: =INDEX(Names!$K$9:$K$136,MATCH(B30,Names!$I$9:$I$136,0)) -> Regional | D30: =Names!F13 -> Bathurst Regional | E30: 0.03584587895 | F30: 0 | G30: =INDEX('ESL calcs'!$Z$12:$AD$139,MATCH($B30,'ESL calcs'!$C$12:$C$139,0),MATCH($D$5,'ESL calcs'!$Z$10:$AD$10,0)) -> -0.003911371123 | H30: =INDEX('ESL calcs'!$BC$12:$BG$139,MATCH($B30,'ESL calcs'!$C$12:$C$139,0),MATCH($D$5,'ESL calcs'!$BC$10:$BG$10,0)) -> 0.005065778336 | I30: =INDEX('Pop calcs'!$D18:$I18,MATCH($D$5,'Pop calcs'!$D$12:$I$12,0)) -> 0.01246473336 | J30: =INDEX('Pop calcs'!$K18:$P18,MATCH($D$5,'Pop calcs'!$K$12:$P$12,0)) -> 0.003599616922 | K30: 0.00886511644 | L30: =IF($D$5=2025,INDEX('Pop calcs'!$AF$14:$AF$141,MATCH($B30,'Pop calcs'!$B$14:$B$141,0)),IFERROR(INDEX('Pop calcs'!$Y18:$Z18,MATCH($D$5,'Pop calcs'!$Y$12:$Z$12,0)),0)) -> 0 | M30: 0.009 | N30: =INDEX('2024 Election costs'!$AA$24:$AA$151,MATCH(B30,'2024 Election costs'!$B$24:$B$151,0)) -> 0.002647871319 | O30: 0 | P30: 0.049 | Q30: 0.04 | T30: =INDEX('ESL calcs'!$AN$12:$AN$139,MATCH(B30,'ESL calcs'!$C$12:$C$139,0)) -> 0.5 | U30: 0.001154407213 | W30: =INDEX('Rate peg & SV'!$AM$16:$AM$143,MATCH(B30,'Rate peg & SV'!$B$16:$B$143,0)) -> 1 | X30: =IF($D$5='BCC Inputs'!$B$21,AF30,AF30*W30) -> 0 | Y30: 0.5 | AF30: 0
B31: =Names!I14 -> 2099 | C31: =INDEX(Names!$K$9:$K$136,MATCH(B31,Names!$I$9:$I$136,0)) -> Metropolitan | D31: =Names!F14 -> Bayside | E31: 0.03564768825 | F31: 0 | G31: =INDEX('ESL calcs'!$Z$12:$AD$139,MATCH($B31,'ESL calcs'!$C$12:$C$139,0),MATCH($D$5,'ESL calcs'!$Z$10:$AD$10,0)) -> -0.004738598761 | H31: =INDEX('ESL calcs'!$BC$12:$BG$139,MATCH($B31,'ESL calcs'!$C$12:$C$139,0),MATCH($D$5,'ESL calcs'!$BC$10:$BG$10,0)) -> 0.004738598761 | I31: =INDEX('Pop calcs'!$D19:$I19,MATCH($D$5,'Pop calcs'!$D$12:$I$12,0)) -> 0.02806305901 | J31: =INDEX('Pop calcs'!$K19:$P19,MATCH($D$5,'Pop calcs'!$K$12:$P$12,0)) -> 0.003841370457 | K31: 0.02422168856 | L31: =IF($D$5=2025,INDEX('Pop calcs'!$AF$14:$AF$141,MATCH($B31,'Pop calcs'!$B$14:$B$141,0)),IFERROR(INDEX('Pop calcs'!$Y19:$Z19,MATCH($D$5,'Pop calcs'!$Y$12:$Z$12,0)),0)) -> 0 | M31: 0.024 | N31: =INDEX('2024 Election costs'!$AA$24:$AA$151,MATCH(B31,'2024 Election costs'!$B$24:$B$151,0)) -> 0.001450656439 | O31: 0 | P31: 0.061 | Q31: 0.037 | T31: =INDEX('ESL calcs'!$AN$12:$AN$139,MATCH(B31,'ESL calcs'!$C$12:$C$139,0)) -> 0.9665389913 | U31: 0 | W31: =INDEX('Rate peg & SV'!$AM$16:$AM$143,MATCH(B31,'Rate peg & SV'!$B$16:$B$143,0)) -> 1 | X31: =IF($D$5='BCC Inputs'!$B$21,AF31,AF31*W31) -> 0 | Y31: 0.9665389913 | AF31: 0
B32: =Names!I15 -> 60 | C32: =INDEX(Names!$K$9:$K$136,MATCH(B32,Names!$I$9:$I$136,0)) -> Regional | D32: =Names!F15 -> Bega Valley | E32: 0.03584587895 | F32: 0 | G32: =INDEX('ESL calcs'!$Z$12:$AD$139,MATCH($B32,'ESL calcs'!$C$12:$C$139,0),MATCH($D$5,'ESL calcs'!$Z$10:$AD$10,0)) -> -0.003133173952 | H32: =INDEX('ESL calcs'!$BC$12:$BG$139,MATCH($B32,'ESL calcs'!$C$12:$C$139,0),MATCH($D$5,'ESL calcs'!$BC$10:$BG$10,0)) -> 0.004828377054 | I32: =INDEX('Pop calcs'!$D20:$I20,MATCH($D$5,'Pop calcs'!$D$12:$I$12,0)) -> 0.008170070863 | J32: =INDEX('Pop calcs'!$K20:$P20,MATCH($D$5,'Pop calcs'!$K$12:$P$12,0)) -> 0 | K32: 0.008170070863 | L32: =IF($D$5=2025,INDEX('Pop calcs'!$AF$14:$AF$141,MATCH($B32,'Pop calcs'!$B$14:$B$141,0)),IFERROR(INDEX('Pop calcs'!$Y20:$Z20,MATCH($D$5,'Pop calcs'!$Y$12:$Z$12,0)),0)) -> 0 | M32: 0.008 | N32: =INDEX('2024 Election costs'!$AA$24:$AA$151,MATCH(B32,'2024 Election costs'!$B$24:$B$151,0)) -> 0.003910173992 | O32: 0 | P32: 0.049 | Q32: 0.041 | T32: =INDEX('ESL calcs'!$AN$12:$AN$139,MATCH(B32,'ESL calcs'!$C$12:$C$139,0)) -> 0.5 | U32: 0.001695203102 | W32: =INDEX('Rate peg & SV'!$AM$16:$AM$143,MATCH(B32,'Rate peg & SV'!$B$16:$B$143,0)) -> 0 | X32: =IF($D$5='BCC Inputs'!$B$21,AF32,AF32*W32) -> 0 | Y32: 0.5 | AF32: 0.11
B33: =Names!I16 -> 61 | C33: =INDEX(Names!$K$9:$K$136,MATCH(B33,Names!$I$9:$I$136,0)) -> Rural | D33: =Names!F16 -> Bellingen | E33: 0.03594422934 | F33: 0 | G33: =INDEX('ESL calcs'!$Z$12:$AD$139,MATCH($B33,'ESL calcs'!$C$12:$C$139,0),MATCH($D$5,'ESL calcs'!$Z$10:$AD$10,0)) -> -0.00455808424 | H33: =INDEX('ESL calcs'!$BC$12:$BG$139,MATCH($B33,'ESL calcs'!$C$12:$C$139,0),MATCH($D$5,'ESL calcs'!$BC$10:$BG$10,0)) -> 0.008838497434 | I33: =INDEX('Pop calcs'!$D21:$I21,MATCH($D$5,'Pop calcs'!$D$12:$I$12,0)) -> 0 | J33: =INDEX('Pop calcs'!$K21:$P21,MATCH($D$5,'Pop calcs'!$K$12:$P$12,0)) -> 0.004225352113 | K33: 0 | L33: =IF($D$5=2025,INDEX('Pop calcs'!$AF$14:$AF$141,MATCH($B33,'Pop calcs'!$B$14:$B$141,0)),IFERROR(INDEX('Pop calcs'!$Y21:$Z21,MATCH($D$5,'Pop calcs'!$Y$12:$Z$12,0)),0)) -> 0 | M33: 0 | N33: =INDEX('2024 Election costs'!$AA$24:$AA$151,MATCH(B33,'2024 Election costs'!$B$24:$B$151,0)) -> 0.001977840774 | O33: 0 | P33: 0.042 | Q33: 0.042 | T33: =INDEX('ESL calcs'!$AN$12:$AN$139,MATCH(B33,'ESL calcs'!$C$12:$C$139,0)) -> 0.5 | U33: 0.004280413194 | W33: =INDEX('Rate peg & SV'!$AM$16:$AM$143,MATCH(B33,'Rate peg & SV'!$B$16:$B$143,0)) -> 0 | X33: =IF($D$5='BCC Inputs'!$B$21,AF33,AF33*W33) -> 0 | Y33: 0.5 | AF33: 0.06
B34: =Names!I17 -> 62 | C34: =INDEX(Names!$K$9:$K$136,MATCH(B34,Names!$I$9:$I$136,0)) -> Rural | D34: =Names!F17 -> Berrigan | E34: 0.03594422934 | F34: 0 | G34: =INDEX('ESL calcs'!$Z$12:$AD$139,MATCH($B34,'ESL calcs'!$C$12:$C$139,0),MATCH($D$5,'ESL calcs'!$Z$10:$AD$10,0)) -> -0.004350616641 | H34: =INDEX('ESL calcs'!$BC$12:$BG$139,MATCH($B34,'ESL calcs'!$C$12:$C$139,0),MATCH($D$5,'ESL calcs'!$BC$10:$BG$10,0)) -> 0.006483933273 | I34: =INDEX('Pop calcs'!$D22:$I22,MATCH($D$5,'Pop calcs'!$D$12:$I$12,0)) -> 0 | J34: =INDEX('Pop calcs'!$K22:$P22,MATCH($D$5,'Pop calcs'!$K$12:$P$12,0)) -> 0.002453557659 | K34: 0 | L34: =IF($D$5=2025,INDEX('Pop calcs'!$AF$14:$AF$141,MATCH($B34,'Pop calcs'!$B$14:$B$141,0)),IFERROR(INDEX('Pop calcs'!$Y22:$Z22,MATCH($D$5,'Pop calcs'!$Y$12:$Z$12,0)),0)) -> 0 | M34: 0 | N34: =INDEX('2024 Election costs'!$AA$24:$AA$151,MATCH(B34,'2024 Election costs'!$B$24:$B$151,0)) -> 0.007706288123 | O34: 0 | P34: 0.046 | Q34: 0.046 | T34: =INDEX('ESL calcs'!$AN$12:$AN$139,MATCH(B34,'ESL calcs'!$C$12:$C$139,0)) -> 0.5 | U34: 0.002133316632 | W34: =INDEX('Rate peg & SV'!$AM$16:$AM$143,MATCH(B34,'Rate peg & SV'!$B$16:$B$143,0)) -> 1 | X34: =IF($D$5='BCC Inputs'!$B$21,AF34,AF34*W34) -> 0 | Y34: 0.5 | AF34: 0
B35: =Names!I18 -> 64 | C35: =INDEX(Names!$K$9:$K$136,MATCH(B35,Names!$I$9:$I$136,0)) -> Metropolitan | D35: =Names!F18 -> Blacktown | E35: 0.03564768825 | F35: 0 | G35: =INDEX('ESL calcs'!$Z$12:$AD$139,MATCH($B35,'ESL calcs'!$C$12:$C$139,0),MATCH($D$5,'ESL calcs'!$Z$10:$AD$10,0)) -> -0.001772410486 | H35: =INDEX('ESL calcs'!$BC$12:$BG$139,MATCH($B35,'ESL calcs'!$C$12:$C$139,0),MATCH($D$5,'ESL calcs'!$BC$10:$BG$10,0)) -> 0.003730523514 | I35: =INDEX('Pop calcs'!$D23:$I23,MATCH($D$5,'Pop calcs'!$D$12:$I$12,0)) -> 0.03755370045 | J35: =INDEX('Pop calcs'!$K23:$P23,MATCH($D$5,'Pop calcs'!$K$12:$P$12,0)) -> 0.01894982003 | K35: 0.01860388042 | L35: =IF($D$5=2025,INDEX('Pop calcs'!$AF$14:$AF$141,MATCH($B35,'Pop calcs'!$B$14:$B$141,0)),IFERROR(INDEX('Pop calcs'!$Y23:$Z23,MATCH($D$5,'Pop calcs'!$Y$12:$Z$12,0)),0)) -> 0 | M35: 0.019 | N35: =INDEX('2024 Election costs'!$AA$24:$AA$151,MATCH(B35,'2024 Election costs'!$B$24:$B$151,0)) -> 0.001931220408 | O35: 0 | P35: 0.059 | Q35: 0.04 | T35: =INDEX('ESL calcs'!$AN$12:$AN$139,MATCH(B35,'ESL calcs'!$C$12:$C$139,0)) -> 0.5 | U35: 0.001958113028 | W35: =INDEX('Rate peg & SV'!$AM$16:$AM$143,MATCH(B35,'Rate peg & SV'!$B$16:$B$143,0)) -> 1 | X35: =IF($D$5='BCC Inputs'!$B$21,AF35,AF35*W35) -> 0 | Y35: 0.5 | AF35: 0
B36: =Names!I19 -> 65 | C36: =INDEX(Names!$K$9:$K$136,MATCH(B36,Names!$I$9:$I$136,0)) -> Rural | D36: =Names!F19 -> Bland | E36: 0.03594422934 | F36: 0 | G36: =INDEX('ESL calcs'!$Z$12:$AD$139,MATCH($B36,'ESL calcs'!$C$12:$C$139,0),MATCH($D$5,'ESL calcs'!$Z$10:$AD$10,0)) -> -0.005534763584 | H36: =INDEX('ESL calcs'!$BC$12:$BG$139,MATCH($B36,'ESL calcs'!$C$12:$C$139,0),MATCH($D$5,'ESL calcs'!$BC$10:$BG$10,0)) -> 0.00852583108 | I36: =INDEX('Pop calcs'!$D24:$I24,MATCH($D$5,'Pop calcs'!$D$12:$I$12,0)) -> 0 | J36: =INDEX('Pop calcs'!$K24:$P24,MATCH($D$5,'Pop calcs'!$K$12:$P$12,0)) -> 0.0009741163373 | K36: 0 | L36: =IF($D$5=2025,INDEX('Pop calcs'!$AF$14:$AF$141,MATCH($B36,'Pop calcs'!$B$14:$B$141,0)),IFERROR(INDEX('Pop calcs'!$Y24:$Z24,MATCH($D$5,'Pop calcs'!$Y$12:$Z$12,0)),0)) -> 0 | M36: 0 | N36: =INDEX('2024 Election costs'!$AA$24:$AA$151,MATCH(B36,'2024 Election costs'!$B$24:$B$151,0)) -> 0.00273173444 | O36: 0 | P36: 0.042 | Q36: 0.042 | T36: =INDEX('ESL calcs'!$AN$12:$AN$139,MATCH(B36,'ESL calcs'!$C$12:$C$139,0)) -> 0.5 | U36: 0.002991067497 | W36: =INDEX('Rate peg & SV'!$AM$16:$AM$143,MATCH(B36,'Rate peg & SV'!$B$16:$B$143,0)) -> 1 | X36: =IF($D$5='BCC Inputs'!$B$21,AF36,AF36*W36) -> 0.146 | Y36: 0.354 | AF36: 0.146
B37: =Names!I20 -> 66 | C37: =INDEX(Names!$K$9:$K$136,MATCH(B37,Names!$I$9:$I$136,0)) -> Rural | D37: =Names!F20 -> Blayney | E37: 0.03594422934 | F37: 0 | G37: =INDEX('ESL calcs'!$Z$12:$AD$139,MATCH($B37,'ESL calcs'!$C$12:$C$139,0),MATCH($D$5,'ESL calcs'!$Z$10:$AD$10,0)) -> -0.002897417769 | H37: =INDEX('ESL calcs'!$BC$12:$BG$139,MATCH($B37,'ESL calcs'!$C$12:$C$139,0),MATCH($D$5,'ESL calcs'!$BC$10:$BG$10,0)) -> 0.003314939635 | I37: =INDEX('Pop calcs'!$D25:$I25,MATCH($D$5,'Pop calcs'!$D$12:$I$12,0)) -> 0.007114624506 | J37: =INDEX('Pop calcs'!$K25:$P25,MATCH($D$5,'Pop calcs'!$K$12:$P$12,0)) -> 0.008049341418 | K37: 0 | L37: =IF($D$5=2025,INDEX('Pop calcs'!$AF$14:$AF$141,MATCH($B37,'Pop calcs'!$B$14:$B$141,0)),IFERROR(INDEX('Pop calcs'!$Y25:$Z25,MATCH($D$5,'Pop calcs'!$Y$12:$Z$12,0)),0)) -> 0 | M37: 0 | N37: =INDEX('2024 Election costs'!$AA$24:$AA$151,MATCH(B37,'2024 Election costs'!$B$24:$B$151,0)) -> 0.001367640504 | O37: 0 | P37: 0.038 | Q37: 0.038 | T37: =INDEX('ESL calcs'!$AN$12:$AN$139,MATCH(B37,'ESL calcs'!$C$12:$C$139,0)) -> 0.5 | U37: 0.0004175218658 | W37: =INDEX('Rate peg & SV'!$AM$16:$AM$143,MATCH(B37,'Rate peg & SV'!$B$16:$B$143,0)) -> 1 | X37: =IF($D$5='BCC Inputs'!$B$21,AF37,AF37*W37) -> 0.22 | Y37: 0.28 | AF37: 0.22
B38: =Names!I21 -> 67 | C38: =INDEX(Names!$K$9:$K$136,MATCH(B38,Names!$I$9:$I$136,0)) -> Metropolitan | D38: =Names!F21 -> Blue Mountains | E38: 0.03564768825 | F38: 0 | G38: =INDEX('ESL calcs'!$Z$12:$AD$139,MATCH($B38,'ESL calcs'!$C$12:$C$139,0),MATCH($D$5,'ESL calcs'!$Z$10:$AD$10,0)) -> -0.003392691047 | H38: =INDEX('ESL calcs'!$BC$12:$BG$139,MATCH($B38,'ESL calcs'!$C$12:$C$139,0),MATCH($D$5,'ESL calcs'!$BC$10:$BG$10,0)) -> 0.005011500876 | I38: =INDEX('Pop calcs'!$D26:$I26,MATCH($D$5,'Pop calcs'!$D$12:$I$12,0)) -> 0.006840963639 | J38: =INDEX('Pop calcs'!$K26:$P26,MATCH($D$5,'Pop calcs'!$K$12:$P$12,0)) -> 0 | K38: 0.006840963639 | L38: =IF($D$5=2025,INDEX('Pop calcs'!$AF$14:$AF$141,MATCH($B38,'Pop calcs'!$B$14:$B$141,0)),IFERROR(INDEX('Pop calcs'!$Y26:$Z26,MATCH($D$5,'Pop calcs'!$Y$12:$Z$12,0)),0)) -> 0 | M38: 0.007 | N38: =INDEX('2024 Election costs'!$AA$24:$AA$151,MATCH(B38,'2024 Election costs'!$B$24:$B$151,0)) -> 0.001142175716 | O38: 0 | P38: 0.045 | Q38: 0.038 | T38: =INDEX('ESL calcs'!$AN$12:$AN$139,MATCH(B38,'ESL calcs'!$C$12:$C$139,0)) -> 0.5 | U38: 0.001618809829 | W38: =INDEX('Rate peg & SV'!$AM$16:$AM$143,MATCH(B38,'Rate peg & SV'!$B$16:$B$143,0)) -> 1 | X38: =IF($D$5='BCC Inputs'!$B$21,AF38,AF38*W38) -> 0 | Y38: 0.5 | AF38: 0
B39: =Names!I22 -> 68 | C39: =INDEX(Names!$K$9:$K$136,MATCH(B39,Names!$I$9:$I$136,0)) -> Rural | D39: =Names!F22 -> Bogan | E39: 0.03594422934 | F39: 0 | G39: =INDEX('ESL calcs'!$Z$12:$AD$139,MATCH($B39,'ESL calcs'!$C$12:$C$139,0),MATCH($D$5,'ESL calcs'!$Z$10:$AD$10,0)) -> -0.004162662769 | H39: =INDEX('ESL calcs'!$BC$12:$BG$139,MATCH($B39,'ESL calcs'!$C$12:$C$139,0),MATCH($D$5,'ESL calcs'!$BC$10:$BG$10,0)) -> 0.006682117327 | I39: =INDEX('Pop calcs'!$D27:$I27,MATCH($D$5,'Pop calcs'!$D$12:$I$12,0)) -> 0 | J39: =INDEX('Pop calcs'!$K27:$P27,MATCH($D$5,'Pop calcs'!$K$12:$P$12,0)) -> 0.01130490956 | K39: 0 | L39: =IF($D$5=2025,INDEX('Pop calcs'!$AF$14:$AF$141,MATCH($B39,'Pop calcs'!$B$14:$B$141,0)),IFERROR(INDEX('Pop calcs'!$Y27:$Z27,MATCH($D$5,'Pop calcs'!$Y$12:$Z$12,0)),0)) -> 0 | M39: 0 | N39: =INDEX('2024 Election costs'!$AA$24:$AA$151,MATCH(B39,'2024 Election costs'!$B$24:$B$151,0)) -> 0.002921466969 | O39: 0 | P39: 0.041 | Q39: 0.041 | T39: =INDEX('ESL calcs'!$AN$12:$AN$139,MATCH(B39,'ESL calcs'!$C$12:$C$139,0)) -> 0.5 | U39: 0.002519454558 | W39: =INDEX('Rate peg & SV'!$AM$16:$AM$143,MATCH(B39,'Rate peg & SV'!$B$16:$B$143,0)) -> 1 | X39: =IF($D$5='BCC Inputs'!$B$21,AF39,AF39*W39) -> 0.12 | Y39: 0.38 | AF39: 0.12
B40: =Names!I23 -> 72 | C40: =INDEX(Names!$K$9:$K$136,MATCH(B40,Names!$I$9:$I$136,0)) -> Rural | D40: =Names!F23 -> Bourke | E40: 0.03594422934 | F40: 0 | G40: =INDEX('ESL calcs'!$Z$12:$AD$139,MATCH($B40,'ESL calcs'!$C$12:$C$139,0),MATCH($D$5,'ESL calcs'!$Z$10:$AD$10,0)) -> -0.007924256431 | H40: =INDEX('ESL calcs'!$BC$12:$BG$139,MATCH($B40,'ESL calcs'!$C$12:$C$139,0),MATCH($D$5,'ESL calcs'!$BC$10:$BG$10,0)) -> 0.01451337381 | I40: =INDEX('Pop calcs'!$D28:$I28,MATCH($D$5,'Pop calcs'!$D$12:$I$12,0)) -> 0.007240204429 | J40: =INDEX('Pop calcs'!$K28:$P28,MATCH($D$5,'Pop calcs'!$K$12:$P$12,0)) -> 0 | K40: 0.007240204429 | L40: =IF($D$5=2025,INDEX('Pop calcs'!$AF$14:$AF$141,MATCH($B40,'Pop calcs'!$B$14:$B$141,0)),IFERROR(INDEX('Pop calcs'!$Y28:$Z28,MATCH($D$5,'Pop calcs'!$Y$12:$Z$12,0)),0)) -> 0 | M40: 0.007 | N40: =INDEX('2024 Election costs'!$AA$24:$AA$151,MATCH(B40,'2024 Election costs'!$B$24:$B$151,0)) -> 0 | O40: 0 | P40: 0.05 | Q40: 0.043 | T40: =INDEX('ESL calcs'!$AN$12:$AN$139,MATCH(B40,'ESL calcs'!$C$12:$C$139,0)) -> 0.5 | U40: 0.006589117383 | W40: =INDEX('Rate peg & SV'!$AM$16:$AM$143,MATCH(B40,'Rate peg & SV'!$B$16:$B$143,0)) -> 1 | X40: =IF($D$5='BCC Inputs'!$B$21,AF40,AF40*W40) -> 0.03 | Y40: 0.47 | AF40: 0.03
B41: =Names!I24 -> 73 | C41: =INDEX(Names!$K$9:$K$136,MATCH(B41,Names!$I$9:$I$136,0)) -> Rural | D41: =Names!F24 -> Brewarrina | E41: 0.03594422934 | F41: 0 | G41: =INDEX('ESL calcs'!$Z$12:$AD$139,MATCH($B41,'ESL calcs'!$C$12:$C$139,0),MATCH($D$5,'ESL calcs'!$Z$10:$AD$10,0)) -> -0.0117491488 | H41: =INDEX('ESL calcs'!$BC$12:$BG$139,MATCH($B41,'ESL calcs'!$C$12:$C$139,0),MATCH($D$5,'ESL calcs'!$BC$10:$BG$10,0)) -> 0.01905222666 | I41: =INDEX('Pop calcs'!$D29:$I29,MATCH($D$5,'Pop calcs'!$D$12:$I$12,0)) -> 0 | J41: =INDEX('Pop calcs'!$K29:$P29,MATCH($D$5,'Pop calcs'!$K$12:$P$12,0)) -> 0.001785714286 | K41: 0 | L41: =IF($D$5=2025,INDEX('Pop calcs'!$AF$14:$AF$141,MATCH($B41,'Pop calcs'!$B$14:$B$141,0)),IFERROR(INDEX('Pop calcs'!$Y29:$Z29,MATCH($D$5,'Pop calcs'!$Y$12:$Z$12,0)),0)) -> 0 | M41: 0 | N41: =INDEX('2024 Election costs'!$AA$24:$AA$151,MATCH(B41,'2024 Election costs'!$B$24:$B$151,0)) -> 0.008133257959 | O41: 0 | P41: 0.051 | Q41: 0.051 | T41: =INDEX('ESL calcs'!$AN$12:$AN$139,MATCH(B41,'ESL calcs'!$C$12:$C$139,0)) -> 0.5 | U41: 0.007303077854 | W41: =INDEX('Rate peg & SV'!$AM$16:$AM$143,MATCH(B41,'Rate peg & SV'!$B$16:$B$143,0)) -> 1 | X41: =IF($D$5='BCC Inputs'!$B$21,AF41,AF41*W41) -> 0.096 | Y41: 0.404 | AF41: 0.096
B42: =Names!I25 -> 74 | C42: =INDEX(Names!$K$9:$K$136,MATCH(B42,Names!$I$9:$I$136,0)) -> Regional | D42: =Names!F25 -> Broken Hill | E42: 0.03584587895 | F42: 0 | G42: =INDEX('ESL calcs'!$Z$12:$AD$139,MATCH($B42,'ESL calcs'!$C$12:$C$139,0),MATCH($D$5,'ESL calcs'!$Z$10:$AD$10,0)) -> -0.002593105401 | H42: =INDEX('ESL calcs'!$BC$12:$BG$139,MATCH($B42,'ESL calcs'!$C$12:$C$139,0),MATCH($D$5,'ESL calcs'!$BC$10:$BG$10,0)) -> 0.003196538295 | I42: =INDEX('Pop calcs'!$D30:$I30,MATCH($D$5,'Pop calcs'!$D$12:$I$12,0)) -> 0.00199623567 | J42: =INDEX('Pop calcs'!$K30:$P30,MATCH($D$5,'Pop calcs'!$K$12:$P$12,0)) -> 0 | K42: 0.00199623567 | L42: =IF($D$5=2025,INDEX('Pop calcs'!$AF$14:$AF$141,MATCH($B42,'Pop calcs'!$B$14:$B$141,0)),IFERROR(INDEX('Pop calcs'!$Y30:$Z30,MATCH($D$5,'Pop calcs'!$Y$12:$Z$12,0)),0)) -> 0 | M42: 0.002 | N42: =INDEX('2024 Election costs'!$AA$24:$AA$151,MATCH(B42,'2024 Election costs'!$B$24:$B$151,0)) -> 0.001932812439 | O42: 0 | P42: 0.04 | Q42: 0.038 | T42: =INDEX('ESL calcs'!$AN$12:$AN$139,MATCH(B42,'ESL calcs'!$C$12:$C$139,0)) -> 0.5 | U42: 0.000603432894 | W42: =INDEX('Rate peg & SV'!$AM$16:$AM$143,MATCH(B42,'Rate peg & SV'!$B$16:$B$143,0)) -> 1 | X42: =IF($D$5='BCC Inputs'!$B$21,AF42,AF42*W42) -> 0 | Y42: 0.5 | AF42: 0
B43: =Names!I26 -> 75 | C43: =INDEX(Names!$K$9:$K$136,MATCH(B43,Names!$I$9:$I$136,0)) -> Metropolitan | D43: =Names!F26 -> Burwood | E43: 0.03564768825 | F43: 0 | G43: =INDEX('ESL calcs'!$Z$12:$AD$139,MATCH($B43,'ESL calcs'!$C$12:$C$139,0),MATCH($D$5,'ESL calcs'!$Z$10:$AD$10,0)) -> -0.005009532266 | H43: =INDEX('ESL calcs'!$BC$12:$BG$139,MATCH($B43,'ESL calcs'!$C$12:$C$139,0),MATCH($D$5,'ESL calcs'!$BC$10:$BG$10,0)) -> 0.005009532266 | I43: =INDEX('Pop calcs'!$D31:$I31,MATCH($D$5,'Pop calcs'!$D$12:$I$12,0)) -> 0.04034271726 | J43: =INDEX('Pop calcs'!$K31:$P31,MATCH($D$5,'Pop calcs'!$K$12:$P$12,0)) -> 0.002078497939 | K43: 0.03826421932 | L43: =IF($D$5=2025,INDEX('Pop calcs'!$AF$14:$AF$141,MATCH($B43,'Pop calcs'!$B$14:$B$141,0)),IFERROR(INDEX('Pop calcs'!$Y31:$Z31,MATCH($D$5,'Pop calcs'!$Y$12:$Z$12,0)),0)) -> 0 | M43: 0.038 | N43: =INDEX('2024 Election costs'!$AA$24:$AA$151,MATCH(B43,'2024 Election costs'!$B$24:$B$151,0)) -> 0.002067730794 | O43: 0 | P43: 0.076 | Q43: 0.038 | T43: =INDEX('ESL calcs'!$AN$12:$AN$139,MATCH(B43,'ESL calcs'!$C$12:$C$139,0)) -> 0.8367143951 | U43: 0 | W43: =INDEX('Rate peg & SV'!$AM$16:$AM$143,MATCH(B43,'Rate peg & SV'!$B$16:$B$143,0)) -> 1 | X43: =IF($D$5='BCC Inputs'!$B$21,AF43,AF43*W43) -> 0 | Y43: 0.8367143951 | AF43: 0
B44: =Names!I27 -> 76 | C44: =INDEX(Names!$K$9:$K$136,MATCH(B44,Names!$I$9:$I$136,0)) -> Regional | D44: =Names!F27 -> Byron | E44: 0.03584587895 | F44: 0 | G44: =INDEX('ESL calcs'!$Z$12:$AD$139,MATCH($B44,'ESL calcs'!$C$12:$C$139,0),MATCH($D$5,'ESL calcs'!$Z$10:$AD$10,0)) -> -0.002361355518 | H44: =INDEX('ESL calcs'!$BC$12:$BG$139,MATCH($B44,'ESL calcs'!$C$12:$C$139,0),MATCH($D$5,'ESL calcs'!$BC$10:$BG$10,0)) -> 0.002525407954 | I44: =INDEX('Pop calcs'!$D32:$I32,MATCH($D$5,'Pop calcs'!$D$12:$I$12,0)) -> 0.01676069453 | J44: =INDEX('Pop calcs'!$K32:$P32,MATCH($D$5,'Pop calcs'!$K$12:$P$12,0)) -> 0.003907915305 | K44: 0.01285277922 | L44: =IF($D$5=2025,INDEX('Pop calcs'!$AF$14:$AF$141,MATCH($B44,'Pop calcs'!$B$14:$B$141,0)),IFERROR(INDEX('Pop calcs'!$Y32:$Z32,MATCH($D$5,'Pop calcs'!$Y$12:$Z$12,0)),0)) -> 0 | M44: 0.013 | N44: =INDEX('2024 Election costs'!$AA$24:$AA$151,MATCH(B44,'2024 Election costs'!$B$24:$B$151,0)) -> 0.001370667415 | O44: 0 | P44: 0.05 | Q44: 0.037 | T44: =INDEX('ESL calcs'!$AN$12:$AN$139,MATCH(B44,'ESL calcs'!$C$12:$C$139,0)) -> 0.5 | U44: 0.0001640524362 | W44: =INDEX('Rate peg & SV'!$AM$16:$AM$143,MATCH(B44,'Rate peg & SV'!$B$16:$B$143,0)) -> 1 | X44: =IF($D$5='BCC Inputs'!$B$21,AF44,AF44*W44) -> 0 | Y44: 0.5 | AF44: 0
B45: =Names!I28 -> 77 | C45: =INDEX(Names!$K$9:$K$136,MATCH(B45,Names!$I$9:$I$136,0)) -> Rural | D45: =Names!F28 -> Cabonne | E45: 0.03594422934 | F45: 0 | G45: =INDEX('ESL calcs'!$Z$12:$AD$139,MATCH($B45,'ESL calcs'!$C$12:$C$139,0),MATCH($D$5,'ESL calcs'!$Z$10:$AD$10,0)) -> -0.004623783261 | H45: =INDEX('ESL calcs'!$BC$12:$BG$139,MATCH($B45,'ESL calcs'!$C$12:$C$139,0),MATCH($D$5,'ESL calcs'!$BC$10:$BG$10,0)) -> 0.00660481002 | I45: =INDEX('Pop calcs'!$D33:$I33,MATCH($D$5,'Pop calcs'!$D$12:$I$12,0)) -> 0.002672831034 | J45: =INDEX('Pop calcs'!$K33:$P33,MATCH($D$5,'Pop calcs'!$K$12:$P$12,0)) -> 0 | K45: 0.002672831034 | L45: =IF($D$5=2025,INDEX('Pop calcs'!$AF$14:$AF$141,MATCH($B45,'Pop calcs'!$B$14:$B$141,0)),IFERROR(INDEX('Pop calcs'!$Y33:$Z33,MATCH($D$5,'Pop calcs'!$Y$12:$Z$12,0)),0)) -> 0 | M45: 0.003 | N45: =INDEX('2024 Election costs'!$AA$24:$AA$151,MATCH(B45,'2024 Election costs'!$B$24:$B$151,0)) -> 0.002887770163 | O45: 0 | P45: 0.044 | Q45: 0.041 | T45: =INDEX('ESL calcs'!$AN$12:$AN$139,MATCH(B45,'ESL calcs'!$C$12:$C$139,0)) -> 0.5 | U45: 0.00198102676 | W45: =INDEX('Rate peg & SV'!$AM$16:$AM$143,MATCH(B45,'Rate peg & SV'!$B$16:$B$143,0)) -> 1 | X45: =IF($D$5='BCC Inputs'!$B$21,AF45,AF45*W45) -> 0.1 | Y45: 0.4 | AF45: 0.1
B46: =Names!I29 -> 78 | C46: =INDEX(Names!$K$9:$K$136,MATCH(B46,Names!$I$9:$I$136,0)) -> Metropolitan | D46: =Names!F29 -> Camden | E46: 0.03564768825 | F46: 0 | G46: =INDEX('ESL calcs'!$Z$12:$AD$139,MATCH($B46,'ESL calcs'!$C$12:$C$139,0),MATCH($D$5,'ESL calcs'!$Z$10:$AD$10,0)) -> 0.002817886289 | H46: =INDEX('ESL calcs'!$BC$12:$BG$139,MATCH($B46,'ESL calcs'!$C$12:$C$139,0),MATCH($D$5,'ESL calcs'!$BC$10:$BG$10,0)) -> 0.002170209755 | I46: =INDEX('Pop calcs'!$D34:$I34,MATCH($D$5,'Pop calcs'!$D$12:$I$12,0)) -> 0.05479312719 | J46: =INDEX('Pop calcs'!$K34:$P34,MATCH($D$5,'Pop calcs'!$K$12:$P$12,0)) -> 0.02247127811 | K46: 0.03232184908 | L46: =IF($D$5=2025,INDEX('Pop calcs'!$AF$14:$AF$141,MATCH($B46,'Pop calcs'!$B$14:$B$141,0)),IFERROR(INDEX('Pop calcs'!$Y34:$Z34,MATCH($D$5,'Pop calcs'!$Y$12:$Z$12,0)),0)) -> 0 | M46: 0.032 | N46: =INDEX('2024 Election costs'!$AA$24:$AA$151,MATCH(B46,'2024 Election costs'!$B$24:$B$151,0)) -> 0.002465013326 | O46: 0 | P46: 0.075 | Q46: 0.043 | T46: =INDEX('ESL calcs'!$AN$12:$AN$139,MATCH(B46,'ESL calcs'!$C$12:$C$139,0)) -> 0.5 | U46: 0.004988096044 | W46: =INDEX('Rate peg & SV'!$AM$16:$AM$143,MATCH(B46,'Rate peg & SV'!$B$16:$B$143,0)) -> 1 | X46: =IF($D$5='BCC Inputs'!$B$21,AF46,AF46*W46) -> 0 | Y46: 0.5 | AF46: 0
B47: =Names!I30 -> 79 | C47: =INDEX(Names!$K$9:$K$136,MATCH(B47,Names!$I$9:$I$136,0)) -> Metropolitan | D47: =Names!F30 -> Campbelltown | E47: 0.03564768825 | F47: 0 | G47: =INDEX('ESL calcs'!$Z$12:$AD$139,MATCH($B47,'ESL calcs'!$C$12:$C$139,0),MATCH($D$5,'ESL calcs'!$Z$10:$AD$10,0)) -> -0.002662621547 | H47: =INDEX('ESL calcs'!$BC$12:$BG$139,MATCH($B47,'ESL calcs'!$C$12:$C$139,0),MATCH($D$5,'ESL calcs'!$BC$10:$BG$10,0)) -> 0.002956752354 | I47: =INDEX('Pop calcs'!$D35:$I35,MATCH($D$5,'Pop calcs'!$D$12:$I$12,0)) -> 0.02443216153 | J47: =INDEX('Pop calcs'!$K35:$P35,MATCH($D$5,'Pop calcs'!$K$12:$P$12,0)) -> 0.006798577408 | K47: =IFERROR(MAX(0,I47-J47),0) -> 0.01763358412 | L47: =IF($D$5=2025,INDEX('Pop calcs'!$AF$14:$AF$141,MATCH($B47,'Pop calcs'!$B$14:$B$141,0)),IFERROR(INDEX('Pop calcs'!$Y35:$Z35,MATCH($D$5,'Pop calcs'!$Y$12:$Z$12,0)),0)) -> 0 | M47: 0.018 | N47: =INDEX('2024 Election costs'!$AA$24:$AA$151,MATCH(B47,'2024 Election costs'!$B$24:$B$151,0)) -> 0.001050757959 | O47: 0 | P47: 0.055 | Q47: =P47-M47 -> 0.037 | T47: =INDEX('ESL calcs'!$AN$12:$AN$139,MATCH(B47,'ESL calcs'!$C$12:$C$139,0)) -> 0.5 | U47: 0.0002941308077 | W47: =INDEX('Rate peg & SV'!$AM$16:$AM$143,MATCH(B47,'Rate peg & SV'!$B$16:$B$143,0)) -> 1 | X47: =IF($D$5='BCC Inputs'!$B$21,AF47,AF47*W47) -> 0 | Y47: 0.5 | AF47: 0
B48: =Names!I31 -> 1989 | C48: =INDEX(Names!$K$9:$K$136,MATCH(B48,Names!$I$9:$I$136,0)) -> Metropolitan | D48: =Names!F31 -> Canada Bay | E48: 0.03564768825 | F48: 0 | G48: =INDEX('ESL calcs'!$Z$12:$AD$139,MATCH($B48,'ESL calcs'!$C$12:$C$139,0),MATCH($D$5,'ESL calcs'!$Z$10:$AD$10,0)) -> -0.004719765489 | H48: =INDEX('ESL calcs'!$BC$12:$BG$139,MATCH($B48,'ESL calcs'!$C$12:$C$139,0),MATCH($D$5,'ESL calcs'!$BC$10:$BG$10,0)) -> 0.004880846201 | I48: =INDEX('Pop calcs'!$D36:$I36,MATCH($D$5,'Pop calcs'!$D$12:$I$12,0)) -> 0.02408220897 | J48: =INDEX('Pop calcs'!$K36:$P36,MATCH($D$5,'Pop calcs'!$K$12:$P$12,0)) -> 0.001622586403 | K48: 0.02245962257 | L48: =IF($D$5=2025,INDEX('Pop calcs'!$AF$14:$AF$141,MATCH($B48,'Pop calcs'!$B$14:$B$141,0)),IFERROR(INDEX('Pop calcs'!$Y36:$Z36,MATCH($D$5,'Pop calcs'!$Y$12:$Z$12,0)),0)) -> -0.02245962257 | M48: 0 | N48: =INDEX('2024 Election costs'!$AA$24:$AA$151,MATCH(B48,'2024 Election costs'!$B$24:$B$151,0)) -> 0.002579004351 | O48: 0 | P48: 0.038 | Q48: 0.038 | T48: =INDEX('ESL calcs'!$AN$12:$AN$139,MATCH(B48,'ESL calcs'!$C$12:$C$139,0)) -> 0.5 | U48: 0.0001610807118 | W48: =INDEX('Rate peg & SV'!$AM$16:$AM$143,MATCH(B48,'Rate peg & SV'!$B$16:$B$143,0)) -> 1 | X48: =IF($D$5='BCC Inputs'!$B$21,AF48,AF48*W48) -> 0 | Y48: 0.5 | AF48: 0
B49: =Names!I32 -> 2080 | C49: =INDEX(Names!$K$9:$K$136,MATCH(B49,Names!$I$9:$I$136,0)) -> Metropolitan | D49: =Names!F32 -> Canterbury-Bankstown | E49: 0.03564768825 | F49: 0 | G49: =INDEX('ESL calcs'!$Z$12:$AD$139,MATCH($B49,'ESL calcs'!$C$12:$C$139,0),MATCH($D$5,'ESL calcs'!$Z$10:$AD$10,0)) -> -0.004253656956 | H49: =INDEX('ESL calcs'!$BC$12:$BG$139,MATCH($B49,'ESL calcs'!$C$12:$C$139,0),MATCH($D$5,'ESL calcs'!$BC$10:$BG$10,0)) -> 0.004175685616 | I49: =INDEX('Pop calcs'!$D37:$I37,MATCH($D$5,'Pop calcs'!$D$12:$I$12,0)) -> 0.02071917854 | J49: =INDEX('Pop calcs'!$K37:$P37,MATCH($D$5,'Pop calcs'!$K$12:$P$12,0)) -> 0.00249279224 | K49: 0.0182263863 | L49: =IF($D$5=2025,INDEX('Pop calcs'!$AF$14:$AF$141,MATCH($B49,'Pop calcs'!$B$14:$B$141,0)),IFERROR(INDEX('Pop calcs'!$Y37:$Z37,MATCH($D$5,'Pop calcs'!$Y$12:$Z$12,0)),0)) -> 0 | M49: 0.018 | N49: =INDEX('2024 Election costs'!$AA$24:$AA$151,MATCH(B49,'2024 Election costs'!$B$24:$B$151,0)) -> 0.001486009321 | O49: 0 | P49: 0.055 | Q49: 0.037 | T49: =INDEX('ESL calcs'!$AN$12:$AN$139,MATCH(B49,'ESL calcs'!$C$12:$C$139,0)) -> 1 | U49: -7.797133947e-05 | W49: =INDEX('Rate peg & SV'!$AM$16:$AM$143,MATCH(B49,'Rate peg & SV'!$B$16:$B$143,0)) -> 0 | X49: =IF($D$5='BCC Inputs'!$B$21,AF49,AF49*W49) -> 0 | Y49: 1 | AF49: 0
B50: =Names!I33 -> 81 | C50: =INDEX(Names!$K$9:$K$136,MATCH(B50,Names!$I$9:$I$136,0)) -> Rural | D50: =Names!F33 -> Carrathool | E50: 0.03594422934 | F50: 0 | G50: =INDEX('ESL calcs'!$Z$12:$AD$139,MATCH($B50,'ESL calcs'!$C$12:$C$139,0),MATCH($D$5,'ESL calcs'!$Z$10:$AD$10,0)) -> -0.005027279079 | H50: =INDEX('ESL calcs'!$BC$12:$BG$139,MATCH($B50,'ESL calcs'!$C$12:$C$139,0),MATCH($D$5,'ESL calcs'!$BC$10:$BG$10,0)) -> 0.007747293311 | I50: =INDEX('Pop calcs'!$D38:$I38,MATCH($D$5,'Pop calcs'!$D$12:$I$12,0)) -> 0 | J50: =INDEX('Pop calcs'!$K38:$P38,MATCH($D$5,'Pop calcs'!$K$12:$P$12,0)) -> 0.003313086692 | K50: 0 | L50: =IF($D$5=2025,INDEX('Pop calcs'!$AF$14:$AF$141,MATCH($B50,'Pop calcs'!$B$14:$B$141,0)),IFERROR(INDEX('Pop calcs'!$Y38:$Z38,MATCH($D$5,'Pop calcs'!$Y$12:$Z$12,0)),0)) -> 0 | M50: 0 | N50: =INDEX('2024 Election costs'!$AA$24:$AA$151,MATCH(B50,'2024 Election costs'!$B$24:$B$151,0)) -> 0.001615668132 | O50: 0 | P50: 0.04 | Q50: 0.04 | T50: =INDEX('ESL calcs'!$AN$12:$AN$139,MATCH(B50,'ESL calcs'!$C$12:$C$139,0)) -> 0.5 | U50: 0.002720014232 | W50: =INDEX('Rate peg & SV'!$AM$16:$AM$143,MATCH(B50,'Rate peg & SV'!$B$16:$B$143,0)) -> 1 | X50: =IF($D$5='BCC Inputs'!$B$21,AF50,AF50*W50) -> 0.174 | Y50: 0.326 | AF50: 0.174
B51: =Names!I34 -> 2088 | C51: =INDEX(Names!$K$9:$K$136,MATCH(B51,Names!$I$9:$I$136,0)) -> Metropolitan | D51: =Names!F34 -> Central Coast | E51: 0.03564768825 | F51: 0 | G51: =INDEX('ESL calcs'!$Z$12:$AD$139,MATCH($B51,'ESL calcs'!$C$12:$C$139,0),MATCH($D$5,'ESL calcs'!$Z$10:$AD$10,0)) -> -0.003194716048 | H51: =INDEX('ESL calcs'!$BC$12:$BG$139,MATCH($B51,'ESL calcs'!$C$12:$C$139,0),MATCH($D$5,'ESL calcs'!$BC$10:$BG$10,0)) -> 0.00349315642 | I51: =INDEX('Pop calcs'!$D39:$I39,MATCH($D$5,'Pop calcs'!$D$12:$I$12,0)) -> 0.007899387354 | J51: =INDEX('Pop calcs'!$K39:$P39,MATCH($D$5,'Pop calcs'!$K$12:$P$12,0)) -> 0.002707254266 | K51: 0.005192133087 | L51: =IF($D$5=2025,INDEX('Pop calcs'!$AF$14:$AF$141,MATCH($B51,'Pop calcs'!$B$14:$B$141,0)),IFERROR(INDEX('Pop calcs'!$Y39:$Z39,MATCH($D$5,'Pop calcs'!$Y$12:$Z$12,0)),0)) -> 0 | M51: 0.005 | N51: =INDEX('2024 Election costs'!$AA$24:$AA$151,MATCH(B51,'2024 Election costs'!$B$24:$B$151,0)) -> 0.002220881081 | O51: 0 | P51: 0.043 | Q51: 0.038 | T51: =INDEX('ESL calcs'!$AN$12:$AN$139,MATCH(B51,'ESL calcs'!$C$12:$C$139,0)) -> 0.5 | U51: 0.0002984403716 | W51: =INDEX('Rate peg & SV'!$AM$16:$AM$143,MATCH(B51,'Rate peg & SV'!$B$16:$B$143,0)) -> 1 | X51: =IF($D$5='BCC Inputs'!$B$21,AF51,AF51*W51) -> 0 | Y51: 0.5 | AF51: 0
B52: =Names!I35 -> 83 | C52: =INDEX(Names!$K$9:$K$136,MATCH(B52,Names!$I$9:$I$136,0)) -> Rural | D52: =Names!F35 -> Central Darling | E52: 0.03594422934 | F52: 0 | G52: =INDEX('ESL calcs'!$Z$12:$AD$139,MATCH($B52,'ESL calcs'!$C$12:$C$139,0),MATCH($D$5,'ESL calcs'!$Z$10:$AD$10,0)) -> -0.01719323877 | H52: =INDEX('ESL calcs'!$BC$12:$BG$139,MATCH($B52,'ESL calcs'!$C$12:$C$139,0),MATCH($D$5,'ESL calcs'!$BC$10:$BG$10,0)) -> 0.02902364339 | I52: =INDEX('Pop calcs'!$D40:$I40,MATCH($D$5,'Pop calcs'!$D$12:$I$12,0)) -> 0.00457404231 | J52: =INDEX('Pop calcs'!$K40:$P40,MATCH($D$5,'Pop calcs'!$K$12:$P$12,0)) -> 0 | K52: 0.00457404231 | L52: =IF($D$5=2025,INDEX('Pop calcs'!$AF$14:$AF$141,MATCH($B52,'Pop calcs'!$B$14:$B$141,0)),IFERROR(INDEX('Pop calcs'!$Y40:$Z40,MATCH($D$5,'Pop calcs'!$Y$12:$Z$12,0)),0)) -> 0 | M52: 0.005 | N52: =INDEX('2024 Election costs'!$AA$24:$AA$151,MATCH(B52,'2024 Election costs'!$B$24:$B$151,0)) -> 0 | O52: 0 | P52: 0.053 | Q52: 0.048 | T52: =INDEX('ESL calcs'!$AN$12:$AN$139,MATCH(B52,'ESL calcs'!$C$12:$C$139,0)) -> 0.5 | U52: 0.01183040461 | W52: =INDEX('Rate peg & SV'!$AM$16:$AM$143,MATCH(B52,'Rate peg & SV'!$B$16:$B$143,0)) -> 1 | X52: =IF($D$5='BCC Inputs'!$B$21,AF52,AF52*W52) -> 0.124 | Y52: 0.376 | AF52: 0.124
B53: =Names!I36 -> 84 | C53: =INDEX(Names!$K$9:$K$136,MATCH(B53,Names!$I$9:$I$136,0)) -> Regional | D53: =Names!F36 -> Cessnock | E53: 0.03584587895 | F53: 0 | G53: =INDEX('ESL calcs'!$Z$12:$AD$139,MATCH($B53,'ESL calcs'!$C$12:$C$139,0),MATCH($D$5,'ESL calcs'!$Z$10:$AD$10,0)) -> -0.002816640745 | H53: =INDEX('ESL calcs'!$BC$12:$BG$139,MATCH($B53,'ESL calcs'!$C$12:$C$139,0),MATCH($D$5,'ESL calcs'!$BC$10:$BG$10,0)) -> 0.003812583646 | I53: =INDEX('Pop calcs'!$D41:$I41,MATCH($D$5,'Pop calcs'!$D$12:$I$12,0)) -> 0.02317527558 | J53: =INDEX('Pop calcs'!$K41:$P41,MATCH($D$5,'Pop calcs'!$K$12:$P$12,0)) -> 0.01508687046 | K53: 0.008088405119 | L53: =IF($D$5=2025,INDEX('Pop calcs'!$AF$14:$AF$141,MATCH($B53,'Pop calcs'!$B$14:$B$141,0)),IFERROR(INDEX('Pop calcs'!$Y41:$Z41,MATCH($D$5,'Pop calcs'!$Y$12:$Z$12,0)),0)) -> 0 | M53: 0.008 | N53: =INDEX('2024 Election costs'!$AA$24:$AA$151,MATCH(B53,'2024 Election costs'!$B$24:$B$151,0)) -> 0.002481271974 | O53: 0 | P53: 0.047 | Q53: 0.039 | T53: =INDEX('ESL calcs'!$AN$12:$AN$139,MATCH(B53,'ESL calcs'!$C$12:$C$139,0)) -> 0.5 | U53: 0.0009959429012 | W53: =INDEX('Rate peg & SV'!$AM$16:$AM$143,MATCH(B53,'Rate peg & SV'!$B$16:$B$143,0)) -> 1 | X53: =IF($D$5='BCC Inputs'!$B$21,AF53,AF53*W53) -> 0 | Y53: 0.5 | AF53: 0
B54: =Names!I37 -> 2037 | C54: =INDEX(Names!$K$9:$K$136,MATCH(B54,Names!$I$9:$I$136,0)) -> Regional | D54: =Names!F37 -> Clarence Valley | E54: 0.03584587895 | F54: 0 | G54: =INDEX('ESL calcs'!$Z$12:$AD$139,MATCH($B54,'ESL calcs'!$C$12:$C$139,0),MATCH($D$5,'ESL calcs'!$Z$10:$AD$10,0)) -> -0.003322668206 | H54: =INDEX('ESL calcs'!$BC$12:$BG$139,MATCH($B54,'ESL calcs'!$C$12:$C$139,0),MATCH($D$5,'ESL calcs'!$BC$10:$BG$10,0)) -> 0.004895822341 | I54: =INDEX('Pop calcs'!$D42:$I42,MATCH($D$5,'Pop calcs'!$D$12:$I$12,0)) -> 0.01099824476 | J54: =INDEX('Pop calcs'!$K42:$P42,MATCH($D$5,'Pop calcs'!$K$12:$P$12,0)) -> 0.007997515335 | K54: 0.003000729427 | L54: =IF($D$5=2025,INDEX('Pop calcs'!$AF$14:$AF$141,MATCH($B54,'Pop calcs'!$B$14:$B$141,0)),IFERROR(INDEX('Pop calcs'!$Y42:$Z42,MATCH($D$5,'Pop calcs'!$Y$12:$Z$12,0)),0)) -> 0 | M54: 0.003 | N54: =INDEX('2024 Election costs'!$AA$24:$AA$151,MATCH(B54,'2024 Election costs'!$B$24:$B$151,0)) -> 0.002165567333 | O54: 0 | P54: 0.043 | Q54: 0.04 | T54: =INDEX('ESL calcs'!$AN$12:$AN$139,MATCH(B54,'ESL calcs'!$C$12:$C$139,0)) -> 0.5 | U54: 0.001573154135 | W54: =INDEX('Rate peg & SV'!$AM$16:$AM$143,MATCH(B54,'Rate peg & SV'!$B$16:$B$143,0)) -> 1 | X54: =IF($D$5='BCC Inputs'!$B$21,AF54,AF54*W54) -> 0.06 | Y54: 0.44 | AF54: 0.06
B55: =Names!I38 -> 85 | C55: =INDEX(Names!$K$9:$K$136,MATCH(B55,Names!$I$9:$I$136,0)) -> Rural | D55: =Names!F38 -> Cobar | E55: 0.03594422934 | F55: 0 | G55: =INDEX('ESL calcs'!$Z$12:$AD$139,MATCH($B55,'ESL calcs'!$C$12:$C$139,0),MATCH($D$5,'ESL calcs'!$Z$10:$AD$10,0)) -> -0.005352741697 | H55: =INDEX('ESL calcs'!$BC$12:$BG$139,MATCH($B55,'ESL calcs'!$C$12:$C$139,0),MATCH($D$5,'ESL calcs'!$BC$10:$BG$10,0)) -> 0.008177367052 | I55: =INDEX('Pop calcs'!$D43:$I43,MATCH($D$5,'Pop calcs'!$D$12:$I$12,0)) -> 0.007909045971 | J55: =INDEX('Pop calcs'!$K43:$P43,MATCH($D$5,'Pop calcs'!$K$12:$P$12,0)) -> 0.001866542231 | K55: 0.006042503741 | L55: =IF($D$5=2025,INDEX('Pop calcs'!$AF$14:$AF$141,MATCH($B55,'Pop calcs'!$B$14:$B$141,0)),IFERROR(INDEX('Pop calcs'!$Y43:$Z43,MATCH($D$5,'Pop calcs'!$Y$12:$Z$12,0)),0)) -> 0 | M55: 0.006 | N55: =INDEX('2024 Election costs'!$AA$24:$AA$151,MATCH(B55,'2024 Election costs'!$B$24:$B$151,0)) -> 0 | O55: 0 | P55: 0.045 | Q55: 0.039 | T55: =INDEX('ESL calcs'!$AN$12:$AN$139,MATCH(B55,'ESL calcs'!$C$12:$C$139,0)) -> 0.5 | U55: 0.002824625354 | W55: =INDEX('Rate peg & SV'!$AM$16:$AM$143,MATCH(B55,'Rate peg & SV'!$B$16:$B$143,0)) -> 1 | X55: =IF($D$5='BCC Inputs'!$B$21,AF55,AF55*W55) -> 0.1 | Y55: 0.4 | AF55: 0.1
B56: =Names!I39 -> 86 | C56: =INDEX(Names!$K$9:$K$136,MATCH(B56,Names!$I$9:$I$136,0)) -> Regional | D56: =Names!F39 -> Coffs Harbour | E56: 0.03584587895 | F56: 0 | G56: =INDEX('ESL calcs'!$Z$12:$AD$139,MATCH($B56,'ESL calcs'!$C$12:$C$139,0),MATCH($D$5,'ESL calcs'!$Z$10:$AD$10,0)) -> -0.003211572329 | H56: =INDEX('ESL calcs'!$BC$12:$BG$139,MATCH($B56,'ESL calcs'!$C$12:$C$139,0),MATCH($D$5,'ESL calcs'!$BC$10:$BG$10,0)) -> 0.004174900782 | I56: =INDEX('Pop calcs'!$D44:$I44,MATCH($D$5,'Pop calcs'!$D$12:$I$12,0)) -> 0.009582941361 | J56: =INDEX('Pop calcs'!$K44:$P44,MATCH($D$5,'Pop calcs'!$K$12:$P$12,0)) -> 0.00335125867 | K56: 0.006231682691 | L56: =IF($D$5=2025,INDEX('Pop calcs'!$AF$14:$AF$141,MATCH($B56,'Pop calcs'!$B$14:$B$141,0)),IFERROR(INDEX('Pop calcs'!$Y44:$Z44,MATCH($D$5,'Pop calcs'!$Y$12:$Z$12,0)),0)) -> 0 | M56: 0.006 | N56: =INDEX('2024 Election costs'!$AA$24:$AA$151,MATCH(B56,'2024 Election costs'!$B$24:$B$151,0)) -> 0.002904257263 | O56: 0 | P56: 0.046 | Q56: 0.04 | T56: =INDEX('ESL calcs'!$AN$12:$AN$139,MATCH(B56,'ESL calcs'!$C$12:$C$139,0)) -> 0.5 | U56: 0.0009633284532 | W56: =INDEX('Rate peg & SV'!$AM$16:$AM$143,MATCH(B56,'Rate peg & SV'!$B$16:$B$143,0)) -> 1 | X56: =IF($D$5='BCC Inputs'!$B$21,AF56,AF56*W56) -> 0 | Y56: 0.5 | AF56: 0
B57: =Names!I40 -> 90 | C57: =INDEX(Names!$K$9:$K$136,MATCH(B57,Names!$I$9:$I$136,0)) -> Rural | D57: =Names!F40 -> Coolamon | E57: 0.03594422934 | F57: 0 | G57: =INDEX('ESL calcs'!$Z$12:$AD$139,MATCH($B57,'ESL calcs'!$C$12:$C$139,0),MATCH($D$5,'ESL calcs'!$Z$10:$AD$10,0)) -> -0.009918827635 | H57: =INDEX('ESL calcs'!$BC$12:$BG$139,MATCH($B57,'ESL calcs'!$C$12:$C$139,0),MATCH($D$5,'ESL calcs'!$BC$10:$BG$10,0)) -> 0.01224230128 | I57: =INDEX('Pop calcs'!$D45:$I45,MATCH($D$5,'Pop calcs'!$D$12:$I$12,0)) -> 0.01881298992 | J57: =INDEX('Pop calcs'!$K45:$P45,MATCH($D$5,'Pop calcs'!$K$12:$P$12,0)) -> 0.001138519924 | K57: 0.01767447 | L57: =IF($D$5=2025,INDEX('Pop calcs'!$AF$14:$AF$141,MATCH($B57,'Pop calcs'!$B$14:$B$141,0)),IFERROR(INDEX('Pop calcs'!$Y45:$Z45,MATCH($D$5,'Pop calcs'!$Y$12:$Z$12,0)),0)) -> 0 | M57: 0.018 | N57: =INDEX('2024 Election costs'!$AA$24:$AA$151,MATCH(B57,'2024 Election costs'!$B$24:$B$151,0)) -> 0.00632500187 | O57: 0 | P57: 0.063 | Q57: 0.045 | T57: =INDEX('ESL calcs'!$AN$12:$AN$139,MATCH(B57,'ESL calcs'!$C$12:$C$139,0)) -> 0.5 | U57: 0.00232347364 | W57: =INDEX('Rate peg & SV'!$AM$16:$AM$143,MATCH(B57,'Rate peg & SV'!$B$16:$B$143,0)) -> 1 | X57: =IF($D$5='BCC Inputs'!$B$21,AF57,AF57*W57) -> 0.13 | Y57: 0.37 | AF57: 0.13
B58: =Names!I41 -> 93 | C58: =INDEX(Names!$K$9:$K$136,MATCH(B58,Names!$I$9:$I$136,0)) -> Rural | D58: =Names!F41 -> Coonamble | E58: =INDEX($D$9:$F$9,MATCH(C58,$D$8:$F$8,0)) -> 0.03594422934 | F58: =INDEX($D$12:$F$12,MATCH(C58,$D$8:$F$8,0)) -> 0 | G58: =INDEX('ESL calcs'!$Z$12:$AD$139,MATCH($B58,'ESL calcs'!$C$12:$C$139,0),MATCH($D$5,'ESL calcs'!$Z$10:$AD$10,0)) -> -0.00300581633 | H58: =INDEX('ESL calcs'!$BC$12:$BG$139,MATCH($B58,'ESL calcs'!$C$12:$C$139,0),MATCH($D$5,'ESL calcs'!$BC$10:$BG$10,0)) -> 0.003810132632 | I58: =INDEX('Pop calcs'!$D46:$I46,MATCH($D$5,'Pop calcs'!$D$12:$I$12,0)) -> 0.009411764706 | J58: =INDEX('Pop calcs'!$K46:$P46,MATCH($D$5,'Pop calcs'!$K$12:$P$12,0)) -> 0.0003897116134 | K58: 0.009022053092 | L58: =IF($D$5=2025,INDEX('Pop calcs'!$AF$14:$AF$141,MATCH($B58,'Pop calcs'!$B$14:$B$141,0)),IFERROR(INDEX('Pop calcs'!$Y46:$Z46,MATCH($D$5,'Pop calcs'!$Y$12:$Z$12,0)),0)) -> 0 | M58: =IFERROR(MAX(0,ROUND(K58+L58,$D$14)),".") -> 0.009 | N58: =INDEX('2024 Election costs'!$AA$24:$AA$151,MATCH(B58,'2024 Election costs'!$B$24:$B$151,0)) -> 0.001567745379 | O58: 0 | P58: =M58+ROUND(E58+F58+G58+H58+N58-O58,$D$14) -> 0.047 | Q58: =P58-M58 -> 0.038 | T58: =INDEX('ESL calcs'!$AN$12:$AN$139,MATCH(B58,'ESL calcs'!$C$12:$C$139,0)) -> 0.5 | U58: =SUM(G58:H58) -> 0.0008043163017 | W58: =INDEX('Rate peg & SV'!$AM$16:$AM$143,MATCH(B58,'Rate peg & SV'!$B$16:$B$143,0)) -> 1 | X58: =IF($D$5='BCC Inputs'!$B$21,AF58,AF58*W58) -> 0.14 | Y58: 0.36 | AF58: 0.14
B59: =Names!I42 -> 2094 | C59: =INDEX(Names!$K$9:$K$136,MATCH(B59,Names!$I$9:$I$136,0)) -> Rural | D59: =Names!F42 -> Cootamundra-Gundagai Regional | E59: 0.03594422934 | F59: 0 | G59: =INDEX('ESL calcs'!$Z$12:$AD$139,MATCH($B59,'ESL calcs'!$C$12:$C$139,0),MATCH($D$5,'ESL calcs'!$Z$10:$AD$10,0)) -> -0.004321117868 | H59: =INDEX('ESL calcs'!$BC$12:$BG$139,MATCH($B59,'ESL calcs'!$C$12:$C$139,0),MATCH($D$5,'ESL calcs'!$BC$10:$BG$10,0)) -> 0.008462280957 | I59: =INDEX('Pop calcs'!$D47:$I47,MATCH($D$5,'Pop calcs'!$D$12:$I$12,0)) -> 0.001841620626 | J59: =INDEX('Pop calcs'!$K47:$P47,MATCH($D$5,'Pop calcs'!$K$12:$P$12,0)) -> 0.0008413573899 | K59: 0.001000263236 | L59: =IF($D$5=2025,INDEX('Pop calcs'!$AF$14:$AF$141,MATCH($B59,'Pop calcs'!$B$14:$B$141,0)),IFERROR(INDEX('Pop calcs'!$Y47:$Z47,MATCH($D$5,'Pop calcs'!$Y$12:$Z$12,0)),0)) -> 0 | M59: 0.001 | N59: =INDEX('2024 Election costs'!$AA$24:$AA$151,MATCH(B59,'2024 Election costs'!$B$24:$B$151,0)) -> 0.005075398348 | O59: 0 | P59: 0.046 | Q59: 0.045 | T59: =INDEX('ESL calcs'!$AN$12:$AN$139,MATCH(B59,'ESL calcs'!$C$12:$C$139,0)) -> 0.5 | U59: 0.004141163089 | W59: =INDEX('Rate peg & SV'!$AM$16:$AM$143,MATCH(B59,'Rate peg & SV'!$B$16:$B$143,0)) -> 0 | X59: =IF($D$5='BCC Inputs'!$B$21,AF59,AF59*W59) -> 0 | Y59: 0.5 | AF59: 0.11
B60: =Names!I43 -> 97 | C60: =INDEX(Names!$K$9:$K$136,MATCH(B60,Names!$I$9:$I$136,0)) -> Rural | D60: =Names!F43 -> Cowra | E60: 0.03594422934 | F60: 0 | G60: =INDEX('ESL calcs'!$Z$12:$AD$139,MATCH($B60,'ESL calcs'!$C$12:$C$139,0),MATCH($D$5,'ESL calcs'!$Z$10:$AD$10,0)) -> -0.005035903534 | H60: =INDEX('ESL calcs'!$BC$12:$BG$139,MATCH($B60,'ESL calcs'!$C$12:$C$139,0),MATCH($D$5,'ESL calcs'!$BC$10:$BG$10,0)) -> 0.007755296928 | I60: =INDEX('Pop calcs'!$D48:$I48,MATCH($D$5,'Pop calcs'!$D$12:$I$12,0)) -> 0 | J60: =INDEX('Pop calcs'!$K48:$P48,MATCH($D$5,'Pop calcs'!$K$12:$P$12,0)) -> 0.004127829561 | K60: 0 | L60: =IF($D$5=2025,INDEX('Pop calcs'!$AF$14:$AF$141,MATCH($B60,'Pop calcs'!$B$14:$B$141,0)),IFERROR(INDEX('Pop calcs'!$Y48:$Z48,MATCH($D$5,'Pop calcs'!$Y$12:$Z$12,0)),0)) -> 0 | M60: 0 | N60: =INDEX('2024 Election costs'!$AA$24:$AA$151,MATCH(B60,'2024 Election costs'!$B$24:$B$151,0)) -> 0.003544857224 | O60: 0 | P60: 0.042 | Q60: 0.042 | T60: =INDEX('ESL calcs'!$AN$12:$AN$139,MATCH(B60,'ESL calcs'!$C$12:$C$139,0)) -> 0.5 | U60: 0.002719393394 | W60: =INDEX('Rate peg & SV'!$AM$16:$AM$143,MATCH(B60,'Rate peg & SV'!$B$16:$B$143,0)) -> 1 | X60: =IF($D$5='BCC Inputs'!$B$21,AF60,AF60*W60) -> 0.038 | Y60: 0.462 | AF60: 0.038
B61: =Names!I44 -> 2090 | C61: =INDEX(Names!$K$9:$K$136,MATCH(B61,Names!$I$9:$I$136,0)) -> Metropolitan | D61: =Names!F44 -> Cumberland | E61: 0.03564768825 | F61: 0 | G61: =INDEX('ESL calcs'!$Z$12:$AD$139,MATCH($B61,'ESL calcs'!$C$12:$C$139,0),MATCH($D$5,'ESL calcs'!$Z$10:$AD$10,0)) -> -0.004686360557 | H61: =INDEX('ESL calcs'!$BC$12:$BG$139,MATCH($B61,'ESL calcs'!$C$12:$C$139,0),MATCH($D$5,'ESL calcs'!$BC$10:$BG$10,0)) -> 0.004521734414 | I61: =INDEX('Pop calcs'!$D49:$I49,MATCH($D$5,'Pop calcs'!$D$12:$I$12,0)) -> 0.03296143268 | J61: =INDEX('Pop calcs'!$K49:$P49,MATCH($D$5,'Pop calcs'!$K$12:$P$12,0)) -> 0 | K61: 0.03296143268 | L61: =IF($D$5=2025,INDEX('Pop calcs'!$AF$14:$AF$141,MATCH($B61,'Pop calcs'!$B$14:$B$141,0)),IFERROR(INDEX('Pop calcs'!$Y49:$Z49,MATCH($D$5,'Pop calcs'!$Y$12:$Z$12,0)),0)) -> 0 | M61: 0.033 | N61: =INDEX('2024 Election costs'!$AA$24:$AA$151,MATCH(B61,'2024 Election costs'!$B$24:$B$151,0)) -> 0.002025393668 | O61: 0 | P61: 0.071 | Q61: 0.038 | T61: =INDEX('ESL calcs'!$AN$12:$AN$139,MATCH(B61,'ESL calcs'!$C$12:$C$139,0)) -> 1 | U61: -0.0001646261435 | W61: =INDEX('Rate peg & SV'!$AM$16:$AM$143,MATCH(B61,'Rate peg & SV'!$B$16:$B$143,0)) -> 1 | X61: =IF($D$5='BCC Inputs'!$B$21,AF61,AF61*W61) -> 0 | Y61: 1 | AF61: 0
B62: =Names!I45 -> 2098 | C62: =INDEX(Names!$K$9:$K$136,MATCH(B62,Names!$I$9:$I$136,0)) -> Regional | D62: =Names!F45 -> Dubbo Regional | E62: 0.03584587895 | F62: 0 | G62: =INDEX('ESL calcs'!$Z$12:$AD$139,MATCH($B62,'ESL calcs'!$C$12:$C$139,0),MATCH($D$5,'ESL calcs'!$Z$10:$AD$10,0)) -> -0.003102286186 | H62: =INDEX('ESL calcs'!$BC$12:$BG$139,MATCH($B62,'ESL calcs'!$C$12:$C$139,0),MATCH($D$5,'ESL calcs'!$BC$10:$BG$10,0)) -> 0.004906435013 | I62: =INDEX('Pop calcs'!$D50:$I50,MATCH($D$5,'Pop calcs'!$D$12:$I$12,0)) -> 0.009574910122 | J62: =INDEX('Pop calcs'!$K50:$P50,MATCH($D$5,'Pop calcs'!$K$12:$P$12,0)) -> 0.01538461538 | K62: 0 | L62: =IF($D$5=2025,INDEX('Pop calcs'!$AF$14:$AF$141,MATCH($B62,'Pop calcs'!$B$14:$B$141,0)),IFERROR(INDEX('Pop calcs'!$Y50:$Z50,MATCH($D$5,'Pop calcs'!$Y$12:$Z$12,0)),0)) -> 0 | M62: 0 | N62: =INDEX('2024 Election costs'!$AA$24:$AA$151,MATCH(B62,'2024 Election costs'!$B$24:$B$151,0)) -> 0.004674340867 | O62: 0 | P62: 0.042 | Q62: 0.042 | T62: =INDEX('ESL calcs'!$AN$12:$AN$139,MATCH(B62,'ESL calcs'!$C$12:$C$139,0)) -> 0.5 | U62: 0.001804148827 | W62: =INDEX('Rate peg & SV'!$AM$16:$AM$143,MATCH(B62,'Rate peg & SV'!$B$16:$B$143,0)) -> 1 | X62: =IF($D$5='BCC Inputs'!$B$21,AF62,AF62*W62) -> 0 | Y62: 0.5 | AF62: 0
B63: =Names!I46 -> 104 | C63: =INDEX(Names!$K$9:$K$136,MATCH(B63,Names!$I$9:$I$136,0)) -> Rural | D63: =Names!F46 -> Dungog | E63: 0.03594422934 | F63: 0 | G63: =INDEX('ESL calcs'!$Z$12:$AD$139,MATCH($B63,'ESL calcs'!$C$12:$C$139,0),MATCH($D$5,'ESL calcs'!$Z$10:$AD$10,0)) -> -0.004344821962 | H63: =INDEX('ESL calcs'!$BC$12:$BG$139,MATCH($B63,'ESL calcs'!$C$12:$C$139,0),MATCH($D$5,'ESL calcs'!$BC$10:$BG$10,0)) -> 0.006636887437 | I63: =INDEX('Pop calcs'!$D51:$I51,MATCH($D$5,'Pop calcs'!$D$12:$I$12,0)) -> 0.004732023454 | J63: =INDEX('Pop calcs'!$K51:$P51,MATCH($D$5,'Pop calcs'!$K$12:$P$12,0)) -> 0.007655811947 | K63: 0 | L63: =IF($D$5=2025,INDEX('Pop calcs'!$AF$14:$AF$141,MATCH($B63,'Pop calcs'!$B$14:$B$141,0)),IFERROR(INDEX('Pop calcs'!$Y51:$Z51,MATCH($D$5,'Pop calcs'!$Y$12:$Z$12,0)),0)) -> 0 | M63: 0 | N63: =INDEX('2024 Election costs'!$AA$24:$AA$151,MATCH(B63,'2024 Election costs'!$B$24:$B$151,0)) -> 0.002706806531 | O63: 0 | P63: 0.041 | Q63: 0.041 | T63: =INDEX('ESL calcs'!$AN$12:$AN$139,MATCH(B63,'ESL calcs'!$C$12:$C$139,0)) -> 0.5 | U63: 0.002292065474 | W63: =INDEX('Rate peg & SV'!$AM$16:$AM$143,MATCH(B63,'Rate peg & SV'!$B$16:$B$143,0)) -> 1 | X63: =IF($D$5='BCC Inputs'!$B$21,AF63,AF63*W63) -> 0.138 | Y63: 0.362 | AF63: 0.138
B64: =Names!I47 -> 2091 | C64: =INDEX(Names!$K$9:$K$136,MATCH(B64,Names!$I$9:$I$136,0)) -> Rural | D64: =Names!F47 -> Edward River | E64: 0.03594422934 | F64: 0 | G64: =INDEX('ESL calcs'!$Z$12:$AD$139,MATCH($B64,'ESL calcs'!$C$12:$C$139,0),MATCH($D$5,'ESL calcs'!$Z$10:$AD$10,0)) -> -0.004794309286 | H64: =INDEX('ESL calcs'!$BC$12:$BG$139,MATCH($B64,'ESL calcs'!$C$12:$C$139,0),MATCH($D$5,'ESL calcs'!$BC$10:$BG$10,0)) -> 0.007168992201 | I64: =INDEX('Pop calcs'!$D52:$I52,MATCH($D$5,'Pop calcs'!$D$12:$I$12,0)) -> 0 | J64: =INDEX('Pop calcs'!$K52:$P52,MATCH($D$5,'Pop calcs'!$K$12:$P$12,0)) -> 0.003781671499 | K64: 0 | L64: =IF($D$5=2025,INDEX('Pop calcs'!$AF$14:$AF$141,MATCH($B64,'Pop calcs'!$B$14:$B$141,0)),IFERROR(INDEX('Pop calcs'!$Y52:$Z52,MATCH($D$5,'Pop calcs'!$Y$12:$Z$12,0)),0)) -> 0 | M64: 0 | N64: =INDEX('2024 Election costs'!$AA$24:$AA$151,MATCH(B64,'2024 Election costs'!$B$24:$B$151,0)) -> 0.007638226347 | O64: 0 | P64: 0.046 | Q64: 0.046 | T64: =INDEX('ESL calcs'!$AN$12:$AN$139,MATCH(B64,'ESL calcs'!$C$12:$C$139,0)) -> 0.5 | U64: 0.002374682916 | W64: =INDEX('Rate peg & SV'!$AM$16:$AM$143,MATCH(B64,'Rate peg & SV'!$B$16:$B$143,0)) -> 1 | X64: =IF($D$5='BCC Inputs'!$B$21,AF64,AF64*W64) -> 0.06 | Y64: 0.44 | AF64: 0.06
B65: =Names!I48 -> 105 | C65: =INDEX(Names!$K$9:$K$136,MATCH(B65,Names!$I$9:$I$136,0)) -> Regional | D65: =Names!F48 -> Eurobodalla | E65: 0.03584587895 | F65: 0 | G65: =INDEX('ESL calcs'!$Z$12:$AD$139,MATCH($B65,'ESL calcs'!$C$12:$C$139,0),MATCH($D$5,'ESL calcs'!$Z$10:$AD$10,0)) -> -0.003769577897 | H65: =INDEX('ESL calcs'!$BC$12:$BG$139,MATCH($B65,'ESL calcs'!$C$12:$C$139,0),MATCH($D$5,'ESL calcs'!$BC$10:$BG$10,0)) -> 0.005263745931 | I65: =INDEX('Pop calcs'!$D53:$I53,MATCH($D$5,'Pop calcs'!$D$12:$I$12,0)) -> 0.003926187672 | J65: =INDEX('Pop calcs'!$K53:$P53,MATCH($D$5,'Pop calcs'!$K$12:$P$12,0)) -> 0.002740798747 | K65: 0.001185388925 | L65: =IF($D$5=2025,INDEX('Pop calcs'!$AF$14:$AF$141,MATCH($B65,'Pop calcs'!$B$14:$B$141,0)),IFERROR(INDEX('Pop calcs'!$Y53:$Z53,MATCH($D$5,'Pop calcs'!$Y$12:$Z$12,0)),0)) -> 0 | M65: 0.001 | N65: =INDEX('2024 Election costs'!$AA$24:$AA$151,MATCH(B65,'2024 Election costs'!$B$24:$B$151,0)) -> 0.00273071018 | O65: 0 | P65: 0.041 | Q65: 0.04 | T65: =INDEX('ESL calcs'!$AN$12:$AN$139,MATCH(B65,'ESL calcs'!$C$12:$C$139,0)) -> 0.5 | U65: 0.001494168034 | W65: =INDEX('Rate peg & SV'!$AM$16:$AM$143,MATCH(B65,'Rate peg & SV'!$B$16:$B$143,0)) -> 1 | X65: =IF($D$5='BCC Inputs'!$B$21,AF65,AF65*W65) -> 0 | Y65: 0.5 | AF65: 0
B66: =Names!I49 -> 107 | C66: =INDEX(Names!$K$9:$K$136,MATCH(B66,Names!$I$9:$I$136,0)) -> Metropolitan | D66: =Names!F49 -> Fairfield | E66: 0.03564768825 | F66: 0 | G66: =INDEX('ESL calcs'!$Z$12:$AD$139,MATCH($B66,'ESL calcs'!$C$12:$C$139,0),MATCH($D$5,'ESL calcs'!$Z$10:$AD$10,0)) -> -0.003871094417 | H66: =INDEX('ESL calcs'!$BC$12:$BG$139,MATCH($B66,'ESL calcs'!$C$12:$C$139,0),MATCH($D$5,'ESL calcs'!$BC$10:$BG$10,0)) -> 0.003871094417 | I66: =INDEX('Pop calcs'!$D54:$I54,MATCH($D$5,'Pop calcs'!$D$12:$I$12,0)) -> 0.01407919547 | J66: =INDEX('Pop calcs'!$K54:$P54,MATCH($D$5,'Pop calcs'!$K$12:$P$12,0)) -> 0.0006847726444 | K66: 0.01339442283 | L66: =IF($D$5=2025,INDEX('Pop calcs'!$AF$14:$AF$141,MATCH($B66,'Pop calcs'!$B$14:$B$141,0)),IFERROR(INDEX('Pop calcs'!$Y54:$Z54,MATCH($D$5,'Pop calcs'!$Y$12:$Z$12,0)),0)) -> -0.01339442283 | M66: 0 | N66: =INDEX('2024 Election costs'!$AA$24:$AA$151,MATCH(B66,'2024 Election costs'!$B$24:$B$151,0)) -> 0.003025403688 | O66: 0 | P66: 0.039 | Q66: 0.039 | T66: =INDEX('ESL calcs'!$AN$12:$AN$139,MATCH(B66,'ESL calcs'!$C$12:$C$139,0)) -> 0.6287569561 | U66: 0 | W66: =INDEX('Rate peg & SV'!$AM$16:$AM$143,MATCH(B66,'Rate peg & SV'!$B$16:$B$143,0)) -> 1 | X66: =IF($D$5='BCC Inputs'!$B$21,AF66,AF66*W66) -> 0 | Y66: 0.6287569561 | AF66: 0
B67: =Names!I50 -> 2092 | C67: =INDEX(Names!$K$9:$K$136,MATCH(B67,Names!$I$9:$I$136,0)) -> Rural | D67: =Names!F50 -> Federation | E67: 0.03594422934 | F67: 0 | G67: =INDEX('ESL calcs'!$Z$12:$AD$139,MATCH($B67,'ESL calcs'!$C$12:$C$139,0),MATCH($D$5,'ESL calcs'!$Z$10:$AD$10,0)) -> -0.003665169768 | H67: =INDEX('ESL calcs'!$BC$12:$BG$139,MATCH($B67,'ESL calcs'!$C$12:$C$139,0),MATCH($D$5,'ESL calcs'!$BC$10:$BG$10,0)) -> 0.006330180316 | I67: =INDEX('Pop calcs'!$D55:$I55,MATCH($D$5,'Pop calcs'!$D$12:$I$12,0)) -> 0.006769374416 | J67: =INDEX('Pop calcs'!$K55:$P55,MATCH($D$5,'Pop calcs'!$K$12:$P$12,0)) -> 0.004540049724 | K67: 0.002229324692 | L67: =IF($D$5=2025,INDEX('Pop calcs'!$AF$14:$AF$141,MATCH($B67,'Pop calcs'!$B$14:$B$141,0)),IFERROR(INDEX('Pop calcs'!$Y55:$Z55,MATCH($D$5,'Pop calcs'!$Y$12:$Z$12,0)),0)) -> 0 | M67: 0.002 | N67: =INDEX('2024 Election costs'!$AA$24:$AA$151,MATCH(B67,'2024 Election costs'!$B$24:$B$151,0)) -> 0.007091249369 | O67: 0 | P67: 0.048 | Q67: 0.046 | T67: =INDEX('ESL calcs'!$AN$12:$AN$139,MATCH(B67,'ESL calcs'!$C$12:$C$139,0)) -> 0.5 | U67: 0.002665010548 | W67: =INDEX('Rate peg & SV'!$AM$16:$AM$143,MATCH(B67,'Rate peg & SV'!$B$16:$B$143,0)) -> 0 | X67: =IF($D$5='BCC Inputs'!$B$21,AF67,AF67*W67) -> 0 | Y67: 0.5 | AF67: 0.08
B68: =Names!I51 -> 108 | C68: =INDEX(Names!$K$9:$K$136,MATCH(B68,Names!$I$9:$I$136,0)) -> Rural | D68: =Names!F51 -> Forbes | E68: 0.03594422934 | F68: 0 | G68: =INDEX('ESL calcs'!$Z$12:$AD$139,MATCH($B68,'ESL calcs'!$C$12:$C$139,0),MATCH($D$5,'ESL calcs'!$Z$10:$AD$10,0)) -> -0.004773420743 | H68: =INDEX('ESL calcs'!$BC$12:$BG$139,MATCH($B68,'ESL calcs'!$C$12:$C$139,0),MATCH($D$5,'ESL calcs'!$BC$10:$BG$10,0)) -> 0.006764000175 | I68: =INDEX('Pop calcs'!$D56:$I56,MATCH($D$5,'Pop calcs'!$D$12:$I$12,0)) -> 0 | J68: =INDEX('Pop calcs'!$K56:$P56,MATCH($D$5,'Pop calcs'!$K$12:$P$12,0)) -> 0.009516837482 | K68: 0 | L68: =IF($D$5=2025,INDEX('Pop calcs'!$AF$14:$AF$141,MATCH($B68,'Pop calcs'!$B$14:$B$141,0)),IFERROR(INDEX('Pop calcs'!$Y56:$Z56,MATCH($D$5,'Pop calcs'!$Y$12:$Z$12,0)),0)) -> 0 | M68: 0 | N68: =INDEX('2024 Election costs'!$AA$24:$AA$151,MATCH(B68,'2024 Election costs'!$B$24:$B$151,0)) -> 0.005840378197 | O68: 0 | P68: 0.044 | Q68: 0.044 | T68: =INDEX('ESL calcs'!$AN$12:$AN$139,MATCH(B68,'ESL calcs'!$C$12:$C$139,0)) -> 0.5 | U68: 0.001990579433 | W68: =INDEX('Rate peg & SV'!$AM$16:$AM$143,MATCH(B68,'Rate peg & SV'!$B$16:$B$143,0)) -> 1 | X68: =IF($D$5='BCC Inputs'!$B$21,AF68,AF68*W68) -> 0.105 | Y68: 0.395 | AF68: 0.105
B69: =Names!I52 -> 2093 | C69: =INDEX(Names!$K$9:$K$136,MATCH(B69,Names!$I$9:$I$136,0)) -> Metropolitan | D69: =Names!F52 -> Georges River | E69: 0.03564768825 | F69: 0 | G69: =INDEX('ESL calcs'!$Z$12:$AD$139,MATCH($B69,'ESL calcs'!$C$12:$C$139,0),MATCH($D$5,'ESL calcs'!$Z$10:$AD$10,0)) -> -0.005144308477 | H69: =INDEX('ESL calcs'!$BC$12:$BG$139,MATCH($B69,'ESL calcs'!$C$12:$C$139,0),MATCH($D$5,'ESL calcs'!$BC$10:$BG$10,0)) -> 0.004126205239 | I69: =INDEX('Pop calcs'!$D57:$I57,MATCH($D$5,'Pop calcs'!$D$12:$I$12,0)) -> 0.03121350323 | J69: =INDEX('Pop calcs'!$K57:$P57,MATCH($D$5,'Pop calcs'!$K$12:$P$12,0)) -> 0.003962879358 | K69: 0.02725062388 | L69: =IF($D$5=2025,INDEX('Pop calcs'!$AF$14:$AF$141,MATCH($B69,'Pop calcs'!$B$14:$B$141,0)),IFERROR(INDEX('Pop calcs'!$Y57:$Z57,MATCH($D$5,'Pop calcs'!$Y$12:$Z$12,0)),0)) -> -0.01969357696 | M69: 0.008 | N69: =INDEX('2024 Election costs'!$AA$24:$AA$151,MATCH(B69,'2024 Election costs'!$B$24:$B$151,0)) -> 0.001683953753 | O69: 0 | P69: 0.044 | Q69: 0.036 | T69: =INDEX('ESL calcs'!$AN$12:$AN$139,MATCH(B69,'ESL calcs'!$C$12:$C$139,0)) -> 1 | U69: -0.001018103238 | W69: =INDEX('Rate peg & SV'!$AM$16:$AM$143,MATCH(B69,'Rate peg & SV'!$B$16:$B$143,0)) -> 0 | X69: =IF($D$5='BCC Inputs'!$B$21,AF69,AF69*W69) -> 0 | Y69: 1 | AF69: 0
B70: =Names!I53 -> 109 | C70: =INDEX(Names!$K$9:$K$136,MATCH(B70,Names!$I$9:$I$136,0)) -> Rural | D70: =Names!F53 -> Gilgandra | E70: 0.03594422934 | F70: 0 | G70: =INDEX('ESL calcs'!$Z$12:$AD$139,MATCH($B70,'ESL calcs'!$C$12:$C$139,0),MATCH($D$5,'ESL calcs'!$Z$10:$AD$10,0)) -> -0.004256313423 | H70: =INDEX('ESL calcs'!$BC$12:$BG$139,MATCH($B70,'ESL calcs'!$C$12:$C$139,0),MATCH($D$5,'ESL calcs'!$BC$10:$BG$10,0)) -> 0.0067384891 | I70: =INDEX('Pop calcs'!$D58:$I58,MATCH($D$5,'Pop calcs'!$D$12:$I$12,0)) -> 0.002559329921 | J70: =INDEX('Pop calcs'!$K58:$P58,MATCH($D$5,'Pop calcs'!$K$12:$P$12,0)) -> 0.0007326007326 | K70: 0.001826729188 | L70: =IF($D$5=2025,INDEX('Pop calcs'!$AF$14:$AF$141,MATCH($B70,'Pop calcs'!$B$14:$B$141,0)),IFERROR(INDEX('Pop calcs'!$Y58:$Z58,MATCH($D$5,'Pop calcs'!$Y$12:$Z$12,0)),0)) -> 0 | M70: 0.002 | N70: =INDEX('2024 Election costs'!$AA$24:$AA$151,MATCH(B70,'2024 Election costs'!$B$24:$B$151,0)) -> 0.00161393569 | O70: 0 | P70: 0.042 | Q70: 0.04 | T70: =INDEX('ESL calcs'!$AN$12:$AN$139,MATCH(B70,'ESL calcs'!$C$12:$C$139,0)) -> 0.5 | U70: 0.002482175676 | W70: =INDEX('Rate peg & SV'!$AM$16:$AM$143,MATCH(B70,'Rate peg & SV'!$B$16:$B$143,0)) -> 1 | X70: =IF($D$5='BCC Inputs'!$B$21,AF70,AF70*W70) -> 0.133 | Y70: 0.367 | AF70: 0.133
B71: =Names!I54 -> 2053 | C71: =INDEX(Names!$K$9:$K$136,MATCH(B71,Names!$I$9:$I$136,0)) -> Rural | D71: =Names!F54 -> Glen Innes Severn | E71: 0.03594422934 | F71: 0 | G71: =INDEX('ESL calcs'!$Z$12:$AD$139,MATCH($B71,'ESL calcs'!$C$12:$C$139,0),MATCH($D$5,'ESL calcs'!$Z$10:$AD$10,0)) -> -0.004871789637 | H71: =INDEX('ESL calcs'!$BC$12:$BG$139,MATCH($B71,'ESL calcs'!$C$12:$C$139,0),MATCH($D$5,'ESL calcs'!$BC$10:$BG$10,0)) -> 0.005852744614 | I71: =INDEX('Pop calcs'!$D59:$I59,MATCH($D$5,'Pop calcs'!$D$12:$I$12,0)) -> 0.003953908721 | J71: =INDEX('Pop calcs'!$K59:$P59,MATCH($D$5,'Pop calcs'!$K$12:$P$12,0)) -> 0.0004000533404 | K71: 0.003553855381 | L71: =IF($D$5=2025,INDEX('Pop calcs'!$AF$14:$AF$141,MATCH($B71,'Pop calcs'!$B$14:$B$141,0)),IFERROR(INDEX('Pop calcs'!$Y59:$Z59,MATCH($D$5,'Pop calcs'!$Y$12:$Z$12,0)),0)) -> 0 | M71: 0.004 | N71: =INDEX('2024 Election costs'!$AA$24:$AA$151,MATCH(B71,'2024 Election costs'!$B$24:$B$151,0)) -> 0.002740731183 | O71: 0 | P71: 0.044 | Q71: 0.04 | T71: =INDEX('ESL calcs'!$AN$12:$AN$139,MATCH(B71,'ESL calcs'!$C$12:$C$139,0)) -> 0.5 | U71: 0.0009809549774 | W71: =INDEX('Rate peg & SV'!$AM$16:$AM$143,MATCH(B71,'Rate peg & SV'!$B$16:$B$143,0)) -> 1 | X71: =IF($D$5='BCC Inputs'!$B$21,AF71,AF71*W71) -> 0.19 | Y71: 0.31 | AF71: 0.19
B72: =Names!I55 -> 2032 | C72: =INDEX(Names!$K$9:$K$136,MATCH(B72,Names!$I$9:$I$136,0)) -> Regional | D72: =Names!F55 -> Goulburn Mulwaree | E72: 0.03584587895 | F72: 0 | G72: =INDEX('ESL calcs'!$Z$12:$AD$139,MATCH($B72,'ESL calcs'!$C$12:$C$139,0),MATCH($D$5,'ESL calcs'!$Z$10:$AD$10,0)) -> -0.002530048399 | H72: =INDEX('ESL calcs'!$BC$12:$BG$139,MATCH($B72,'ESL calcs'!$C$12:$C$139,0),MATCH($D$5,'ESL calcs'!$BC$10:$BG$10,0)) -> 0.003689360877 | I72: =INDEX('Pop calcs'!$D60:$I60,MATCH($D$5,'Pop calcs'!$D$12:$I$12,0)) -> 0.008100584868 | J72: =INDEX('Pop calcs'!$K60:$P60,MATCH($D$5,'Pop calcs'!$K$12:$P$12,0)) -> 0.004534751897 | K72: 0.003565832972 | L72: =IF($D$5=2025,INDEX('Pop calcs'!$AF$14:$AF$141,MATCH($B72,'Pop calcs'!$B$14:$B$141,0)),IFERROR(INDEX('Pop calcs'!$Y60:$Z60,MATCH($D$5,'Pop calcs'!$Y$12:$Z$12,0)),0)) -> 0 | M72: 0.004 | N72: =INDEX('2024 Election costs'!$AA$24:$AA$151,MATCH(B72,'2024 Election costs'!$B$24:$B$151,0)) -> 0.001210631591 | O72: 0 | P72: 0.042 | Q72: 0.038 | T72: =INDEX('ESL calcs'!$AN$12:$AN$139,MATCH(B72,'ESL calcs'!$C$12:$C$139,0)) -> 0.5 | U72: 0.001159312478 | W72: =INDEX('Rate peg & SV'!$AM$16:$AM$143,MATCH(B72,'Rate peg & SV'!$B$16:$B$143,0)) -> 1 | X72: =IF($D$5='BCC Inputs'!$B$21,AF72,AF72*W72) -> 0 | Y72: 0.5 | AF72: 0
B73: =Names!I56 -> 2049 | C73: =INDEX(Names!$K$9:$K$136,MATCH(B73,Names!$I$9:$I$136,0)) -> Rural | D73: =Names!F56 -> Greater Hume | E73: 0.03594422934 | F73: 0 | G73: =INDEX('ESL calcs'!$Z$12:$AD$139,MATCH($B73,'ESL calcs'!$C$12:$C$139,0),MATCH($D$5,'ESL calcs'!$Z$10:$AD$10,0)) -> -0.005509046598 | H73: =INDEX('ESL calcs'!$BC$12:$BG$139,MATCH($B73,'ESL calcs'!$C$12:$C$139,0),MATCH($D$5,'ESL calcs'!$BC$10:$BG$10,0)) -> 0.007433125987 | I73: =INDEX('Pop calcs'!$D61:$I61,MATCH($D$5,'Pop calcs'!$D$12:$I$12,0)) -> 0.01588851411 | J73: =INDEX('Pop calcs'!$K61:$P61,MATCH($D$5,'Pop calcs'!$K$12:$P$12,0)) -> 0.003768055265 | K73: 0.01212045885 | L73: =IF($D$5=2025,INDEX('Pop calcs'!$AF$14:$AF$141,MATCH($B73,'Pop calcs'!$B$14:$B$141,0)),IFERROR(INDEX('Pop calcs'!$Y61:$Z61,MATCH($D$5,'Pop calcs'!$Y$12:$Z$12,0)),0)) -> 0 | M73: 0.012 | N73: =INDEX('2024 Election costs'!$AA$24:$AA$151,MATCH(B73,'2024 Election costs'!$B$24:$B$151,0)) -> 0.003112467886 | O73: 0 | P73: 0.053 | Q73: 0.041 | T73: =INDEX('ESL calcs'!$AN$12:$AN$139,MATCH(B73,'ESL calcs'!$C$12:$C$139,0)) -> 0.5 | U73: 0.001924079389 | W73: =INDEX('Rate peg & SV'!$AM$16:$AM$143,MATCH(B73,'Rate peg & SV'!$B$16:$B$143,0)) -> 1 | X73: =IF($D$5='BCC Inputs'!$B$21,AF73,AF73*W73) -> 0.12 | Y73: 0.38 | AF73: 0.12
B74: =Names!I57 -> 118 | C74: =INDEX(Names!$K$9:$K$136,MATCH(B74,Names!$I$9:$I$136,0)) -> Regional | D74: =Names!F57 -> Griffith | E74: 0.03584587895 | F74: 0 | G74: =INDEX('ESL calcs'!$Z$12:$AD$139,MATCH($B74,'ESL calcs'!$C$12:$C$139,0),MATCH($D$5,'ESL calcs'!$Z$10:$AD$10,0)) -> -0.002935235019 | H74: =INDEX('ESL calcs'!$BC$12:$BG$139,MATCH($B74,'ESL calcs'!$C$12:$C$139,0),MATCH($D$5,'ESL calcs'!$BC$10:$BG$10,0)) -> 0.00360575774 | I74: =INDEX('Pop calcs'!$D62:$I62,MATCH($D$5,'Pop calcs'!$D$12:$I$12,0)) -> 0.004330927263 | J74: =INDEX('Pop calcs'!$K62:$P62,MATCH($D$5,'Pop calcs'!$K$12:$P$12,0)) -> 0.005293806247 | K74: 0 | L74: =IF($D$5=2025,INDEX('Pop calcs'!$AF$14:$AF$141,MATCH($B74,'Pop calcs'!$B$14:$B$141,0)),IFERROR(INDEX('Pop calcs'!$Y62:$Z62,MATCH($D$5,'Pop calcs'!$Y$12:$Z$12,0)),0)) -> 0 | M74: 0 | N74: =INDEX('2024 Election costs'!$AA$24:$AA$151,MATCH(B74,'2024 Election costs'!$B$24:$B$151,0)) -> 0.003553123792 | O74: 0 | P74: 0.04 | Q74: 0.04 | T74: =INDEX('ESL calcs'!$AN$12:$AN$139,MATCH(B74,'ESL calcs'!$C$12:$C$139,0)) -> 0.5 | U74: 0.0006705227218 | W74: =INDEX('Rate peg & SV'!$AM$16:$AM$143,MATCH(B74,'Rate peg & SV'!$B$16:$B$143,0)) -> 1 | X74: =IF($D$5='BCC Inputs'!$B$21,AF74,AF74*W74) -> 0.075 | Y74: 0.425 | AF74: 0.075
B75: =Names!I58 -> 120 | C75: =INDEX(Names!$K$9:$K$136,MATCH(B75,Names!$I$9:$I$136,0)) -> Rural | D75: =Names!F58 -> Gunnedah | E75: 0.03594422934 | F75: 0 | G75: =INDEX('ESL calcs'!$Z$12:$AD$139,MATCH($B75,'ESL calcs'!$C$12:$C$139,0),MATCH($D$5,'ESL calcs'!$Z$10:$AD$10,0)) -> -0.002139665398 | H75: =INDEX('ESL calcs'!$BC$12:$BG$139,MATCH($B75,'ESL calcs'!$C$12:$C$139,0),MATCH($D$5,'ESL calcs'!$BC$10:$BG$10,0)) -> 0.002139665398 | I75: =INDEX('Pop calcs'!$D63:$I63,MATCH($D$5,'Pop calcs'!$D$12:$I$12,0)) -> 0.01042379974 | J75: =INDEX('Pop calcs'!$K63:$P63,MATCH($D$5,'Pop calcs'!$K$12:$P$12,0)) -> 0.004736733713 | K75: 0.005687066028 | L75: =IF($D$5=2025,INDEX('Pop calcs'!$AF$14:$AF$141,MATCH($B75,'Pop calcs'!$B$14:$B$141,0)),IFERROR(INDEX('Pop calcs'!$Y63:$Z63,MATCH($D$5,'Pop calcs'!$Y$12:$Z$12,0)),0)) -> 0 | M75: 0.006 | N75: =INDEX('2024 Election costs'!$AA$24:$AA$151,MATCH(B75,'2024 Election costs'!$B$24:$B$151,0)) -> 0.005248232915 | O75: 0 | P75: 0.047 | Q75: 0.041 | T75: =INDEX('ESL calcs'!$AN$12:$AN$139,MATCH(B75,'ESL calcs'!$C$12:$C$139,0)) -> 0.5187725124 | U75: 0 | W75: =INDEX('Rate peg & SV'!$AM$16:$AM$143,MATCH(B75,'Rate peg & SV'!$B$16:$B$143,0)) -> 1 | X75: =IF($D$5='BCC Inputs'!$B$21,AF75,AF75*W75) -> 0.19 | Y75: 0.3287725124 | AF75: 0.19
B76: =Names!I59 -> 2039 | C76: =INDEX(Names!$K$9:$K$136,MATCH(B76,Names!$I$9:$I$136,0)) -> Rural | D76: =Names!F59 -> Gwydir | E76: 0.03594422934 | F76: 0 | G76: =INDEX('ESL calcs'!$Z$12:$AD$139,MATCH($B76,'ESL calcs'!$C$12:$C$139,0),MATCH($D$5,'ESL calcs'!$Z$10:$AD$10,0)) -> -0.004049831228 | H76: =INDEX('ESL calcs'!$BC$12:$BG$139,MATCH($B76,'ESL calcs'!$C$12:$C$139,0),MATCH($D$5,'ESL calcs'!$BC$10:$BG$10,0)) -> 0.005811329798 | I76: =INDEX('Pop calcs'!$D64:$I64,MATCH($D$5,'Pop calcs'!$D$12:$I$12,0)) -> 0.003453178956 | J76: =INDEX('Pop calcs'!$K64:$P64,MATCH($D$5,'Pop calcs'!$K$12:$P$12,0)) -> 0.001652502361 | K76: 0.001800676595 | L76: =IF($D$5=2025,INDEX('Pop calcs'!$AF$14:$AF$141,MATCH($B76,'Pop calcs'!$B$14:$B$141,0)),IFERROR(INDEX('Pop calcs'!$Y64:$Z64,MATCH($D$5,'Pop calcs'!$Y$12:$Z$12,0)),0)) -> 0 | M76: 0.002 | N76: =INDEX('2024 Election costs'!$AA$24:$AA$151,MATCH(B76,'2024 Election costs'!$B$24:$B$151,0)) -> 0.002030543724 | O76: 0 | P76: 0.042 | Q76: 0.04 | T76: =INDEX('ESL calcs'!$AN$12:$AN$139,MATCH(B76,'ESL calcs'!$C$12:$C$139,0)) -> 0.5 | U76: 0.00176149857 | W76: =INDEX('Rate peg & SV'!$AM$16:$AM$143,MATCH(B76,'Rate peg & SV'!$B$16:$B$143,0)) -> 1 | X76: =IF($D$5='BCC Inputs'!$B$21,AF76,AF76*W76) -> 0.16 | Y76: 0.34 | AF76: 0.16
B77: =Names!I60 -> 125 | C77: =INDEX(Names!$K$9:$K$136,MATCH(B77,Names!$I$9:$I$136,0)) -> Metropolitan | D77: =Names!F60 -> Hawkesbury | E77: 0.03564768825 | F77: 0 | G77: =INDEX('ESL calcs'!$Z$12:$AD$139,MATCH($B77,'ESL calcs'!$C$12:$C$139,0),MATCH($D$5,'ESL calcs'!$Z$10:$AD$10,0)) -> -0.003115016915 | H77: =INDEX('ESL calcs'!$BC$12:$BG$139,MATCH($B77,'ESL calcs'!$C$12:$C$139,0),MATCH($D$5,'ESL calcs'!$BC$10:$BG$10,0)) -> 0.004520287267 | I77: =INDEX('Pop calcs'!$D65:$I65,MATCH($D$5,'Pop calcs'!$D$12:$I$12,0)) -> 0.004332321476 | J77: =INDEX('Pop calcs'!$K65:$P65,MATCH($D$5,'Pop calcs'!$K$12:$P$12,0)) -> 0.004443147903 | K77: 0 | L77: =IF($D$5=2025,INDEX('Pop calcs'!$AF$14:$AF$141,MATCH($B77,'Pop calcs'!$B$14:$B$141,0)),IFERROR(INDEX('Pop calcs'!$Y65:$Z65,MATCH($D$5,'Pop calcs'!$Y$12:$Z$12,0)),0)) -> 0 | M77: 0 | N77: =INDEX('2024 Election costs'!$AA$24:$AA$151,MATCH(B77,'2024 Election costs'!$B$24:$B$151,0)) -> 0.001771679245 | O77: 0 | P77: 0.039 | Q77: 0.039 | T77: =INDEX('ESL calcs'!$AN$12:$AN$139,MATCH(B77,'ESL calcs'!$C$12:$C$139,0)) -> 0.5 | U77: 0.001405270352 | W77: =INDEX('Rate peg & SV'!$AM$16:$AM$143,MATCH(B77,'Rate peg & SV'!$B$16:$B$143,0)) -> 1 | X77: =IF($D$5='BCC Inputs'!$B$21,AF77,AF77*W77) -> 0 | Y77: 0.5
B78: =Names!I61 -> 126 | C78: =INDEX(Names!$K$9:$K$136,MATCH(B78,Names!$I$9:$I$136,0)) -> Rural | D78: =Names!F61 -> Hay | E78: 0.03594422934 | F78: 0 | G78: =INDEX('ESL calcs'!$Z$12:$AD$139,MATCH($B78,'ESL calcs'!$C$12:$C$139,0),MATCH($D$5,'ESL calcs'!$Z$10:$AD$10,0)) -> -0.006346598667 | H78: =INDEX('ESL calcs'!$BC$12:$BG$139,MATCH($B78,'ESL calcs'!$C$12:$C$139,0),MATCH($D$5,'ESL calcs'!$BC$10:$BG$10,0)) -> 0.01142074793 | I78: =INDEX('Pop calcs'!$D66:$I66,MATCH($D$5,'Pop calcs'!$D$12:$I$12,0)) -> 0 | J78: =INDEX('Pop calcs'!$K66:$P66,MATCH($D$5,'Pop calcs'!$K$12:$P$12,0)) -> 0.003420752566 | K78: 0 | L78: =IF($D$5=2025,INDEX('Pop calcs'!$AF$14:$AF$141,MATCH($B78,'Pop calcs'!$B$14:$B$141,0)),IFERROR(INDEX('Pop calcs'!$Y66:$Z66,MATCH($D$5,'Pop calcs'!$Y$12:$Z$12,0)),0)) -> 0 | M78: 0 | N78: =INDEX('2024 Election costs'!$AA$24:$AA$151,MATCH(B78,'2024 Election costs'!$B$24:$B$151,0)) -> 0.00227009796 | O78: 0 | P78: 0.043 | Q78: 0.043 | T78: =INDEX('ESL calcs'!$AN$12:$AN$139,MATCH(B78,'ESL calcs'!$C$12:$C$139,0)) -> 0.5 | U78: 0.005074149264 | W78: =INDEX('Rate peg & SV'!$AM$16:$AM$143,MATCH(B78,'Rate peg & SV'!$B$16:$B$143,0)) -> 1 | X78: =IF($D$5='BCC Inputs'!$B$21,AF78,AF78*W78) -> 0.08 | Y78: 0.42 | AF78: 0.08
B79: =Names!I62 -> 2081 | C79: =INDEX(Names!$K$9:$K$136,MATCH(B79,Names!$I$9:$I$136,0)) -> Rural | D79: =Names!F62 -> Hilltops | E79: 0.03594422934 | F79: 0 | G79: =INDEX('ESL calcs'!$Z$12:$AD$139,MATCH($B79,'ESL calcs'!$C$12:$C$139,0),MATCH($D$5,'ESL calcs'!$Z$10:$AD$10,0)) -> -0.004905075819 | H79: =INDEX('ESL calcs'!$BC$12:$BG$139,MATCH($B79,'ESL calcs'!$C$12:$C$139,0),MATCH($D$5,'ESL calcs'!$BC$10:$BG$10,0)) -> 0.00765983323 | I79: =INDEX('Pop calcs'!$D67:$I67,MATCH($D$5,'Pop calcs'!$D$12:$I$12,0)) -> 0.0008836677409 | J79: =INDEX('Pop calcs'!$K67:$P67,MATCH($D$5,'Pop calcs'!$K$12:$P$12,0)) -> 0.001994909541 | K79: 0 | L79: =IF($D$5=2025,INDEX('Pop calcs'!$AF$14:$AF$141,MATCH($B79,'Pop calcs'!$B$14:$B$141,0)),IFERROR(INDEX('Pop calcs'!$Y67:$Z67,MATCH($D$5,'Pop calcs'!$Y$12:$Z$12,0)),0)) -> 0 | M79: 0 | N79: =INDEX('2024 Election costs'!$AA$24:$AA$151,MATCH(B79,'2024 Election costs'!$B$24:$B$151,0)) -> 0.005700998789 | O79: 0 | P79: 0.044 | Q79: 0.044 | T79: =INDEX('ESL calcs'!$AN$12:$AN$139,MATCH(B79,'ESL calcs'!$C$12:$C$139,0)) -> 0.5 | U79: 0.002754757411 | W79: =INDEX('Rate peg & SV'!$AM$16:$AM$143,MATCH(B79,'Rate peg & SV'!$B$16:$B$143,0)) -> 1 | X79: =IF($D$5='BCC Inputs'!$B$21,AF79,AF79*W79) -> 0.105 | Y79: 0.395 | AF79: 0.105
B80: =Names!I63 -> 129 | C80: =INDEX(Names!$K$9:$K$136,MATCH(B80,Names!$I$9:$I$136,0)) -> Metropolitan | D80: =Names!F63 -> Hornsby | E80: 0.03564768825 | F80: 0 | G80: =INDEX('ESL calcs'!$Z$12:$AD$139,MATCH($B80,'ESL calcs'!$C$12:$C$139,0),MATCH($D$5,'ESL calcs'!$Z$10:$AD$10,0)) -> -0.004368042864 | H80: =INDEX('ESL calcs'!$BC$12:$BG$139,MATCH($B80,'ESL calcs'!$C$12:$C$139,0),MATCH($D$5,'ESL calcs'!$BC$10:$BG$10,0)) -> 0.004368042864 | I80: =INDEX('Pop calcs'!$D68:$I68,MATCH($D$5,'Pop calcs'!$D$12:$I$12,0)) -> 0.01516099914 | J80: =INDEX('Pop calcs'!$K68:$P68,MATCH($D$5,'Pop calcs'!$K$12:$P$12,0)) -> 0.001199119767 | K80: 0.01396187937 | L80: =IF($D$5=2025,INDEX('Pop calcs'!$AF$14:$AF$141,MATCH($B80,'Pop calcs'!$B$14:$B$141,0)),IFERROR(INDEX('Pop calcs'!$Y68:$Z68,MATCH($D$5,'Pop calcs'!$Y$12:$Z$12,0)),0)) -> 0 | M80: 0.014 | N80: =INDEX('2024 Election costs'!$AA$24:$AA$151,MATCH(B80,'2024 Election costs'!$B$24:$B$151,0)) -> 0.001857117769 | O80: 0 | P80: 0.052 | Q80: 0.038 | T80: =INDEX('ESL calcs'!$AN$12:$AN$139,MATCH(B80,'ESL calcs'!$C$12:$C$139,0)) -> 0.5882843459 | U80: 0 | W80: =INDEX('Rate peg & SV'!$AM$16:$AM$143,MATCH(B80,'Rate peg & SV'!$B$16:$B$143,0)) -> 0 | X80: =IF($D$5='BCC Inputs'!$B$21,AF80,AF80*W80) -> 0 | Y80: 0.5882843459 | AF80: 0
B81: =Names!I64 -> 131 | C81: =INDEX(Names!$K$9:$K$136,MATCH(B81,Names!$I$9:$I$136,0)) -> Metropolitan | D81: =Names!F64 -> Hunters Hill | E81: 0.03564768825 | F81: 0 | G81: =INDEX('ESL calcs'!$Z$12:$AD$139,MATCH($B81,'ESL calcs'!$C$12:$C$139,0),MATCH($D$5,'ESL calcs'!$Z$10:$AD$10,0)) -> -0.005476523751 | H81: =INDEX('ESL calcs'!$BC$12:$BG$139,MATCH($B81,'ESL calcs'!$C$12:$C$139,0),MATCH($D$5,'ESL calcs'!$BC$10:$BG$10,0)) -> 0.005476523751 | I81: =INDEX('Pop calcs'!$D69:$I69,MATCH($D$5,'Pop calcs'!$D$12:$I$12,0)) -> 0.008043665613 | J81: =INDEX('Pop calcs'!$K69:$P69,MATCH($D$5,'Pop calcs'!$K$12:$P$12,0)) -> 0 | K81: 0.008043665613 | L81: =IF($D$5=2025,INDEX('Pop calcs'!$AF$14:$AF$141,MATCH($B81,'Pop calcs'!$B$14:$B$141,0)),IFERROR(INDEX('Pop calcs'!$Y69:$Z69,MATCH($D$5,'Pop calcs'!$Y$12:$Z$12,0)),0)) -> -0.008043665613 | M81: 0 | N81: =INDEX('2024 Election costs'!$AA$24:$AA$151,MATCH(B81,'2024 Election costs'!$B$24:$B$151,0)) -> 0.008070321049 | O81: 0 | P81: 0.044 | Q81: 0.044 | T81: =INDEX('ESL calcs'!$AN$12:$AN$139,MATCH(B81,'ESL calcs'!$C$12:$C$139,0)) -> 0.7244403771 | U81: 0 | W81: =INDEX('Rate peg & SV'!$AM$16:$AM$143,MATCH(B81,'Rate peg & SV'!$B$16:$B$143,0)) -> 1 | X81: =IF($D$5='BCC Inputs'!$B$21,AF81,AF81*W81) -> 0 | Y81: 0.7244403771 | AF81: 0
B82: =Names!I65 -> 2083 | C82: =INDEX(Names!$K$9:$K$136,MATCH(B82,Names!$I$9:$I$136,0)) -> Metropolitan | D82: =Names!F65 -> Inner West | E82: 0.03564768825 | F82: 0 | G82: =INDEX('ESL calcs'!$Z$12:$AD$139,MATCH($B82,'ESL calcs'!$C$12:$C$139,0),MATCH($D$5,'ESL calcs'!$Z$10:$AD$10,0)) -> -0.004609330422 | H82: =INDEX('ESL calcs'!$BC$12:$BG$139,MATCH($B82,'ESL calcs'!$C$12:$C$139,0),MATCH($D$5,'ESL calcs'!$BC$10:$BG$10,0)) -> 0.004609330422 | I82: =INDEX('Pop calcs'!$D70:$I70,MATCH($D$5,'Pop calcs'!$D$12:$I$12,0)) -> 0.02823868569 | J82: =INDEX('Pop calcs'!$K70:$P70,MATCH($D$5,'Pop calcs'!$K$12:$P$12,0)) -> 0.002574781105 | K82: 0.02566390458 | L82: =IF($D$5=2025,INDEX('Pop calcs'!$AF$14:$AF$141,MATCH($B82,'Pop calcs'!$B$14:$B$141,0)),IFERROR(INDEX('Pop calcs'!$Y70:$Z70,MATCH($D$5,'Pop calcs'!$Y$12:$Z$12,0)),0)) -> -0.02566390458 | M82: 0 | N82: =INDEX('2024 Election costs'!$AA$24:$AA$151,MATCH(B82,'2024 Election costs'!$B$24:$B$151,0)) -> 0.001340293527 | O82: 0 | P82: 0.037 | Q82: 0.037 | T82: =INDEX('ESL calcs'!$AN$12:$AN$139,MATCH(B82,'ESL calcs'!$C$12:$C$139,0)) -> 0.5966335131 | U82: 0 | W82: =INDEX('Rate peg & SV'!$AM$16:$AM$143,MATCH(B82,'Rate peg & SV'!$B$16:$B$143,0)) -> 1 | X82: =IF($D$5='BCC Inputs'!$B$21,AF82,AF82*W82) -> 0 | Y82: 0.5966335131 | AF82: 0
B83: =Names!I66 -> 133 | C83: =INDEX(Names!$K$9:$K$136,MATCH(B83,Names!$I$9:$I$136,0)) -> Rural | D83: =Names!F66 -> Inverell | E83: 0.03594422934 | F83: 0 | G83: =INDEX('ESL calcs'!$Z$12:$AD$139,MATCH($B83,'ESL calcs'!$C$12:$C$139,0),MATCH($D$5,'ESL calcs'!$Z$10:$AD$10,0)) -> -0.002856266374 | H83: =INDEX('ESL calcs'!$BC$12:$BG$139,MATCH($B83,'ESL calcs'!$C$12:$C$139,0),MATCH($D$5,'ESL calcs'!$BC$10:$BG$10,0)) -> 0.003303641428 | I83: =INDEX('Pop calcs'!$D71:$I71,MATCH($D$5,'Pop calcs'!$D$12:$I$12,0)) -> 0.005232396326 | J83: =INDEX('Pop calcs'!$K71:$P71,MATCH($D$5,'Pop calcs'!$K$12:$P$12,0)) -> 0.002931183799 | K83: 0.002301212528 | L83: =IF($D$5=2025,INDEX('Pop calcs'!$AF$14:$AF$141,MATCH($B83,'Pop calcs'!$B$14:$B$141,0)),IFERROR(INDEX('Pop calcs'!$Y71:$Z71,MATCH($D$5,'Pop calcs'!$Y$12:$Z$12,0)),0)) -> 0 | M83: 0.002 | N83: =INDEX('2024 Election costs'!$AA$24:$AA$151,MATCH(B83,'2024 Election costs'!$B$24:$B$151,0)) -> 0.001620589143 | O83: 0 | P83: 0.04 | Q83: 0.038 | T83: =INDEX('ESL calcs'!$AN$12:$AN$139,MATCH(B83,'ESL calcs'!$C$12:$C$139,0)) -> 0.5 | U83: 0.0004473750538 | W83: =INDEX('Rate peg & SV'!$AM$16:$AM$143,MATCH(B83,'Rate peg & SV'!$B$16:$B$143,0)) -> 1 | X83: =IF($D$5='BCC Inputs'!$B$21,AF83,AF83*W83) -> 0.15 | Y83: 0.35 | AF83: 0.15
B84: =Names!I67 -> 135 | C84: =INDEX(Names!$K$9:$K$136,MATCH(B84,Names!$I$9:$I$136,0)) -> Rural | D84: =Names!F67 -> Junee | E84: 0.03594422934 | F84: 0 | G84: =INDEX('ESL calcs'!$Z$12:$AD$139,MATCH($B84,'ESL calcs'!$C$12:$C$139,0),MATCH($D$5,'ESL calcs'!$Z$10:$AD$10,0)) -> -0.005682228905 | H84: =INDEX('ESL calcs'!$BC$12:$BG$139,MATCH($B84,'ESL calcs'!$C$12:$C$139,0),MATCH($D$5,'ESL calcs'!$BC$10:$BG$10,0)) -> 0.008248661336 | I84: =INDEX('Pop calcs'!$D72:$I72,MATCH($D$5,'Pop calcs'!$D$12:$I$12,0)) -> 0.02063348416 | J84: =INDEX('Pop calcs'!$K72:$P72,MATCH($D$5,'Pop calcs'!$K$12:$P$12,0)) -> 0.003830554304 | K84: 0.01680292986 | L84: =IF($D$5=2025,INDEX('Pop calcs'!$AF$14:$AF$141,MATCH($B84,'Pop calcs'!$B$14:$B$141,0)),IFERROR(INDEX('Pop calcs'!$Y72:$Z72,MATCH($D$5,'Pop calcs'!$Y$12:$Z$12,0)),0)) -> 0 | M84: 0.017 | N84: =INDEX('2024 Election costs'!$AA$24:$AA$151,MATCH(B84,'2024 Election costs'!$B$24:$B$151,0)) -> 0.006175032969 | O84: 0 | P84: 0.062 | Q84: 0.045 | T84: =INDEX('ESL calcs'!$AN$12:$AN$139,MATCH(B84,'ESL calcs'!$C$12:$C$139,0)) -> 0.5 | U84: 0.002566432431 | W84: =INDEX('Rate peg & SV'!$AM$16:$AM$143,MATCH(B84,'Rate peg & SV'!$B$16:$B$143,0)) -> 0 | X84: =IF($D$5='BCC Inputs'!$B$21,AF84,AF84*W84) -> 0 | Y84: 0.5 | AF84: 0.075
B85: =Names!I68 -> 136 | C85: =INDEX(Names!$K$9:$K$136,MATCH(B85,Names!$I$9:$I$136,0)) -> Regional | D85: =Names!F68 -> Kempsey | E85: 0.03584587895 | F85: 0 | G85: =INDEX('ESL calcs'!$Z$12:$AD$139,MATCH($B85,'ESL calcs'!$C$12:$C$139,0),MATCH($D$5,'ESL calcs'!$Z$10:$AD$10,0)) -> -0.002579885234 | H85: =INDEX('ESL calcs'!$BC$12:$BG$139,MATCH($B85,'ESL calcs'!$C$12:$C$139,0),MATCH($D$5,'ESL calcs'!$BC$10:$BG$10,0)) -> 0.004009387547 | I85: =INDEX('Pop calcs'!$D73:$I73,MATCH($D$5,'Pop calcs'!$D$12:$I$12,0)) -> 0.008290291805 | J85: =INDEX('Pop calcs'!$K73:$P73,MATCH($D$5,'Pop calcs'!$K$12:$P$12,0)) -> 0.008941155743 | K85: 0 | L85: =IF($D$5=2025,INDEX('Pop calcs'!$AF$14:$AF$141,MATCH($B85,'Pop calcs'!$B$14:$B$141,0)),IFERROR(INDEX('Pop calcs'!$Y73:$Z73,MATCH($D$5,'Pop calcs'!$Y$12:$Z$12,0)),0)) -> 0 | M85: 0 | N85: =INDEX('2024 Election costs'!$AA$24:$AA$151,MATCH(B85,'2024 Election costs'!$B$24:$B$151,0)) -> 0.001941196643 | O85: 0 | P85: 0.039 | Q85: 0.039 | T85: =INDEX('ESL calcs'!$AN$12:$AN$139,MATCH(B85,'ESL calcs'!$C$12:$C$139,0)) -> 0.5 | U85: 0.001429502313 | W85: =INDEX('Rate peg & SV'!$AM$16:$AM$143,MATCH(B85,'Rate peg & SV'!$B$16:$B$143,0)) -> 1 | X85: =IF($D$5='BCC Inputs'!$B$21,AF85,AF85*W85) -> 0.005 | Y85: 0.495 | AF85: 0.005
B86: =Names!I69 -> 137 | C86: =INDEX(Names!$K$9:$K$136,MATCH(B86,Names!$I$9:$I$136,0)) -> Regional | D86: =Names!F69 -> Kiama | E86: 0.03584587895 | F86: 0 | G86: =INDEX('ESL calcs'!$Z$12:$AD$139,MATCH($B86,'ESL calcs'!$C$12:$C$139,0),MATCH($D$5,'ESL calcs'!$Z$10:$AD$10,0)) -> -0.002386843364 | H86: =INDEX('ESL calcs'!$BC$12:$BG$139,MATCH($B86,'ESL calcs'!$C$12:$C$139,0),MATCH($D$5,'ESL calcs'!$BC$10:$BG$10,0)) -> 0.002700927249 | I86: =INDEX('Pop calcs'!$D74:$I74,MATCH($D$5,'Pop calcs'!$D$12:$I$12,0)) -> 0.001654763978 | J86: =INDEX('Pop calcs'!$K74:$P74,MATCH($D$5,'Pop calcs'!$K$12:$P$12,0)) -> 0.001860137751 | K86: 0 | L86: =IF($D$5=2025,INDEX('Pop calcs'!$AF$14:$AF$141,MATCH($B86,'Pop calcs'!$B$14:$B$141,0)),IFERROR(INDEX('Pop calcs'!$Y74:$Z74,MATCH($D$5,'Pop calcs'!$Y$12:$Z$12,0)),0)) -> 0 | M86: 0 | N86: =INDEX('2024 Election costs'!$AA$24:$AA$151,MATCH(B86,'2024 Election costs'!$B$24:$B$151,0)) -> 0.0007441212757 | O86: 0 | P86: 0.037 | Q86: 0.037 | T86: =INDEX('ESL calcs'!$AN$12:$AN$139,MATCH(B86,'ESL calcs'!$C$12:$C$139,0)) -> 0.5 | U86: 0.0003140838853 | W86: =INDEX('Rate peg & SV'!$AM$16:$AM$143,MATCH(B86,'Rate peg & SV'!$B$16:$B$143,0)) -> 1 | X86: =IF($D$5='BCC Inputs'!$B$21,AF86,AF86*W86) -> 0.05 | Y86: 0.45 | AF86: 0.05
B87: =Names!I70 -> 139 | C87: =INDEX(Names!$K$9:$K$136,MATCH(B87,Names!$I$9:$I$136,0)) -> Metropolitan | D87: =Names!F70 -> Ku-ring-gai | E87: 0.03564768825 | F87: 0 | G87: =INDEX('ESL calcs'!$Z$12:$AD$139,MATCH($B87,'ESL calcs'!$C$12:$C$139,0),MATCH($D$5,'ESL calcs'!$Z$10:$AD$10,0)) -> -0.004305393869 | H87: =INDEX('ESL calcs'!$BC$12:$BG$139,MATCH($B87,'ESL calcs'!$C$12:$C$139,0),MATCH($D$5,'ESL calcs'!$BC$10:$BG$10,0)) -> 0.005504944099 | I87: =INDEX('Pop calcs'!$D75:$I75,MATCH($D$5,'Pop calcs'!$D$12:$I$12,0)) -> 0.02236624935 | J87: =INDEX('Pop calcs'!$K75:$P75,MATCH($D$5,'Pop calcs'!$K$12:$P$12,0)) -> 0.0002487665326 | K87: 0.02211748281 | L87: =IF($D$5=2025,INDEX('Pop calcs'!$AF$14:$AF$141,MATCH($B87,'Pop calcs'!$B$14:$B$141,0)),IFERROR(INDEX('Pop calcs'!$Y75:$Z75,MATCH($D$5,'Pop calcs'!$Y$12:$Z$12,0)),0)) -> 0 | M87: 0.022 | N87: =INDEX('2024 Election costs'!$AA$24:$AA$151,MATCH(B87,'2024 Election costs'!$B$24:$B$151,0)) -> 0.002506517471 | O87: 0 | P87: 0.061 | Q87: 0.039 | T87: =INDEX('ESL calcs'!$AN$12:$AN$139,MATCH(B87,'ESL calcs'!$C$12:$C$139,0)) -> 0.5 | U87: 0.001199550229 | W87: =INDEX('Rate peg & SV'!$AM$16:$AM$143,MATCH(B87,'Rate peg & SV'!$B$16:$B$143,0)) -> 1 | X87: =IF($D$5='BCC Inputs'!$B$21,AF87,AF87*W87) -> 0 | Y87: 0.5 | AF87: 0
B88: =Names!I71 -> 140 | C88: =INDEX(Names!$K$9:$K$136,MATCH(B88,Names!$I$9:$I$136,0)) -> Rural | D88: =Names!F71 -> Kyogle | E88: 0.03594422934 | F88: 0 | G88: =INDEX('ESL calcs'!$Z$12:$AD$139,MATCH($B88,'ESL calcs'!$C$12:$C$139,0),MATCH($D$5,'ESL calcs'!$Z$10:$AD$10,0)) -> -0.003872262968 | H88: =INDEX('ESL calcs'!$BC$12:$BG$139,MATCH($B88,'ESL calcs'!$C$12:$C$139,0),MATCH($D$5,'ESL calcs'!$BC$10:$BG$10,0)) -> 0.006010251608 | I88: =INDEX('Pop calcs'!$D76:$I76,MATCH($D$5,'Pop calcs'!$D$12:$I$12,0)) -> 0.001692763436 | J88: =INDEX('Pop calcs'!$K76:$P76,MATCH($D$5,'Pop calcs'!$K$12:$P$12,0)) -> 0.005541561713 | K88: 0 | L88: =IF($D$5=2025,INDEX('Pop calcs'!$AF$14:$AF$141,MATCH($B88,'Pop calcs'!$B$14:$B$141,0)),IFERROR(INDEX('Pop calcs'!$Y76:$Z76,MATCH($D$5,'Pop calcs'!$Y$12:$Z$12,0)),0)) -> 0 | M88: 0 | N88: =INDEX('2024 Election costs'!$AA$24:$AA$151,MATCH(B88,'2024 Election costs'!$B$24:$B$151,0)) -> 0.003188104615 | O88: 0 | P88: 0.041 | Q88: 0.041 | T88: =INDEX('ESL calcs'!$AN$12:$AN$139,MATCH(B88,'ESL calcs'!$C$12:$C$139,0)) -> 0.5 | U88: 0.00213798864 | W88: =INDEX('Rate peg & SV'!$AM$16:$AM$143,MATCH(B88,'Rate peg & SV'!$B$16:$B$143,0)) -> 1 | X88: =IF($D$5='BCC Inputs'!$B$21,AF88,AF88*W88) -> 0.125 | Y88: 0.375 | AF88: 0.125
B89: =Names!I72 -> 141 | C89: =INDEX(Names!$K$9:$K$136,MATCH(B89,Names!$I$9:$I$136,0)) -> Rural | D89: =Names!F72 -> Lachlan | E89: 0.03594422934 | F89: 0 | G89: =INDEX('ESL calcs'!$Z$12:$AD$139,MATCH($B89,'ESL calcs'!$C$12:$C$139,0),MATCH($D$5,'ESL calcs'!$Z$10:$AD$10,0)) -> -0.004597315921 | H89: =INDEX('ESL calcs'!$BC$12:$BG$139,MATCH($B89,'ESL calcs'!$C$12:$C$139,0),MATCH($D$5,'ESL calcs'!$BC$10:$BG$10,0)) -> 0.00725447324 | I89: =INDEX('Pop calcs'!$D77:$I77,MATCH($D$5,'Pop calcs'!$D$12:$I$12,0)) -> 0.00146627566 | J89: =INDEX('Pop calcs'!$K77:$P77,MATCH($D$5,'Pop calcs'!$K$12:$P$12,0)) -> 0.0005684240443 | K89: 0.0008978516155 | L89: =IF($D$5=2025,INDEX('Pop calcs'!$AF$14:$AF$141,MATCH($B89,'Pop calcs'!$B$14:$B$141,0)),IFERROR(INDEX('Pop calcs'!$Y77:$Z77,MATCH($D$5,'Pop calcs'!$Y$12:$Z$12,0)),0)) -> 0 | M89: 0.001 | N89: =INDEX('2024 Election costs'!$AA$24:$AA$151,MATCH(B89,'2024 Election costs'!$B$24:$B$151,0)) -> 0.003449987172 | O89: 0 | P89: 0.043 | Q89: 0.042 | T89: =INDEX('ESL calcs'!$AN$12:$AN$139,MATCH(B89,'ESL calcs'!$C$12:$C$139,0)) -> 0.5 | U89: 0.002657157319 | W89: =INDEX('Rate peg & SV'!$AM$16:$AM$143,MATCH(B89,'Rate peg & SV'!$B$16:$B$143,0)) -> 1 | X89: =IF($D$5='BCC Inputs'!$B$21,AF89,AF89*W89) -> 0.14 | Y89: 0.36 | AF89: 0.14
B90: =Names!I73 -> 142 | C90: =INDEX(Names!$K$9:$K$136,MATCH(B90,Names!$I$9:$I$136,0)) -> Regional | D90: =Names!F73 -> Lake Macquarie | E90: =INDEX($D$9:$F$9,MATCH(C90,$D$8:$F$8,0)) -> 0.03584587895 | F90: =INDEX($D$12:$F$12,MATCH(C90,$D$8:$F$8,0)) -> 0 | G90: =INDEX('ESL calcs'!$Z$12:$AD$139,MATCH($B90,'ESL calcs'!$C$12:$C$139,0),MATCH($D$5,'ESL calcs'!$Z$10:$AD$10,0)) -> -0.002892057531 | H90: =INDEX('ESL calcs'!$BC$12:$BG$139,MATCH($B90,'ESL calcs'!$C$12:$C$139,0),MATCH($D$5,'ESL calcs'!$BC$10:$BG$10,0)) -> 0.003415996858 | I90: =INDEX('Pop calcs'!$D78:$I78,MATCH($D$5,'Pop calcs'!$D$12:$I$12,0)) -> 0.01225795728 | J90: =INDEX('Pop calcs'!$K78:$P78,MATCH($D$5,'Pop calcs'!$K$12:$P$12,0)) -> 0.003818218732 | K90: 0.008439738552 | L90: =IF($D$5=2025,INDEX('Pop calcs'!$AF$14:$AF$141,MATCH($B90,'Pop calcs'!$B$14:$B$141,0)),IFERROR(INDEX('Pop calcs'!$Y78:$Z78,MATCH($D$5,'Pop calcs'!$Y$12:$Z$12,0)),0)) -> 0 | M90: =IFERROR(MAX(0,ROUND(K90+L90,$D$14)),".") -> 0.008 | N90: =INDEX('2024 Election costs'!$AA$24:$AA$151,MATCH(B90,'2024 Election costs'!$B$24:$B$151,0)) -> 0.0006485264637 | O90: 0 | P90: =M90+ROUND(E90+F90+G90+H90+N90-O90,$D$14) -> 0.045 | Q90: =P90-M90 -> 0.037 | T90: =INDEX('ESL calcs'!$AN$12:$AN$139,MATCH(B90,'ESL calcs'!$C$12:$C$139,0)) -> 0.5 | U90: =SUM(G90:H90) -> 0.0005239393272 | W90: =INDEX('Rate peg & SV'!$AM$16:$AM$143,MATCH(B90,'Rate peg & SV'!$B$16:$B$143,0)) -> 1 | X90: =IF($D$5='BCC Inputs'!$B$21,AF90,AF90*W90) -> 0 | Y90: 0.5 | AF90: 0
B91: =Names!I74 -> 143 | C91: =INDEX(Names!$K$9:$K$136,MATCH(B91,Names!$I$9:$I$136,0)) -> Metropolitan | D91: =Names!F74 -> Lane Cove | E91: 0.03564768825 | F91: 0 | G91: =INDEX('ESL calcs'!$Z$12:$AD$139,MATCH($B91,'ESL calcs'!$C$12:$C$139,0),MATCH($D$5,'ESL calcs'!$Z$10:$AD$10,0)) -> -0.003204947288 | H91: =INDEX('ESL calcs'!$BC$12:$BG$139,MATCH($B91,'ESL calcs'!$C$12:$C$139,0),MATCH($D$5,'ESL calcs'!$BC$10:$BG$10,0)) -> 0.003420894256 | I91: =INDEX('Pop calcs'!$D79:$I79,MATCH($D$5,'Pop calcs'!$D$12:$I$12,0)) -> 0.03644482139 | J91: =INDEX('Pop calcs'!$K79:$P79,MATCH($D$5,'Pop calcs'!$K$12:$P$12,0)) -> 0.03591579861 | K91: =IFERROR(MAX(0,I91-J91),0) -> 0.0005290227818 | L91: =IF($D$5=2025,INDEX('Pop calcs'!$AF$14:$AF$141,MATCH($B91,'Pop calcs'!$B$14:$B$141,0)),IFERROR(INDEX('Pop calcs'!$Y79:$Z79,MATCH($D$5,'Pop calcs'!$Y$12:$Z$12,0)),0)) -> 0 | M91: 0.001 | N91: =INDEX('2024 Election costs'!$AA$24:$AA$151,MATCH(B91,'2024 Election costs'!$B$24:$B$151,0)) -> 0.002028873561 | O91: 0 | P91: 0.039 | Q91: 0.038 | T91: =INDEX('ESL calcs'!$AN$12:$AN$139,MATCH(B91,'ESL calcs'!$C$12:$C$139,0)) -> 0.5 | U91: 0.0002159469679 | W91: =INDEX('Rate peg & SV'!$AM$16:$AM$143,MATCH(B91,'Rate peg & SV'!$B$16:$B$143,0)) -> 1 | X91: =IF($D$5='BCC Inputs'!$B$21,AF91,AF91*W91) -> 0 | Y91: 0.5 | AF91: 0
B92: =Names!I75 -> 144 | C92: =INDEX(Names!$K$9:$K$136,MATCH(B92,Names!$I$9:$I$136,0)) -> Rural | D92: =Names!F75 -> Leeton | E92: 0.03594422934 | F92: 0 | G92: =INDEX('ESL calcs'!$Z$12:$AD$139,MATCH($B92,'ESL calcs'!$C$12:$C$139,0),MATCH($D$5,'ESL calcs'!$Z$10:$AD$10,0)) -> -0.003083556894 | H92: =INDEX('ESL calcs'!$BC$12:$BG$139,MATCH($B92,'ESL calcs'!$C$12:$C$139,0),MATCH($D$5,'ESL calcs'!$BC$10:$BG$10,0)) -> 0.004425064082 | I92: =INDEX('Pop calcs'!$D80:$I80,MATCH($D$5,'Pop calcs'!$D$12:$I$12,0)) -> 0 | J92: =INDEX('Pop calcs'!$K80:$P80,MATCH($D$5,'Pop calcs'!$K$12:$P$12,0)) -> 0.004158266129 | K92: 0 | L92: =IF($D$5=2025,INDEX('Pop calcs'!$AF$14:$AF$141,MATCH($B92,'Pop calcs'!$B$14:$B$141,0)),IFERROR(INDEX('Pop calcs'!$Y80:$Z80,MATCH($D$5,'Pop calcs'!$Y$12:$Z$12,0)),0)) -> 0 | M92: 0 | N92: =INDEX('2024 Election costs'!$AA$24:$AA$151,MATCH(B92,'2024 Election costs'!$B$24:$B$151,0)) -> 0.006748743551 | O92: 0 | P92: 0.044 | Q92: 0.044 | T92: =INDEX('ESL calcs'!$AN$12:$AN$139,MATCH(B92,'ESL calcs'!$C$12:$C$139,0)) -> 0.5 | U92: 0.001341507188 | W92: =INDEX('Rate peg & SV'!$AM$16:$AM$143,MATCH(B92,'Rate peg & SV'!$B$16:$B$143,0)) -> 1 | X92: =IF($D$5='BCC Inputs'!$B$21,AF92,AF92*W92) -> 0 | Y92: 0.5 | AF92: 0
B93: =Names!I76 -> 146 | C93: =INDEX(Names!$K$9:$K$136,MATCH(B93,Names!$I$9:$I$136,0)) -> Regional | D93: =Names!F76 -> Lismore | E93: 0.03584587895 | F93: 0 | G93: =INDEX('ESL calcs'!$Z$12:$AD$139,MATCH($B93,'ESL calcs'!$C$12:$C$139,0),MATCH($D$5,'ESL calcs'!$Z$10:$AD$10,0)) -> -0.002898878268 | H93: =INDEX('ESL calcs'!$BC$12:$BG$139,MATCH($B93,'ESL calcs'!$C$12:$C$139,0),MATCH($D$5,'ESL calcs'!$BC$10:$BG$10,0)) -> 0.003971284238 | I93: =INDEX('Pop calcs'!$D81:$I81,MATCH($D$5,'Pop calcs'!$D$12:$I$12,0)) -> 0 | J93: =INDEX('Pop calcs'!$K81:$P81,MATCH($D$5,'Pop calcs'!$K$12:$P$12,0)) -> 0.004750740375 | K93: 0 | L93: =IF($D$5=2025,INDEX('Pop calcs'!$AF$14:$AF$141,MATCH($B93,'Pop calcs'!$B$14:$B$141,0)),IFERROR(INDEX('Pop calcs'!$Y81:$Z81,MATCH($D$5,'Pop calcs'!$Y$12:$Z$12,0)),0)) -> 0 | M93: 0 | N93: =INDEX('2024 Election costs'!$AA$24:$AA$151,MATCH(B93,'2024 Election costs'!$B$24:$B$151,0)) -> 0.002443502434 | O93: 0 | P93: 0.039 | Q93: 0.039 | T93: =INDEX('ESL calcs'!$AN$12:$AN$139,MATCH(B93,'ESL calcs'!$C$12:$C$139,0)) -> 0.5 | U93: 0.001072405969 | W93: =INDEX('Rate peg & SV'!$AM$16:$AM$143,MATCH(B93,'Rate peg & SV'!$B$16:$B$143,0)) -> 1 | X93: =IF($D$5='BCC Inputs'!$B$21,AF93,AF93*W93) -> 0 | Y93: 0.5 | AF93: 0
B94: =Names!I77 -> 2044 | C94: =INDEX(Names!$K$9:$K$136,MATCH(B94,Names!$I$9:$I$136,0)) -> Regional | D94: =Names!F77 -> Lithgow | E94: 0.03584587895 | F94: 0 | G94: =INDEX('ESL calcs'!$Z$12:$AD$139,MATCH($B94,'ESL calcs'!$C$12:$C$139,0),MATCH($D$5,'ESL calcs'!$Z$10:$AD$10,0)) -> -0.003112041273 | H94: =INDEX('ESL calcs'!$BC$12:$BG$139,MATCH($B94,'ESL calcs'!$C$12:$C$139,0),MATCH($D$5,'ESL calcs'!$BC$10:$BG$10,0)) -> 0.004774258436 | I94: =INDEX('Pop calcs'!$D82:$I82,MATCH($D$5,'Pop calcs'!$D$12:$I$12,0)) -> 0 | J94: =INDEX('Pop calcs'!$K82:$P82,MATCH($D$5,'Pop calcs'!$K$12:$P$12,0)) -> 0.009118948639 | K94: 0 | L94: =IF($D$5=2025,INDEX('Pop calcs'!$AF$14:$AF$141,MATCH($B94,'Pop calcs'!$B$14:$B$141,0)),IFERROR(INDEX('Pop calcs'!$Y82:$Z82,MATCH($D$5,'Pop calcs'!$Y$12:$Z$12,0)),0)) -> 0 | M94: 0 | N94: =INDEX('2024 Election costs'!$AA$24:$AA$151,MATCH(B94,'2024 Election costs'!$B$24:$B$151,0)) -> 0.003386915063 | O94: 0 | P94: 0.041 | Q94: 0.041 | T94: =INDEX('ESL calcs'!$AN$12:$AN$139,MATCH(B94,'ESL calcs'!$C$12:$C$139,0)) -> 0.5 | U94: 0.001662217162 | W94: =INDEX('Rate peg & SV'!$AM$16:$AM$143,MATCH(B94,'Rate peg & SV'!$B$16:$B$143,0)) -> 1 | X94: =IF($D$5='BCC Inputs'!$B$21,AF94,AF94*W94) -> 0.035 | Y94: 0.465 | AF94: 0.035
B95: =Names!I78 -> 147 | C95: =INDEX(Names!$K$9:$K$136,MATCH(B95,Names!$I$9:$I$136,0)) -> Metropolitan | D95: =Names!F78 -> Liverpool | E95: 0.03564768825 | F95: 0 | G95: =INDEX('ESL calcs'!$Z$12:$AD$139,MATCH($B95,'ESL calcs'!$C$12:$C$139,0),MATCH($D$5,'ESL calcs'!$Z$10:$AD$10,0)) -> -0.003524287165 | H95: =INDEX('ESL calcs'!$BC$12:$BG$139,MATCH($B95,'ESL calcs'!$C$12:$C$139,0),MATCH($D$5,'ESL calcs'!$BC$10:$BG$10,0)) -> 0.003524287165 | I95: =INDEX('Pop calcs'!$D83:$I83,MATCH($D$5,'Pop calcs'!$D$12:$I$12,0)) -> 0.03293935122 | J95: =INDEX('Pop calcs'!$K83:$P83,MATCH($D$5,'Pop calcs'!$K$12:$P$12,0)) -> 0.01049818997 | K95: 0.02244116126 | L95: =IF($D$5=2025,INDEX('Pop calcs'!$AF$14:$AF$141,MATCH($B95,'Pop calcs'!$B$14:$B$141,0)),IFERROR(INDEX('Pop calcs'!$Y83:$Z83,MATCH($D$5,'Pop calcs'!$Y$12:$Z$12,0)),0)) -> 0 | M95: 0.022 | N95: =INDEX('2024 Election costs'!$AA$24:$AA$151,MATCH(B95,'2024 Election costs'!$B$24:$B$151,0)) -> 0.00240443846 | O95: 0 | P95: 0.06 | Q95: 0.038 | T95: =INDEX('ESL calcs'!$AN$12:$AN$139,MATCH(B95,'ESL calcs'!$C$12:$C$139,0)) -> 0.5406062629 | U95: 0 | W95: =INDEX('Rate peg & SV'!$AM$16:$AM$143,MATCH(B95,'Rate peg & SV'!$B$16:$B$143,0)) -> 1 | X95: =IF($D$5='BCC Inputs'!$B$21,AF95,AF95*W95) -> 0 | Y95: 0.5406062629 | AF95: 0
B96: =Names!I79 -> 2040 | C96: =INDEX(Names!$K$9:$K$136,MATCH(B96,Names!$I$9:$I$136,0)) -> Rural | D96: =Names!F79 -> Liverpool Plains | E96: 0.03594422934 | F96: 0 | G96: =INDEX('ESL calcs'!$Z$12:$AD$139,MATCH($B96,'ESL calcs'!$C$12:$C$139,0),MATCH($D$5,'ESL calcs'!$Z$10:$AD$10,0)) -> -0.004153288593 | H96: =INDEX('ESL calcs'!$BC$12:$BG$139,MATCH($B96,'ESL calcs'!$C$12:$C$139,0),MATCH($D$5,'ESL calcs'!$BC$10:$BG$10,0)) -> 0.006081337232 | I96: =INDEX('Pop calcs'!$D84:$I84,MATCH($D$5,'Pop calcs'!$D$12:$I$12,0)) -> 0.001044522784 | J96: =INDEX('Pop calcs'!$K84:$P84,MATCH($D$5,'Pop calcs'!$K$12:$P$12,0)) -> 0.00675900277 | K96: 0 | L96: =IF($D$5=2025,INDEX('Pop calcs'!$AF$14:$AF$141,MATCH($B96,'Pop calcs'!$B$14:$B$141,0)),IFERROR(INDEX('Pop calcs'!$Y84:$Z84,MATCH($D$5,'Pop calcs'!$Y$12:$Z$12,0)),0)) -> 0 | M96: 0 | N96: =INDEX('2024 Election costs'!$AA$24:$AA$151,MATCH(B96,'2024 Election costs'!$B$24:$B$151,0)) -> 0.001988314979 | O96: 0 | P96: 0.04 | Q96: 0.04 | T96: =INDEX('ESL calcs'!$AN$12:$AN$139,MATCH(B96,'ESL calcs'!$C$12:$C$139,0)) -> 0.5 | U96: 0.00192804864 | W96: =INDEX('Rate peg & SV'!$AM$16:$AM$143,MATCH(B96,'Rate peg & SV'!$B$16:$B$143,0)) -> 1 | X96: =IF($D$5='BCC Inputs'!$B$21,AF96,AF96*W96) -> 0.155 | Y96: 0.345 | AF96: 0.155
B97: =Names!I80 -> 148 | C97: =INDEX(Names!$K$9:$K$136,MATCH(B97,Names!$I$9:$I$136,0)) -> Rural | D97: =Names!F80 -> Lockhart | E97: 0.03594422934 | F97: 0 | G97: =INDEX('ESL calcs'!$Z$12:$AD$139,MATCH($B97,'ESL calcs'!$C$12:$C$139,0),MATCH($D$5,'ESL calcs'!$Z$10:$AD$10,0)) -> -0.007490773867 | H97: =INDEX('ESL calcs'!$BC$12:$BG$139,MATCH($B97,'ESL calcs'!$C$12:$C$139,0),MATCH($D$5,'ESL calcs'!$BC$10:$BG$10,0)) -> 0.009228784656 | I97: =INDEX('Pop calcs'!$D85:$I85,MATCH($D$5,'Pop calcs'!$D$12:$I$12,0)) -> 0.007715133531 | J97: =INDEX('Pop calcs'!$K85:$P85,MATCH($D$5,'Pop calcs'!$K$12:$P$12,0)) -> 0.0007555723461 | K97: 0.006959561185 | L97: =IF($D$5=2025,INDEX('Pop calcs'!$AF$14:$AF$141,MATCH($B97,'Pop calcs'!$B$14:$B$141,0)),IFERROR(INDEX('Pop calcs'!$Y85:$Z85,MATCH($D$5,'Pop calcs'!$Y$12:$Z$12,0)),0)) -> 0 | M97: 0.007 | N97: =INDEX('2024 Election costs'!$AA$24:$AA$151,MATCH(B97,'2024 Election costs'!$B$24:$B$151,0)) -> 0.004484830347 | O97: 0 | P97: 0.049 | Q97: 0.042 | T97: =INDEX('ESL calcs'!$AN$12:$AN$139,MATCH(B97,'ESL calcs'!$C$12:$C$139,0)) -> 0.5 | U97: 0.001738010789 | W97: =INDEX('Rate peg & SV'!$AM$16:$AM$143,MATCH(B97,'Rate peg & SV'!$B$16:$B$143,0)) -> 1 | X97: =IF($D$5='BCC Inputs'!$B$21,AF97,AF97*W97) -> 0.197 | Y97: 0.303 | AF97: 0.197
B98: =Names!I81 -> 150 | C98: =INDEX(Names!$K$9:$K$136,MATCH(B98,Names!$I$9:$I$136,0)) -> Regional | D98: =Names!F81 -> Maitland | E98: 0.03584587895 | F98: 0 | G98: =INDEX('ESL calcs'!$Z$12:$AD$139,MATCH($B98,'ESL calcs'!$C$12:$C$139,0),MATCH($D$5,'ESL calcs'!$Z$10:$AD$10,0)) -> -0.002128803893 | H98: =INDEX('ESL calcs'!$BC$12:$BG$139,MATCH($B98,'ESL calcs'!$C$12:$C$139,0),MATCH($D$5,'ESL calcs'!$BC$10:$BG$10,0)) -> 0.002128803893 | I98: =INDEX('Pop calcs'!$D86:$I86,MATCH($D$5,'Pop calcs'!$D$12:$I$12,0)) -> 0.02502830773 | J98: =INDEX('Pop calcs'!$K86:$P86,MATCH($D$5,'Pop calcs'!$K$12:$P$12,0)) -> 0.00266476505 | K98: 0.02236354268 | L98: =IF($D$5=2025,INDEX('Pop calcs'!$AF$14:$AF$141,MATCH($B98,'Pop calcs'!$B$14:$B$141,0)),IFERROR(INDEX('Pop calcs'!$Y86:$Z86,MATCH($D$5,'Pop calcs'!$Y$12:$Z$12,0)),0)) -> 0 | M98: 0.022 | N98: =INDEX('2024 Election costs'!$AA$24:$AA$151,MATCH(B98,'2024 Election costs'!$B$24:$B$151,0)) -> 0.0005509069214 | O98: 0 | P98: 0.058 | Q98: 0.036 | T98: =INDEX('ESL calcs'!$AN$12:$AN$139,MATCH(B98,'ESL calcs'!$C$12:$C$139,0)) -> 0.5411968839 | U98: 0 | W98: =INDEX('Rate peg & SV'!$AM$16:$AM$143,MATCH(B98,'Rate peg & SV'!$B$16:$B$143,0)) -> 1 | X98: =IF($D$5='BCC Inputs'!$B$21,AF98,AF98*W98) -> 0 | Y98: 0.5411968839 | AF98: 0
B99: =Names!I82 -> 2084 | C99: =INDEX(Names!$K$9:$K$136,MATCH(B99,Names!$I$9:$I$136,0)) -> Regional | D99: =Names!F82 -> Mid-Coast | E99: 0.03584587895 | F99: 0 | G99: =INDEX('ESL calcs'!$Z$12:$AD$139,MATCH($B99,'ESL calcs'!$C$12:$C$139,0),MATCH($D$5,'ESL calcs'!$Z$10:$AD$10,0)) -> -0.002348637143 | H99: =INDEX('ESL calcs'!$BC$12:$BG$139,MATCH($B99,'ESL calcs'!$C$12:$C$139,0),MATCH($D$5,'ESL calcs'!$BC$10:$BG$10,0)) -> 0.002997406623 | I99: =INDEX('Pop calcs'!$D87:$I87,MATCH($D$5,'Pop calcs'!$D$12:$I$12,0)) -> 0.00701451243 | J99: =INDEX('Pop calcs'!$K87:$P87,MATCH($D$5,'Pop calcs'!$K$12:$P$12,0)) -> 0.007234454937 | K99: 0 | L99: =IF($D$5=2025,INDEX('Pop calcs'!$AF$14:$AF$141,MATCH($B99,'Pop calcs'!$B$14:$B$141,0)),IFERROR(INDEX('Pop calcs'!$Y87:$Z87,MATCH($D$5,'Pop calcs'!$Y$12:$Z$12,0)),0)) -> 0 | M99: 0 | N99: =INDEX('2024 Election costs'!$AA$24:$AA$151,MATCH(B99,'2024 Election costs'!$B$24:$B$151,0)) -> 0.001430123495 | O99: 0 | P99: 0.038 | Q99: 0.038 | T99: =INDEX('ESL calcs'!$AN$12:$AN$139,MATCH(B99,'ESL calcs'!$C$12:$C$139,0)) -> 0.5 | U99: 0.0006487694801 | W99: =INDEX('Rate peg & SV'!$AM$16:$AM$143,MATCH(B99,'Rate peg & SV'!$B$16:$B$143,0)) -> 1 | X99: =IF($D$5='BCC Inputs'!$B$21,AF99,AF99*W99) -> 0.115 | Y99: 0.385 | AF99: 0.115
